Workbook

Sheet Панель управления
E4: Приложение № 2
C5: к "Положению об инвестиционном бюджете АК "АЛРОСА" (ПАО)
C14: ПАНЕЛЬ УПРАВЛЕНИЯ
C16: Для установления Общества/ СП, периода, режима ввода
C17: и проверки корретности вводимых и формируемых данных
C18: по всем листам Альбома форм
C19: Альбом форм к "Положению об инвестиционном бюджете
C25: АО "Вилюйская ГЭС-3"
B31: Год: | C31: 2017
B34: Период: | C34: 12 месяцев
B37: Период: | C37: =C34& " " & C31 -> 12 месяцев 2017
B40: Режим ввода: | C40: 2
B45: Проверка: | C45: =SUM(Ошибки!H3:H32) -> 0.1930000018
C48: г. Москва
C49: 2015 г.

Sheet Титул
E4: Приложение № 2
C5: к "Положению об инвестиционном бюджете АК "АЛРОСА" (ПАО)"
C15: Альбом форм к "Положению об инвестиционном бюджете
C23: =org -> АО "Вилюйская ГЭС-3"
B27: Год: | C27: =year -> 2017
B29: Период: | C29: =period -> 12 месяцев
C47: г. Москва
C48: 2015 г.

Sheet Содержание
C2: Содержание
A4: I. | C4: Формы инвестиционного бюджета
A6: № | B6: Код формы | C6: Наимененование
C7: Сводные бюджеты
A8: 1 | B8: СБИ | C8: Сводный бюджет инвестиций
A9: 2 | B9: СБП | C9: Сводный бюджет инвестиций по проектам
A10: 3 | B10: БКС | C10: Бюджет капитального строительства
A11: 4 | B11: СБО | C11: Сводный бюджет инвестиций в оборудование
A12: 5 | B12: ТП_ОВИЗ | C12: Сводный бюджет инвестиций в ТП и ОВИЗ
A13: 6 | B13: БОЛ | C13: Бюджет инвестиций в оборудование, приобретаемое в лизинг
C14: Вспомогательные бюджеты
A15: 01. | B15: СБИ/В | C15: Сводный бюджет инвестиций (детализация по кварталам прошлых периодов)
A16: 02. | B16: СБП/В | C16: Бюджет инвестиций по проекту
A17: 03. | B17: БКС/В | C17: Бюджет объекта КС
C18: Функциональные бюджеты
A19: 7 | B19: СМР | C19: Бюджет строительно-монтажных работ
A20: 8 | B20: ОСС | C20: Бюджет инвестиций в оборудование в смете на строительство
A21: 9 | B21: ПИР | C21: Бюджет проектно-изыскательских работ
A22: 10 | B22: БКП | C22: Бюджет капитализируемых процентов
A23: 11 | B23: ПЗС | C23: Бюджет прочих затрат на капитальное строительство
A24: 12 | B24: ТП_БЭФ | C24: Бюджет инвестиций в ТП по проекту и в оборудование без прямого экономического эффекта
A25: 13 | B25: ТП_СЭФ | C25: Бюджет инвестиций в ТП с прямым экономическим эффектом
A26: 14 | B26: ОВИЗ | C26: Бюджет инвестиций в оборудование взамен изношенного
A27: 15 | B27: ГРР | C27: Бюджет инвестиций в геолого-разведочные работы
A28: 16 | B28: НИОКР | C28: Бюджет научно-исследовательских и опытно-конструкторских разработок
A29: 17 | B29: НМА | C29: Бюджет нематериальных активов
A30: 18 | B30: ПКЗ | C30: Бюджет прочих капитальных затрат
A31: 19 | B31: БФИ | C31: Бюджет финансовых инвестиций (вложений)
C32: Вспомогательные бюджеты
A33: 04. | B33: РИП | C33: Реестр инвестиционных проектов
A34: 05. | B34: РКС | C34: Реестр объектов капитального строительства
A35: 06. | B35: БПД | C35: Бюджет прочих движений по 08 счёту* (кроме инвестиций)
A38: II. | C38: Справочники
A39: 1 | C39: Группы основных инвестиций в КС
A40: 2 | C40: Группы оборудования для КС
A41: 3 | C41: Виды оборудования
A42: 4 | C42: Виды проектов по переделам
A43: 5 | C43: Происхождение оборудования
A44: 6 | C44: Приоритетность инвестиционных расходов
A45: 7 | C45: Формы приобретения оборудования
A46: 8 | C46: Виды прочих инвестиций КС
A47: 9 | C47: Виды ДФВ
A48: 10 | C48: Виды прочих нефинансовых активов
A49: 11 | C49: Строительные площадки
A50: 12 | C50: Виды нематериальных активов
A51: 13 | C51: Авансы
A52: 14 | C52: Виды ТП и ОВИЗ
A53: 15 | C53: Текущий статус заменяемого оборудования
A54: 16 | C54: Причины замены оборудования
A55: 17 | C55: Периоды
A56: 18 | C56: Признак инновационности

Sheet Ошибки
B2: Лист | C2: Диапазон | H2: Проверка
B3: =MID(G3,D3+1,E3-D3-1) ->  | C3: =MID(G3,E3+1,F3-E3-1) ->  | D3: =SEARCH("(",G3,1) ->  | E3: =SEARCH("!",G3,1) ->  | F3: =LEN(G3) ->  | G3: =_xlfn.FORMULATEXT(H3) ->  | H3: =SUM('1.СБИ'!E92:AH92) -> 0.1930000006
B4: =MID(G4,D4+1,E4-D4-1) ->  | C4: =MID(G4,E4+1,F4-E4-1) ->  | D4: =SEARCH("(",G4,1) ->  | E4: =SEARCH("!",G4,1) ->  | F4: =LEN(G4) ->  | G4: =_xlfn.FORMULATEXT(H4) ->  | H4: =SUM('1.СБИ'!AI17:AI89) -> 7.821654435e-10
B5: =MID(G5,D5+1,E5-D5-1) ->  | C5: =MID(G5,E5+1,F5-E5-1) ->  | D5: =SEARCH("(",G5,1) ->  | E5: =SEARCH("!",G5,1) ->  | F5: =LEN(G5) ->  | H5: =SUM('2.СБП'!AG17:AG45) -> 1.746229827e-10
H6: =SUM('2.СБП'!G46:AF46) -> 0
H7: =SUM('02. СБП_В'!AE17:AE35) -> 0
H8: =SUM('02. СБП_В'!F37:O37) -> 0
H9: =SUM('3.БКС'!K69:T69) -> 0
H10: =SUM('3.БКС'!AR17:AR67) -> 2.910383046e-11
H11: =SUM('03. БКС_В'!E37:AD37) -> 0
H12: =SUM('03. БКС_В'!AF31:AF36) -> 0
H13: =SUM('4.СБО'!AE17:AE44) -> 7.275957614e-11
H14: =SUM('4.СБО'!E47:N47) -> 2.239630703e-11
H15: =SUM('5.ТП_ОВИЗ'!E60:N60) -> 1.483613232e-11
H16: =SUM('5.ТП_ОВИЗ'!AE17:AE59) -> 2.546585165e-11
H17: =SUM('6.БОЛ'!E27:AD27) -> 0
H18: =SUM('6.БОЛ'!AE17:AE25) -> 0
H19: =SUM('7.СМР'!AJ:AJ) -> 2.910383046e-11
H20: =SUM('8.ОСС'!BC:BC) -> 0
H21: =SUM('9.ПИР'!AJ:AJ) -> 0
H22: =SUM('10.БКП'!AI:AI) -> 0
H23: =SUM('11.ПЗС'!AK:AK) -> 0
H24: =SUM('12.ТП_БЭФ'!BL:BL) -> 1.818989404e-12
H25: =SUM('13.ТП_СЭФ'!BW:BW) -> 0
H26: =SUM('14.ОВИЗ'!BT:BT) -> 0
H27: =SUM('15.ГРР'!AP:AP) -> 0
H28: =SUM('16.НИОКР'!AP:AP) -> 0
H29: =SUM('17.НМА'!AL:AL) -> 0
H30: =SUM('18.ПКЗ'!AL:AL) -> 0
H31: =SUM('19.БФИ'!AL:AL) -> 0
H32: =SUM('06.БПД'!AG:AG) -> 0

Sheet #
E4: Приложение № 2
C5: к "Положению об инвестиционном бюджете АК "АЛРОСА" (ПАО)"
C18: Сводные инвестиционные бюджеты
C46: г. Москва
C47: 2015 г.

Sheet 1.СБИ
B1: Назад к оглавлению | L1: base_fact | M1: base_fact | N1: base_fact | O1: base_fact | P1: base_fact | Q1: fact_fields | R1: fact_fields | S1: fact_fields | T1: fact_fields | U1: fact_fields | V1: corr_fields | W1: corr_fields | X1: corr_fields | Y1: corr_fields | Z1: corr_fields | AA1: corr_fields | AB1: corr_fields | AC1: corr_fields | AD1: corr_fields | AE1: corr_fields | AF1: corr_fields | AG1: plan_fields | AH1: plan_fields
B3: Приложение № 2 к "Положению об инвестиционном бюджете АК "АЛРОСА""
B4: Код формы: СБИ
C6: =org -> АО "Вилюйская ГЭС-3"
C7: Организационно-правовая форма и название Общества/структурного подразделения
C8: =period_txt -> 12 месяцев 2017
C9: Плановый / отчётный период
C10: Сводный бюджет инвестиций
B11: Тыс. руб. без НДС 1
B12: № | C12: Общество / cтруктурное подразделение | D12: Наименование | E12: ="ФАКТ " & year - 2 -> ФАКТ 2015 | F12: =IF(mode=budget_mode, "ОЖИДАНИЕ " & year - 1, "ФАКТ " & year - 1) -> ФАКТ 2016 | G12: Плановый / отчётный период2 | Q12: ПЛАН за | R12: ФАКТ за | S12: Отклонение за период3 | U12: Комментарии по отклонениям4 | V12: Изменения к утверждённому плану по году | AA12: Скорректированный план | AF12: Комментарии по изменениям плана | AG12: ="ПЛАН " & year + 1 -> ПЛАН 2018 | AH12: ="ПЛАН " & year + 2 -> ПЛАН 2019 | AI12: Сверка
G13: ="ПЛАН " & year -> ПЛАН 2017 | H13: в т.ч. по кварталам: | L13: ="ФАКТ " & year -> ФАКТ 2017 | M13: в т.ч. по кварталам: | Q13: =period -> 12 месяцев | R13: =Q13 -> 12 месяцев | S13: 12 месяцев | AA13: ПЛАН | AB13: в т.ч. по кварталам:
G14: Год всего | H14: 1 кв. | I14: 2 кв. | J14: 3 кв. | K14: 4 кв. | L14: Год всего | M14: 1 кв. | N14: 2 кв. | O14: 3 кв. | P14: 4 кв. | Q14: Тыс. руб. | R14: Тыс. руб. | S14: Тыс. руб. | T14: % | V14: Изменение всего | X14: В т.ч. | AA14: Год всего | AB14: 1 кв. | AC14: 2 кв. | AD14: 3 кв. | AE14: 4 кв.
V15: Тыс. руб. | W15: % | X15: Вновь добавлено (указывается со знаком "+") | Y15: Исключено (указывается со знаком "-") | Z15: Изменение стоимости (удорожание "+", удешвление "-")
B16: 1 | C16: =B16+1 -> 2 | D16: 3 | E16: 4 | F16: 5 | G16: 6 | H16: 7 | I16: 8 | J16: 9 | K16: 10 | L16: 11 | M16: 12 | N16: 13 | O16: 14 | P16: 15 | Q16: 16 | R16: 17 | S16: 18 | T16: 19 | U16: 20 | V16: 21 | W16: 22 | X16: 23 | Y16: 24 | Z16: 25 | AA16: 26 | AB16: 27 | AC16: 28 | AD16: 29 | AE16: 30 | AF16: 31 | AG16: 32 | AH16: 33
B17: I. | D17: СТРУКТУРА ИНВЕСТИЦИЙ ПО ВИДАМ ВЛОЖЕНИЙ (включая лизинг) | E17: ='01. СБИ_B'!E17 -> 329619 | F17: ='01. СБИ_B'!J17 -> 130863.437 | G17: =G19+G39 -> 283519.8355 | H17: 3824.65 | I17: 7061.921 | J17: 169546.1129 | K17: 103087.1515 | L17: 202896.921 | M17: 3824.63 | N17: 7063.16803 | O17: 70424.338 | P17: 121584.785 | Q17: =IF(period=period_1Q, H17, IF(period=period_1H, SUM(H17:I17), IF(period=period_9M, SUM(H17:J17), IF(period=period_1Y,SUM(H17:K17),0)))) -> 283519.8355 | R17: =IF(period=period_1Q, M17, IF(period=period_1H, SUM(M17:N17), IF(period=period_9M, SUM(M17:O17), IF(period=period_1Y,SUM(M17:P17),0)))) -> 202896.921 | S17: =R17-Q17 -> -80622.91444 | T17: =IFERROR(S17/Q17, 0) -> -0.284364282 | V17: =SUM(X17:Z17) -> 31.7614 | W17: =IFERROR(V17/G17, 0) -> 0.000112025319 | X17: =X19+X39 -> 0 | Y17: 0 | Z17: 31.7614 | AA17: 283551.5969 | AB17: 3824.63 | AC17: 7062.145 | AD17: 169546.5015 | AE17: 103118.3203 | AG17: ='01. СБИ_B'!Y17 -> 350000 | AH17: ='01. СБИ_B'!Z17 -> 187048 | AI17: =SUM(ABS(G17-SUM(H17:K17)), ABS(L17-SUM(M17:P17)),ABS(V17-SUM(X17:Z17)), ABS(AA17-SUM(AB17:AE17))) -> 8.731149137e-11 | AJ17: ='[2]1.СБИ'!AA17-AA17 -> 2447.789407 | AK17: ='[2]1.СБИ'!AB17-AB17 -> 0 | AL17: ='[2]1.СБИ'!AC17-AC17 -> 13461.91 | AM17: ='[2]1.СБИ'!AD17-AD17 -> 16860.55141 | AN17: ='[2]1.СБИ'!AE17-AE17 -> -27874.672
E18: ='01. СБИ_B'!E18 -> 0 | F18: ='01. СБИ_B'!J18 -> 0 | Q18: 0 | R18: 0 | S18: 0 | T18: 0 | V18: 0 | W18: 0 | AG18: ='01. СБИ_B'!Y18 -> 0 | AH18: ='01. СБИ_B'!Z18 -> 0 | AI18: 0 | AJ18: ='[2]1.СБИ'!AA18-AA18 -> 0 | AK18: ='[2]1.СБИ'!AB18-AB18 -> 0 | AL18: ='[2]1.СБИ'!AC18-AC18 -> 0 | AM18: ='[2]1.СБИ'!AD18-AD18 -> 0 | AN18: ='[2]1.СБИ'!AE18-AE18 -> 0
B19: 1. | D19: Инвестиции в капитальные затраты - всего | E19: ='01. СБИ_B'!E19 -> 329619 | F19: ='01. СБИ_B'!J19 -> 130863.437 | G19: =G21+G28+G31+G33+G35+G37 -> 283519.8355 | H19: 3824.65 | I19: 7061.921 | J19: 169546.1129 | K19: 103087.1515 | L19: 202896.921 | M19: 3824.63 | N19: 7063.16803 | O19: 70424.338 | P19: 121584.785 | Q19: 283519.8355 | R19: 202896.921 | S19: -80622.91444 | T19: -0.284364282 | V19: 31.7614 | W19: 0.000112025319 | X19: =X21+X28+X31+X33+X35+X37 -> 0 | Y19: 0 | Z19: 31.7614 | AA19: 283551.5969 | AB19: 3824.63 | AC19: 7062.145 | AD19: 169546.5015 | AE19: 103118.3203 | AG19: ='01. СБИ_B'!Y19 -> 350000 | AH19: ='01. СБИ_B'!Z19 -> 187048 | AI19: 8.731149137e-11 | AJ19: ='[2]1.СБИ'!AA19-AA19 -> 2447.789407 | AK19: ='[2]1.СБИ'!AB19-AB19 -> 0 | AL19: ='[2]1.СБИ'!AC19-AC19 -> 13461.91 | AM19: ='[2]1.СБИ'!AD19-AD19 -> 16860.55141 | AN19: ='[2]1.СБИ'!AE19-AE19 -> -27874.672
E20: ='01. СБИ_B'!E20 -> 0 | F20: ='01. СБИ_B'!J20 -> 0 | Q20: 0 | R20: 0 | S20: 0 | T20: 0 | V20: 0 | W20: 0 | AG20: ='01. СБИ_B'!Y20 -> 0 | AH20: ='01. СБИ_B'!Z20 -> 0 | AI20: 0 | AJ20: ='[2]1.СБИ'!AA20-AA20 -> 0 | AK20: ='[2]1.СБИ'!AB20-AB20 -> 0 | AL20: ='[2]1.СБИ'!AC20-AC20 -> 0 | AM20: ='[2]1.СБИ'!AD20-AD20 -> 0 | AN20: ='[2]1.СБИ'!AE20-AE20 -> 0
B21: 1.1. | D21: Строительство - всего, | E21: ='01. СБИ_B'!E21 -> 279293 | F21: ='01. СБИ_B'!J21 -> 90413.828 | G21: =SUM(G22,G23,G25,G26,G27) -> 253224.191 | H21: 3417.25 | I21: 6647.041 | J21: 158077.05 | K21: 85082.85 | L21: 170440.898 | M21: 3417.23 | N21: 6647.93503 | O21: 62039.358 | P21: 98336.375 | Q21: 253224.191 | R21: 170440.898 | S21: -82783.29297 | T21: -0.3269170005 | V21: 31.7614 | W21: 0.0001254279849 | X21: =SUM(X22,X23,X25,X26,X27) -> 0 | Y21: 0 | Z21: 31.7614 | AA21: 253255.9524 | AB21: 3417.23 | AC21: 6647.265 | AD21: 158077.4386 | AE21: 85114.0188 | AG21: ='01. СБИ_B'!Y21 -> 290000 | AH21: ='01. СБИ_B'!Z21 -> 144048 | AI21: 5.820766091e-11 | AJ21: ='[2]1.СБИ'!AA21-AA21 -> -30.075 | AK21: ='[2]1.СБИ'!AB21-AB21 -> 0 | AL21: ='[2]1.СБИ'!AC21-AC21 -> 13644.21 | AM21: ='[2]1.СБИ'!AD21-AD21 -> 14200.387 | AN21: ='[2]1.СБИ'!AE21-AE21 -> -27874.672
B22: 1.1.1. | D22: СМР | E22: ='01. СБИ_B'!E22 -> 224948 | F22: ='01. СБИ_B'!J22 -> 64945.838 | G22: ='7.СМР'!G17 -> 196120.25 | H22: ='7.СМР'!H17 -> 6.25 | I22: ='7.СМР'!I17 -> 3013 | J22: ='7.СМР'!J17 -> 142341 | K22: ='7.СМР'!K17 -> 50760 | L22: ='7.СМР'!L17 -> 126661.9853 | M22: ='7.СМР'!M17 -> 6.25 | N22: ='7.СМР'!N17 -> 3013.59234 | O22: ='7.СМР'!O17 -> 57239.697 | P22: ='7.СМР'!P17 -> 66402.446 | Q22: 196120.25 | R22: 126661.9853 | S22: -69458.26466 | T22: -0.3541616159 | V22: 0.5054 | W22: 2.576990392e-06 | X22: ='7.СМР'!X17 -> 0 | Y22: ='7.СМР'!Y17 -> 0 | Z22: ='7.СМР'!Z17 -> 0.5054 | AA22: ='7.СМР'!AA17 -> 196120.7554 | AB22: ='7.СМР'!AB17 -> 6.25 | AC22: ='7.СМР'!AC17 -> 3013.422 | AD22: ='7.СМР'!AD17 -> 142340.9446 | AE22: ='7.СМР'!AE17 -> 50760.1388 | AG22: ='01. СБИ_B'!Y22 -> 249815 | AH22: ='01. СБИ_B'!Z22 -> 121280 | AI22: 2.910383046e-11 | AJ22: ='[2]1.СБИ'!AA22-AA22 -> 28589.207 | AK22: ='[2]1.СБИ'!AB22-AB22 -> 0 | AL22: ='[2]1.СБИ'!AC22-AC22 -> 13644.21 | AM22: ='[2]1.СБИ'!AD22-AD22 -> 19297.877 | AN22: ='[2]1.СБИ'!AE22-AE22 -> -4352.88
B23: 1.1.2. | D23: Оборудование на строительство: | E23: ='01. СБИ_B'!E23 -> 30146 | F23: ='01. СБИ_B'!J23 -> 0 | G23: ='4.СБО'!E21 -> 28589 | H23: ='4.СБО'!F21 -> 0 | I23: ='4.СБО'!G21 -> 0 | J23: ='4.СБО'!H21 -> 4576 | K23: ='4.СБО'!I21 -> 24013 | L23: ='4.СБО'!J21 -> 20076.329 | M23: ='4.СБО'!K21 -> 0 | N23: ='4.СБО'!L21 -> 0 | O23: ='4.СБО'!M21 -> 0 | P23: ='4.СБО'!N21 -> 20076.329 | Q23: 28589 | R23: 20076.329 | S23: -8512.671 | T23: -0.2977603624 | V23: 0 | W23: 0 | X23: ='4.СБО'!V21 -> 0 | Y23: ='4.СБО'!W21 -> 0 | Z23: ='4.СБО'!X21 -> 0 | AA23: ='4.СБО'!Y21 -> 28589 | AB23: ='4.СБО'!Z21 -> 0 | AC23: ='4.СБО'!AA21 -> 0 | AD23: ='4.СБО'!AB21 -> 4576 | AE23: ='4.СБО'!AC21 -> 24013 | AG23: ='01. СБИ_B'!Y23 -> 0 | AH23: ='01. СБИ_B'!Z23 -> 0 | AI23: 0 | AJ23: ='[2]1.СБИ'!AA23-AA23 -> -28589 | AK23: ='[2]1.СБИ'!AB23-AB23 -> 0 | AL23: ='[2]1.СБИ'!AC23-AC23 -> 0 | AM23: ='[2]1.СБИ'!AD23-AD23 -> -4576 | AN23: ='[2]1.СБИ'!AE23-AE23 -> -24013
B24: 1.1.2.1. | D24: Оборудование в смете на строительство | E24: ='01. СБИ_B'!E24 -> 30146 | F24: ='01. СБИ_B'!J24 -> 0 | G24: ='4.СБО'!E22 -> 28589 | H24: ='4.СБО'!F22 -> 0 | I24: ='4.СБО'!G22 -> 0 | J24: ='4.СБО'!H22 -> 4576 | K24: ='4.СБО'!I22 -> 24013 | L24: ='4.СБО'!J22 -> 20076.329 | M24: ='4.СБО'!K22 -> 0 | N24: ='4.СБО'!L22 -> 0 | O24: ='4.СБО'!M22 -> 0 | P24: ='4.СБО'!N22 -> 20076.329 | Q24: 28589 | R24: 20076.329 | S24: -8512.671 | T24: -0.2977603624 | V24: 0 | W24: 0 | X24: ='4.СБО'!V22 -> 0 | Y24: ='4.СБО'!W22 -> 0 | Z24: ='4.СБО'!X22 -> 0 | AA24: ='4.СБО'!Y22 -> 28589 | AB24: ='4.СБО'!Z22 -> 0 | AC24: ='4.СБО'!AA22 -> 0 | AD24: ='4.СБО'!AB22 -> 4576 | AE24: ='4.СБО'!AC22 -> 24013 | AG24: ='01. СБИ_B'!Y24 -> 0 | AH24: ='01. СБИ_B'!Z24 -> 0 | AI24: 0 | AJ24: ='[2]1.СБИ'!AA24-AA24 -> -28589 | AK24: ='[2]1.СБИ'!AB24-AB24 -> 0 | AL24: ='[2]1.СБИ'!AC24-AC24 -> 0 | AM24: ='[2]1.СБИ'!AD24-AD24 -> -4576 | AN24: ='[2]1.СБИ'!AE24-AE24 -> -24013
B25: 1.1.3. | D25: ПИР | E25: ='01. СБИ_B'!E25 -> 9573 | F25: ='01. СБИ_B'!J25 -> 11897.646 | G25: ='9.ПИР'!G17 -> 9954 | H25: ='9.ПИР'!H17 -> 244 | I25: ='9.ПИР'!I17 -> 742 | J25: ='9.ПИР'!J17 -> 3517 | K25: ='9.ПИР'!K17 -> 5451 | L25: ='9.ПИР'!L17 -> 8453.982 | M25: ='9.ПИР'!M17 -> 244.15 | N25: ='9.ПИР'!N17 -> 741.56 | O25: ='9.ПИР'!O17 -> 1284.658 | P25: ='9.ПИР'!P17 -> 6183.614 | Q25: 9954 | R25: 8453.982 | S25: -1500.018 | T25: -0.150694997 | V25: -0.018 | W25: -1.808318264e-06 | X25: ='9.ПИР'!X17 -> 0 | Y25: ='9.ПИР'!Y17 -> 0 | Z25: ='9.ПИР'!Z17 -> -0.018 | AA25: ='9.ПИР'!AA17 -> 9953.982 | AB25: ='9.ПИР'!AB17 -> 244.15 | AC25: ='9.ПИР'!AC17 -> 741.56 | AD25: ='9.ПИР'!AD17 -> 3517.344 | AE25: ='9.ПИР'!AE17 -> 5450.928 | AG25: ='01. СБИ_B'!Y25 -> 20421 | AH25: ='01. СБИ_B'!Z25 -> 6160 | AI25: 0 | AJ25: ='[2]1.СБИ'!AA25-AA25 -> 0 | AK25: ='[2]1.СБИ'!AB25-AB25 -> 0 | AL25: ='[2]1.СБИ'!AC25-AC25 -> 0 | AM25: ='[2]1.СБИ'!AD25-AD25 -> 0 | AN25: ='[2]1.СБИ'!AE25-AE25 -> 0
B26: 1.1.4. | D26: Капитализируемые проценты | E26: ='01. СБИ_B'!E26 -> 14626 | F26: ='01. СБИ_B'!J26 -> 0 | G26: ='10.БКП'!G17 -> 0 | H26: ='10.БКП'!H17 -> 0 | I26: ='10.БКП'!I17 -> 0 | J26: ='10.БКП'!J17 -> 0 | K26: ='10.БКП'!K17 -> 0 | L26: ='10.БКП'!L17 -> 0 | M26: ='10.БКП'!M17 -> 0 | N26: ='10.БКП'!N17 -> 0 | O26: ='10.БКП'!O17 -> 0 | P26: ='10.БКП'!P17 -> 0 | Q26: 0 | R26: 0 | S26: 0 | T26: 0 | V26: 0 | W26: 0 | X26: ='10.БКП'!X17 -> 0 | Y26: ='10.БКП'!Y17 -> 0 | Z26: ='10.БКП'!Z17 -> 0 | AA26: ='10.БКП'!AA17 -> 0 | AB26: ='10.БКП'!AB17 -> 0 | AC26: ='10.БКП'!AC17 -> 0 | AD26: ='10.БКП'!AD17 -> 0 | AE26: ='10.БКП'!AE17 -> 0 | AG26: ='01. СБИ_B'!Y26 -> 0 | AH26: ='01. СБИ_B'!Z26 -> 0 | AI26: 0 | AJ26: ='[2]1.СБИ'!AA26-AA26 -> 0 | AK26: ='[2]1.СБИ'!AB26-AB26 -> 0 | AL26: ='[2]1.СБИ'!AC26-AC26 -> 0 | AM26: ='[2]1.СБИ'!AD26-AD26 -> 0 | AN26: ='[2]1.СБИ'!AE26-AE26 -> 0
B27: 1.1.5. | D27: Прочие затраты на КС | E27: ='01. СБИ_B'!E27 -> 0 | F27: ='01. СБИ_B'!J27 -> 13570.344 | G27: ='11.ПЗС'!H17 -> 18560.941 | H27: ='11.ПЗС'!I17 -> 3167 | I27: ='11.ПЗС'!J17 -> 2892.041 | J27: ='11.ПЗС'!K17 -> 7643.05 | K27: ='11.ПЗС'!L17 -> 4858.85 | L27: ='11.ПЗС'!M17 -> 15248.60169 | M27: ='11.ПЗС'!N17 -> 3166.83 | N27: ='11.ПЗС'!O17 -> 2892.78269 | O27: ='11.ПЗС'!P17 -> 3515.003 | P27: ='11.ПЗС'!Q17 -> 5673.986 | Q27: 18560.941 | R27: 15248.60169 | S27: -3312.33931 | T27: -0.1784575098 | V27: 31.274 | W27: 0.001684936125 | X27: ='11.ПЗС'!Y17 -> 0 | Y27: ='11.ПЗС'!Z17 -> 0 | Z27: ='11.ПЗС'!AA17 -> 31.274 | AA27: ='11.ПЗС'!AB17 -> 18592.215 | AB27: ='11.ПЗС'!AC17 -> 3166.83 | AC27: ='11.ПЗС'!AD17 -> 2892.283 | AD27: ='11.ПЗС'!AE17 -> 7643.15 | AE27: ='11.ПЗС'!AF17 -> 4889.952 | AG27: ='01. СБИ_B'!Y27 -> 19764 | AH27: ='01. СБИ_B'!Z27 -> 16608 | AI27: 0 | AJ27: ='[2]1.СБИ'!AA27-AA27 -> -30.282 | AK27: ='[2]1.СБИ'!AB27-AB27 -> 0 | AL27: ='[2]1.СБИ'!AC27-AC27 -> 0 | AM27: ='[2]1.СБИ'!AD27-AD27 -> -521.49 | AN27: ='[2]1.СБИ'!AE27-AE27 -> 491.208
B28: 1.2. | D28: Техническое перевооружение и замена изношенного оборудования, всего: | E28: ='01. СБИ_B'!E28 -> 50326 | F28: ='01. СБИ_B'!J28 -> 40449.609 | G28: ='5.ТП_ОВИЗ'!E17 -> 30295.64447 | H28: ='5.ТП_ОВИЗ'!F17 -> 407.4 | I28: ='5.ТП_ОВИЗ'!G17 -> 414.88 | J28: ='5.ТП_ОВИЗ'!H17 -> 11469.06293 | K28: ='5.ТП_ОВИЗ'!I17 -> 18004.30154 | L28: ='5.ТП_ОВИЗ'!J17 -> 32456.023 | M28: ='5.ТП_ОВИЗ'!K17 -> 407.4 | N28: ='5.ТП_ОВИЗ'!L17 -> 415.233 | O28: ='5.ТП_ОВИЗ'!M17 -> 8384.98 | P28: ='5.ТП_ОВИЗ'!N17 -> 23248.41 | Q28: 30295.64447 | R28: 32456.023 | S28: 2160.378534 | T28: 0.07130987216 | V28: 0 | W28: 0 | X28: ='5.ТП_ОВИЗ'!V17 -> 0 | Y28: ='5.ТП_ОВИЗ'!W17 -> 0 | Z28: ='5.ТП_ОВИЗ'!X17 -> 0 | AA28: ='5.ТП_ОВИЗ'!Y17 -> 30295.64447 | AB28: ='5.ТП_ОВИЗ'!Z17 -> 407.4 | AC28: ='5.ТП_ОВИЗ'!AA17 -> 414.88 | AD28: ='5.ТП_ОВИЗ'!AB17 -> 11469.06293 | AE28: ='5.ТП_ОВИЗ'!AC17 -> 18004.30154 | AG28: ='01. СБИ_B'!Y28 -> 60000 | AH28: ='01. СБИ_B'!Z28 -> 43000 | AI28: 1.091393642e-11 | AJ28: ='[2]1.СБИ'!AA28-AA28 -> 2477.864407 | AK28: ='[2]1.СБИ'!AB28-AB28 -> 0 | AL28: ='[2]1.СБИ'!AC28-AC28 -> -182.3 | AM28: ='[2]1.СБИ'!AD28-AD28 -> 2660.164407 | AN28: ='[2]1.СБИ'!AE28-AE28 -> 0
B29: 1.2.1. | D29: Техническое перевооружение действующих производственных мощностей | E29: ='01. СБИ_B'!E29 -> 18043 | F29: ='01. СБИ_B'!J29 -> 10400.709 | G29: ='5.ТП_ОВИЗ'!E29 -> 13304.905 | H29: ='5.ТП_ОВИЗ'!F29 -> 407.4 | I29: ='5.ТП_ОВИЗ'!G29 -> 128.42 | J29: ='5.ТП_ОВИЗ'!H29 -> 9604.2 | K29: ='5.ТП_ОВИЗ'!I29 -> 3164.885 | L29: ='5.ТП_ОВИЗ'!J29 -> 17726.61 | M29: ='5.ТП_ОВИЗ'!K29 -> 407.4 | N29: ='5.ТП_ОВИЗ'!L29 -> 128.42 | O29: ='5.ТП_ОВИЗ'!M29 -> 7698.9 | P29: ='5.ТП_ОВИЗ'!N29 -> 9491.89 | Q29: 13304.905 | R29: 17726.61 | S29: 4421.705 | T29: 0.3323364579 | V29: 0 | W29: 0 | X29: ='5.ТП_ОВИЗ'!V29 -> 0 | Y29: ='5.ТП_ОВИЗ'!W29 -> 0 | Z29: ='5.ТП_ОВИЗ'!X29 -> 0 | AA29: ='5.ТП_ОВИЗ'!Y29 -> 13304.905 | AB29: ='5.ТП_ОВИЗ'!Z29 -> 407.4 | AC29: ='5.ТП_ОВИЗ'!AA29 -> 128.42 | AD29: ='5.ТП_ОВИЗ'!AB29 -> 9604.2 | AE29: ='5.ТП_ОВИЗ'!AC29 -> 3164.885 | AG29: ='01. СБИ_B'!Y29 -> 20000 | AH29: ='01. СБИ_B'!Z29 -> 3000 | AI29: 3.637978807e-12 | AJ29: ='[2]1.СБИ'!AA29-AA29 -> -34 | AK29: ='[2]1.СБИ'!AB29-AB29 -> 0 | AL29: ='[2]1.СБИ'!AC29-AC29 -> -16.3 | AM29: ='[2]1.СБИ'!AD29-AD29 -> -17.7 | AN29: ='[2]1.СБИ'!AE29-AE29 -> 0
B30: 1.2.2. | D30: Замена изношенного оборудования | E30: ='01. СБИ_B'!E30 -> 32283 | F30: ='01. СБИ_B'!J30 -> 30048.9 | G30: ='5.ТП_ОВИЗ'!E48 -> 16990.73947 | H30: ='5.ТП_ОВИЗ'!F48 -> 0 | I30: ='5.ТП_ОВИЗ'!G48 -> 286.46 | J30: ='5.ТП_ОВИЗ'!H48 -> 1864.862927 | K30: ='5.ТП_ОВИЗ'!I48 -> 14839.41654 | L30: ='5.ТП_ОВИЗ'!J48 -> 14729.413 | M30: ='5.ТП_ОВИЗ'!K48 -> 0 | N30: ='5.ТП_ОВИЗ'!L48 -> 286.813 | O30: ='5.ТП_ОВИЗ'!M48 -> 686.08 | P30: ='5.ТП_ОВИЗ'!N48 -> 13756.52 | Q30: 16990.73947 | R30: 14729.413 | S30: -2261.326466 | T30: -0.1330917039 | V30: 0 | W30: 0 | X30: ='5.ТП_ОВИЗ'!V48 -> 0 | Y30: ='5.ТП_ОВИЗ'!W48 -> 0 | Z30: ='5.ТП_ОВИЗ'!X48 -> 0 | AA30: ='5.ТП_ОВИЗ'!Y48 -> 16990.73947 | AB30: ='5.ТП_ОВИЗ'!Z48 -> 0 | AC30: ='5.ТП_ОВИЗ'!AA48 -> 286.46 | AD30: ='5.ТП_ОВИЗ'!AB48 -> 1864.862927 | AE30: ='5.ТП_ОВИЗ'!AC48 -> 14839.41654 | AG30: ='01. СБИ_B'!Y30 -> 40000 | AH30: ='01. СБИ_B'!Z30 -> 40000 | AI30: 0 | AJ30: ='[2]1.СБИ'!AA30-AA30 -> 2511.864407 | AK30: ='[2]1.СБИ'!AB30-AB30 -> 0 | AL30: ='[2]1.СБИ'!AC30-AC30 -> -166 | AM30: ='[2]1.СБИ'!AD30-AD30 -> 2677.864407 | AN30: ='[2]1.СБИ'!AE30-AE30 -> 0
B31: 1.3. | D31: ГРР | E31: ='01. СБИ_B'!E31 -> 0 | F31: ='01. СБИ_B'!J31 -> 0 | G31: ='15.ГРР'!G17 -> 0 | H31: ='15.ГРР'!H17 -> 0 | I31: ='15.ГРР'!I17 -> 0 | J31: ='15.ГРР'!J17 -> 0 | K31: ='15.ГРР'!K17 -> 0 | L31: ='15.ГРР'!L17 -> 0 | M31: ='15.ГРР'!M17 -> 0 | N31: ='15.ГРР'!N17 -> 0 | O31: ='15.ГРР'!O17 -> 0 | P31: ='15.ГРР'!P17 -> 0 | Q31: 0 | R31: 0 | S31: 0 | T31: 0 | V31: 0 | W31: 0 | X31: ='15.ГРР'!X17 -> 0 | Y31: ='15.ГРР'!Y17 -> 0 | Z31: ='15.ГРР'!Z17 -> 0 | AA31: ='15.ГРР'!AA17 -> 0 | AB31: ='15.ГРР'!AB17 -> 0 | AC31: ='15.ГРР'!AC17 -> 0 | AD31: ='15.ГРР'!AD17 -> 0 | AE31: ='15.ГРР'!AE17 -> 0 | AG31: ='01. СБИ_B'!Y31 -> 0 | AH31: ='01. СБИ_B'!Z31 -> 0 | AI31: 0 | AJ31: ='[2]1.СБИ'!AA31-AA31 -> 0 | AK31: ='[2]1.СБИ'!AB31-AB31 -> 0 | AL31: ='[2]1.СБИ'!AC31-AC31 -> 0 | AM31: ='[2]1.СБИ'!AD31-AD31 -> 0 | AN31: ='[2]1.СБИ'!AE31-AE31 -> 0
E32: ='01. СБИ_B'!E32 -> 0 | F32: ='01. СБИ_B'!J32 -> 0 | Q32: 0 | R32: 0 | S32: 0 | T32: 0 | V32: 0 | W32: 0 | AG32: ='01. СБИ_B'!Y32 -> 0 | AH32: ='01. СБИ_B'!Z32 -> 0 | AI32: 0 | AJ32: ='[2]1.СБИ'!AA32-AA32 -> 0 | AK32: ='[2]1.СБИ'!AB32-AB32 -> 0 | AL32: ='[2]1.СБИ'!AC32-AC32 -> 0 | AM32: ='[2]1.СБИ'!AD32-AD32 -> 0 | AN32: ='[2]1.СБИ'!AE32-AE32 -> 0
B33: 1.4. | D33: НИОКР | E33: ='01. СБИ_B'!E33 -> 0 | F33: ='01. СБИ_B'!J33 -> 0 | G33: ='16.НИОКР'!G17 -> 0 | H33: ='16.НИОКР'!H17 -> 0 | I33: ='16.НИОКР'!I17 -> 0 | J33: ='16.НИОКР'!J17 -> 0 | K33: ='16.НИОКР'!K17 -> 0 | L33: ='16.НИОКР'!L17 -> 0 | M33: ='16.НИОКР'!M17 -> 0 | N33: ='16.НИОКР'!N17 -> 0 | O33: ='16.НИОКР'!O17 -> 0 | P33: ='16.НИОКР'!P17 -> 0 | Q33: 0 | R33: 0 | S33: 0 | T33: 0 | V33: 0 | W33: 0 | X33: ='16.НИОКР'!X17 -> 0 | Y33: ='16.НИОКР'!Y17 -> 0 | Z33: ='16.НИОКР'!Z17 -> 0 | AA33: ='16.НИОКР'!AA17 -> 0 | AB33: ='16.НИОКР'!AB17 -> 0 | AC33: ='16.НИОКР'!AC17 -> 0 | AD33: ='16.НИОКР'!AD17 -> 0 | AE33: ='16.НИОКР'!AE17 -> 0 | AG33: ='01. СБИ_B'!Y33 -> 0 | AH33: ='01. СБИ_B'!Z33 -> 0 | AI33: 0
E34: ='01. СБИ_B'!E34 -> 0 | F34: ='01. СБИ_B'!J34 -> 0 | Q34: 0 | R34: 0 | S34: 0 | T34: 0 | V34: 0 | W34: 0 | AG34: ='01. СБИ_B'!Y34 -> 0 | AH34: ='01. СБИ_B'!Z34 -> 0 | AI34: 0
B35: 1.5. | D35: НМА | E35: ='01. СБИ_B'!E35 -> 0 | F35: ='01. СБИ_B'!J35 -> 0 | G35: ='17.НМА'!H17 -> 0 | H35: ='17.НМА'!I17 -> 0 | I35: ='17.НМА'!J17 -> 0 | J35: ='17.НМА'!K17 -> 0 | K35: ='17.НМА'!L17 -> 0 | L35: ='17.НМА'!M17 -> 0 | M35: ='17.НМА'!N17 -> 0 | N35: ='17.НМА'!O17 -> 0 | O35: ='17.НМА'!P17 -> 0 | P35: ='17.НМА'!Q17 -> 0 | Q35: 0 | R35: 0 | S35: 0 | T35: 0 | V35: 0 | W35: 0 | X35: ='17.НМА'!Y17 -> 0 | Y35: ='17.НМА'!Z17 -> 0 | Z35: ='17.НМА'!AA17 -> 0 | AA35: ='17.НМА'!AB17 -> 0 | AB35: ='17.НМА'!AC17 -> 0 | AC35: ='17.НМА'!AD17 -> 0 | AD35: ='17.НМА'!AE17 -> 0 | AE35: ='17.НМА'!AF17 -> 0 | AG35: ='01. СБИ_B'!Y35 -> 0 | AH35: ='01. СБИ_B'!Z35 -> 0 | AI35: 0
E36: ='01. СБИ_B'!E36 -> 0 | F36: ='01. СБИ_B'!J36 -> 0 | Q36: 0 | R36: 0 | S36: 0 | T36: 0 | V36: 0 | W36: 0 | AG36: ='01. СБИ_B'!Y36 -> 0 | AH36: ='01. СБИ_B'!Z36 -> 0 | AI36: 0
B37: 1.6. | D37: Прочие капитальные затраты | E37: ='01. СБИ_B'!E37 -> 0 | F37: ='01. СБИ_B'!J37 -> 0 | G37: ='18.ПКЗ'!H17 -> 0 | H37: ='18.ПКЗ'!I17 -> 0 | I37: ='18.ПКЗ'!J17 -> 0 | J37: ='18.ПКЗ'!K17 -> 0 | K37: ='18.ПКЗ'!L17 -> 0 | L37: ='18.ПКЗ'!M17 -> 0 | M37: ='18.ПКЗ'!N17 -> 0 | N37: ='18.ПКЗ'!O17 -> 0 | O37: ='18.ПКЗ'!P17 -> 0 | P37: ='18.ПКЗ'!Q17 -> 0 | Q37: 0 | R37: 0 | S37: 0 | T37: 0 | V37: 0 | W37: 0 | X37: ='18.ПКЗ'!Y17 -> 0 | Y37: ='18.ПКЗ'!Z17 -> 0 | Z37: ='18.ПКЗ'!AA17 -> 0 | AA37: ='18.ПКЗ'!AB17 -> 0 | AB37: ='18.ПКЗ'!AC17 -> 0 | AC37: ='18.ПКЗ'!AD17 -> 0 | AD37: ='18.ПКЗ'!AE17 -> 0 | AE37: ='18.ПКЗ'!AF17 -> 0 | AG37: ='01. СБИ_B'!Y37 -> 0 | AH37: ='01. СБИ_B'!Z37 -> 0 | AI37: 0
E38: ='01. СБИ_B'!E38 -> 0 | F38: ='01. СБИ_B'!J38 -> 0 | Q38: 0 | R38: 0 | S38: 0 | T38: 0 | V38: 0 | W38: 0 | AG38: ='01. СБИ_B'!Y38 -> 0 | AH38: ='01. СБИ_B'!Z38 -> 0 | AI38: 0
B39: 2. | D39: Долгосрочные финансовые вложения | E39: ='01. СБИ_B'!E39 -> 0 | F39: ='01. СБИ_B'!J39 -> 0 | G39: ='19.БФИ'!H17 -> 0 | H39: ='19.БФИ'!I17 -> 0 | I39: ='19.БФИ'!J17 -> 0 | J39: ='19.БФИ'!K17 -> 0 | K39: ='19.БФИ'!L17 -> 0 | L39: ='19.БФИ'!M17 -> 0 | M39: ='19.БФИ'!N17 -> 0 | N39: ='19.БФИ'!O17 -> 0 | O39: ='19.БФИ'!P17 -> 0 | P39: ='19.БФИ'!Q17 -> 0 | Q39: 0 | R39: 0 | S39: 0 | T39: 0 | V39: 0 | W39: 0 | X39: ='19.БФИ'!Y17 -> 0 | Y39: ='19.БФИ'!Z17 -> 0 | Z39: ='19.БФИ'!AA17 -> 0 | AA39: ='19.БФИ'!AB17 -> 0 | AB39: ='19.БФИ'!AC17 -> 0 | AC39: ='19.БФИ'!AD17 -> 0 | AD39: ='19.БФИ'!AE17 -> 0 | AE39: ='19.БФИ'!AF17 -> 0 | AG39: ='01. СБИ_B'!Y39 -> 0 | AH39: ='01. СБИ_B'!Z39 -> 0 | AI39: 0
E40: ='01. СБИ_B'!E40 -> 0 | F40: ='01. СБИ_B'!J40 -> 0 | Q40: 0 | R40: 0 | S40: 0 | T40: 0 | V40: 0 | W40: 0 | AG40: ='01. СБИ_B'!Y40 -> 0 | AH40: ='01. СБИ_B'!Z40 -> 0 | AI40: 0
E42: ='01. СБИ_B'!E42 -> 0 | F42: ='01. СБИ_B'!J42 -> 0 | Q42: 0 | R42: 0 | S42: 0 | T42: 0 | V42: 0 | W42: 0 | AG42: ='01. СБИ_B'!Y42 -> 0 | AH42: ='01. СБИ_B'!Z42 -> 0 | AI42: 0
B43: II. | D43: СТРУКТУРА ИНВЕСТИЦИЙ ПО НАПРАВЛЕНИЯМ ДЕЯТЕЛЬНОСТИ | E43: ='01. СБИ_B'!E43 -> 329619 | F43: ='01. СБИ_B'!J43 -> 130863.43 | G43: =G45+G71 -> 283519.8355 | H43: 3824.65 | I43: 7061.921 | J43: 169546.1129 | K43: 103087.1515 | L43: 202896.921 | M43: 3824.63 | N43: 7063.16803 | O43: 70424.338 | P43: 121584.785 | Q43: 283519.8355 | R43: 202896.921 | S43: -80622.91444 | T43: -0.284364282 | V43: 31.7614 | W43: 0.000112025319 | X43: =X45+X71 -> 0 | Y43: 0 | Z43: 31.7614 | AA43: 283551.5969 | AB43: =AB45+AB71 -> 3824.63 | AC43: 7062.145 | AD43: 169546.5015 | AE43: 103118.3203 | AG43: ='01. СБИ_B'!Y43 -> 350000 | AH43: ='01. СБИ_B'!Z43 -> 187048 | AI43: 8.731149137e-11
E44: ='01. СБИ_B'!E44 -> 0 | F44: ='01. СБИ_B'!J44 -> 0 | Q44: 0 | R44: 0 | S44: 0 | T44: 0 | V44: 0 | W44: 0 | AG44: ='01. СБИ_B'!Y44 -> 0 | AH44: ='01. СБИ_B'!Z44 -> 0 | AI44: 0
B45: 1. | D45: Инвестиции в капитальные затраты - всего | E45: ='01. СБИ_B'!E45 -> 329619 | F45: ='01. СБИ_B'!J45 -> 130863.43 | G45: =G47+G59+G61+G63+G65 -> 283519.8355 | H45: 3824.65 | I45: 7061.921 | J45: 169546.1129 | K45: 103087.1515 | L45: 202896.921 | M45: 3824.63 | N45: 7063.16803 | O45: 70424.338 | P45: 121584.785 | Q45: 283519.8355 | R45: 202896.921 | S45: -80622.91444 | T45: -0.284364282 | V45: 31.7614 | W45: 0.000112025319 | X45: =X47+X59+X61+X63+X65 -> 0 | Y45: 0 | Z45: 31.7614 | AA45: 283551.5969 | AB45: =AB47+AB59+AB61+AB63+AB65 -> 3824.63 | AC45: 7062.145 | AD45: 169546.5015 | AE45: 103118.3203 | AG45: ='01. СБИ_B'!Y45 -> 350000 | AH45: ='01. СБИ_B'!Z45 -> 187048 | AI45: 8.731149137e-11
E46: ='01. СБИ_B'!E46 -> 0 | F46: ='01. СБИ_B'!J46 -> 0 | Q46: 0 | R46: 0 | S46: 0 | T46: 0 | V46: 0 | W46: 0 | AG46: ='01. СБИ_B'!Y46 -> 0 | AH46: ='01. СБИ_B'!Z46 -> 0 | AI46: 0
B47: 1.1. | D47: Строительство объектов основного производства | E47: ='01. СБИ_B'!E47 -> 279293 | F47: ='01. СБИ_B'!J47 -> 90413.821 | G47: =G49+G55+G57 -> 253224.191 | H47: 3417.25 | I47: =I49+I55+I57 -> 6647.041 | J47: 158077.05 | K47: 85082.85 | L47: 170440.898 | M47: 3417.23 | N47: 6647.93503 | O47: 62039.358 | P47: 98336.375 | Q47: =IF(period=period_1Q, H47, IF(period=period_1H, SUM(H47:I47), IF(period=period_9M, SUM(H47:J47), IF(period=period_1Y,SUM(H47:K47),0)))) -> 253224.191 | R47: =IF(period=period_1Q, M47, IF(period=period_1H, SUM(M47:N47), IF(period=period_9M, SUM(M47:O47), IF(period=period_1Y,SUM(M47:P47),0)))) -> 170440.898 | S47: =R47-Q47 -> -82783.29297 | T47: =IFERROR(S47/Q47, 0) -> -0.3269170005 | V47: =SUM(X47:Z47) -> 31.7614 | W47: =IFERROR(V47/G47, 0) -> 0.0001254279849 | X47: =X49+X55+X57 -> 0 | Y47: 0 | Z47: 31.7614 | AA47: 253255.9524 | AB47: =AB49+AB55+AB57 -> 3417.23 | AC47: 6647.265 | AD47: 158077.4386 | AE47: 85114.0188 | AG47: ='01. СБИ_B'!Y47 -> 290000 | AH47: ='01. СБИ_B'!Z47 -> 144048 | AI47: =SUM(ABS(G47-SUM(H47:K47)), ABS(L47-SUM(M47:P47)),ABS(V47-SUM(X47:Z47)), ABS(AA47-SUM(AB47:AE47))) -> 2.910383046e-11
E48: ='01. СБИ_B'!E48 -> 0 | F48: ='01. СБИ_B'!J48 -> 0 | Q48: 0 | R48: 0 | S48: 0 | T48: 0 | V48: 0 | W48: 0 | AG48: ='01. СБИ_B'!Y48 -> 0 | AH48: ='01. СБИ_B'!Z48 -> 0 | AI48: 0
B49: 1.1.1. | D49: Рудники | E49: ='01. СБИ_B'!E49 -> 0 | F49: ='01. СБИ_B'!J49 -> 0 | G49: =G50+G51+G52+G53 -> 0 | H49: 0 | I49: 0 | J49: 0 | K49: 0 | L49: 0 | M49: 0 | N49: 0 | O49: 0 | P49: 0 | Q49: 0 | R49: 0 | S49: 0 | T49: 0 | V49: 0 | W49: 0 | X49: =X50+X51+X52+X53 -> 0 | Y49: 0 | Z49: 0 | AA49: 0 | AB49: =AB50+AB51+AB52+AB53 -> 0 | AC49: 0 | AD49: 0 | AE49: 0 | AG49: ='01. СБИ_B'!Y49 -> 0 | AH49: ='01. СБИ_B'!Z49 -> 0 | AI49: 0
B50: 1.1.1.1. | D50: Подземный рудник "Мир" | E50: ='01. СБИ_B'!E50 -> 0 | F50: ='01. СБИ_B'!J50 -> 0 | G50: =SUMIF('3.БКС'!$G:$G, $D50, '3.БКС'!K:K) -> 0 | H50: =SUMIF('3.БКС'!$G:$G, $D50, '3.БКС'!L:L) -> 0 | I50: =SUMIF('3.БКС'!$G:$G, $D50, '3.БКС'!M:M) -> 0 | J50: =SUMIF('3.БКС'!$G:$G, $D50, '3.БКС'!N:N) -> 0 | K50: =SUMIF('3.БКС'!$G:$G, $D50, '3.БКС'!O:O) -> 0 | L50: =SUMIF('3.БКС'!$G:$G, $D50, '3.БКС'!P:P) -> 0 | M50: =SUMIF('3.БКС'!$G:$G, $D50, '3.БКС'!Q:Q) -> 0 | N50: =SUMIF('3.БКС'!$G:$G, $D50, '3.БКС'!R:R) -> 0 | O50: =SUMIF('3.БКС'!$G:$G, $D50, '3.БКС'!S:S) -> 0 | P50: =SUMIF('3.БКС'!$G:$G, $D50, '3.БКС'!T:T) -> 0 | Q50: 0 | R50: 0 | S50: 0 | T50: 0 | V50: 0 | W50: 0 | X50: =SUMIF('3.БКС'!$G:$G, $D50, '3.БКС'!AB:AB) -> 0 | Y50: =SUMIF('3.БКС'!$G:$G, $D50, '3.БКС'!AC:AC) -> 0 | Z50: =SUMIF('3.БКС'!$G:$G, $D50, '3.БКС'!AD:AD) -> 0 | AA50: =SUMIF('3.БКС'!$G:$G, $D50, '3.БКС'!AE:AE) -> 0 | AB50: =SUMIF('3.БКС'!$G:$G, $D50, '3.БКС'!AF:AF) -> 0 | AC50: =SUMIF('3.БКС'!$G:$G, $D50, '3.БКС'!AG:AG) -> 0 | AD50: =SUMIF('3.БКС'!$G:$G, $D50, '3.БКС'!AH:AH) -> 0 | AE50: =SUMIF('3.БКС'!$G:$G, $D50, '3.БКС'!AI:AI) -> 0 | AG50: ='01. СБИ_B'!Y50 -> 0 | AH50: ='01. СБИ_B'!Z50 -> 0 | AI50: 0
B51: 1.1.1.2. | D51: Подземный рудник "Айхал" | E51: ='01. СБИ_B'!E51 -> 0 | F51: ='01. СБИ_B'!J51 -> 0 | G51: =SUMIF('3.БКС'!$G:$G, $D51, '3.БКС'!K:K) -> 0 | H51: =SUMIF('3.БКС'!$G:$G, $D51, '3.БКС'!L:L) -> 0 | I51: =SUMIF('3.БКС'!$G:$G, $D51, '3.БКС'!M:M) -> 0 | J51: =SUMIF('3.БКС'!$G:$G, $D51, '3.БКС'!N:N) -> 0 | K51: =SUMIF('3.БКС'!$G:$G, $D51, '3.БКС'!O:O) -> 0 | L51: =SUMIF('3.БКС'!$G:$G, $D51, '3.БКС'!P:P) -> 0 | M51: =SUMIF('3.БКС'!$G:$G, $D51, '3.БКС'!Q:Q) -> 0 | N51: =SUMIF('3.БКС'!$G:$G, $D51, '3.БКС'!R:R) -> 0 | O51: =SUMIF('3.БКС'!$G:$G, $D51, '3.БКС'!S:S) -> 0 | P51: =SUMIF('3.БКС'!$G:$G, $D51, '3.БКС'!T:T) -> 0 | Q51: 0 | R51: 0 | S51: 0 | T51: 0 | V51: 0 | W51: 0 | X51: =SUMIF('3.БКС'!$G:$G, $D51, '3.БКС'!AB:AB) -> 0 | Y51: =SUMIF('3.БКС'!$G:$G, $D51, '3.БКС'!AC:AC) -> 0 | Z51: =SUMIF('3.БКС'!$G:$G, $D51, '3.БКС'!AD:AD) -> 0 | AA51: =SUMIF('3.БКС'!$G:$G, $D51, '3.БКС'!AE:AE) -> 0 | AB51: =SUMIF('3.БКС'!$G:$G, $D51, '3.БКС'!AF:AF) -> 0 | AC51: =SUMIF('3.БКС'!$G:$G, $D51, '3.БКС'!AG:AG) -> 0 | AD51: =SUMIF('3.БКС'!$G:$G, $D51, '3.БКС'!AH:AH) -> 0 | AE51: =SUMIF('3.БКС'!$G:$G, $D51, '3.БКС'!AI:AI) -> 0 | AG51: ='01. СБИ_B'!Y51 -> 0 | AH51: ='01. СБИ_B'!Z51 -> 0 | AI51: 0
B52: 1.1.1.3. | D52: Подземный рудник "Удачный" | E52: ='01. СБИ_B'!E52 -> 0 | F52: ='01. СБИ_B'!J52 -> 0 | G52: =SUMIF('3.БКС'!$G:$G, $D52, '3.БКС'!K:K) -> 0 | H52: =SUMIF('3.БКС'!$G:$G, $D52, '3.БКС'!L:L) -> 0 | I52: =SUMIF('3.БКС'!$G:$G, $D52, '3.БКС'!M:M) -> 0 | J52: =SUMIF('3.БКС'!$G:$G, $D52, '3.БКС'!N:N) -> 0 | K52: =SUMIF('3.БКС'!$G:$G, $D52, '3.БКС'!O:O) -> 0 | L52: =SUMIF('3.БКС'!$G:$G, $D52, '3.БКС'!P:P) -> 0 | M52: =SUMIF('3.БКС'!$G:$G, $D52, '3.БКС'!Q:Q) -> 0 | N52: =SUMIF('3.БКС'!$G:$G, $D52, '3.БКС'!R:R) -> 0 | O52: =SUMIF('3.БКС'!$G:$G, $D52, '3.БКС'!S:S) -> 0 | P52: =SUMIF('3.БКС'!$G:$G, $D52, '3.БКС'!T:T) -> 0 | Q52: 0 | R52: 0 | S52: 0 | T52: 0 | V52: 0 | W52: 0 | X52: =SUMIF('3.БКС'!$G:$G, $D52, '3.БКС'!AB:AB) -> 0 | Y52: =SUMIF('3.БКС'!$G:$G, $D52, '3.БКС'!AC:AC) -> 0 | Z52: =SUMIF('3.БКС'!$G:$G, $D52, '3.БКС'!AD:AD) -> 0 | AA52: =SUMIF('3.БКС'!$G:$G, $D52, '3.БКС'!AE:AE) -> 0 | AB52: =SUMIF('3.БКС'!$G:$G, $D52, '3.БКС'!AF:AF) -> 0 | AC52: =SUMIF('3.БКС'!$G:$G, $D52, '3.БКС'!AG:AG) -> 0 | AD52: =SUMIF('3.БКС'!$G:$G, $D52, '3.БКС'!AH:AH) -> 0 | AE52: =SUMIF('3.БКС'!$G:$G, $D52, '3.БКС'!AI:AI) -> 0 | AG52: ='01. СБИ_B'!Y52 -> 0 | AH52: ='01. СБИ_B'!Z52 -> 0 | AI52: 0
B53: 1.1.1.4. | D53: Подземный рудник "Интернациональный" | E53: ='01. СБИ_B'!E53 -> 0 | F53: ='01. СБИ_B'!J53 -> 0 | G53: =SUMIF('3.БКС'!$G:$G, $D53, '3.БКС'!K:K) -> 0 | H53: =SUMIF('3.БКС'!$G:$G, $D53, '3.БКС'!L:L) -> 0 | I53: =SUMIF('3.БКС'!$G:$G, $D53, '3.БКС'!M:M) -> 0 | J53: =SUMIF('3.БКС'!$G:$G, $D53, '3.БКС'!N:N) -> 0 | K53: =SUMIF('3.БКС'!$G:$G, $D53, '3.БКС'!O:O) -> 0 | L53: =SUMIF('3.БКС'!$G:$G, $D53, '3.БКС'!P:P) -> 0 | M53: =SUMIF('3.БКС'!$G:$G, $D53, '3.БКС'!Q:Q) -> 0 | N53: =SUMIF('3.БКС'!$G:$G, $D53, '3.БКС'!R:R) -> 0 | O53: =SUMIF('3.БКС'!$G:$G, $D53, '3.БКС'!S:S) -> 0 | P53: =SUMIF('3.БКС'!$G:$G, $D53, '3.БКС'!T:T) -> 0 | Q53: 0 | R53: 0 | S53: 0 | T53: 0 | V53: 0 | W53: 0 | X53: =SUMIF('3.БКС'!$G:$G, $D53, '3.БКС'!AB:AB) -> 0 | Y53: =SUMIF('3.БКС'!$G:$G, $D53, '3.БКС'!AC:AC) -> 0 | Z53: =SUMIF('3.БКС'!$G:$G, $D53, '3.БКС'!AD:AD) -> 0 | AA53: =SUMIF('3.БКС'!$G:$G, $D53, '3.БКС'!AE:AE) -> 0 | AB53: =SUMIF('3.БКС'!$G:$G, $D53, '3.БКС'!AF:AF) -> 0 | AC53: =SUMIF('3.БКС'!$G:$G, $D53, '3.БКС'!AG:AG) -> 0 | AD53: =SUMIF('3.БКС'!$G:$G, $D53, '3.БКС'!AH:AH) -> 0 | AE53: =SUMIF('3.БКС'!$G:$G, $D53, '3.БКС'!AI:AI) -> 0 | AG53: ='01. СБИ_B'!Y53 -> 0 | AH53: ='01. СБИ_B'!Z53 -> 0 | AI53: 0
E54: ='01. СБИ_B'!E54 -> 0 | F54: ='01. СБИ_B'!J54 -> 0 | Q54: 0 | R54: 0 | S54: 0 | T54: 0 | V54: 0 | W54: 0 | AG54: ='01. СБИ_B'!Y54 -> 0 | AH54: ='01. СБИ_B'!Z54 -> 0 | AI54: 0
B55: 1.1.2. | D55: Прочая алмазодобыча | E55: ='01. СБИ_B'!E55 -> 0 | F55: ='01. СБИ_B'!J55 -> 0 | G55: =SUMIF('3.БКС'!$G:$G, $D55, '3.БКС'!K:K) -> 0 | H55: =SUMIF('3.БКС'!$G:$G, $D55, '3.БКС'!L:L) -> 0 | I55: =SUMIF('3.БКС'!$G:$G, $D55, '3.БКС'!M:M) -> 0 | J55: =SUMIF('3.БКС'!$G:$G, $D55, '3.БКС'!N:N) -> 0 | K55: =SUMIF('3.БКС'!$G:$G, $D55, '3.БКС'!O:O) -> 0 | L55: =SUMIF('3.БКС'!$G:$G, $D55, '3.БКС'!P:P) -> 0 | M55: =SUMIF('3.БКС'!$G:$G, $D55, '3.БКС'!Q:Q) -> 0 | N55: =SUMIF('3.БКС'!$G:$G, $D55, '3.БКС'!R:R) -> 0 | O55: =SUMIF('3.БКС'!$G:$G, $D55, '3.БКС'!S:S) -> 0 | P55: =SUMIF('3.БКС'!$G:$G, $D55, '3.БКС'!T:T) -> 0 | Q55: 0 | R55: 0 | S55: 0 | T55: 0 | V55: 0 | W55: 0 | X55: =SUMIF('3.БКС'!$G:$G, $D55, '3.БКС'!AB:AB) -> 0 | Y55: =SUMIF('3.БКС'!$G:$G, $D55, '3.БКС'!AC:AC) -> 0 | Z55: =SUMIF('3.БКС'!$G:$G, $D55, '3.БКС'!AD:AD) -> 0 | AA55: =SUMIF('3.БКС'!$G:$G, $D55, '3.БКС'!AE:AE) -> 0 | AB55: =SUMIF('3.БКС'!$G:$G, $D55, '3.БКС'!AF:AF) -> 0 | AC55: =SUMIF('3.БКС'!$G:$G, $D55, '3.БКС'!AG:AG) -> 0 | AD55: =SUMIF('3.БКС'!$G:$G, $D55, '3.БКС'!AH:AH) -> 0 | AE55: =SUMIF('3.БКС'!$G:$G, $D55, '3.БКС'!AI:AI) -> 0 | AG55: ='01. СБИ_B'!Y55 -> 0 | AH55: ='01. СБИ_B'!Z55 -> 0 | AI55: 0
E56: ='01. СБИ_B'!E56 -> 0 | F56: ='01. СБИ_B'!J56 -> 0 | Q56: 0 | R56: 0 | S56: 0 | T56: 0 | V56: 0 | W56: 0 | AG56: ='01. СБИ_B'!Y56 -> 0 | AH56: ='01. СБИ_B'!Z56 -> 0 | AI56: 0
B57: 1.1.3. | D57: Прочая основная деятельность | E57: ='01. СБИ_B'!E57 -> 279293 | F57: ='01. СБИ_B'!J57 -> 90414 | G57: =SUMIF('3.БКС'!$G:$G, $D57, '3.БКС'!K:K) -> 253224.191 | H57: =SUMIF('3.БКС'!$G:$G, $D57, '3.БКС'!L:L) -> 3417.25 | I57: =SUMIF('3.БКС'!$G:$G, $D57, '3.БКС'!M:M) -> 6647.041 | J57: =SUMIF('3.БКС'!$G:$G, $D57, '3.БКС'!N:N) -> 158077.05 | K57: =SUMIF('3.БКС'!$G:$G, $D57, '3.БКС'!O:O) -> 85082.85 | L57: =SUMIF('3.БКС'!$G:$G, $D57, '3.БКС'!P:P) -> 170440.898 | M57: =SUMIF('3.БКС'!$G:$G, $D57, '3.БКС'!Q:Q) -> 3417.23 | N57: =SUMIF('3.БКС'!$G:$G, $D57, '3.БКС'!R:R) -> 6647.93503 | O57: =SUMIF('3.БКС'!$G:$G, $D57, '3.БКС'!S:S) -> 62039.358 | P57: =SUMIF('3.БКС'!$G:$G, $D57, '3.БКС'!T:T) -> 98336.375 | Q57: 253224.191 | R57: 170440.898 | S57: -82783.29297 | T57: -0.3269170005 | V57: 31.7614 | W57: 0.0001254279849 | X57: =SUMIF('3.БКС'!$G:$G, $D57, '3.БКС'!AB:AB) -> 0 | Y57: =SUMIF('3.БКС'!$G:$G, $D57, '3.БКС'!AC:AC) -> 0 | Z57: =SUMIF('3.БКС'!$G:$G, $D57, '3.БКС'!AD:AD) -> 31.7614 | AA57: =SUMIF('3.БКС'!$G:$G, $D57, '3.БКС'!AE:AE) -> 253255.9524 | AB57: =SUMIF('3.БКС'!$G:$G, $D57, '3.БКС'!AF:AF) -> 3417.23 | AC57: =SUMIF('3.БКС'!$G:$G, $D57, '3.БКС'!AG:AG) -> 6647.265 | AD57: =SUMIF('3.БКС'!$G:$G, $D57, '3.БКС'!AH:AH) -> 158077.4386 | AE57: =SUMIF('3.БКС'!$G:$G, $D57, '3.БКС'!AI:AI) -> 85114.0188 | AG57: ='01. СБИ_B'!Y57 -> 290000 | AH57: ='01. СБИ_B'!Z57 -> 144048 | AI57: 2.910383046e-11
E58: ='01. СБИ_B'!E58 -> 0 | F58: ='01. СБИ_B'!J58 -> 0 | Q58: 0 | R58: 0 | S58: 0 | T58: 0 | V58: 0 | W58: 0 | AG58: ='01. СБИ_B'!Y58 -> 0 | AH58: ='01. СБИ_B'!Z58 -> 0 | AI58: 0
B59: 1.2. | D59: Объекты вспомогательного производства (прочее пром. строительство) | E59: ='01. СБИ_B'!E59 -> 0 | F59: ='01. СБИ_B'!J59 -> 0 | G59: =SUMIF('3.БКС'!$G:$G, $D59, '3.БКС'!K:K) -> 0 | H59: =SUMIF('3.БКС'!$G:$G, $D59, '3.БКС'!L:L) -> 0 | I59: =SUMIF('3.БКС'!$G:$G, $D59, '3.БКС'!M:M) -> 0 | J59: =SUMIF('3.БКС'!$G:$G, $D59, '3.БКС'!N:N) -> 0 | K59: =SUMIF('3.БКС'!$G:$G, $D59, '3.БКС'!O:O) -> 0 | L59: =SUMIF('3.БКС'!$G:$G, $D59, '3.БКС'!P:P) -> 0 | M59: =SUMIF('3.БКС'!$G:$G, $D59, '3.БКС'!Q:Q) -> 0 | N59: =SUMIF('3.БКС'!$G:$G, $D59, '3.БКС'!R:R) -> 0 | O59: =SUMIF('3.БКС'!$G:$G, $D59, '3.БКС'!S:S) -> 0 | P59: =SUMIF('3.БКС'!$G:$G, $D59, '3.БКС'!T:T) -> 0 | Q59: 0 | R59: 0 | S59: 0 | T59: 0 | V59: 0 | W59: 0 | X59: =SUMIF('3.БКС'!$G:$G, $D59, '3.БКС'!AB:AB) -> 0 | Y59: =SUMIF('3.БКС'!$G:$G, $D59, '3.БКС'!AC:AC) -> 0 | Z59: =SUMIF('3.БКС'!$G:$G, $D59, '3.БКС'!AD:AD) -> 0 | AA59: =SUMIF('3.БКС'!$G:$G, $D59, '3.БКС'!AE:AE) -> 0 | AB59: =SUMIF('3.БКС'!$G:$G, $D59, '3.БКС'!AF:AF) -> 0 | AC59: =SUMIF('3.БКС'!$G:$G, $D59, '3.БКС'!AG:AG) -> 0 | AD59: =SUMIF('3.БКС'!$G:$G, $D59, '3.БКС'!AH:AH) -> 0 | AE59: =SUMIF('3.БКС'!$G:$G, $D59, '3.БКС'!AI:AI) -> 0 | AG59: ='01. СБИ_B'!Y59 -> 0 | AH59: ='01. СБИ_B'!Z59 -> 0 | AI59: 0
E60: ='01. СБИ_B'!E60 -> 0 | F60: ='01. СБИ_B'!J60 -> 0 | Q60: 0 | R60: 0 | S60: 0 | T60: 0 | V60: 0 | W60: 0 | AG60: ='01. СБИ_B'!Y60 -> 0 | AH60: ='01. СБИ_B'!Z60 -> 0 | AI60: 0
B61: 1.3. | D61: Объекты непромышленного строительства (социального назначения) | E61: ='01. СБИ_B'!E61 -> 0 | F61: ='01. СБИ_B'!J61 -> 0 | G61: =SUMIF('3.БКС'!$G:$G, $D61, '3.БКС'!K:K) -> 0 | H61: =SUMIF('3.БКС'!$G:$G, $D61, '3.БКС'!L:L) -> 0 | I61: =SUMIF('3.БКС'!$G:$G, $D61, '3.БКС'!M:M) -> 0 | J61: =SUMIF('3.БКС'!$G:$G, $D61, '3.БКС'!N:N) -> 0 | K61: =SUMIF('3.БКС'!$G:$G, $D61, '3.БКС'!O:O) -> 0 | L61: =SUMIF('3.БКС'!$G:$G, $D61, '3.БКС'!P:P) -> 0 | M61: =SUMIF('3.БКС'!$G:$G, $D61, '3.БКС'!Q:Q) -> 0 | N61: =SUMIF('3.БКС'!$G:$G, $D61, '3.БКС'!R:R) -> 0 | O61: =SUMIF('3.БКС'!$G:$G, $D61, '3.БКС'!S:S) -> 0 | P61: =SUMIF('3.БКС'!$G:$G, $D61, '3.БКС'!T:T) -> 0 | Q61: 0 | R61: 0 | S61: 0 | T61: 0 | V61: 0 | W61: 0 | X61: =SUMIF('3.БКС'!$G:$G, $D61, '3.БКС'!AB:AB) -> 0 | Y61: =SUMIF('3.БКС'!$G:$G, $D61, '3.БКС'!AC:AC) -> 0 | Z61: =SUMIF('3.БКС'!$G:$G, $D61, '3.БКС'!AD:AD) -> 0 | AA61: =SUMIF('3.БКС'!$G:$G, $D61, '3.БКС'!AE:AE) -> 0 | AB61: =SUMIF('3.БКС'!$G:$G, $D61, '3.БКС'!AF:AF) -> 0 | AC61: =SUMIF('3.БКС'!$G:$G, $D61, '3.БКС'!AG:AG) -> 0 | AD61: =SUMIF('3.БКС'!$G:$G, $D61, '3.БКС'!AH:AH) -> 0 | AE61: =SUMIF('3.БКС'!$G:$G, $D61, '3.БКС'!AI:AI) -> 0 | AG61: ='01. СБИ_B'!Y61 -> 0 | AH61: ='01. СБИ_B'!Z61 -> 0 | AI61: 0
E62: ='01. СБИ_B'!E62 -> 0 | F62: ='01. СБИ_B'!J62 -> 0 | Q62: 0 | R62: 0 | S62: 0 | T62: 0 | V62: 0 | W62: 0 | AG62: ='01. СБИ_B'!Y62 -> 0 | AH62: ='01. СБИ_B'!Z62 -> 0 | AI62: 0
B63: 1.4. | D63: Техническое перевооружение и замена изношенного оборудования | E63: ='01. СБИ_B'!E63 -> 50326 | F63: ='01. СБИ_B'!J63 -> 40449.609 | G63: ='5.ТП_ОВИЗ'!E17 -> 30295.64447 | H63: ='5.ТП_ОВИЗ'!F17 -> 407.4 | I63: ='5.ТП_ОВИЗ'!G17 -> 414.88 | J63: ='5.ТП_ОВИЗ'!H17 -> 11469.06293 | K63: ='5.ТП_ОВИЗ'!I17 -> 18004.30154 | L63: ='5.ТП_ОВИЗ'!J17 -> 32456.023 | M63: ='5.ТП_ОВИЗ'!K17 -> 407.4 | N63: ='5.ТП_ОВИЗ'!L17 -> 415.233 | O63: ='5.ТП_ОВИЗ'!M17 -> 8384.98 | P63: ='5.ТП_ОВИЗ'!N17 -> 23248.41 | Q63: 30295.64447 | R63: 32456.023 | S63: 2160.378534 | T63: 0.07130987216 | V63: 0 | W63: 0 | X63: ='5.ТП_ОВИЗ'!V17 -> 0 | Y63: ='5.ТП_ОВИЗ'!W17 -> 0 | Z63: ='5.ТП_ОВИЗ'!X17 -> 0 | AA63: ='5.ТП_ОВИЗ'!Y17 -> 30295.64447 | AB63: ='5.ТП_ОВИЗ'!Z17 -> 407.4 | AC63: ='5.ТП_ОВИЗ'!AA17 -> 414.88 | AD63: ='5.ТП_ОВИЗ'!AB17 -> 11469.06293 | AE63: ='5.ТП_ОВИЗ'!AC17 -> 18004.30154 | AG63: ='01. СБИ_B'!Y63 -> 60000 | AH63: ='01. СБИ_B'!Z63 -> 43000 | AI63: 1.091393642e-11
E64: ='01. СБИ_B'!E64 -> 0 | F64: ='01. СБИ_B'!J64 -> 0 | Q64: 0 | R64: 0 | S64: 0 | T64: 0 | V64: 0 | W64: 0 | AG64: ='01. СБИ_B'!Y64 -> 0 | AH64: ='01. СБИ_B'!Z64 -> 0 | AI64: 0
B65: 1.5. | D65: Прочие направления инвестиций | E65: ='01. СБИ_B'!E65 -> 0 | F65: ='01. СБИ_B'!J65 -> 0 | G65: =SUM(G66:G69) -> 0 | H65: 0 | I65: 0 | J65: 0 | K65: 0 | L65: 0 | M65: 0 | N65: 0 | O65: 0 | P65: 0 | Q65: 0 | R65: 0 | S65: 0 | T65: 0 | V65: 0 | W65: 0 | X65: =SUM(X66:X69) -> 0 | Y65: 0 | Z65: 0 | AA65: 0 | AB65: =SUM(AB66:AB69) -> 0 | AC65: 0 | AD65: 0 | AE65: 0 | AG65: ='01. СБИ_B'!Y65 -> 0 | AH65: ='01. СБИ_B'!Z65 -> 0 | AI65: 0
B66: 1.5.1. | D66: ГРР | E66: ='01. СБИ_B'!E66 -> 0 | F66: ='01. СБИ_B'!J66 -> 0 | G66: =G31 -> 0 | H66: 0 | I66: 0 | J66: 0 | K66: 0 | L66: 0 | M66: 0 | N66: 0 | O66: 0 | P66: 0 | Q66: 0 | R66: 0 | S66: 0 | T66: 0 | V66: 0 | W66: 0 | X66: =X31 -> 0 | Y66: 0 | Z66: 0 | AA66: 0 | AB66: =AB31 -> 0 | AC66: 0 | AD66: 0 | AE66: 0 | AG66: ='01. СБИ_B'!Y66 -> 0 | AH66: ='01. СБИ_B'!Z66 -> 0 | AI66: 0
B67: 1.5.2. | D67: НИОКР | E67: ='01. СБИ_B'!E67 -> 0 | F67: ='01. СБИ_B'!J67 -> 0 | G67: =G33 -> 0 | H67: 0 | I67: 0 | J67: 0 | K67: 0 | L67: 0 | M67: 0 | N67: 0 | O67: 0 | P67: 0 | Q67: 0 | R67: 0 | S67: 0 | T67: 0 | V67: 0 | W67: 0 | X67: =X33 -> 0 | Y67: 0 | Z67: 0 | AA67: 0 | AB67: =AB33 -> 0 | AC67: 0 | AD67: 0 | AE67: 0 | AG67: ='01. СБИ_B'!Y67 -> 0 | AH67: ='01. СБИ_B'!Z67 -> 0 | AI67: 0
B68: 1.5.3. | D68: НМА | E68: ='01. СБИ_B'!E68 -> 0 | F68: ='01. СБИ_B'!J68 -> 0 | G68: =G35 -> 0 | H68: 0 | I68: 0 | J68: 0 | K68: 0 | L68: 0 | M68: 0 | N68: 0 | O68: 0 | P68: 0 | Q68: 0 | R68: 0 | S68: 0 | T68: 0 | V68: 0 | W68: 0 | X68: =X35 -> 0 | Y68: 0 | Z68: 0 | AA68: 0 | AB68: =AB35 -> 0 | AC68: 0 | AD68: 0 | AE68: 0 | AG68: ='01. СБИ_B'!Y68 -> 0 | AH68: ='01. СБИ_B'!Z68 -> 0 | AI68: 0
B69: 1.5.4. | D69: Прочее | E69: ='01. СБИ_B'!E69 -> 0 | F69: ='01. СБИ_B'!J69 -> 0 | G69: ='18.ПКЗ'!H17 -> 0 | H69: ='18.ПКЗ'!I17 -> 0 | I69: ='18.ПКЗ'!J17 -> 0 | J69: ='18.ПКЗ'!K17 -> 0 | K69: ='18.ПКЗ'!L17 -> 0 | L69: ='18.ПКЗ'!M17 -> 0 | M69: ='18.ПКЗ'!N17 -> 0 | N69: ='18.ПКЗ'!O17 -> 0 | O69: ='18.ПКЗ'!P17 -> 0 | P69: ='18.ПКЗ'!Q17 -> 0 | Q69: 0 | R69: 0 | S69: 0 | T69: 0 | V69: 0 | W69: 0 | X69: ='18.ПКЗ'!Y17 -> 0 | Y69: ='18.ПКЗ'!Z17 -> 0 | Z69: ='18.ПКЗ'!AA17 -> 0 | AA69: ='18.ПКЗ'!AB17 -> 0 | AB69: ='18.ПКЗ'!AC17 -> 0 | AC69: ='18.ПКЗ'!AD17 -> 0 | AD69: ='18.ПКЗ'!AE17 -> 0 | AE69: ='18.ПКЗ'!AF17 -> 0 | AG69: ='01. СБИ_B'!Y69 -> 0 | AH69: ='01. СБИ_B'!Z69 -> 0 | AI69: 0
E70: ='01. СБИ_B'!E70 -> 0 | F70: ='01. СБИ_B'!J70 -> 0 | Q70: 0 | R70: 0 | S70: 0 | T70: 0 | V70: 0 | W70: 0 | AG70: ='01. СБИ_B'!Y70 -> 0 | AH70: ='01. СБИ_B'!Z70 -> 0 | AI70: 0
B71: 2. | D71: Долгосрочные финансовые вложения | E71: ='01. СБИ_B'!E71 -> 0 | F71: ='01. СБИ_B'!J71 -> 0 | G71: =G39 -> 0 | H71: 0 | I71: 0 | J71: 0 | K71: 0 | L71: 0 | M71: 0 | N71: 0 | O71: 0 | P71: 0 | Q71: 0 | R71: 0 | S71: 0 | T71: 0 | V71: 0 | W71: 0 | X71: =X39 -> 0 | Y71: 0 | Z71: 0 | AA71: 0 | AB71: =AB39 -> 0 | AC71: 0 | AD71: 0 | AE71: 0 | AG71: ='01. СБИ_B'!Y71 -> 0 | AH71: ='01. СБИ_B'!Z71 -> 0 | AI71: 0
E72: ='01. СБИ_B'!E72 -> 0 | F72: ='01. СБИ_B'!J72 -> 0 | Q72: 0 | R72: 0 | S72: 0 | T72: 0 | V72: 0 | W72: 0 | AG72: ='01. СБИ_B'!Y72 -> 0 | AH72: ='01. СБИ_B'!Z72 -> 0 | AI72: 0
E73: ='01. СБИ_B'!E73 -> 0 | F73: ='01. СБИ_B'!J73 -> 0 | Q73: 0 | R73: 0 | S73: 0 | T73: 0 | V73: 0 | W73: 0 | AG73: ='01. СБИ_B'!Y73 -> 0 | AH73: ='01. СБИ_B'!Z73 -> 0 | AI73: 0
E75: ='01. СБИ_B'!E75 -> 0 | F75: ='01. СБИ_B'!J75 -> 0 | Q75: 0 | R75: 0 | S75: 0 | T75: 0 | V75: 0 | W75: 0 | AG75: ='01. СБИ_B'!Y75 -> 0 | AH75: ='01. СБИ_B'!Z75 -> 0 | AI75: 0
B76: III. | D76: СТРУКТУРА ИНВЕСТИЦИЙ ПО НАЛИЧИЮ ЛИЗИНГA | E76: ='01. СБИ_B'!E76 -> 329619 | F76: ='01. СБИ_B'!J76 -> 130863.437 | G76: =G17 -> 283519.8355 | H76: 3824.65 | I76: 7061.921 | J76: 169546.1129 | K76: 103087.1515 | L76: 202896.921 | M76: 3824.63 | N76: 7063.16803 | O76: 70424.338 | P76: 121584.785 | Q76: 283519.8355 | R76: 202896.921 | S76: -80622.91444 | T76: -0.284364282 | V76: 31.7614 | W76: 0.000112025319 | X76: =X17 -> 0 | Y76: 0 | Z76: 31.7614 | AA76: 283551.5969 | AB76: 3824.63 | AC76: 7062.145 | AD76: 169546.5015 | AE76: 103118.3203 | AG76: ='01. СБИ_B'!Y76 -> 350000 | AH76: ='01. СБИ_B'!Z76 -> 187048 | AI76: 8.731149137e-11
E77: ='01. СБИ_B'!E77 -> 0 | F77: ='01. СБИ_B'!J77 -> 0 | Q77: 0 | R77: 0 | S77: 0 | T77: 0 | V77: 0 | W77: 0 | AG77: ='01. СБИ_B'!Y77 -> 0 | AH77: ='01. СБИ_B'!Z77 -> 0 | AI77: 0
B78: 1. | D78: Оборудование без лизинга всего | E78: ='01. СБИ_B'!E78 -> 80472 | F78: ='01. СБИ_B'!J78 -> 40449.609 | G78: ='4.СБО'!E17-G80 -> 58884.64447 | H78: ='4.СБО'!F17-H80 -> 407.4 | I78: ='4.СБО'!G17-I80 -> 414.88 | J78: ='4.СБО'!H17-J80 -> 16045.06293 | K78: ='4.СБО'!I17-K80 -> 42017.30154 | L78: ='4.СБО'!J17-L80 -> 52532.352 | M78: ='4.СБО'!K17-M80 -> 407.4 | N78: ='4.СБО'!L17-N80 -> 415.233 | O78: ='4.СБО'!M17-O80 -> 8384.98 | P78: ='4.СБО'!N17-P80 -> 43324.739 | Q78: 58884.64447 | R78: 52532.352 | S78: -6352.292466 | T78: -0.1078768926 | V78: 0 | W78: 0 | X78: ='4.СБО'!V17-X80 -> 0 | Y78: ='4.СБО'!W17-Y80 -> 0 | Z78: ='4.СБО'!X17-Z80 -> 0 | AA78: ='4.СБО'!Y17-AA80 -> 58884.64447 | AB78: ='4.СБО'!Z17-AB80 -> 407.4 | AC78: ='4.СБО'!AA17-AC80 -> 414.88 | AD78: ='4.СБО'!AB17-AD80 -> 16045.06293 | AE78: ='4.СБО'!AC17-AE80 -> 42017.30154 | AG78: ='01. СБИ_B'!Y78 -> 60000 | AH78: ='01. СБИ_B'!Z78 -> 43000 | AI78: 0
E79: ='01. СБИ_B'!E79 -> 0 | F79: ='01. СБИ_B'!J79 -> 0 | Q79: =IF(period=period_1Q, H79, IF(period=period_1H, SUM(H79:I79), IF(period=period_9M, SUM(H79:J79), IF(period=period_1Y,SUM(H79:K79),0)))) -> 0 | R79: =IF(period=period_1Q, M79, IF(period=period_1H, SUM(M79:N79), IF(period=period_9M, SUM(M79:O79), IF(period=period_1Y,SUM(M79:P79),0)))) -> 0 | S79: =R79-Q79 -> 0 | T79: =IFERROR(S79/Q79, 0) -> 0 | V79: =SUM(X79:Z79) -> 0 | W79: =IFERROR(V79/G79, 0) -> 0 | AG79: ='01. СБИ_B'!Y79 -> 0 | AH79: ='01. СБИ_B'!Z79 -> 0 | AI79: =SUM(ABS(G79-SUM(H79:K79)), ABS(L79-SUM(M79:P79)),ABS(V79-SUM(X79:Z79)), ABS(AA79-SUM(AB79:AE79))) -> 0
B80: 2. | D80: Оборудование по лизингу всего | E80: ='01. СБИ_B'!E80 -> 0 | F80: ='01. СБИ_B'!J80 -> 0 | G80: ='6.БОЛ'!E17 -> 0 | H80: ='6.БОЛ'!F17 -> 0 | I80: ='6.БОЛ'!G17 -> 0 | J80: ='6.БОЛ'!H17 -> 0 | K80: ='6.БОЛ'!I17 -> 0 | L80: ='6.БОЛ'!J17 -> 0 | M80: ='6.БОЛ'!K17 -> 0 | N80: ='6.БОЛ'!L17 -> 0 | O80: ='6.БОЛ'!M17 -> 0 | P80: ='6.БОЛ'!N17 -> 0 | Q80: 0 | R80: 0 | S80: 0 | T80: 0 | V80: 0 | W80: 0 | X80: ='6.БОЛ'!V17 -> 0 | Y80: ='6.БОЛ'!W17 -> 0 | Z80: ='6.БОЛ'!X17 -> 0 | AA80: ='6.БОЛ'!Y17 -> 0 | AB80: ='6.БОЛ'!Z17 -> 0 | AC80: ='6.БОЛ'!AA17 -> 0 | AD80: ='6.БОЛ'!AB17 -> 0 | AE80: ='6.БОЛ'!AC17 -> 0 | AG80: ='01. СБИ_B'!Y80 -> 0 | AH80: ='01. СБИ_B'!Z80 -> 0 | AI80: 0
E81: ='01. СБИ_B'!E81 -> 0 | F81: ='01. СБИ_B'!J81 -> 0 | Q81: 0 | R81: 0 | S81: 0 | T81: 0 | V81: 0 | W81: 0 | AG81: ='01. СБИ_B'!Y81 -> 0 | AH81: ='01. СБИ_B'!Z81 -> 0 | AI81: 0
B82: 3 | D82: Инвестиции без оборудования всего | E82: ='01. СБИ_B'!E82 -> 249147 | F82: ='01. СБИ_B'!J82 -> 90413.828 | G82: =G76-G78-G80 -> 224635.191 | H82: 3417.25 | I82: 6647.041 | J82: 153501.05 | K82: 61069.85 | L82: 150364.569 | M82: 3417.23 | N82: 6647.93503 | O82: 62039.358 | P82: 78260.046 | Q82: 224635.191 | R82: 150364.569 | S82: -74270.62197 | T82: -0.3306277242 | V82: 31.7614 | W82: 0.0001413910254 | X82: =X76-X78-X80 -> 0 | Y82: 0 | Z82: 31.7614 | AA82: 224666.9524 | AB82: =AB76-AB78-AB80 -> 3417.23 | AC82: 6647.265 | AD82: 153501.4386 | AE82: 61101.0188 | AG82: ='01. СБИ_B'!Y82 -> 290000 | AH82: ='01. СБИ_B'!Z82 -> 144048 | AI82: 8.731149137e-11
E83: ='01. СБИ_B'!E83 -> 0 | F83: ='01. СБИ_B'!J83 -> 0 | Q83: 0 | R83: 0 | S83: 0 | T83: 0 | V83: 0 | W83: 0 | AG83: ='01. СБИ_B'!Y83 -> 0 | AH83: ='01. СБИ_B'!Z83 -> 0 | AI83: 0
E84: ='01. СБИ_B'!E84 -> 0 | F84: ='01. СБИ_B'!J84 -> 0 | Q84: 0 | R84: 0 | S84: 0 | T84: 0 | V84: 0 | W84: 0 | AG84: ='01. СБИ_B'!Y84 -> 0 | AH84: ='01. СБИ_B'!Z84 -> 0 | AI84: 0
D85: Справочно: | E85: ='01. СБИ_B'!E85 -> 0 | F85: ='01. СБИ_B'!J85 -> 0 | Q85: 0 | R85: 0 | S85: 0 | T85: 0 | V85: 0 | W85: 0 | AG85: ='01. СБИ_B'!Y85 -> 0 | AH85: ='01. СБИ_B'!Z85 -> 0 | AI85: 0
E86: ='01. СБИ_B'!E86 -> 0 | F86: ='01. СБИ_B'!J86 -> 0 | Q86: 0 | R86: 0 | S86: 0 | T86: 0 | V86: 0 | W86: 0 | AG86: ='01. СБИ_B'!Y86 -> 0 | AH86: ='01. СБИ_B'!Z86 -> 0 | AI86: 0
D87: Прочие движения по дебету 08 счёта | E87: ='01. СБИ_B'!E87 -> 0 | F87: ='01. СБИ_B'!J87 -> 0 | G87: ='06.БПД'!E18 -> 0 | H87: ='06.БПД'!F18 -> 0 | I87: ='06.БПД'!G18 -> 0 | J87: ='06.БПД'!H18 -> 0 | K87: ='06.БПД'!I18 -> 0 | L87: ='06.БПД'!J18 -> 0 | M87: ='06.БПД'!K18 -> 0 | N87: ='06.БПД'!L18 -> 0 | O87: ='06.БПД'!M18 -> 0 | P87: ='06.БПД'!N18 -> 0 | Q87: 0 | R87: 0 | S87: 0 | T87: 0 | V87: 0 | W87: 0 | X87: ='06.БПД'!V18 -> 0 | Y87: ='06.БПД'!W18 -> 0 | Z87: ='06.БПД'!X18 -> 0 | AA87: ='06.БПД'!Y18 -> 0 | AB87: ='06.БПД'!Z18 -> 0 | AC87: ='06.БПД'!AA18 -> 0 | AD87: ='06.БПД'!AB18 -> 0 | AE87: ='06.БПД'!AC18 -> 0 | AG87: ='01. СБИ_B'!Y87 -> 0 | AH87: ='01. СБИ_B'!Z87 -> 0 | AI87: 0
E88: ='01. СБИ_B'!E88 -> 0 | F88: ='01. СБИ_B'!J88 -> 0 | Q88: 0 | R88: 0 | S88: 0 | T88: 0 | V88: 0 | W88: 0 | AG88: ='01. СБИ_B'!Y88 -> 0 | AH88: ='01. СБИ_B'!Z88 -> 0 | AI88: 0
D89: Итого (инвестиции в нефинансовые активы +ДФВ +прочие движения по Д-ту 08 счёта): | E89: ='01. СБИ_B'!E89 -> 329619 | F89: ='01. СБИ_B'!J89 -> 130863.437 | G89: =G87+G17-G80 -> 283519.8355 | H89: =H87+H17-H80 -> 3824.65 | I89: =I87+I17-I80 -> 7061.921 | J89: 169546.1129 | K89: 103087.1515 | L89: 202896.921 | M89: 3824.63 | N89: 7063.16803 | O89: 70424.338 | P89: 121584.785 | Q89: 283519.8355 | R89: 202896.921 | S89: -80622.91444 | T89: -0.284364282 | V89: 31.7614 | W89: 0.000112025319 | X89: =X87+X17-X80 -> 0 | Y89: 0 | Z89: 31.7614 | AA89: 283551.5969 | AB89: 3824.63 | AC89: 7062.145 | AD89: 169546.5015 | AE89: 103118.3203 | AG89: ='01. СБИ_B'!Y89 -> 350000 | AH89: ='01. СБИ_B'!Z89 -> 187048 | AI89: 8.731149137e-11
D92: Сверка | E92: =SUM(ABS(E17-E43),ABS(E43-E76),ABS(E76-E78-E80-E82),ABS(E17-E19-E39),ABS(E19-E21-E28-E31-E33-E35-E37),ABS(E21-E22-E23-E25-E26-E27),ABS(E23-E24),ABS(E28-E29-E30),ABS(E43-E45-E71),ABS(E45-E47-E59-E61-E63-E65),ABS(E47-E49-E55-E57),ABS(E49-E50-E51-E52),ABS(E65-E66-E67-E68-E69), ABS(E89-(E87+E17-E80))) -> 0 | F92: =SUM(ABS(F17-F43),ABS(F43-F76),ABS(F76-F78-F80-F82),ABS(F17-F19-F39),ABS(F19-F21-F28-F31-F33-F35-F37),ABS(F21-F22-F23-F25-F26-F27),ABS(F23-F24),ABS(F28-F29-F30),ABS(F43-F45-F71),ABS(F45-F47-F59-F61-F63-F65),ABS(F47-F49-F55-F57),ABS(F49-F50-F51-F52),ABS(F65-F66-F67-F68-F69), ABS(F89-(F87+F17-F80))) -> 0.193 | G92: 5.820766091e-11 | H92: 2.273736754e-13 | I92: 2.273736754e-13 | J92: 3.410605132e-11 | K92: 2.091837814e-11 | L92: 3.274180926e-11 | M92: 2.273736754e-13 | N92: 3.410605132e-13 | O92: 7.275957614e-12 | P92: 1.091393642e-11 | Q92: 9.822542779e-11 | R92: 7.639755495e-11 | S92: 1.746229827e-10 | V92: =SUM(ABS(V17-V43),ABS(V43-V76),ABS(V76-V78-V80-V82),ABS(V17-V19-V39),ABS(V19-V21-V28-V31-V33-V35-V37),ABS(V21-V22-V23-V25-V26-V27),ABS(V23-V24),ABS(V28-V29-V30),ABS(V43-V45-V71),ABS(V45-V47-V59-V61-V63-V65),ABS(V47-V49-V55-V57),ABS(V49-V50-V51-V52),ABS(V65-V66-V67-V68-V69), ABS(V89-(V87+V17-V80))) -> 0 | X92: 0 | Y92: 0 | Z92: 0 | AA92: 2.182787284e-11 | AB92: 2.273736754e-13 | AC92: 2.50111043e-12 | AD92: 2.77395884e-11 | AE92: 2.000888344e-11 | AG92: 0 | AH92: 0
B93: 1 Форма заполняется по освоению (начислению). Подробнее -порядок заполнения формы определён в "Положении об инвестиционном бюджете АК "АЛРОСА".
B94: 2 Прогнозные данные (1,2-й год, следующий за плановым) носят справочный характер и не подразумевают авторизации плановых показателей этих периодов.
B95: 3 В графе "Отклонение" производится сравнение факта с плановым периодом нарастающим итогом.
B96: 4 При отклонении более 10% (не зависимо +/-) в графе "Комментарии по отклонениям" в форме указывается причина отклонения. Подробно - причины отклонений указываются в Пояснительной записке к инвестиционному бюджету/отчёту.
D100: Гладуненко Вера Викторовна
D101: Исполнитель (ФИО):
D103: Начальник СДО
D104: Должность:
D106: 8-411-36-79-494
D107: Контактный телефон:
D109: sdo2@shpp.ru
D110: Электронный адрес:
B115: Примечание:
B116: Затраты по объектам "Здание ГЭС. Оснащение ответственных напорных гидротехнических сооружений автоматизированными системами диагностического контроля (АСДК)" и "ПКЗП. Переход через ручей Сыылага" в размере 95 372 тыс.руб. отнесены в РЕЗЕРВ. Вывод из резерва осуществляется по отдельному согласованию с УИД АК "АЛРОСА" (ПАО) после предоставления обосновывающих материалов.
B122: СОГЛАСОВАНО______________________________________Трофимов А.В.

Sheet 2.СБП
B1: Назад к оглавлению | L1: base_fact | M1: base_fact | N1: base_fact | O1: base_fact | P1: base_fact | Q1: fact_fields | R1: fact_fields | S1: fact_fields | T1: fact_fields | U1: fact_fields | V1: corr_fields | W1: corr_fields | X1: corr_fields | Y1: corr_fields | Z1: corr_fields | AA1: corr_fields | AB1: corr_fields | AC1: corr_fields | AD1: corr_fields | AE1: corr_fields | AF1: corr_fields
B3: Приложение № 2 к "Положению об инвестиционном бюджете АК "АЛРОСА""
B4: Код формы: СБП
C6: =org -> АО "Вилюйская ГЭС-3"
C7: Организационно-правовая форма и название Общества/структурного подразделения
C8: =period_txt -> 12 месяцев 2017
C9: Плановый / отчётный период
C10: Сводный бюджет инвестиций по проектам
B11: Тыс. руб. без НДС 1
B12: № | C12: Общество / cтруктурное подразделение | D12: Код проекта | E12: Вид проекта | F12: Наименование проекта | G12: Плановый / отчётный период | Q12: ПЛАН за | R12: ФАКТ за | S12: Отклонение за период2 | U12: Комментарии по отклонениям3 | V12: Изменения к утверждённому плану по году | AA12: Скорректированный план | AF12: Комментарии по изменениям плана | AG12: Сверка
G13: ПЛАН | H13: в т.ч. по кварталам: | L13: ФАКТ | M13: в т.ч. по кварталам: | Q13: =period -> 12 месяцев | R13: =Q13 -> 12 месяцев | S13: 12 месяцев | AA13: ПЛАН | AB13: в т.ч. по кварталам:
G14: Год всего | H14: 1 кв. | I14: 2 кв. | J14: 3 кв. | K14: 4 кв. | L14: Год всего | M14: 1 кв. | N14: 2 кв. | O14: 3 кв. | P14: 4 кв. | Q14: Тыс. руб. | R14: Тыс. руб. | S14: Тыс. руб. | T14: % | V14: Изменение всего | X14: В т.ч. | AA14: Год всего | AB14: 1 кв. | AC14: 2 кв. | AD14: 3 кв. | AE14: 4 кв.
V15: Тыс. руб. | W15: % | X15: Вновь добавлено (указывается со знаком "+") | Y15: Исключено (указывается со знаком "-") | Z15: Изменение стоимости (удорожание "+", удешвление "-")
B16: 1 | C16: =B16+1 -> 2 | D16: 3 | E16: 4 | F16: 5 | G16: 6 | H16: 7 | I16: 8 | J16: 9 | K16: 10 | L16: 11 | M16: 12 | N16: 13 | O16: 14 | P16: 15 | Q16: 16 | R16: 17 | S16: 18 | T16: 19 | U16: 20 | V16: 21 | W16: 22 | X16: 23 | Y16: 24 | Z16: 25 | AA16: 26 | AB16: 27 | AC16: 28 | AD16: 29 | AE16: 30 | AF16: 31
D17: ИНВЕСТИЦИИ ВСЕГО (включая лизинг) | G17: ='1.СБИ'!G17 -> 283519.8355 | H17: ='1.СБИ'!H17 -> 3824.65 | I17: ='1.СБИ'!I17 -> 7061.921 | J17: ='1.СБИ'!J17 -> 169546.1129 | K17: ='1.СБИ'!K17 -> 103087.1515 | L17: ='1.СБИ'!L17 -> 202896.921 | M17: ='1.СБИ'!M17 -> 3824.63 | N17: ='1.СБИ'!N17 -> 7063.16803 | O17: ='1.СБИ'!O17 -> 70424.338 | P17: ='1.СБИ'!P17 -> 121584.785 | Q17: =IF(period=period_1Q, H17, IF(period=period_1H, SUM(H17:I17), IF(period=period_9M, SUM(H17:J17), IF(period=period_1Y,SUM(H17:K17),0)))) -> 283519.8355 | R17: =IF(period=period_1Q, M17, IF(period=period_1H, SUM(M17:N17), IF(period=period_9M, SUM(M17:O17), IF(period=period_1Y,SUM(M17:P17),0)))) -> 202896.921 | S17: =R17-Q17 -> -80622.91444 | T17: =IFERROR(S17/Q17, 0) -> -0.284364282 | V17: =SUM(X17:Z17) -> 31.7614 | W17: =IFERROR(V17/G17, 0) -> 0.000112025319 | X17: ='1.СБИ'!X17 -> 0 | Y17: ='1.СБИ'!Y17 -> 0 | Z17: ='1.СБИ'!Z17 -> 31.7614 | AA17: ='1.СБИ'!AA17 -> 283551.5969 | AB17: ='1.СБИ'!AB17 -> 3824.63 | AC17: ='1.СБИ'!AC17 -> 7062.145 | AD17: ='1.СБИ'!AD17 -> 169546.5015 | AE17: ='1.СБИ'!AE17 -> 103118.3203 | AG17: =SUM(ABS(G17-SUM(H17:K17)), ABS(L17-SUM(M17:P17)), ABS(V17-SUM(X17:Z17)), ABS(AA17-SUM(AB17:AE17))) -> 8.731149137e-11
B18: I. | D18: НЕПРОЕКТНАЯ ДЕЯТЕЛЬНОСТЬ | G18: =G17-G19 -> 283519.8355 | H18: =H17-H19 -> 3824.65 | I18: =I17-I19 -> 7061.921 | J18: 169546.1129 | K18: =K17-K19 -> 103087.1515 | L18: 202896.921 | M18: 3824.63 | N18: 7063.16803 | O18: 70424.338 | P18: 121584.785 | Q18: 283519.8355 | R18: 202896.921 | S18: -80622.91444 | T18: -0.284364282 | V18: 31.7614 | W18: 0.000112025319 | X18: =X17-X19 -> 0 | Y18: 0 | Z18: 31.7614 | AA18: 283551.5969 | AB18: 3824.63 | AC18: 7062.145 | AD18: 169546.5015 | AE18: 103118.3203 | AG18: 8.731149137e-11
B19: II. | D19: ПРОЕКТНАЯ ДЕЯТЕЛЬНОСТЬ, в т.ч.: | G19: =SUM(G20:G27) -> 0 | H19: 0 | I19: 0 | J19: 0 | K19: 0 | L19: 0 | M19: 0 | N19: 0 | O19: 0 | P19: 0 | Q19: 0 | R19: 0 | S19: 0 | T19: 0 | V19: 0 | W19: 0 | X19: =SUM(X20:X27) -> 0 | Y19: 0 | Z19: 0 | AA19: 0 | AB19: 0 | AC19: 0 | AD19: 0 | AE19: 0 | AG19: 0
B20: 1. | D20: Проекты алмазодобычи | G20: =SUMIF($E:$E,$D20,G:G ) -> 0 | H20: =SUMIF($E:$E,$D20,H:H ) -> 0 | I20: 0 | J20: 0 | K20: 0 | L20: 0 | M20: 0 | N20: 0 | O20: 0 | P20: 0 | Q20: 0 | R20: 0 | S20: 0 | T20: 0 | V20: 0 | W20: 0 | X20: =SUMIF($E:$E,$D20,X:X ) -> 0 | Y20: 0 | Z20: 0 | AA20: 0 | AB20: 0 | AC20: 0 | AD20: 0 | AE20: 0 | AG20: 0
B21: 2. | D21: Проекты обогатителных мощностей | G21: 0 | H21: 0 | I21: =SUMIF($E:$E,$D21,I:I ) -> 0 | J21: 0 | K21: 0 | L21: 0 | M21: 0 | N21: 0 | O21: 0 | P21: 0 | Q21: 0 | R21: 0 | S21: 0 | T21: 0 | V21: 0 | W21: 0 | X21: 0 | Y21: 0 | Z21: 0 | AA21: 0 | AB21: 0 | AC21: 0 | AD21: 0 | AE21: 0 | AG21: 0
B22: 3. | D22: Транспорт и логистика | G22: 0 | H22: 0 | I22: 0 | J22: 0 | K22: 0 | L22: 0 | M22: 0 | N22: 0 | O22: 0 | P22: 0 | Q22: 0 | R22: 0 | S22: 0 | T22: 0 | V22: 0 | W22: 0 | X22: 0 | Y22: 0 | Z22: 0 | AA22: 0 | AB22: 0 | AC22: 0 | AD22: 0 | AE22: =SUMIF($E:$E,$D22,AE:AE ) -> 0 | AG22: 0
B23: 4. | D23: Сортировка, огранка, сбыт | G23: 0 | H23: 0 | I23: 0 | J23: 0 | K23: 0 | L23: 0 | M23: 0 | N23: 0 | O23: 0 | P23: 0 | Q23: 0 | R23: 0 | S23: 0 | T23: 0 | V23: 0 | W23: 0 | X23: 0 | Y23: 0 | Z23: 0 | AA23: 0 | AB23: 0 | AC23: 0 | AD23: 0 | AE23: 0 | AG23: 0
B24: 5. | D24: Геологоразведка | G24: 0 | H24: 0 | I24: 0 | J24: 0 | K24: 0 | L24: 0 | M24: 0 | N24: 0 | O24: 0 | P24: 0 | Q24: 0 | R24: 0 | S24: 0 | T24: 0 | V24: 0 | W24: 0 | X24: 0 | Y24: 0 | Z24: 0 | AA24: 0 | AB24: 0 | AC24: 0 | AD24: 0 | AE24: 0 | AG24: 0
B25: 6. | D25: Проекты вспомогателного характера | G25: 0 | H25: 0 | I25: 0 | J25: 0 | K25: 0 | L25: 0 | M25: 0 | N25: 0 | O25: 0 | P25: 0 | Q25: 0 | R25: 0 | S25: 0 | T25: 0 | V25: 0 | W25: 0 | X25: 0 | Y25: 0 | Z25: 0 | AA25: 0 | AB25: 0 | AC25: 0 | AD25: 0 | AE25: 0 | AG25: 0
B26: 7. | D26: Проекты непромышленного характера (социального назначения) | G26: 0 | H26: 0 | I26: 0 | J26: 0 | K26: 0 | L26: 0 | M26: 0 | N26: 0 | O26: 0 | P26: 0 | Q26: 0 | R26: 0 | S26: 0 | T26: 0 | V26: 0 | W26: 0 | X26: 0 | Y26: 0 | Z26: 0 | AA26: 0 | AB26: 0 | AC26: 0 | AD26: 0 | AE26: 0 | AG26: 0
B27: 8. | D27: Прочие проекты | G27: 0 | H27: 0 | I27: 0 | J27: =SUMIF($E:$E,$D27,J:J ) -> 0 | K27: 0 | L27: 0 | M27: 0 | N27: 0 | O27: 0 | P27: 0 | Q27: 0 | R27: 0 | S27: 0 | T27: 0 | V27: 0 | W27: 0 | X27: 0 | Y27: 0 | Z27: 0 | AA27: 0 | AB27: 0 | AC27: 0 | AD27: 0 | AE27: 0 | AG27: 0
B28: =IF(D28="", "", '04.РИП'!A15) ->  | C28: =IF(D28="", "", '04.РИП'!D15) ->  | D28: =IF(ISBLANK('04.РИП'!B15), "", '04.РИП'!B15) ->  | E28: =IF(D28="", "", '04.РИП'!E15) ->  | F28: =IF(D28="", "", '04.РИП'!C15) ->  | G28: =IF($D28="", 0, SUMIF('7.СМР'!$D:$D, $D28, '7.СМР'!G:G)+SUMIF('8.ОСС'!$D:$D, $D28, '8.ОСС'!Y:Y)+SUMIF('9.ПИР'!$D:$D, $D28, '9.ПИР'!G:G)+SUMIF('10.БКП'!$D:$D, $D28, '10.БКП'!G:G)+SUMIF('11.ПЗС'!$D:$D, $D28, '11.ПЗС'!H:H)+SUMIF('12.ТП_БЭФ'!$D:$D, $D28, '12.ТП_БЭФ'!AA:AA)+SUMIF('13.ТП_СЭФ'!$D:$D, $D28, '13.ТП_СЭФ'!AI:AI)+SUMIF('14.ОВИЗ'!$D:$D, $D28, '14.ОВИЗ'!AJ:AJ)+SUMIF('15.ГРР'!$D:$D, $D28, '15.ГРР'!G:G)+SUMIF('16.НИОКР'!$D:$D, $D28, '16.НИОКР'!G:G)+SUMIF('17.НМА'!$D:$D, $D28, '17.НМА'!H:H)+SUMIF('18.ПКЗ'!$D:$D, $D28, '18.ПКЗ'!H:H)+SUMIF('19.БФИ'!$D:$D, $D28, '19.БФИ'!H:H)) -> 0 | H28: =IF($D28="", 0, SUMIF('7.СМР'!$D:$D, $D28, '7.СМР'!H:H)+SUMIF('8.ОСС'!$D:$D, $D28, '8.ОСС'!Z:Z)+SUMIF('9.ПИР'!$D:$D, $D28, '9.ПИР'!H:H)+SUMIF('10.БКП'!$D:$D, $D28, '10.БКП'!H:H)+SUMIF('11.ПЗС'!$D:$D, $D28, '11.ПЗС'!I:I)+SUMIF('12.ТП_БЭФ'!$D:$D, $D28, '12.ТП_БЭФ'!AB:AB)+SUMIF('13.ТП_СЭФ'!$D:$D, $D28, '13.ТП_СЭФ'!AJ:AJ)+SUMIF('14.ОВИЗ'!$D:$D, $D28, '14.ОВИЗ'!AK:AK)+SUMIF('15.ГРР'!$D:$D, $D28, '15.ГРР'!H:H)+SUMIF('16.НИОКР'!$D:$D, $D28, '16.НИОКР'!H:H)+SUMIF('17.НМА'!$D:$D, $D28, '17.НМА'!I:I)+SUMIF('18.ПКЗ'!$D:$D, $D28, '18.ПКЗ'!I:I)+SUMIF('19.БФИ'!$D:$D, $D28, '19.БФИ'!I:I)) -> 0 | I28: =IF($D28="", 0, SUMIF('7.СМР'!$D:$D, $D28, '7.СМР'!I:I)+SUMIF('8.ОСС'!$D:$D, $D28, '8.ОСС'!AA:AA)+SUMIF('9.ПИР'!$D:$D, $D28, '9.ПИР'!I:I)+SUMIF('10.БКП'!$D:$D, $D28, '10.БКП'!I:I)+SUMIF('11.ПЗС'!$D:$D, $D28, '11.ПЗС'!J:J)+SUMIF('12.ТП_БЭФ'!$D:$D, $D28, '12.ТП_БЭФ'!AC:AC)+SUMIF('13.ТП_СЭФ'!$D:$D, $D28, '13.ТП_СЭФ'!AK:AK)+SUMIF('14.ОВИЗ'!$D:$D, $D28, '14.ОВИЗ'!AL:AL)+SUMIF('15.ГРР'!$D:$D, $D28, '15.ГРР'!I:I)+SUMIF('16.НИОКР'!$D:$D, $D28, '16.НИОКР'!I:I)+SUMIF('17.НМА'!$D:$D, $D28, '17.НМА'!J:J)+SUMIF('18.ПКЗ'!$D:$D, $D28, '18.ПКЗ'!J:J)+SUMIF('19.БФИ'!$D:$D, $D28, '19.БФИ'!J:J)) -> 0 | J28: =IF($D28="", 0, SUMIF('7.СМР'!$D:$D, $D28, '7.СМР'!J:J)+SUMIF('8.ОСС'!$D:$D, $D28, '8.ОСС'!AB:AB)+SUMIF('9.ПИР'!$D:$D, $D28, '9.ПИР'!J:J)+SUMIF('10.БКП'!$D:$D, $D28, '10.БКП'!J:J)+SUMIF('11.ПЗС'!$D:$D, $D28, '11.ПЗС'!K:K)+SUMIF('12.ТП_БЭФ'!$D:$D, $D28, '12.ТП_БЭФ'!AD:AD)+SUMIF('13.ТП_СЭФ'!$D:$D, $D28, '13.ТП_СЭФ'!AL:AL)+SUMIF('14.ОВИЗ'!$D:$D, $D28, '14.ОВИЗ'!AM:AM)+SUMIF('15.ГРР'!$D:$D, $D28, '15.ГРР'!J:J)+SUMIF('16.НИОКР'!$D:$D, $D28, '16.НИОКР'!J:J)+SUMIF('17.НМА'!$D:$D, $D28, '17.НМА'!K:K)+SUMIF('18.ПКЗ'!$D:$D, $D28, '18.ПКЗ'!K:K)+SUMIF('19.БФИ'!$D:$D, $D28, '19.БФИ'!K:K)) -> 0 | K28: =IF($D28="", 0, SUMIF('7.СМР'!$D:$D, $D28, '7.СМР'!K:K)+SUMIF('8.ОСС'!$D:$D, $D28, '8.ОСС'!AC:AC)+SUMIF('9.ПИР'!$D:$D, $D28, '9.ПИР'!K:K)+SUMIF('10.БКП'!$D:$D, $D28, '10.БКП'!K:K)+SUMIF('11.ПЗС'!$D:$D, $D28, '11.ПЗС'!L:L)+SUMIF('12.ТП_БЭФ'!$D:$D, $D28, '12.ТП_БЭФ'!AE:AE)+SUMIF('13.ТП_СЭФ'!$D:$D, $D28, '13.ТП_СЭФ'!AM:AM)+SUMIF('14.ОВИЗ'!$D:$D, $D28, '14.ОВИЗ'!AN:AN)+SUMIF('15.ГРР'!$D:$D, $D28, '15.ГРР'!K:K)+SUMIF('16.НИОКР'!$D:$D, $D28, '16.НИОКР'!K:K)+SUMIF('17.НМА'!$D:$D, $D28, '17.НМА'!L:L)+SUMIF('18.ПКЗ'!$D:$D, $D28, '18.ПКЗ'!L:L)+SUMIF('19.БФИ'!$D:$D, $D28, '19.БФИ'!L:L)) -> 0 | L28: =IF($D28="", 0, SUMIF('7.СМР'!$D:$D, $D28, '7.СМР'!L:L)+SUMIF('8.ОСС'!$D:$D, $D28, '8.ОСС'!AD:AD)+SUMIF('9.ПИР'!$D:$D, $D28, '9.ПИР'!L:L)+SUMIF('10.БКП'!$D:$D, $D28, '10.БКП'!L:L)+SUMIF('11.ПЗС'!$D:$D, $D28, '11.ПЗС'!M:M)+SUMIF('12.ТП_БЭФ'!$D:$D, $D28, '12.ТП_БЭФ'!AF:AF)+SUMIF('13.ТП_СЭФ'!$D:$D, $D28, '13.ТП_СЭФ'!AN:AN)+SUMIF('14.ОВИЗ'!$D:$D, $D28, '14.ОВИЗ'!AO:AO)+SUMIF('15.ГРР'!$D:$D, $D28, '15.ГРР'!L:L)+SUMIF('16.НИОКР'!$D:$D, $D28, '16.НИОКР'!L:L)+SUMIF('17.НМА'!$D:$D, $D28, '17.НМА'!M:M)+SUMIF('18.ПКЗ'!$D:$D, $D28, '18.ПКЗ'!M:M)+SUMIF('19.БФИ'!$D:$D, $D28, '19.БФИ'!M:M)) -> 0 | M28: =IF($D28="", 0, SUMIF('7.СМР'!$D:$D, $D28, '7.СМР'!M:M)+SUMIF('8.ОСС'!$D:$D, $D28, '8.ОСС'!AE:AE)+SUMIF('9.ПИР'!$D:$D, $D28, '9.ПИР'!M:M)+SUMIF('10.БКП'!$D:$D, $D28, '10.БКП'!M:M)+SUMIF('11.ПЗС'!$D:$D, $D28, '11.ПЗС'!N:N)+SUMIF('12.ТП_БЭФ'!$D:$D, $D28, '12.ТП_БЭФ'!AG:AG)+SUMIF('13.ТП_СЭФ'!$D:$D, $D28, '13.ТП_СЭФ'!AO:AO)+SUMIF('14.ОВИЗ'!$D:$D, $D28, '14.ОВИЗ'!AP:AP)+SUMIF('15.ГРР'!$D:$D, $D28, '15.ГРР'!M:M)+SUMIF('16.НИОКР'!$D:$D, $D28, '16.НИОКР'!M:M)+SUMIF('17.НМА'!$D:$D, $D28, '17.НМА'!N:N)+SUMIF('18.ПКЗ'!$D:$D, $D28, '18.ПКЗ'!N:N)+SUMIF('19.БФИ'!$D:$D, $D28, '19.БФИ'!N:N)) -> 0 | N28: =IF($D28="", 0, SUMIF('7.СМР'!$D:$D, $D28, '7.СМР'!N:N)+SUMIF('8.ОСС'!$D:$D, $D28, '8.ОСС'!AF:AF)+SUMIF('9.ПИР'!$D:$D, $D28, '9.ПИР'!N:N)+SUMIF('10.БКП'!$D:$D, $D28, '10.БКП'!N:N)+SUMIF('11.ПЗС'!$D:$D, $D28, '11.ПЗС'!O:O)+SUMIF('12.ТП_БЭФ'!$D:$D, $D28, '12.ТП_БЭФ'!AH:AH)+SUMIF('13.ТП_СЭФ'!$D:$D, $D28, '13.ТП_СЭФ'!AP:AP)+SUMIF('14.ОВИЗ'!$D:$D, $D28, '14.ОВИЗ'!AQ:AQ)+SUMIF('15.ГРР'!$D:$D, $D28, '15.ГРР'!N:N)+SUMIF('16.НИОКР'!$D:$D, $D28, '16.НИОКР'!N:N)+SUMIF('17.НМА'!$D:$D, $D28, '17.НМА'!O:O)+SUMIF('18.ПКЗ'!$D:$D, $D28, '18.ПКЗ'!O:O)+SUMIF('19.БФИ'!$D:$D, $D28, '19.БФИ'!O:O)) -> 0 | O28: =IF($D28="", 0, SUMIF('7.СМР'!$D:$D, $D28, '7.СМР'!O:O)+SUMIF('8.ОСС'!$D:$D, $D28, '8.ОСС'!AG:AG)+SUMIF('9.ПИР'!$D:$D, $D28, '9.ПИР'!O:O)+SUMIF('10.БКП'!$D:$D, $D28, '10.БКП'!O:O)+SUMIF('11.ПЗС'!$D:$D, $D28, '11.ПЗС'!P:P)+SUMIF('12.ТП_БЭФ'!$D:$D, $D28, '12.ТП_БЭФ'!AI:AI)+SUMIF('13.ТП_СЭФ'!$D:$D, $D28, '13.ТП_СЭФ'!AQ:AQ)+SUMIF('14.ОВИЗ'!$D:$D, $D28, '14.ОВИЗ'!AR:AR)+SUMIF('15.ГРР'!$D:$D, $D28, '15.ГРР'!O:O)+SUMIF('16.НИОКР'!$D:$D, $D28, '16.НИОКР'!O:O)+SUMIF('17.НМА'!$D:$D, $D28, '17.НМА'!P:P)+SUMIF('18.ПКЗ'!$D:$D, $D28, '18.ПКЗ'!P:P)+SUMIF('19.БФИ'!$D:$D, $D28, '19.БФИ'!P:P)) -> 0 | P28: =IF($D28="", 0, SUMIF('7.СМР'!$D:$D, $D28, '7.СМР'!P:P)+SUMIF('8.ОСС'!$D:$D, $D28, '8.ОСС'!AH:AH)+SUMIF('9.ПИР'!$D:$D, $D28, '9.ПИР'!P:P)+SUMIF('10.БКП'!$D:$D, $D28, '10.БКП'!P:P)+SUMIF('11.ПЗС'!$D:$D, $D28, '11.ПЗС'!Q:Q)+SUMIF('12.ТП_БЭФ'!$D:$D, $D28, '12.ТП_БЭФ'!AJ:AJ)+SUMIF('13.ТП_СЭФ'!$D:$D, $D28, '13.ТП_СЭФ'!AR:AR)+SUMIF('14.ОВИЗ'!$D:$D, $D28, '14.ОВИЗ'!AS:AS)+SUMIF('15.ГРР'!$D:$D, $D28, '15.ГРР'!P:P)+SUMIF('16.НИОКР'!$D:$D, $D28, '16.НИОКР'!P:P)+SUMIF('17.НМА'!$D:$D, $D28, '17.НМА'!Q:Q)+SUMIF('18.ПКЗ'!$D:$D, $D28, '18.ПКЗ'!Q:Q)+SUMIF('19.БФИ'!$D:$D, $D28, '19.БФИ'!Q:Q)) -> 0 | Q28: =IF(period=period_1Q, H28, IF(period=period_1H, SUM(H28:I28), IF(period=period_9M, SUM(H28:J28), IF(period=period_1Y,SUM(H28:K28),0)))) -> 0 | R28: =IF(period=period_1Q, M28, IF(period=period_1H, SUM(M28:N28), IF(period=period_9M, SUM(M28:O28), IF(period=period_1Y,SUM(M28:P28),0)))) -> 0 | S28: =R28-Q28 -> 0 | T28: =IFERROR(S28/Q28, 0) -> 0 | V28: =SUM(X28:Z28) -> 0 | W28: =IFERROR(V28/G28, 0) -> 0 | X28: =IF($D28="", 0, SUMIF('7.СМР'!$D:$D, $D28, '7.СМР'!X:X)+SUMIF('8.ОСС'!$D:$D, $D28, '8.ОСС'!AP:AP)+SUMIF('9.ПИР'!$D:$D, $D28, '9.ПИР'!X:X)+SUMIF('10.БКП'!$D:$D, $D28, '10.БКП'!X:X)+SUMIF('11.ПЗС'!$D:$D, $D28, '11.ПЗС'!Y:Y)+SUMIF('12.ТП_БЭФ'!$D:$D, $D28, '12.ТП_БЭФ'!AR:AR)+SUMIF('13.ТП_СЭФ'!$D:$D, $D28, '13.ТП_СЭФ'!AZ:AZ)+SUMIF('14.ОВИЗ'!$D:$D, $D28, '14.ОВИЗ'!BA:BA)+SUMIF('15.ГРР'!$D:$D, $D28, '15.ГРР'!X:X)+SUMIF('16.НИОКР'!$D:$D, $D28, '16.НИОКР'!X:X)+SUMIF('17.НМА'!$D:$D, $D28, '17.НМА'!Y:Y)+SUMIF('18.ПКЗ'!$D:$D, $D28, '18.ПКЗ'!Y:Y)+SUMIF('19.БФИ'!$D:$D, $D28, '19.БФИ'!Y:Y)) -> 0 | Y28: =IF($D28="", 0, SUMIF('7.СМР'!$D:$D, $D28, '7.СМР'!Y:Y)+SUMIF('8.ОСС'!$D:$D, $D28, '8.ОСС'!AQ:AQ)+SUMIF('9.ПИР'!$D:$D, $D28, '9.ПИР'!Y:Y)+SUMIF('10.БКП'!$D:$D, $D28, '10.БКП'!Y:Y)+SUMIF('11.ПЗС'!$D:$D, $D28, '11.ПЗС'!Z:Z)+SUMIF('12.ТП_БЭФ'!$D:$D, $D28, '12.ТП_БЭФ'!AS:AS)+SUMIF('13.ТП_СЭФ'!$D:$D, $D28, '13.ТП_СЭФ'!BA:BA)+SUMIF('14.ОВИЗ'!$D:$D, $D28, '14.ОВИЗ'!BB:BB)+SUMIF('15.ГРР'!$D:$D, $D28, '15.ГРР'!Y:Y)+SUMIF('16.НИОКР'!$D:$D, $D28, '16.НИОКР'!Y:Y)+SUMIF('17.НМА'!$D:$D, $D28, '17.НМА'!Z:Z)+SUMIF('18.ПКЗ'!$D:$D, $D28, '18.ПКЗ'!Z:Z)+SUMIF('19.БФИ'!$D:$D, $D28, '19.БФИ'!Z:Z)) -> 0 | Z28: =IF($D28="", 0, SUMIF('7.СМР'!$D:$D, $D28, '7.СМР'!Z:Z)+SUMIF('8.ОСС'!$D:$D, $D28, '8.ОСС'!AR:AR)+SUMIF('9.ПИР'!$D:$D, $D28, '9.ПИР'!Z:Z)+SUMIF('10.БКП'!$D:$D, $D28, '10.БКП'!Z:Z)+SUMIF('11.ПЗС'!$D:$D, $D28, '11.ПЗС'!AA:AA)+SUMIF('12.ТП_БЭФ'!$D:$D, $D28, '12.ТП_БЭФ'!AT:AT)+SUMIF('13.ТП_СЭФ'!$D:$D, $D28, '13.ТП_СЭФ'!BB:BB)+SUMIF('14.ОВИЗ'!$D:$D, $D28, '14.ОВИЗ'!BC:BC)+SUMIF('15.ГРР'!$D:$D, $D28, '15.ГРР'!Z:Z)+SUMIF('16.НИОКР'!$D:$D, $D28, '16.НИОКР'!Z:Z)+SUMIF('17.НМА'!$D:$D, $D28, '17.НМА'!AA:AA)+SUMIF('18.ПКЗ'!$D:$D, $D28, '18.ПКЗ'!AA:AA)+SUMIF('19.БФИ'!$D:$D, $D28, '19.БФИ'!AA:AA)) -> 0 | AA28: =IF($D28="", 0, SUMIF('7.СМР'!$D:$D, $D28, '7.СМР'!AA:AA)+SUMIF('8.ОСС'!$D:$D, $D28, '8.ОСС'!AS:AS)+SUMIF('9.ПИР'!$D:$D, $D28, '9.ПИР'!AA:AA)+SUMIF('10.БКП'!$D:$D, $D28, '10.БКП'!AA:AA)+SUMIF('11.ПЗС'!$D:$D, $D28, '11.ПЗС'!AB:AB)+SUMIF('12.ТП_БЭФ'!$D:$D, $D28, '12.ТП_БЭФ'!AU:AU)+SUMIF('13.ТП_СЭФ'!$D:$D, $D28, '13.ТП_СЭФ'!BC:BC)+SUMIF('14.ОВИЗ'!$D:$D, $D28, '14.ОВИЗ'!BD:BD)+SUMIF('15.ГРР'!$D:$D, $D28, '15.ГРР'!AA:AA)+SUMIF('16.НИОКР'!$D:$D, $D28, '16.НИОКР'!AA:AA)+SUMIF('17.НМА'!$D:$D, $D28, '17.НМА'!AB:AB)+SUMIF('18.ПКЗ'!$D:$D, $D28, '18.ПКЗ'!AB:AB)+SUMIF('19.БФИ'!$D:$D, $D28, '19.БФИ'!AB:AB)) -> 0 | AB28: =IF($D28="", 0, SUMIF('7.СМР'!$D:$D, $D28, '7.СМР'!AB:AB)+SUMIF('8.ОСС'!$D:$D, $D28, '8.ОСС'!AT:AT)+SUMIF('9.ПИР'!$D:$D, $D28, '9.ПИР'!AB:AB)+SUMIF('10.БКП'!$D:$D, $D28, '10.БКП'!AB:AB)+SUMIF('11.ПЗС'!$D:$D, $D28, '11.ПЗС'!AC:AC)+SUMIF('12.ТП_БЭФ'!$D:$D, $D28, '12.ТП_БЭФ'!AV:AV)+SUMIF('13.ТП_СЭФ'!$D:$D, $D28, '13.ТП_СЭФ'!BD:BD)+SUMIF('14.ОВИЗ'!$D:$D, $D28, '14.ОВИЗ'!BE:BE)+SUMIF('15.ГРР'!$D:$D, $D28, '15.ГРР'!AB:AB)+SUMIF('16.НИОКР'!$D:$D, $D28, '16.НИОКР'!AB:AB)+SUMIF('17.НМА'!$D:$D, $D28, '17.НМА'!AC:AC)+SUMIF('18.ПКЗ'!$D:$D, $D28, '18.ПКЗ'!AC:AC)+SUMIF('19.БФИ'!$D:$D, $D28, '19.БФИ'!AC:AC)) -> 0 | AC28: =IF($D28="", 0, SUMIF('7.СМР'!$D:$D, $D28, '7.СМР'!AC:AC)+SUMIF('8.ОСС'!$D:$D, $D28, '8.ОСС'!AU:AU)+SUMIF('9.ПИР'!$D:$D, $D28, '9.ПИР'!AC:AC)+SUMIF('10.БКП'!$D:$D, $D28, '10.БКП'!AC:AC)+SUMIF('11.ПЗС'!$D:$D, $D28, '11.ПЗС'!AD:AD)+SUMIF('12.ТП_БЭФ'!$D:$D, $D28, '12.ТП_БЭФ'!AW:AW)+SUMIF('13.ТП_СЭФ'!$D:$D, $D28, '13.ТП_СЭФ'!BE:BE)+SUMIF('14.ОВИЗ'!$D:$D, $D28, '14.ОВИЗ'!BF:BF)+SUMIF('15.ГРР'!$D:$D, $D28, '15.ГРР'!AC:AC)+SUMIF('16.НИОКР'!$D:$D, $D28, '16.НИОКР'!AC:AC)+SUMIF('17.НМА'!$D:$D, $D28, '17.НМА'!AD:AD)+SUMIF('18.ПКЗ'!$D:$D, $D28, '18.ПКЗ'!AD:AD)+SUMIF('19.БФИ'!$D:$D, $D28, '19.БФИ'!AD:AD)) -> 0 | AD28: =IF($D28="", 0, SUMIF('7.СМР'!$D:$D, $D28, '7.СМР'!AD:AD)+SUMIF('8.ОСС'!$D:$D, $D28, '8.ОСС'!AV:AV)+SUMIF('9.ПИР'!$D:$D, $D28, '9.ПИР'!AD:AD)+SUMIF('10.БКП'!$D:$D, $D28, '10.БКП'!AD:AD)+SUMIF('11.ПЗС'!$D:$D, $D28, '11.ПЗС'!AE:AE)+SUMIF('12.ТП_БЭФ'!$D:$D, $D28, '12.ТП_БЭФ'!AX:AX)+SUMIF('13.ТП_СЭФ'!$D:$D, $D28, '13.ТП_СЭФ'!BF:BF)+SUMIF('14.ОВИЗ'!$D:$D, $D28, '14.ОВИЗ'!BG:BG)+SUMIF('15.ГРР'!$D:$D, $D28, '15.ГРР'!AD:AD)+SUMIF('16.НИОКР'!$D:$D, $D28, '16.НИОКР'!AD:AD)+SUMIF('17.НМА'!$D:$D, $D28, '17.НМА'!AE:AE)+SUMIF('18.ПКЗ'!$D:$D, $D28, '18.ПКЗ'!AE:AE)+SUMIF('19.БФИ'!$D:$D, $D28, '19.БФИ'!AE:AE)) -> 0 | AE28: =IF($D28="", 0, SUMIF('7.СМР'!$D:$D, $D28, '7.СМР'!AE:AE)+SUMIF('8.ОСС'!$D:$D, $D28, '8.ОСС'!AW:AW)+SUMIF('9.ПИР'!$D:$D, $D28, '9.ПИР'!AE:AE)+SUMIF('10.БКП'!$D:$D, $D28, '10.БКП'!AE:AE)+SUMIF('11.ПЗС'!$D:$D, $D28, '11.ПЗС'!AF:AF)+SUMIF('12.ТП_БЭФ'!$D:$D, $D28, '12.ТП_БЭФ'!AY:AY)+SUMIF('13.ТП_СЭФ'!$D:$D, $D28, '13.ТП_СЭФ'!BG:BG)+SUMIF('14.ОВИЗ'!$D:$D, $D28, '14.ОВИЗ'!BH:BH)+SUMIF('15.ГРР'!$D:$D, $D28, '15.ГРР'!AE:AE)+SUMIF('16.НИОКР'!$D:$D, $D28, '16.НИОКР'!AE:AE)+SUMIF('17.НМА'!$D:$D, $D28, '17.НМА'!AF:AF)+SUMIF('18.ПКЗ'!$D:$D, $D28, '18.ПКЗ'!AF:AF)+SUMIF('19.БФИ'!$D:$D, $D28, '19.БФИ'!AF:AF)) -> 0 | AG28: 0
B29: =IF(D29="", "", '04.РИП'!A39) ->  | C29: =IF(D29="", "", '04.РИП'!D39) ->  | D29: =IF(ISBLANK('04.РИП'!B39), "", '04.РИП'!B39) ->  | E29: =IF(D29="", "", '04.РИП'!E39) ->  | F29: =IF(D29="", "", '04.РИП'!C39) ->  | G29: =IF($D29="", 0, SUMIF('7.СМР'!$D:$D, $D29, '7.СМР'!G:G)+SUMIF('8.ОСС'!$D:$D, $D29, '8.ОСС'!Y:Y)+SUMIF('9.ПИР'!$D:$D, $D29, '9.ПИР'!G:G)+SUMIF('10.БКП'!$D:$D, $D29, '10.БКП'!G:G)+SUMIF('11.ПЗС'!$D:$D, $D29, '11.ПЗС'!H:H)+SUMIF('12.ТП_БЭФ'!$D:$D, $D29, '12.ТП_БЭФ'!AA:AA)+SUMIF('13.ТП_СЭФ'!$D:$D, $D29, '13.ТП_СЭФ'!AI:AI)+SUMIF('14.ОВИЗ'!$D:$D, $D29, '14.ОВИЗ'!AJ:AJ)+SUMIF('15.ГРР'!$D:$D, $D29, '15.ГРР'!G:G)+SUMIF('16.НИОКР'!$D:$D, $D29, '16.НИОКР'!G:G)+SUMIF('17.НМА'!$D:$D, $D29, '17.НМА'!H:H)+SUMIF('18.ПКЗ'!$D:$D, $D29, '18.ПКЗ'!H:H)+SUMIF('19.БФИ'!$D:$D, $D29, '19.БФИ'!H:H)) -> 0 | H29: =IF($D29="", 0, SUMIF('7.СМР'!$D:$D, $D29, '7.СМР'!H:H)+SUMIF('8.ОСС'!$D:$D, $D29, '8.ОСС'!Z:Z)+SUMIF('9.ПИР'!$D:$D, $D29, '9.ПИР'!H:H)+SUMIF('10.БКП'!$D:$D, $D29, '10.БКП'!H:H)+SUMIF('11.ПЗС'!$D:$D, $D29, '11.ПЗС'!I:I)+SUMIF('12.ТП_БЭФ'!$D:$D, $D29, '12.ТП_БЭФ'!AB:AB)+SUMIF('13.ТП_СЭФ'!$D:$D, $D29, '13.ТП_СЭФ'!AJ:AJ)+SUMIF('14.ОВИЗ'!$D:$D, $D29, '14.ОВИЗ'!AK:AK)+SUMIF('15.ГРР'!$D:$D, $D29, '15.ГРР'!H:H)+SUMIF('16.НИОКР'!$D:$D, $D29, '16.НИОКР'!H:H)+SUMIF('17.НМА'!$D:$D, $D29, '17.НМА'!I:I)+SUMIF('18.ПКЗ'!$D:$D, $D29, '18.ПКЗ'!I:I)+SUMIF('19.БФИ'!$D:$D, $D29, '19.БФИ'!I:I)) -> 0 | I29: =IF($D29="", 0, SUMIF('7.СМР'!$D:$D, $D29, '7.СМР'!I:I)+SUMIF('8.ОСС'!$D:$D, $D29, '8.ОСС'!AA:AA)+SUMIF('9.ПИР'!$D:$D, $D29, '9.ПИР'!I:I)+SUMIF('10.БКП'!$D:$D, $D29, '10.БКП'!I:I)+SUMIF('11.ПЗС'!$D:$D, $D29, '11.ПЗС'!J:J)+SUMIF('12.ТП_БЭФ'!$D:$D, $D29, '12.ТП_БЭФ'!AC:AC)+SUMIF('13.ТП_СЭФ'!$D:$D, $D29, '13.ТП_СЭФ'!AK:AK)+SUMIF('14.ОВИЗ'!$D:$D, $D29, '14.ОВИЗ'!AL:AL)+SUMIF('15.ГРР'!$D:$D, $D29, '15.ГРР'!I:I)+SUMIF('16.НИОКР'!$D:$D, $D29, '16.НИОКР'!I:I)+SUMIF('17.НМА'!$D:$D, $D29, '17.НМА'!J:J)+SUMIF('18.ПКЗ'!$D:$D, $D29, '18.ПКЗ'!J:J)+SUMIF('19.БФИ'!$D:$D, $D29, '19.БФИ'!J:J)) -> 0 | J29: =IF($D29="", 0, SUMIF('7.СМР'!$D:$D, $D29, '7.СМР'!J:J)+SUMIF('8.ОСС'!$D:$D, $D29, '8.ОСС'!AB:AB)+SUMIF('9.ПИР'!$D:$D, $D29, '9.ПИР'!J:J)+SUMIF('10.БКП'!$D:$D, $D29, '10.БКП'!J:J)+SUMIF('11.ПЗС'!$D:$D, $D29, '11.ПЗС'!K:K)+SUMIF('12.ТП_БЭФ'!$D:$D, $D29, '12.ТП_БЭФ'!AD:AD)+SUMIF('13.ТП_СЭФ'!$D:$D, $D29, '13.ТП_СЭФ'!AL:AL)+SUMIF('14.ОВИЗ'!$D:$D, $D29, '14.ОВИЗ'!AM:AM)+SUMIF('15.ГРР'!$D:$D, $D29, '15.ГРР'!J:J)+SUMIF('16.НИОКР'!$D:$D, $D29, '16.НИОКР'!J:J)+SUMIF('17.НМА'!$D:$D, $D29, '17.НМА'!K:K)+SUMIF('18.ПКЗ'!$D:$D, $D29, '18.ПКЗ'!K:K)+SUMIF('19.БФИ'!$D:$D, $D29, '19.БФИ'!K:K)) -> 0 | K29: =IF($D29="", 0, SUMIF('7.СМР'!$D:$D, $D29, '7.СМР'!K:K)+SUMIF('8.ОСС'!$D:$D, $D29, '8.ОСС'!AC:AC)+SUMIF('9.ПИР'!$D:$D, $D29, '9.ПИР'!K:K)+SUMIF('10.БКП'!$D:$D, $D29, '10.БКП'!K:K)+SUMIF('11.ПЗС'!$D:$D, $D29, '11.ПЗС'!L:L)+SUMIF('12.ТП_БЭФ'!$D:$D, $D29, '12.ТП_БЭФ'!AE:AE)+SUMIF('13.ТП_СЭФ'!$D:$D, $D29, '13.ТП_СЭФ'!AM:AM)+SUMIF('14.ОВИЗ'!$D:$D, $D29, '14.ОВИЗ'!AN:AN)+SUMIF('15.ГРР'!$D:$D, $D29, '15.ГРР'!K:K)+SUMIF('16.НИОКР'!$D:$D, $D29, '16.НИОКР'!K:K)+SUMIF('17.НМА'!$D:$D, $D29, '17.НМА'!L:L)+SUMIF('18.ПКЗ'!$D:$D, $D29, '18.ПКЗ'!L:L)+SUMIF('19.БФИ'!$D:$D, $D29, '19.БФИ'!L:L)) -> 0 | L29: =IF($D29="", 0, SUMIF('7.СМР'!$D:$D, $D29, '7.СМР'!L:L)+SUMIF('8.ОСС'!$D:$D, $D29, '8.ОСС'!AD:AD)+SUMIF('9.ПИР'!$D:$D, $D29, '9.ПИР'!L:L)+SUMIF('10.БКП'!$D:$D, $D29, '10.БКП'!L:L)+SUMIF('11.ПЗС'!$D:$D, $D29, '11.ПЗС'!M:M)+SUMIF('12.ТП_БЭФ'!$D:$D, $D29, '12.ТП_БЭФ'!AF:AF)+SUMIF('13.ТП_СЭФ'!$D:$D, $D29, '13.ТП_СЭФ'!AN:AN)+SUMIF('14.ОВИЗ'!$D:$D, $D29, '14.ОВИЗ'!AO:AO)+SUMIF('15.ГРР'!$D:$D, $D29, '15.ГРР'!L:L)+SUMIF('16.НИОКР'!$D:$D, $D29, '16.НИОКР'!L:L)+SUMIF('17.НМА'!$D:$D, $D29, '17.НМА'!M:M)+SUMIF('18.ПКЗ'!$D:$D, $D29, '18.ПКЗ'!M:M)+SUMIF('19.БФИ'!$D:$D, $D29, '19.БФИ'!M:M)) -> 0 | M29: =IF($D29="", 0, SUMIF('7.СМР'!$D:$D, $D29, '7.СМР'!M:M)+SUMIF('8.ОСС'!$D:$D, $D29, '8.ОСС'!AE:AE)+SUMIF('9.ПИР'!$D:$D, $D29, '9.ПИР'!M:M)+SUMIF('10.БКП'!$D:$D, $D29, '10.БКП'!M:M)+SUMIF('11.ПЗС'!$D:$D, $D29, '11.ПЗС'!N:N)+SUMIF('12.ТП_БЭФ'!$D:$D, $D29, '12.ТП_БЭФ'!AG:AG)+SUMIF('13.ТП_СЭФ'!$D:$D, $D29, '13.ТП_СЭФ'!AO:AO)+SUMIF('14.ОВИЗ'!$D:$D, $D29, '14.ОВИЗ'!AP:AP)+SUMIF('15.ГРР'!$D:$D, $D29, '15.ГРР'!M:M)+SUMIF('16.НИОКР'!$D:$D, $D29, '16.НИОКР'!M:M)+SUMIF('17.НМА'!$D:$D, $D29, '17.НМА'!N:N)+SUMIF('18.ПКЗ'!$D:$D, $D29, '18.ПКЗ'!N:N)+SUMIF('19.БФИ'!$D:$D, $D29, '19.БФИ'!N:N)) -> 0 | N29: =IF($D29="", 0, SUMIF('7.СМР'!$D:$D, $D29, '7.СМР'!N:N)+SUMIF('8.ОСС'!$D:$D, $D29, '8.ОСС'!AF:AF)+SUMIF('9.ПИР'!$D:$D, $D29, '9.ПИР'!N:N)+SUMIF('10.БКП'!$D:$D, $D29, '10.БКП'!N:N)+SUMIF('11.ПЗС'!$D:$D, $D29, '11.ПЗС'!O:O)+SUMIF('12.ТП_БЭФ'!$D:$D, $D29, '12.ТП_БЭФ'!AH:AH)+SUMIF('13.ТП_СЭФ'!$D:$D, $D29, '13.ТП_СЭФ'!AP:AP)+SUMIF('14.ОВИЗ'!$D:$D, $D29, '14.ОВИЗ'!AQ:AQ)+SUMIF('15.ГРР'!$D:$D, $D29, '15.ГРР'!N:N)+SUMIF('16.НИОКР'!$D:$D, $D29, '16.НИОКР'!N:N)+SUMIF('17.НМА'!$D:$D, $D29, '17.НМА'!O:O)+SUMIF('18.ПКЗ'!$D:$D, $D29, '18.ПКЗ'!O:O)+SUMIF('19.БФИ'!$D:$D, $D29, '19.БФИ'!O:O)) -> 0 | O29: =IF($D29="", 0, SUMIF('7.СМР'!$D:$D, $D29, '7.СМР'!O:O)+SUMIF('8.ОСС'!$D:$D, $D29, '8.ОСС'!AG:AG)+SUMIF('9.ПИР'!$D:$D, $D29, '9.ПИР'!O:O)+SUMIF('10.БКП'!$D:$D, $D29, '10.БКП'!O:O)+SUMIF('11.ПЗС'!$D:$D, $D29, '11.ПЗС'!P:P)+SUMIF('12.ТП_БЭФ'!$D:$D, $D29, '12.ТП_БЭФ'!AI:AI)+SUMIF('13.ТП_СЭФ'!$D:$D, $D29, '13.ТП_СЭФ'!AQ:AQ)+SUMIF('14.ОВИЗ'!$D:$D, $D29, '14.ОВИЗ'!AR:AR)+SUMIF('15.ГРР'!$D:$D, $D29, '15.ГРР'!O:O)+SUMIF('16.НИОКР'!$D:$D, $D29, '16.НИОКР'!O:O)+SUMIF('17.НМА'!$D:$D, $D29, '17.НМА'!P:P)+SUMIF('18.ПКЗ'!$D:$D, $D29, '18.ПКЗ'!P:P)+SUMIF('19.БФИ'!$D:$D, $D29, '19.БФИ'!P:P)) -> 0 | P29: =IF($D29="", 0, SUMIF('7.СМР'!$D:$D, $D29, '7.СМР'!P:P)+SUMIF('8.ОСС'!$D:$D, $D29, '8.ОСС'!AH:AH)+SUMIF('9.ПИР'!$D:$D, $D29, '9.ПИР'!P:P)+SUMIF('10.БКП'!$D:$D, $D29, '10.БКП'!P:P)+SUMIF('11.ПЗС'!$D:$D, $D29, '11.ПЗС'!Q:Q)+SUMIF('12.ТП_БЭФ'!$D:$D, $D29, '12.ТП_БЭФ'!AJ:AJ)+SUMIF('13.ТП_СЭФ'!$D:$D, $D29, '13.ТП_СЭФ'!AR:AR)+SUMIF('14.ОВИЗ'!$D:$D, $D29, '14.ОВИЗ'!AS:AS)+SUMIF('15.ГРР'!$D:$D, $D29, '15.ГРР'!P:P)+SUMIF('16.НИОКР'!$D:$D, $D29, '16.НИОКР'!P:P)+SUMIF('17.НМА'!$D:$D, $D29, '17.НМА'!Q:Q)+SUMIF('18.ПКЗ'!$D:$D, $D29, '18.ПКЗ'!Q:Q)+SUMIF('19.БФИ'!$D:$D, $D29, '19.БФИ'!Q:Q)) -> 0 | Q29: 0 | R29: 0 | S29: 0 | T29: 0 | V29: 0 | W29: 0 | X29: =IF($D29="", 0, SUMIF('7.СМР'!$D:$D, $D29, '7.СМР'!X:X)+SUMIF('8.ОСС'!$D:$D, $D29, '8.ОСС'!AP:AP)+SUMIF('9.ПИР'!$D:$D, $D29, '9.ПИР'!X:X)+SUMIF('10.БКП'!$D:$D, $D29, '10.БКП'!X:X)+SUMIF('11.ПЗС'!$D:$D, $D29, '11.ПЗС'!Y:Y)+SUMIF('12.ТП_БЭФ'!$D:$D, $D29, '12.ТП_БЭФ'!AR:AR)+SUMIF('13.ТП_СЭФ'!$D:$D, $D29, '13.ТП_СЭФ'!AZ:AZ)+SUMIF('14.ОВИЗ'!$D:$D, $D29, '14.ОВИЗ'!BA:BA)+SUMIF('15.ГРР'!$D:$D, $D29, '15.ГРР'!X:X)+SUMIF('16.НИОКР'!$D:$D, $D29, '16.НИОКР'!X:X)+SUMIF('17.НМА'!$D:$D, $D29, '17.НМА'!Y:Y)+SUMIF('18.ПКЗ'!$D:$D, $D29, '18.ПКЗ'!Y:Y)+SUMIF('19.БФИ'!$D:$D, $D29, '19.БФИ'!Y:Y)) -> 0 | Y29: =IF($D29="", 0, SUMIF('7.СМР'!$D:$D, $D29, '7.СМР'!Y:Y)+SUMIF('8.ОСС'!$D:$D, $D29, '8.ОСС'!AQ:AQ)+SUMIF('9.ПИР'!$D:$D, $D29, '9.ПИР'!Y:Y)+SUMIF('10.БКП'!$D:$D, $D29, '10.БКП'!Y:Y)+SUMIF('11.ПЗС'!$D:$D, $D29, '11.ПЗС'!Z:Z)+SUMIF('12.ТП_БЭФ'!$D:$D, $D29, '12.ТП_БЭФ'!AS:AS)+SUMIF('13.ТП_СЭФ'!$D:$D, $D29, '13.ТП_СЭФ'!BA:BA)+SUMIF('14.ОВИЗ'!$D:$D, $D29, '14.ОВИЗ'!BB:BB)+SUMIF('15.ГРР'!$D:$D, $D29, '15.ГРР'!Y:Y)+SUMIF('16.НИОКР'!$D:$D, $D29, '16.НИОКР'!Y:Y)+SUMIF('17.НМА'!$D:$D, $D29, '17.НМА'!Z:Z)+SUMIF('18.ПКЗ'!$D:$D, $D29, '18.ПКЗ'!Z:Z)+SUMIF('19.БФИ'!$D:$D, $D29, '19.БФИ'!Z:Z)) -> 0 | Z29: =IF($D29="", 0, SUMIF('7.СМР'!$D:$D, $D29, '7.СМР'!Z:Z)+SUMIF('8.ОСС'!$D:$D, $D29, '8.ОСС'!AR:AR)+SUMIF('9.ПИР'!$D:$D, $D29, '9.ПИР'!Z:Z)+SUMIF('10.БКП'!$D:$D, $D29, '10.БКП'!Z:Z)+SUMIF('11.ПЗС'!$D:$D, $D29, '11.ПЗС'!AA:AA)+SUMIF('12.ТП_БЭФ'!$D:$D, $D29, '12.ТП_БЭФ'!AT:AT)+SUMIF('13.ТП_СЭФ'!$D:$D, $D29, '13.ТП_СЭФ'!BB:BB)+SUMIF('14.ОВИЗ'!$D:$D, $D29, '14.ОВИЗ'!BC:BC)+SUMIF('15.ГРР'!$D:$D, $D29, '15.ГРР'!Z:Z)+SUMIF('16.НИОКР'!$D:$D, $D29, '16.НИОКР'!Z:Z)+SUMIF('17.НМА'!$D:$D, $D29, '17.НМА'!AA:AA)+SUMIF('18.ПКЗ'!$D:$D, $D29, '18.ПКЗ'!AA:AA)+SUMIF('19.БФИ'!$D:$D, $D29, '19.БФИ'!AA:AA)) -> 0 | AA29: =IF($D29="", 0, SUMIF('7.СМР'!$D:$D, $D29, '7.СМР'!AA:AA)+SUMIF('8.ОСС'!$D:$D, $D29, '8.ОСС'!AS:AS)+SUMIF('9.ПИР'!$D:$D, $D29, '9.ПИР'!AA:AA)+SUMIF('10.БКП'!$D:$D, $D29, '10.БКП'!AA:AA)+SUMIF('11.ПЗС'!$D:$D, $D29, '11.ПЗС'!AB:AB)+SUMIF('12.ТП_БЭФ'!$D:$D, $D29, '12.ТП_БЭФ'!AU:AU)+SUMIF('13.ТП_СЭФ'!$D:$D, $D29, '13.ТП_СЭФ'!BC:BC)+SUMIF('14.ОВИЗ'!$D:$D, $D29, '14.ОВИЗ'!BD:BD)+SUMIF('15.ГРР'!$D:$D, $D29, '15.ГРР'!AA:AA)+SUMIF('16.НИОКР'!$D:$D, $D29, '16.НИОКР'!AA:AA)+SUMIF('17.НМА'!$D:$D, $D29, '17.НМА'!AB:AB)+SUMIF('18.ПКЗ'!$D:$D, $D29, '18.ПКЗ'!AB:AB)+SUMIF('19.БФИ'!$D:$D, $D29, '19.БФИ'!AB:AB)) -> 0 | AB29: =IF($D29="", 0, SUMIF('7.СМР'!$D:$D, $D29, '7.СМР'!AB:AB)+SUMIF('8.ОСС'!$D:$D, $D29, '8.ОСС'!AT:AT)+SUMIF('9.ПИР'!$D:$D, $D29, '9.ПИР'!AB:AB)+SUMIF('10.БКП'!$D:$D, $D29, '10.БКП'!AB:AB)+SUMIF('11.ПЗС'!$D:$D, $D29, '11.ПЗС'!AC:AC)+SUMIF('12.ТП_БЭФ'!$D:$D, $D29, '12.ТП_БЭФ'!AV:AV)+SUMIF('13.ТП_СЭФ'!$D:$D, $D29, '13.ТП_СЭФ'!BD:BD)+SUMIF('14.ОВИЗ'!$D:$D, $D29, '14.ОВИЗ'!BE:BE)+SUMIF('15.ГРР'!$D:$D, $D29, '15.ГРР'!AB:AB)+SUMIF('16.НИОКР'!$D:$D, $D29, '16.НИОКР'!AB:AB)+SUMIF('17.НМА'!$D:$D, $D29, '17.НМА'!AC:AC)+SUMIF('18.ПКЗ'!$D:$D, $D29, '18.ПКЗ'!AC:AC)+SUMIF('19.БФИ'!$D:$D, $D29, '19.БФИ'!AC:AC)) -> 0 | AC29: =IF($D29="", 0, SUMIF('7.СМР'!$D:$D, $D29, '7.СМР'!AC:AC)+SUMIF('8.ОСС'!$D:$D, $D29, '8.ОСС'!AU:AU)+SUMIF('9.ПИР'!$D:$D, $D29, '9.ПИР'!AC:AC)+SUMIF('10.БКП'!$D:$D, $D29, '10.БКП'!AC:AC)+SUMIF('11.ПЗС'!$D:$D, $D29, '11.ПЗС'!AD:AD)+SUMIF('12.ТП_БЭФ'!$D:$D, $D29, '12.ТП_БЭФ'!AW:AW)+SUMIF('13.ТП_СЭФ'!$D:$D, $D29, '13.ТП_СЭФ'!BE:BE)+SUMIF('14.ОВИЗ'!$D:$D, $D29, '14.ОВИЗ'!BF:BF)+SUMIF('15.ГРР'!$D:$D, $D29, '15.ГРР'!AC:AC)+SUMIF('16.НИОКР'!$D:$D, $D29, '16.НИОКР'!AC:AC)+SUMIF('17.НМА'!$D:$D, $D29, '17.НМА'!AD:AD)+SUMIF('18.ПКЗ'!$D:$D, $D29, '18.ПКЗ'!AD:AD)+SUMIF('19.БФИ'!$D:$D, $D29, '19.БФИ'!AD:AD)) -> 0 | AD29: =IF($D29="", 0, SUMIF('7.СМР'!$D:$D, $D29, '7.СМР'!AD:AD)+SUMIF('8.ОСС'!$D:$D, $D29, '8.ОСС'!AV:AV)+SUMIF('9.ПИР'!$D:$D, $D29, '9.ПИР'!AD:AD)+SUMIF('10.БКП'!$D:$D, $D29, '10.БКП'!AD:AD)+SUMIF('11.ПЗС'!$D:$D, $D29, '11.ПЗС'!AE:AE)+SUMIF('12.ТП_БЭФ'!$D:$D, $D29, '12.ТП_БЭФ'!AX:AX)+SUMIF('13.ТП_СЭФ'!$D:$D, $D29, '13.ТП_СЭФ'!BF:BF)+SUMIF('14.ОВИЗ'!$D:$D, $D29, '14.ОВИЗ'!BG:BG)+SUMIF('15.ГРР'!$D:$D, $D29, '15.ГРР'!AD:AD)+SUMIF('16.НИОКР'!$D:$D, $D29, '16.НИОКР'!AD:AD)+SUMIF('17.НМА'!$D:$D, $D29, '17.НМА'!AE:AE)+SUMIF('18.ПКЗ'!$D:$D, $D29, '18.ПКЗ'!AE:AE)+SUMIF('19.БФИ'!$D:$D, $D29, '19.БФИ'!AE:AE)) -> 0 | AE29: =IF($D29="", 0, SUMIF('7.СМР'!$D:$D, $D29, '7.СМР'!AE:AE)+SUMIF('8.ОСС'!$D:$D, $D29, '8.ОСС'!AW:AW)+SUMIF('9.ПИР'!$D:$D, $D29, '9.ПИР'!AE:AE)+SUMIF('10.БКП'!$D:$D, $D29, '10.БКП'!AE:AE)+SUMIF('11.ПЗС'!$D:$D, $D29, '11.ПЗС'!AF:AF)+SUMIF('12.ТП_БЭФ'!$D:$D, $D29, '12.ТП_БЭФ'!AY:AY)+SUMIF('13.ТП_СЭФ'!$D:$D, $D29, '13.ТП_СЭФ'!BG:BG)+SUMIF('14.ОВИЗ'!$D:$D, $D29, '14.ОВИЗ'!BH:BH)+SUMIF('15.ГРР'!$D:$D, $D29, '15.ГРР'!AE:AE)+SUMIF('16.НИОКР'!$D:$D, $D29, '16.НИОКР'!AE:AE)+SUMIF('17.НМА'!$D:$D, $D29, '17.НМА'!AF:AF)+SUMIF('18.ПКЗ'!$D:$D, $D29, '18.ПКЗ'!AF:AF)+SUMIF('19.БФИ'!$D:$D, $D29, '19.БФИ'!AF:AF)) -> 0 | AG29: 0
B30: =IF(D30="", "", '04.РИП'!A40) ->  | C30: =IF(D30="", "", '04.РИП'!D40) ->  | D30: =IF(ISBLANK('04.РИП'!B40), "", '04.РИП'!B40) ->  | E30: =IF(D30="", "", '04.РИП'!E40) ->  | F30: =IF(D30="", "", '04.РИП'!D40) ->  | G30: =IF($D30="", 0, SUMIF('7.СМР'!$D:$D, $D30, '7.СМР'!G:G)+SUMIF('8.ОСС'!$D:$D, $D30, '8.ОСС'!Y:Y)+SUMIF('9.ПИР'!$D:$D, $D30, '9.ПИР'!G:G)+SUMIF('10.БКП'!$D:$D, $D30, '10.БКП'!G:G)+SUMIF('11.ПЗС'!$D:$D, $D30, '11.ПЗС'!H:H)+SUMIF('12.ТП_БЭФ'!$D:$D, $D30, '12.ТП_БЭФ'!AA:AA)+SUMIF('13.ТП_СЭФ'!$D:$D, $D30, '13.ТП_СЭФ'!AI:AI)+SUMIF('14.ОВИЗ'!$D:$D, $D30, '14.ОВИЗ'!AJ:AJ)+SUMIF('15.ГРР'!$D:$D, $D30, '15.ГРР'!G:G)+SUMIF('16.НИОКР'!$D:$D, $D30, '16.НИОКР'!G:G)+SUMIF('17.НМА'!$D:$D, $D30, '17.НМА'!H:H)+SUMIF('18.ПКЗ'!$D:$D, $D30, '18.ПКЗ'!H:H)+SUMIF('19.БФИ'!$D:$D, $D30, '19.БФИ'!H:H)) -> 0 | H30: =IF($D30="", 0, SUMIF('7.СМР'!$D:$D, $D30, '7.СМР'!H:H)+SUMIF('8.ОСС'!$D:$D, $D30, '8.ОСС'!Z:Z)+SUMIF('9.ПИР'!$D:$D, $D30, '9.ПИР'!H:H)+SUMIF('10.БКП'!$D:$D, $D30, '10.БКП'!H:H)+SUMIF('11.ПЗС'!$D:$D, $D30, '11.ПЗС'!I:I)+SUMIF('12.ТП_БЭФ'!$D:$D, $D30, '12.ТП_БЭФ'!AB:AB)+SUMIF('13.ТП_СЭФ'!$D:$D, $D30, '13.ТП_СЭФ'!AJ:AJ)+SUMIF('14.ОВИЗ'!$D:$D, $D30, '14.ОВИЗ'!AK:AK)+SUMIF('15.ГРР'!$D:$D, $D30, '15.ГРР'!H:H)+SUMIF('16.НИОКР'!$D:$D, $D30, '16.НИОКР'!H:H)+SUMIF('17.НМА'!$D:$D, $D30, '17.НМА'!I:I)+SUMIF('18.ПКЗ'!$D:$D, $D30, '18.ПКЗ'!I:I)+SUMIF('19.БФИ'!$D:$D, $D30, '19.БФИ'!I:I)) -> 0 | I30: =IF($D30="", 0, SUMIF('7.СМР'!$D:$D, $D30, '7.СМР'!I:I)+SUMIF('8.ОСС'!$D:$D, $D30, '8.ОСС'!AA:AA)+SUMIF('9.ПИР'!$D:$D, $D30, '9.ПИР'!I:I)+SUMIF('10.БКП'!$D:$D, $D30, '10.БКП'!I:I)+SUMIF('11.ПЗС'!$D:$D, $D30, '11.ПЗС'!J:J)+SUMIF('12.ТП_БЭФ'!$D:$D, $D30, '12.ТП_БЭФ'!AC:AC)+SUMIF('13.ТП_СЭФ'!$D:$D, $D30, '13.ТП_СЭФ'!AK:AK)+SUMIF('14.ОВИЗ'!$D:$D, $D30, '14.ОВИЗ'!AL:AL)+SUMIF('15.ГРР'!$D:$D, $D30, '15.ГРР'!I:I)+SUMIF('16.НИОКР'!$D:$D, $D30, '16.НИОКР'!I:I)+SUMIF('17.НМА'!$D:$D, $D30, '17.НМА'!J:J)+SUMIF('18.ПКЗ'!$D:$D, $D30, '18.ПКЗ'!J:J)+SUMIF('19.БФИ'!$D:$D, $D30, '19.БФИ'!J:J)) -> 0 | J30: =IF($D30="", 0, SUMIF('7.СМР'!$D:$D, $D30, '7.СМР'!J:J)+SUMIF('8.ОСС'!$D:$D, $D30, '8.ОСС'!AB:AB)+SUMIF('9.ПИР'!$D:$D, $D30, '9.ПИР'!J:J)+SUMIF('10.БКП'!$D:$D, $D30, '10.БКП'!J:J)+SUMIF('11.ПЗС'!$D:$D, $D30, '11.ПЗС'!K:K)+SUMIF('12.ТП_БЭФ'!$D:$D, $D30, '12.ТП_БЭФ'!AD:AD)+SUMIF('13.ТП_СЭФ'!$D:$D, $D30, '13.ТП_СЭФ'!AL:AL)+SUMIF('14.ОВИЗ'!$D:$D, $D30, '14.ОВИЗ'!AM:AM)+SUMIF('15.ГРР'!$D:$D, $D30, '15.ГРР'!J:J)+SUMIF('16.НИОКР'!$D:$D, $D30, '16.НИОКР'!J:J)+SUMIF('17.НМА'!$D:$D, $D30, '17.НМА'!K:K)+SUMIF('18.ПКЗ'!$D:$D, $D30, '18.ПКЗ'!K:K)+SUMIF('19.БФИ'!$D:$D, $D30, '19.БФИ'!K:K)) -> 0 | K30: =IF($D30="", 0, SUMIF('7.СМР'!$D:$D, $D30, '7.СМР'!K:K)+SUMIF('8.ОСС'!$D:$D, $D30, '8.ОСС'!AC:AC)+SUMIF('9.ПИР'!$D:$D, $D30, '9.ПИР'!K:K)+SUMIF('10.БКП'!$D:$D, $D30, '10.БКП'!K:K)+SUMIF('11.ПЗС'!$D:$D, $D30, '11.ПЗС'!L:L)+SUMIF('12.ТП_БЭФ'!$D:$D, $D30, '12.ТП_БЭФ'!AE:AE)+SUMIF('13.ТП_СЭФ'!$D:$D, $D30, '13.ТП_СЭФ'!AM:AM)+SUMIF('14.ОВИЗ'!$D:$D, $D30, '14.ОВИЗ'!AN:AN)+SUMIF('15.ГРР'!$D:$D, $D30, '15.ГРР'!K:K)+SUMIF('16.НИОКР'!$D:$D, $D30, '16.НИОКР'!K:K)+SUMIF('17.НМА'!$D:$D, $D30, '17.НМА'!L:L)+SUMIF('18.ПКЗ'!$D:$D, $D30, '18.ПКЗ'!L:L)+SUMIF('19.БФИ'!$D:$D, $D30, '19.БФИ'!L:L)) -> 0 | L30: =IF($D30="", 0, SUMIF('7.СМР'!$D:$D, $D30, '7.СМР'!L:L)+SUMIF('8.ОСС'!$D:$D, $D30, '8.ОСС'!AD:AD)+SUMIF('9.ПИР'!$D:$D, $D30, '9.ПИР'!L:L)+SUMIF('10.БКП'!$D:$D, $D30, '10.БКП'!L:L)+SUMIF('11.ПЗС'!$D:$D, $D30, '11.ПЗС'!M:M)+SUMIF('12.ТП_БЭФ'!$D:$D, $D30, '12.ТП_БЭФ'!AF:AF)+SUMIF('13.ТП_СЭФ'!$D:$D, $D30, '13.ТП_СЭФ'!AN:AN)+SUMIF('14.ОВИЗ'!$D:$D, $D30, '14.ОВИЗ'!AO:AO)+SUMIF('15.ГРР'!$D:$D, $D30, '15.ГРР'!L:L)+SUMIF('16.НИОКР'!$D:$D, $D30, '16.НИОКР'!L:L)+SUMIF('17.НМА'!$D:$D, $D30, '17.НМА'!M:M)+SUMIF('18.ПКЗ'!$D:$D, $D30, '18.ПКЗ'!M:M)+SUMIF('19.БФИ'!$D:$D, $D30, '19.БФИ'!M:M)) -> 0 | M30: =IF($D30="", 0, SUMIF('7.СМР'!$D:$D, $D30, '7.СМР'!M:M)+SUMIF('8.ОСС'!$D:$D, $D30, '8.ОСС'!AE:AE)+SUMIF('9.ПИР'!$D:$D, $D30, '9.ПИР'!M:M)+SUMIF('10.БКП'!$D:$D, $D30, '10.БКП'!M:M)+SUMIF('11.ПЗС'!$D:$D, $D30, '11.ПЗС'!N:N)+SUMIF('12.ТП_БЭФ'!$D:$D, $D30, '12.ТП_БЭФ'!AG:AG)+SUMIF('13.ТП_СЭФ'!$D:$D, $D30, '13.ТП_СЭФ'!AO:AO)+SUMIF('14.ОВИЗ'!$D:$D, $D30, '14.ОВИЗ'!AP:AP)+SUMIF('15.ГРР'!$D:$D, $D30, '15.ГРР'!M:M)+SUMIF('16.НИОКР'!$D:$D, $D30, '16.НИОКР'!M:M)+SUMIF('17.НМА'!$D:$D, $D30, '17.НМА'!N:N)+SUMIF('18.ПКЗ'!$D:$D, $D30, '18.ПКЗ'!N:N)+SUMIF('19.БФИ'!$D:$D, $D30, '19.БФИ'!N:N)) -> 0 | N30: =IF($D30="", 0, SUMIF('7.СМР'!$D:$D, $D30, '7.СМР'!N:N)+SUMIF('8.ОСС'!$D:$D, $D30, '8.ОСС'!AF:AF)+SUMIF('9.ПИР'!$D:$D, $D30, '9.ПИР'!N:N)+SUMIF('10.БКП'!$D:$D, $D30, '10.БКП'!N:N)+SUMIF('11.ПЗС'!$D:$D, $D30, '11.ПЗС'!O:O)+SUMIF('12.ТП_БЭФ'!$D:$D, $D30, '12.ТП_БЭФ'!AH:AH)+SUMIF('13.ТП_СЭФ'!$D:$D, $D30, '13.ТП_СЭФ'!AP:AP)+SUMIF('14.ОВИЗ'!$D:$D, $D30, '14.ОВИЗ'!AQ:AQ)+SUMIF('15.ГРР'!$D:$D, $D30, '15.ГРР'!N:N)+SUMIF('16.НИОКР'!$D:$D, $D30, '16.НИОКР'!N:N)+SUMIF('17.НМА'!$D:$D, $D30, '17.НМА'!O:O)+SUMIF('18.ПКЗ'!$D:$D, $D30, '18.ПКЗ'!O:O)+SUMIF('19.БФИ'!$D:$D, $D30, '19.БФИ'!O:O)) -> 0 | O30: =IF($D30="", 0, SUMIF('7.СМР'!$D:$D, $D30, '7.СМР'!O:O)+SUMIF('8.ОСС'!$D:$D, $D30, '8.ОСС'!AG:AG)+SUMIF('9.ПИР'!$D:$D, $D30, '9.ПИР'!O:O)+SUMIF('10.БКП'!$D:$D, $D30, '10.БКП'!O:O)+SUMIF('11.ПЗС'!$D:$D, $D30, '11.ПЗС'!P:P)+SUMIF('12.ТП_БЭФ'!$D:$D, $D30, '12.ТП_БЭФ'!AI:AI)+SUMIF('13.ТП_СЭФ'!$D:$D, $D30, '13.ТП_СЭФ'!AQ:AQ)+SUMIF('14.ОВИЗ'!$D:$D, $D30, '14.ОВИЗ'!AR:AR)+SUMIF('15.ГРР'!$D:$D, $D30, '15.ГРР'!O:O)+SUMIF('16.НИОКР'!$D:$D, $D30, '16.НИОКР'!O:O)+SUMIF('17.НМА'!$D:$D, $D30, '17.НМА'!P:P)+SUMIF('18.ПКЗ'!$D:$D, $D30, '18.ПКЗ'!P:P)+SUMIF('19.БФИ'!$D:$D, $D30, '19.БФИ'!P:P)) -> 0 | P30: =IF($D30="", 0, SUMIF('7.СМР'!$D:$D, $D30, '7.СМР'!P:P)+SUMIF('8.ОСС'!$D:$D, $D30, '8.ОСС'!AH:AH)+SUMIF('9.ПИР'!$D:$D, $D30, '9.ПИР'!P:P)+SUMIF('10.БКП'!$D:$D, $D30, '10.БКП'!P:P)+SUMIF('11.ПЗС'!$D:$D, $D30, '11.ПЗС'!Q:Q)+SUMIF('12.ТП_БЭФ'!$D:$D, $D30, '12.ТП_БЭФ'!AJ:AJ)+SUMIF('13.ТП_СЭФ'!$D:$D, $D30, '13.ТП_СЭФ'!AR:AR)+SUMIF('14.ОВИЗ'!$D:$D, $D30, '14.ОВИЗ'!AS:AS)+SUMIF('15.ГРР'!$D:$D, $D30, '15.ГРР'!P:P)+SUMIF('16.НИОКР'!$D:$D, $D30, '16.НИОКР'!P:P)+SUMIF('17.НМА'!$D:$D, $D30, '17.НМА'!Q:Q)+SUMIF('18.ПКЗ'!$D:$D, $D30, '18.ПКЗ'!Q:Q)+SUMIF('19.БФИ'!$D:$D, $D30, '19.БФИ'!Q:Q)) -> 0 | Q30: 0 | R30: 0 | S30: 0 | T30: 0 | V30: 0 | W30: 0 | X30: =IF($D30="", 0, SUMIF('7.СМР'!$D:$D, $D30, '7.СМР'!X:X)+SUMIF('8.ОСС'!$D:$D, $D30, '8.ОСС'!AP:AP)+SUMIF('9.ПИР'!$D:$D, $D30, '9.ПИР'!X:X)+SUMIF('10.БКП'!$D:$D, $D30, '10.БКП'!X:X)+SUMIF('11.ПЗС'!$D:$D, $D30, '11.ПЗС'!Y:Y)+SUMIF('12.ТП_БЭФ'!$D:$D, $D30, '12.ТП_БЭФ'!AR:AR)+SUMIF('13.ТП_СЭФ'!$D:$D, $D30, '13.ТП_СЭФ'!AZ:AZ)+SUMIF('14.ОВИЗ'!$D:$D, $D30, '14.ОВИЗ'!BA:BA)+SUMIF('15.ГРР'!$D:$D, $D30, '15.ГРР'!X:X)+SUMIF('16.НИОКР'!$D:$D, $D30, '16.НИОКР'!X:X)+SUMIF('17.НМА'!$D:$D, $D30, '17.НМА'!Y:Y)+SUMIF('18.ПКЗ'!$D:$D, $D30, '18.ПКЗ'!Y:Y)+SUMIF('19.БФИ'!$D:$D, $D30, '19.БФИ'!Y:Y)) -> 0 | Y30: =IF($D30="", 0, SUMIF('7.СМР'!$D:$D, $D30, '7.СМР'!Y:Y)+SUMIF('8.ОСС'!$D:$D, $D30, '8.ОСС'!AQ:AQ)+SUMIF('9.ПИР'!$D:$D, $D30, '9.ПИР'!Y:Y)+SUMIF('10.БКП'!$D:$D, $D30, '10.БКП'!Y:Y)+SUMIF('11.ПЗС'!$D:$D, $D30, '11.ПЗС'!Z:Z)+SUMIF('12.ТП_БЭФ'!$D:$D, $D30, '12.ТП_БЭФ'!AS:AS)+SUMIF('13.ТП_СЭФ'!$D:$D, $D30, '13.ТП_СЭФ'!BA:BA)+SUMIF('14.ОВИЗ'!$D:$D, $D30, '14.ОВИЗ'!BB:BB)+SUMIF('15.ГРР'!$D:$D, $D30, '15.ГРР'!Y:Y)+SUMIF('16.НИОКР'!$D:$D, $D30, '16.НИОКР'!Y:Y)+SUMIF('17.НМА'!$D:$D, $D30, '17.НМА'!Z:Z)+SUMIF('18.ПКЗ'!$D:$D, $D30, '18.ПКЗ'!Z:Z)+SUMIF('19.БФИ'!$D:$D, $D30, '19.БФИ'!Z:Z)) -> 0 | Z30: =IF($D30="", 0, SUMIF('7.СМР'!$D:$D, $D30, '7.СМР'!Z:Z)+SUMIF('8.ОСС'!$D:$D, $D30, '8.ОСС'!AR:AR)+SUMIF('9.ПИР'!$D:$D, $D30, '9.ПИР'!Z:Z)+SUMIF('10.БКП'!$D:$D, $D30, '10.БКП'!Z:Z)+SUMIF('11.ПЗС'!$D:$D, $D30, '11.ПЗС'!AA:AA)+SUMIF('12.ТП_БЭФ'!$D:$D, $D30, '12.ТП_БЭФ'!AT:AT)+SUMIF('13.ТП_СЭФ'!$D:$D, $D30, '13.ТП_СЭФ'!BB:BB)+SUMIF('14.ОВИЗ'!$D:$D, $D30, '14.ОВИЗ'!BC:BC)+SUMIF('15.ГРР'!$D:$D, $D30, '15.ГРР'!Z:Z)+SUMIF('16.НИОКР'!$D:$D, $D30, '16.НИОКР'!Z:Z)+SUMIF('17.НМА'!$D:$D, $D30, '17.НМА'!AA:AA)+SUMIF('18.ПКЗ'!$D:$D, $D30, '18.ПКЗ'!AA:AA)+SUMIF('19.БФИ'!$D:$D, $D30, '19.БФИ'!AA:AA)) -> 0 | AA30: =IF($D30="", 0, SUMIF('7.СМР'!$D:$D, $D30, '7.СМР'!AA:AA)+SUMIF('8.ОСС'!$D:$D, $D30, '8.ОСС'!AS:AS)+SUMIF('9.ПИР'!$D:$D, $D30, '9.ПИР'!AA:AA)+SUMIF('10.БКП'!$D:$D, $D30, '10.БКП'!AA:AA)+SUMIF('11.ПЗС'!$D:$D, $D30, '11.ПЗС'!AB:AB)+SUMIF('12.ТП_БЭФ'!$D:$D, $D30, '12.ТП_БЭФ'!AU:AU)+SUMIF('13.ТП_СЭФ'!$D:$D, $D30, '13.ТП_СЭФ'!BC:BC)+SUMIF('14.ОВИЗ'!$D:$D, $D30, '14.ОВИЗ'!BD:BD)+SUMIF('15.ГРР'!$D:$D, $D30, '15.ГРР'!AA:AA)+SUMIF('16.НИОКР'!$D:$D, $D30, '16.НИОКР'!AA:AA)+SUMIF('17.НМА'!$D:$D, $D30, '17.НМА'!AB:AB)+SUMIF('18.ПКЗ'!$D:$D, $D30, '18.ПКЗ'!AB:AB)+SUMIF('19.БФИ'!$D:$D, $D30, '19.БФИ'!AB:AB)) -> 0 | AB30: =IF($D30="", 0, SUMIF('7.СМР'!$D:$D, $D30, '7.СМР'!AB:AB)+SUMIF('8.ОСС'!$D:$D, $D30, '8.ОСС'!AT:AT)+SUMIF('9.ПИР'!$D:$D, $D30, '9.ПИР'!AB:AB)+SUMIF('10.БКП'!$D:$D, $D30, '10.БКП'!AB:AB)+SUMIF('11.ПЗС'!$D:$D, $D30, '11.ПЗС'!AC:AC)+SUMIF('12.ТП_БЭФ'!$D:$D, $D30, '12.ТП_БЭФ'!AV:AV)+SUMIF('13.ТП_СЭФ'!$D:$D, $D30, '13.ТП_СЭФ'!BD:BD)+SUMIF('14.ОВИЗ'!$D:$D, $D30, '14.ОВИЗ'!BE:BE)+SUMIF('15.ГРР'!$D:$D, $D30, '15.ГРР'!AB:AB)+SUMIF('16.НИОКР'!$D:$D, $D30, '16.НИОКР'!AB:AB)+SUMIF('17.НМА'!$D:$D, $D30, '17.НМА'!AC:AC)+SUMIF('18.ПКЗ'!$D:$D, $D30, '18.ПКЗ'!AC:AC)+SUMIF('19.БФИ'!$D:$D, $D30, '19.БФИ'!AC:AC)) -> 0 | AC30: =IF($D30="", 0, SUMIF('7.СМР'!$D:$D, $D30, '7.СМР'!AC:AC)+SUMIF('8.ОСС'!$D:$D, $D30, '8.ОСС'!AU:AU)+SUMIF('9.ПИР'!$D:$D, $D30, '9.ПИР'!AC:AC)+SUMIF('10.БКП'!$D:$D, $D30, '10.БКП'!AC:AC)+SUMIF('11.ПЗС'!$D:$D, $D30, '11.ПЗС'!AD:AD)+SUMIF('12.ТП_БЭФ'!$D:$D, $D30, '12.ТП_БЭФ'!AW:AW)+SUMIF('13.ТП_СЭФ'!$D:$D, $D30, '13.ТП_СЭФ'!BE:BE)+SUMIF('14.ОВИЗ'!$D:$D, $D30, '14.ОВИЗ'!BF:BF)+SUMIF('15.ГРР'!$D:$D, $D30, '15.ГРР'!AC:AC)+SUMIF('16.НИОКР'!$D:$D, $D30, '16.НИОКР'!AC:AC)+SUMIF('17.НМА'!$D:$D, $D30, '17.НМА'!AD:AD)+SUMIF('18.ПКЗ'!$D:$D, $D30, '18.ПКЗ'!AD:AD)+SUMIF('19.БФИ'!$D:$D, $D30, '19.БФИ'!AD:AD)) -> 0 | AD30: =IF($D30="", 0, SUMIF('7.СМР'!$D:$D, $D30, '7.СМР'!AD:AD)+SUMIF('8.ОСС'!$D:$D, $D30, '8.ОСС'!AV:AV)+SUMIF('9.ПИР'!$D:$D, $D30, '9.ПИР'!AD:AD)+SUMIF('10.БКП'!$D:$D, $D30, '10.БКП'!AD:AD)+SUMIF('11.ПЗС'!$D:$D, $D30, '11.ПЗС'!AE:AE)+SUMIF('12.ТП_БЭФ'!$D:$D, $D30, '12.ТП_БЭФ'!AX:AX)+SUMIF('13.ТП_СЭФ'!$D:$D, $D30, '13.ТП_СЭФ'!BF:BF)+SUMIF('14.ОВИЗ'!$D:$D, $D30, '14.ОВИЗ'!BG:BG)+SUMIF('15.ГРР'!$D:$D, $D30, '15.ГРР'!AD:AD)+SUMIF('16.НИОКР'!$D:$D, $D30, '16.НИОКР'!AD:AD)+SUMIF('17.НМА'!$D:$D, $D30, '17.НМА'!AE:AE)+SUMIF('18.ПКЗ'!$D:$D, $D30, '18.ПКЗ'!AE:AE)+SUMIF('19.БФИ'!$D:$D, $D30, '19.БФИ'!AE:AE)) -> 0 | AE30: =IF($D30="", 0, SUMIF('7.СМР'!$D:$D, $D30, '7.СМР'!AE:AE)+SUMIF('8.ОСС'!$D:$D, $D30, '8.ОСС'!AW:AW)+SUMIF('9.ПИР'!$D:$D, $D30, '9.ПИР'!AE:AE)+SUMIF('10.БКП'!$D:$D, $D30, '10.БКП'!AE:AE)+SUMIF('11.ПЗС'!$D:$D, $D30, '11.ПЗС'!AF:AF)+SUMIF('12.ТП_БЭФ'!$D:$D, $D30, '12.ТП_БЭФ'!AY:AY)+SUMIF('13.ТП_СЭФ'!$D:$D, $D30, '13.ТП_СЭФ'!BG:BG)+SUMIF('14.ОВИЗ'!$D:$D, $D30, '14.ОВИЗ'!BH:BH)+SUMIF('15.ГРР'!$D:$D, $D30, '15.ГРР'!AE:AE)+SUMIF('16.НИОКР'!$D:$D, $D30, '16.НИОКР'!AE:AE)+SUMIF('17.НМА'!$D:$D, $D30, '17.НМА'!AF:AF)+SUMIF('18.ПКЗ'!$D:$D, $D30, '18.ПКЗ'!AF:AF)+SUMIF('19.БФИ'!$D:$D, $D30, '19.БФИ'!AF:AF)) -> 0 | AG30: 0
B31: =IF(D31="", "", '04.РИП'!A41) ->  | C31: =IF(D31="", "", '04.РИП'!D41) ->  | D31: =IF(ISBLANK('04.РИП'!B41), "", '04.РИП'!B41) ->  | E31: =IF(D31="", "", '04.РИП'!E41) ->  | F31: =IF(D31="", "", '04.РИП'!D41) ->  | G31: =IF($D31="", 0, SUMIF('7.СМР'!$D:$D, $D31, '7.СМР'!G:G)+SUMIF('8.ОСС'!$D:$D, $D31, '8.ОСС'!Y:Y)+SUMIF('9.ПИР'!$D:$D, $D31, '9.ПИР'!G:G)+SUMIF('10.БКП'!$D:$D, $D31, '10.БКП'!G:G)+SUMIF('11.ПЗС'!$D:$D, $D31, '11.ПЗС'!H:H)+SUMIF('12.ТП_БЭФ'!$D:$D, $D31, '12.ТП_БЭФ'!AA:AA)+SUMIF('13.ТП_СЭФ'!$D:$D, $D31, '13.ТП_СЭФ'!AI:AI)+SUMIF('14.ОВИЗ'!$D:$D, $D31, '14.ОВИЗ'!AJ:AJ)+SUMIF('15.ГРР'!$D:$D, $D31, '15.ГРР'!G:G)+SUMIF('16.НИОКР'!$D:$D, $D31, '16.НИОКР'!G:G)+SUMIF('17.НМА'!$D:$D, $D31, '17.НМА'!H:H)+SUMIF('18.ПКЗ'!$D:$D, $D31, '18.ПКЗ'!H:H)+SUMIF('19.БФИ'!$D:$D, $D31, '19.БФИ'!H:H)) -> 0 | H31: =IF($D31="", 0, SUMIF('7.СМР'!$D:$D, $D31, '7.СМР'!H:H)+SUMIF('8.ОСС'!$D:$D, $D31, '8.ОСС'!Z:Z)+SUMIF('9.ПИР'!$D:$D, $D31, '9.ПИР'!H:H)+SUMIF('10.БКП'!$D:$D, $D31, '10.БКП'!H:H)+SUMIF('11.ПЗС'!$D:$D, $D31, '11.ПЗС'!I:I)+SUMIF('12.ТП_БЭФ'!$D:$D, $D31, '12.ТП_БЭФ'!AB:AB)+SUMIF('13.ТП_СЭФ'!$D:$D, $D31, '13.ТП_СЭФ'!AJ:AJ)+SUMIF('14.ОВИЗ'!$D:$D, $D31, '14.ОВИЗ'!AK:AK)+SUMIF('15.ГРР'!$D:$D, $D31, '15.ГРР'!H:H)+SUMIF('16.НИОКР'!$D:$D, $D31, '16.НИОКР'!H:H)+SUMIF('17.НМА'!$D:$D, $D31, '17.НМА'!I:I)+SUMIF('18.ПКЗ'!$D:$D, $D31, '18.ПКЗ'!I:I)+SUMIF('19.БФИ'!$D:$D, $D31, '19.БФИ'!I:I)) -> 0 | I31: =IF($D31="", 0, SUMIF('7.СМР'!$D:$D, $D31, '7.СМР'!I:I)+SUMIF('8.ОСС'!$D:$D, $D31, '8.ОСС'!AA:AA)+SUMIF('9.ПИР'!$D:$D, $D31, '9.ПИР'!I:I)+SUMIF('10.БКП'!$D:$D, $D31, '10.БКП'!I:I)+SUMIF('11.ПЗС'!$D:$D, $D31, '11.ПЗС'!J:J)+SUMIF('12.ТП_БЭФ'!$D:$D, $D31, '12.ТП_БЭФ'!AC:AC)+SUMIF('13.ТП_СЭФ'!$D:$D, $D31, '13.ТП_СЭФ'!AK:AK)+SUMIF('14.ОВИЗ'!$D:$D, $D31, '14.ОВИЗ'!AL:AL)+SUMIF('15.ГРР'!$D:$D, $D31, '15.ГРР'!I:I)+SUMIF('16.НИОКР'!$D:$D, $D31, '16.НИОКР'!I:I)+SUMIF('17.НМА'!$D:$D, $D31, '17.НМА'!J:J)+SUMIF('18.ПКЗ'!$D:$D, $D31, '18.ПКЗ'!J:J)+SUMIF('19.БФИ'!$D:$D, $D31, '19.БФИ'!J:J)) -> 0 | J31: =IF($D31="", 0, SUMIF('7.СМР'!$D:$D, $D31, '7.СМР'!J:J)+SUMIF('8.ОСС'!$D:$D, $D31, '8.ОСС'!AB:AB)+SUMIF('9.ПИР'!$D:$D, $D31, '9.ПИР'!J:J)+SUMIF('10.БКП'!$D:$D, $D31, '10.БКП'!J:J)+SUMIF('11.ПЗС'!$D:$D, $D31, '11.ПЗС'!K:K)+SUMIF('12.ТП_БЭФ'!$D:$D, $D31, '12.ТП_БЭФ'!AD:AD)+SUMIF('13.ТП_СЭФ'!$D:$D, $D31, '13.ТП_СЭФ'!AL:AL)+SUMIF('14.ОВИЗ'!$D:$D, $D31, '14.ОВИЗ'!AM:AM)+SUMIF('15.ГРР'!$D:$D, $D31, '15.ГРР'!J:J)+SUMIF('16.НИОКР'!$D:$D, $D31, '16.НИОКР'!J:J)+SUMIF('17.НМА'!$D:$D, $D31, '17.НМА'!K:K)+SUMIF('18.ПКЗ'!$D:$D, $D31, '18.ПКЗ'!K:K)+SUMIF('19.БФИ'!$D:$D, $D31, '19.БФИ'!K:K)) -> 0 | K31: =IF($D31="", 0, SUMIF('7.СМР'!$D:$D, $D31, '7.СМР'!K:K)+SUMIF('8.ОСС'!$D:$D, $D31, '8.ОСС'!AC:AC)+SUMIF('9.ПИР'!$D:$D, $D31, '9.ПИР'!K:K)+SUMIF('10.БКП'!$D:$D, $D31, '10.БКП'!K:K)+SUMIF('11.ПЗС'!$D:$D, $D31, '11.ПЗС'!L:L)+SUMIF('12.ТП_БЭФ'!$D:$D, $D31, '12.ТП_БЭФ'!AE:AE)+SUMIF('13.ТП_СЭФ'!$D:$D, $D31, '13.ТП_СЭФ'!AM:AM)+SUMIF('14.ОВИЗ'!$D:$D, $D31, '14.ОВИЗ'!AN:AN)+SUMIF('15.ГРР'!$D:$D, $D31, '15.ГРР'!K:K)+SUMIF('16.НИОКР'!$D:$D, $D31, '16.НИОКР'!K:K)+SUMIF('17.НМА'!$D:$D, $D31, '17.НМА'!L:L)+SUMIF('18.ПКЗ'!$D:$D, $D31, '18.ПКЗ'!L:L)+SUMIF('19.БФИ'!$D:$D, $D31, '19.БФИ'!L:L)) -> 0 | L31: =IF($D31="", 0, SUMIF('7.СМР'!$D:$D, $D31, '7.СМР'!L:L)+SUMIF('8.ОСС'!$D:$D, $D31, '8.ОСС'!AD:AD)+SUMIF('9.ПИР'!$D:$D, $D31, '9.ПИР'!L:L)+SUMIF('10.БКП'!$D:$D, $D31, '10.БКП'!L:L)+SUMIF('11.ПЗС'!$D:$D, $D31, '11.ПЗС'!M:M)+SUMIF('12.ТП_БЭФ'!$D:$D, $D31, '12.ТП_БЭФ'!AF:AF)+SUMIF('13.ТП_СЭФ'!$D:$D, $D31, '13.ТП_СЭФ'!AN:AN)+SUMIF('14.ОВИЗ'!$D:$D, $D31, '14.ОВИЗ'!AO:AO)+SUMIF('15.ГРР'!$D:$D, $D31, '15.ГРР'!L:L)+SUMIF('16.НИОКР'!$D:$D, $D31, '16.НИОКР'!L:L)+SUMIF('17.НМА'!$D:$D, $D31, '17.НМА'!M:M)+SUMIF('18.ПКЗ'!$D:$D, $D31, '18.ПКЗ'!M:M)+SUMIF('19.БФИ'!$D:$D, $D31, '19.БФИ'!M:M)) -> 0 | M31: =IF($D31="", 0, SUMIF('7.СМР'!$D:$D, $D31, '7.СМР'!M:M)+SUMIF('8.ОСС'!$D:$D, $D31, '8.ОСС'!AE:AE)+SUMIF('9.ПИР'!$D:$D, $D31, '9.ПИР'!M:M)+SUMIF('10.БКП'!$D:$D, $D31, '10.БКП'!M:M)+SUMIF('11.ПЗС'!$D:$D, $D31, '11.ПЗС'!N:N)+SUMIF('12.ТП_БЭФ'!$D:$D, $D31, '12.ТП_БЭФ'!AG:AG)+SUMIF('13.ТП_СЭФ'!$D:$D, $D31, '13.ТП_СЭФ'!AO:AO)+SUMIF('14.ОВИЗ'!$D:$D, $D31, '14.ОВИЗ'!AP:AP)+SUMIF('15.ГРР'!$D:$D, $D31, '15.ГРР'!M:M)+SUMIF('16.НИОКР'!$D:$D, $D31, '16.НИОКР'!M:M)+SUMIF('17.НМА'!$D:$D, $D31, '17.НМА'!N:N)+SUMIF('18.ПКЗ'!$D:$D, $D31, '18.ПКЗ'!N:N)+SUMIF('19.БФИ'!$D:$D, $D31, '19.БФИ'!N:N)) -> 0 | N31: =IF($D31="", 0, SUMIF('7.СМР'!$D:$D, $D31, '7.СМР'!N:N)+SUMIF('8.ОСС'!$D:$D, $D31, '8.ОСС'!AF:AF)+SUMIF('9.ПИР'!$D:$D, $D31, '9.ПИР'!N:N)+SUMIF('10.БКП'!$D:$D, $D31, '10.БКП'!N:N)+SUMIF('11.ПЗС'!$D:$D, $D31, '11.ПЗС'!O:O)+SUMIF('12.ТП_БЭФ'!$D:$D, $D31, '12.ТП_БЭФ'!AH:AH)+SUMIF('13.ТП_СЭФ'!$D:$D, $D31, '13.ТП_СЭФ'!AP:AP)+SUMIF('14.ОВИЗ'!$D:$D, $D31, '14.ОВИЗ'!AQ:AQ)+SUMIF('15.ГРР'!$D:$D, $D31, '15.ГРР'!N:N)+SUMIF('16.НИОКР'!$D:$D, $D31, '16.НИОКР'!N:N)+SUMIF('17.НМА'!$D:$D, $D31, '17.НМА'!O:O)+SUMIF('18.ПКЗ'!$D:$D, $D31, '18.ПКЗ'!O:O)+SUMIF('19.БФИ'!$D:$D, $D31, '19.БФИ'!O:O)) -> 0 | O31: =IF($D31="", 0, SUMIF('7.СМР'!$D:$D, $D31, '7.СМР'!O:O)+SUMIF('8.ОСС'!$D:$D, $D31, '8.ОСС'!AG:AG)+SUMIF('9.ПИР'!$D:$D, $D31, '9.ПИР'!O:O)+SUMIF('10.БКП'!$D:$D, $D31, '10.БКП'!O:O)+SUMIF('11.ПЗС'!$D:$D, $D31, '11.ПЗС'!P:P)+SUMIF('12.ТП_БЭФ'!$D:$D, $D31, '12.ТП_БЭФ'!AI:AI)+SUMIF('13.ТП_СЭФ'!$D:$D, $D31, '13.ТП_СЭФ'!AQ:AQ)+SUMIF('14.ОВИЗ'!$D:$D, $D31, '14.ОВИЗ'!AR:AR)+SUMIF('15.ГРР'!$D:$D, $D31, '15.ГРР'!O:O)+SUMIF('16.НИОКР'!$D:$D, $D31, '16.НИОКР'!O:O)+SUMIF('17.НМА'!$D:$D, $D31, '17.НМА'!P:P)+SUMIF('18.ПКЗ'!$D:$D, $D31, '18.ПКЗ'!P:P)+SUMIF('19.БФИ'!$D:$D, $D31, '19.БФИ'!P:P)) -> 0 | P31: =IF($D31="", 0, SUMIF('7.СМР'!$D:$D, $D31, '7.СМР'!P:P)+SUMIF('8.ОСС'!$D:$D, $D31, '8.ОСС'!AH:AH)+SUMIF('9.ПИР'!$D:$D, $D31, '9.ПИР'!P:P)+SUMIF('10.БКП'!$D:$D, $D31, '10.БКП'!P:P)+SUMIF('11.ПЗС'!$D:$D, $D31, '11.ПЗС'!Q:Q)+SUMIF('12.ТП_БЭФ'!$D:$D, $D31, '12.ТП_БЭФ'!AJ:AJ)+SUMIF('13.ТП_СЭФ'!$D:$D, $D31, '13.ТП_СЭФ'!AR:AR)+SUMIF('14.ОВИЗ'!$D:$D, $D31, '14.ОВИЗ'!AS:AS)+SUMIF('15.ГРР'!$D:$D, $D31, '15.ГРР'!P:P)+SUMIF('16.НИОКР'!$D:$D, $D31, '16.НИОКР'!P:P)+SUMIF('17.НМА'!$D:$D, $D31, '17.НМА'!Q:Q)+SUMIF('18.ПКЗ'!$D:$D, $D31, '18.ПКЗ'!Q:Q)+SUMIF('19.БФИ'!$D:$D, $D31, '19.БФИ'!Q:Q)) -> 0 | Q31: 0 | R31: 0 | S31: 0 | T31: 0 | V31: 0 | W31: 0 | X31: =IF($D31="", 0, SUMIF('7.СМР'!$D:$D, $D31, '7.СМР'!X:X)+SUMIF('8.ОСС'!$D:$D, $D31, '8.ОСС'!AP:AP)+SUMIF('9.ПИР'!$D:$D, $D31, '9.ПИР'!X:X)+SUMIF('10.БКП'!$D:$D, $D31, '10.БКП'!X:X)+SUMIF('11.ПЗС'!$D:$D, $D31, '11.ПЗС'!Y:Y)+SUMIF('12.ТП_БЭФ'!$D:$D, $D31, '12.ТП_БЭФ'!AR:AR)+SUMIF('13.ТП_СЭФ'!$D:$D, $D31, '13.ТП_СЭФ'!AZ:AZ)+SUMIF('14.ОВИЗ'!$D:$D, $D31, '14.ОВИЗ'!BA:BA)+SUMIF('15.ГРР'!$D:$D, $D31, '15.ГРР'!X:X)+SUMIF('16.НИОКР'!$D:$D, $D31, '16.НИОКР'!X:X)+SUMIF('17.НМА'!$D:$D, $D31, '17.НМА'!Y:Y)+SUMIF('18.ПКЗ'!$D:$D, $D31, '18.ПКЗ'!Y:Y)+SUMIF('19.БФИ'!$D:$D, $D31, '19.БФИ'!Y:Y)) -> 0 | Y31: =IF($D31="", 0, SUMIF('7.СМР'!$D:$D, $D31, '7.СМР'!Y:Y)+SUMIF('8.ОСС'!$D:$D, $D31, '8.ОСС'!AQ:AQ)+SUMIF('9.ПИР'!$D:$D, $D31, '9.ПИР'!Y:Y)+SUMIF('10.БКП'!$D:$D, $D31, '10.БКП'!Y:Y)+SUMIF('11.ПЗС'!$D:$D, $D31, '11.ПЗС'!Z:Z)+SUMIF('12.ТП_БЭФ'!$D:$D, $D31, '12.ТП_БЭФ'!AS:AS)+SUMIF('13.ТП_СЭФ'!$D:$D, $D31, '13.ТП_СЭФ'!BA:BA)+SUMIF('14.ОВИЗ'!$D:$D, $D31, '14.ОВИЗ'!BB:BB)+SUMIF('15.ГРР'!$D:$D, $D31, '15.ГРР'!Y:Y)+SUMIF('16.НИОКР'!$D:$D, $D31, '16.НИОКР'!Y:Y)+SUMIF('17.НМА'!$D:$D, $D31, '17.НМА'!Z:Z)+SUMIF('18.ПКЗ'!$D:$D, $D31, '18.ПКЗ'!Z:Z)+SUMIF('19.БФИ'!$D:$D, $D31, '19.БФИ'!Z:Z)) -> 0 | Z31: =IF($D31="", 0, SUMIF('7.СМР'!$D:$D, $D31, '7.СМР'!Z:Z)+SUMIF('8.ОСС'!$D:$D, $D31, '8.ОСС'!AR:AR)+SUMIF('9.ПИР'!$D:$D, $D31, '9.ПИР'!Z:Z)+SUMIF('10.БКП'!$D:$D, $D31, '10.БКП'!Z:Z)+SUMIF('11.ПЗС'!$D:$D, $D31, '11.ПЗС'!AA:AA)+SUMIF('12.ТП_БЭФ'!$D:$D, $D31, '12.ТП_БЭФ'!AT:AT)+SUMIF('13.ТП_СЭФ'!$D:$D, $D31, '13.ТП_СЭФ'!BB:BB)+SUMIF('14.ОВИЗ'!$D:$D, $D31, '14.ОВИЗ'!BC:BC)+SUMIF('15.ГРР'!$D:$D, $D31, '15.ГРР'!Z:Z)+SUMIF('16.НИОКР'!$D:$D, $D31, '16.НИОКР'!Z:Z)+SUMIF('17.НМА'!$D:$D, $D31, '17.НМА'!AA:AA)+SUMIF('18.ПКЗ'!$D:$D, $D31, '18.ПКЗ'!AA:AA)+SUMIF('19.БФИ'!$D:$D, $D31, '19.БФИ'!AA:AA)) -> 0 | AA31: =IF($D31="", 0, SUMIF('7.СМР'!$D:$D, $D31, '7.СМР'!AA:AA)+SUMIF('8.ОСС'!$D:$D, $D31, '8.ОСС'!AS:AS)+SUMIF('9.ПИР'!$D:$D, $D31, '9.ПИР'!AA:AA)+SUMIF('10.БКП'!$D:$D, $D31, '10.БКП'!AA:AA)+SUMIF('11.ПЗС'!$D:$D, $D31, '11.ПЗС'!AB:AB)+SUMIF('12.ТП_БЭФ'!$D:$D, $D31, '12.ТП_БЭФ'!AU:AU)+SUMIF('13.ТП_СЭФ'!$D:$D, $D31, '13.ТП_СЭФ'!BC:BC)+SUMIF('14.ОВИЗ'!$D:$D, $D31, '14.ОВИЗ'!BD:BD)+SUMIF('15.ГРР'!$D:$D, $D31, '15.ГРР'!AA:AA)+SUMIF('16.НИОКР'!$D:$D, $D31, '16.НИОКР'!AA:AA)+SUMIF('17.НМА'!$D:$D, $D31, '17.НМА'!AB:AB)+SUMIF('18.ПКЗ'!$D:$D, $D31, '18.ПКЗ'!AB:AB)+SUMIF('19.БФИ'!$D:$D, $D31, '19.БФИ'!AB:AB)) -> 0 | AB31: =IF($D31="", 0, SUMIF('7.СМР'!$D:$D, $D31, '7.СМР'!AB:AB)+SUMIF('8.ОСС'!$D:$D, $D31, '8.ОСС'!AT:AT)+SUMIF('9.ПИР'!$D:$D, $D31, '9.ПИР'!AB:AB)+SUMIF('10.БКП'!$D:$D, $D31, '10.БКП'!AB:AB)+SUMIF('11.ПЗС'!$D:$D, $D31, '11.ПЗС'!AC:AC)+SUMIF('12.ТП_БЭФ'!$D:$D, $D31, '12.ТП_БЭФ'!AV:AV)+SUMIF('13.ТП_СЭФ'!$D:$D, $D31, '13.ТП_СЭФ'!BD:BD)+SUMIF('14.ОВИЗ'!$D:$D, $D31, '14.ОВИЗ'!BE:BE)+SUMIF('15.ГРР'!$D:$D, $D31, '15.ГРР'!AB:AB)+SUMIF('16.НИОКР'!$D:$D, $D31, '16.НИОКР'!AB:AB)+SUMIF('17.НМА'!$D:$D, $D31, '17.НМА'!AC:AC)+SUMIF('18.ПКЗ'!$D:$D, $D31, '18.ПКЗ'!AC:AC)+SUMIF('19.БФИ'!$D:$D, $D31, '19.БФИ'!AC:AC)) -> 0 | AC31: =IF($D31="", 0, SUMIF('7.СМР'!$D:$D, $D31, '7.СМР'!AC:AC)+SUMIF('8.ОСС'!$D:$D, $D31, '8.ОСС'!AU:AU)+SUMIF('9.ПИР'!$D:$D, $D31, '9.ПИР'!AC:AC)+SUMIF('10.БКП'!$D:$D, $D31, '10.БКП'!AC:AC)+SUMIF('11.ПЗС'!$D:$D, $D31, '11.ПЗС'!AD:AD)+SUMIF('12.ТП_БЭФ'!$D:$D, $D31, '12.ТП_БЭФ'!AW:AW)+SUMIF('13.ТП_СЭФ'!$D:$D, $D31, '13.ТП_СЭФ'!BE:BE)+SUMIF('14.ОВИЗ'!$D:$D, $D31, '14.ОВИЗ'!BF:BF)+SUMIF('15.ГРР'!$D:$D, $D31, '15.ГРР'!AC:AC)+SUMIF('16.НИОКР'!$D:$D, $D31, '16.НИОКР'!AC:AC)+SUMIF('17.НМА'!$D:$D, $D31, '17.НМА'!AD:AD)+SUMIF('18.ПКЗ'!$D:$D, $D31, '18.ПКЗ'!AD:AD)+SUMIF('19.БФИ'!$D:$D, $D31, '19.БФИ'!AD:AD)) -> 0 | AD31: =IF($D31="", 0, SUMIF('7.СМР'!$D:$D, $D31, '7.СМР'!AD:AD)+SUMIF('8.ОСС'!$D:$D, $D31, '8.ОСС'!AV:AV)+SUMIF('9.ПИР'!$D:$D, $D31, '9.ПИР'!AD:AD)+SUMIF('10.БКП'!$D:$D, $D31, '10.БКП'!AD:AD)+SUMIF('11.ПЗС'!$D:$D, $D31, '11.ПЗС'!AE:AE)+SUMIF('12.ТП_БЭФ'!$D:$D, $D31, '12.ТП_БЭФ'!AX:AX)+SUMIF('13.ТП_СЭФ'!$D:$D, $D31, '13.ТП_СЭФ'!BF:BF)+SUMIF('14.ОВИЗ'!$D:$D, $D31, '14.ОВИЗ'!BG:BG)+SUMIF('15.ГРР'!$D:$D, $D31, '15.ГРР'!AD:AD)+SUMIF('16.НИОКР'!$D:$D, $D31, '16.НИОКР'!AD:AD)+SUMIF('17.НМА'!$D:$D, $D31, '17.НМА'!AE:AE)+SUMIF('18.ПКЗ'!$D:$D, $D31, '18.ПКЗ'!AE:AE)+SUMIF('19.БФИ'!$D:$D, $D31, '19.БФИ'!AE:AE)) -> 0 | AE31: =IF($D31="", 0, SUMIF('7.СМР'!$D:$D, $D31, '7.СМР'!AE:AE)+SUMIF('8.ОСС'!$D:$D, $D31, '8.ОСС'!AW:AW)+SUMIF('9.ПИР'!$D:$D, $D31, '9.ПИР'!AE:AE)+SUMIF('10.БКП'!$D:$D, $D31, '10.БКП'!AE:AE)+SUMIF('11.ПЗС'!$D:$D, $D31, '11.ПЗС'!AF:AF)+SUMIF('12.ТП_БЭФ'!$D:$D, $D31, '12.ТП_БЭФ'!AY:AY)+SUMIF('13.ТП_СЭФ'!$D:$D, $D31, '13.ТП_СЭФ'!BG:BG)+SUMIF('14.ОВИЗ'!$D:$D, $D31, '14.ОВИЗ'!BH:BH)+SUMIF('15.ГРР'!$D:$D, $D31, '15.ГРР'!AE:AE)+SUMIF('16.НИОКР'!$D:$D, $D31, '16.НИОКР'!AE:AE)+SUMIF('17.НМА'!$D:$D, $D31, '17.НМА'!AF:AF)+SUMIF('18.ПКЗ'!$D:$D, $D31, '18.ПКЗ'!AF:AF)+SUMIF('19.БФИ'!$D:$D, $D31, '19.БФИ'!AF:AF)) -> 0 | AG31: 0
B32: =IF(D32="", "", '04.РИП'!#REF!) ->  | C32: =IF(D32="", "", '04.РИП'!D42) ->  | D32: =IF(ISBLANK('04.РИП'!B42), "", '04.РИП'!B42) ->  | E32: =IF(D32="", "", '04.РИП'!E42) ->  | F32: =IF(D32="", "", '04.РИП'!D42) ->  | G32: =IF($D32="", 0, SUMIF('7.СМР'!$D:$D, $D32, '7.СМР'!G:G)+SUMIF('8.ОСС'!$D:$D, $D32, '8.ОСС'!Y:Y)+SUMIF('9.ПИР'!$D:$D, $D32, '9.ПИР'!G:G)+SUMIF('10.БКП'!$D:$D, $D32, '10.БКП'!G:G)+SUMIF('11.ПЗС'!$D:$D, $D32, '11.ПЗС'!H:H)+SUMIF('12.ТП_БЭФ'!$D:$D, $D32, '12.ТП_БЭФ'!AA:AA)+SUMIF('13.ТП_СЭФ'!$D:$D, $D32, '13.ТП_СЭФ'!AI:AI)+SUMIF('14.ОВИЗ'!$D:$D, $D32, '14.ОВИЗ'!AJ:AJ)+SUMIF('15.ГРР'!$D:$D, $D32, '15.ГРР'!G:G)+SUMIF('16.НИОКР'!$D:$D, $D32, '16.НИОКР'!G:G)+SUMIF('17.НМА'!$D:$D, $D32, '17.НМА'!H:H)+SUMIF('18.ПКЗ'!$D:$D, $D32, '18.ПКЗ'!H:H)+SUMIF('19.БФИ'!$D:$D, $D32, '19.БФИ'!H:H)) -> 0 | H32: =IF($D32="", 0, SUMIF('7.СМР'!$D:$D, $D32, '7.СМР'!H:H)+SUMIF('8.ОСС'!$D:$D, $D32, '8.ОСС'!Z:Z)+SUMIF('9.ПИР'!$D:$D, $D32, '9.ПИР'!H:H)+SUMIF('10.БКП'!$D:$D, $D32, '10.БКП'!H:H)+SUMIF('11.ПЗС'!$D:$D, $D32, '11.ПЗС'!I:I)+SUMIF('12.ТП_БЭФ'!$D:$D, $D32, '12.ТП_БЭФ'!AB:AB)+SUMIF('13.ТП_СЭФ'!$D:$D, $D32, '13.ТП_СЭФ'!AJ:AJ)+SUMIF('14.ОВИЗ'!$D:$D, $D32, '14.ОВИЗ'!AK:AK)+SUMIF('15.ГРР'!$D:$D, $D32, '15.ГРР'!H:H)+SUMIF('16.НИОКР'!$D:$D, $D32, '16.НИОКР'!H:H)+SUMIF('17.НМА'!$D:$D, $D32, '17.НМА'!I:I)+SUMIF('18.ПКЗ'!$D:$D, $D32, '18.ПКЗ'!I:I)+SUMIF('19.БФИ'!$D:$D, $D32, '19.БФИ'!I:I)) -> 0 | I32: =IF($D32="", 0, SUMIF('7.СМР'!$D:$D, $D32, '7.СМР'!I:I)+SUMIF('8.ОСС'!$D:$D, $D32, '8.ОСС'!AA:AA)+SUMIF('9.ПИР'!$D:$D, $D32, '9.ПИР'!I:I)+SUMIF('10.БКП'!$D:$D, $D32, '10.БКП'!I:I)+SUMIF('11.ПЗС'!$D:$D, $D32, '11.ПЗС'!J:J)+SUMIF('12.ТП_БЭФ'!$D:$D, $D32, '12.ТП_БЭФ'!AC:AC)+SUMIF('13.ТП_СЭФ'!$D:$D, $D32, '13.ТП_СЭФ'!AK:AK)+SUMIF('14.ОВИЗ'!$D:$D, $D32, '14.ОВИЗ'!AL:AL)+SUMIF('15.ГРР'!$D:$D, $D32, '15.ГРР'!I:I)+SUMIF('16.НИОКР'!$D:$D, $D32, '16.НИОКР'!I:I)+SUMIF('17.НМА'!$D:$D, $D32, '17.НМА'!J:J)+SUMIF('18.ПКЗ'!$D:$D, $D32, '18.ПКЗ'!J:J)+SUMIF('19.БФИ'!$D:$D, $D32, '19.БФИ'!J:J)) -> 0 | J32: =IF($D32="", 0, SUMIF('7.СМР'!$D:$D, $D32, '7.СМР'!J:J)+SUMIF('8.ОСС'!$D:$D, $D32, '8.ОСС'!AB:AB)+SUMIF('9.ПИР'!$D:$D, $D32, '9.ПИР'!J:J)+SUMIF('10.БКП'!$D:$D, $D32, '10.БКП'!J:J)+SUMIF('11.ПЗС'!$D:$D, $D32, '11.ПЗС'!K:K)+SUMIF('12.ТП_БЭФ'!$D:$D, $D32, '12.ТП_БЭФ'!AD:AD)+SUMIF('13.ТП_СЭФ'!$D:$D, $D32, '13.ТП_СЭФ'!AL:AL)+SUMIF('14.ОВИЗ'!$D:$D, $D32, '14.ОВИЗ'!AM:AM)+SUMIF('15.ГРР'!$D:$D, $D32, '15.ГРР'!J:J)+SUMIF('16.НИОКР'!$D:$D, $D32, '16.НИОКР'!J:J)+SUMIF('17.НМА'!$D:$D, $D32, '17.НМА'!K:K)+SUMIF('18.ПКЗ'!$D:$D, $D32, '18.ПКЗ'!K:K)+SUMIF('19.БФИ'!$D:$D, $D32, '19.БФИ'!K:K)) -> 0 | K32: =IF($D32="", 0, SUMIF('7.СМР'!$D:$D, $D32, '7.СМР'!K:K)+SUMIF('8.ОСС'!$D:$D, $D32, '8.ОСС'!AC:AC)+SUMIF('9.ПИР'!$D:$D, $D32, '9.ПИР'!K:K)+SUMIF('10.БКП'!$D:$D, $D32, '10.БКП'!K:K)+SUMIF('11.ПЗС'!$D:$D, $D32, '11.ПЗС'!L:L)+SUMIF('12.ТП_БЭФ'!$D:$D, $D32, '12.ТП_БЭФ'!AE:AE)+SUMIF('13.ТП_СЭФ'!$D:$D, $D32, '13.ТП_СЭФ'!AM:AM)+SUMIF('14.ОВИЗ'!$D:$D, $D32, '14.ОВИЗ'!AN:AN)+SUMIF('15.ГРР'!$D:$D, $D32, '15.ГРР'!K:K)+SUMIF('16.НИОКР'!$D:$D, $D32, '16.НИОКР'!K:K)+SUMIF('17.НМА'!$D:$D, $D32, '17.НМА'!L:L)+SUMIF('18.ПКЗ'!$D:$D, $D32, '18.ПКЗ'!L:L)+SUMIF('19.БФИ'!$D:$D, $D32, '19.БФИ'!L:L)) -> 0 | L32: =IF($D32="", 0, SUMIF('7.СМР'!$D:$D, $D32, '7.СМР'!L:L)+SUMIF('8.ОСС'!$D:$D, $D32, '8.ОСС'!AD:AD)+SUMIF('9.ПИР'!$D:$D, $D32, '9.ПИР'!L:L)+SUMIF('10.БКП'!$D:$D, $D32, '10.БКП'!L:L)+SUMIF('11.ПЗС'!$D:$D, $D32, '11.ПЗС'!M:M)+SUMIF('12.ТП_БЭФ'!$D:$D, $D32, '12.ТП_БЭФ'!AF:AF)+SUMIF('13.ТП_СЭФ'!$D:$D, $D32, '13.ТП_СЭФ'!AN:AN)+SUMIF('14.ОВИЗ'!$D:$D, $D32, '14.ОВИЗ'!AO:AO)+SUMIF('15.ГРР'!$D:$D, $D32, '15.ГРР'!L:L)+SUMIF('16.НИОКР'!$D:$D, $D32, '16.НИОКР'!L:L)+SUMIF('17.НМА'!$D:$D, $D32, '17.НМА'!M:M)+SUMIF('18.ПКЗ'!$D:$D, $D32, '18.ПКЗ'!M:M)+SUMIF('19.БФИ'!$D:$D, $D32, '19.БФИ'!M:M)) -> 0 | M32: =IF($D32="", 0, SUMIF('7.СМР'!$D:$D, $D32, '7.СМР'!M:M)+SUMIF('8.ОСС'!$D:$D, $D32, '8.ОСС'!AE:AE)+SUMIF('9.ПИР'!$D:$D, $D32, '9.ПИР'!M:M)+SUMIF('10.БКП'!$D:$D, $D32, '10.БКП'!M:M)+SUMIF('11.ПЗС'!$D:$D, $D32, '11.ПЗС'!N:N)+SUMIF('12.ТП_БЭФ'!$D:$D, $D32, '12.ТП_БЭФ'!AG:AG)+SUMIF('13.ТП_СЭФ'!$D:$D, $D32, '13.ТП_СЭФ'!AO:AO)+SUMIF('14.ОВИЗ'!$D:$D, $D32, '14.ОВИЗ'!AP:AP)+SUMIF('15.ГРР'!$D:$D, $D32, '15.ГРР'!M:M)+SUMIF('16.НИОКР'!$D:$D, $D32, '16.НИОКР'!M:M)+SUMIF('17.НМА'!$D:$D, $D32, '17.НМА'!N:N)+SUMIF('18.ПКЗ'!$D:$D, $D32, '18.ПКЗ'!N:N)+SUMIF('19.БФИ'!$D:$D, $D32, '19.БФИ'!N:N)) -> 0 | N32: =IF($D32="", 0, SUMIF('7.СМР'!$D:$D, $D32, '7.СМР'!N:N)+SUMIF('8.ОСС'!$D:$D, $D32, '8.ОСС'!AF:AF)+SUMIF('9.ПИР'!$D:$D, $D32, '9.ПИР'!N:N)+SUMIF('10.БКП'!$D:$D, $D32, '10.БКП'!N:N)+SUMIF('11.ПЗС'!$D:$D, $D32, '11.ПЗС'!O:O)+SUMIF('12.ТП_БЭФ'!$D:$D, $D32, '12.ТП_БЭФ'!AH:AH)+SUMIF('13.ТП_СЭФ'!$D:$D, $D32, '13.ТП_СЭФ'!AP:AP)+SUMIF('14.ОВИЗ'!$D:$D, $D32, '14.ОВИЗ'!AQ:AQ)+SUMIF('15.ГРР'!$D:$D, $D32, '15.ГРР'!N:N)+SUMIF('16.НИОКР'!$D:$D, $D32, '16.НИОКР'!N:N)+SUMIF('17.НМА'!$D:$D, $D32, '17.НМА'!O:O)+SUMIF('18.ПКЗ'!$D:$D, $D32, '18.ПКЗ'!O:O)+SUMIF('19.БФИ'!$D:$D, $D32, '19.БФИ'!O:O)) -> 0 | O32: =IF($D32="", 0, SUMIF('7.СМР'!$D:$D, $D32, '7.СМР'!O:O)+SUMIF('8.ОСС'!$D:$D, $D32, '8.ОСС'!AG:AG)+SUMIF('9.ПИР'!$D:$D, $D32, '9.ПИР'!O:O)+SUMIF('10.БКП'!$D:$D, $D32, '10.БКП'!O:O)+SUMIF('11.ПЗС'!$D:$D, $D32, '11.ПЗС'!P:P)+SUMIF('12.ТП_БЭФ'!$D:$D, $D32, '12.ТП_БЭФ'!AI:AI)+SUMIF('13.ТП_СЭФ'!$D:$D, $D32, '13.ТП_СЭФ'!AQ:AQ)+SUMIF('14.ОВИЗ'!$D:$D, $D32, '14.ОВИЗ'!AR:AR)+SUMIF('15.ГРР'!$D:$D, $D32, '15.ГРР'!O:O)+SUMIF('16.НИОКР'!$D:$D, $D32, '16.НИОКР'!O:O)+SUMIF('17.НМА'!$D:$D, $D32, '17.НМА'!P:P)+SUMIF('18.ПКЗ'!$D:$D, $D32, '18.ПКЗ'!P:P)+SUMIF('19.БФИ'!$D:$D, $D32, '19.БФИ'!P:P)) -> 0 | P32: =IF($D32="", 0, SUMIF('7.СМР'!$D:$D, $D32, '7.СМР'!P:P)+SUMIF('8.ОСС'!$D:$D, $D32, '8.ОСС'!AH:AH)+SUMIF('9.ПИР'!$D:$D, $D32, '9.ПИР'!P:P)+SUMIF('10.БКП'!$D:$D, $D32, '10.БКП'!P:P)+SUMIF('11.ПЗС'!$D:$D, $D32, '11.ПЗС'!Q:Q)+SUMIF('12.ТП_БЭФ'!$D:$D, $D32, '12.ТП_БЭФ'!AJ:AJ)+SUMIF('13.ТП_СЭФ'!$D:$D, $D32, '13.ТП_СЭФ'!AR:AR)+SUMIF('14.ОВИЗ'!$D:$D, $D32, '14.ОВИЗ'!AS:AS)+SUMIF('15.ГРР'!$D:$D, $D32, '15.ГРР'!P:P)+SUMIF('16.НИОКР'!$D:$D, $D32, '16.НИОКР'!P:P)+SUMIF('17.НМА'!$D:$D, $D32, '17.НМА'!Q:Q)+SUMIF('18.ПКЗ'!$D:$D, $D32, '18.ПКЗ'!Q:Q)+SUMIF('19.БФИ'!$D:$D, $D32, '19.БФИ'!Q:Q)) -> 0 | Q32: 0 | R32: 0 | S32: 0 | T32: 0 | V32: 0 | W32: 0 | X32: =IF($D32="", 0, SUMIF('7.СМР'!$D:$D, $D32, '7.СМР'!X:X)+SUMIF('8.ОСС'!$D:$D, $D32, '8.ОСС'!AP:AP)+SUMIF('9.ПИР'!$D:$D, $D32, '9.ПИР'!X:X)+SUMIF('10.БКП'!$D:$D, $D32, '10.БКП'!X:X)+SUMIF('11.ПЗС'!$D:$D, $D32, '11.ПЗС'!Y:Y)+SUMIF('12.ТП_БЭФ'!$D:$D, $D32, '12.ТП_БЭФ'!AR:AR)+SUMIF('13.ТП_СЭФ'!$D:$D, $D32, '13.ТП_СЭФ'!AZ:AZ)+SUMIF('14.ОВИЗ'!$D:$D, $D32, '14.ОВИЗ'!BA:BA)+SUMIF('15.ГРР'!$D:$D, $D32, '15.ГРР'!X:X)+SUMIF('16.НИОКР'!$D:$D, $D32, '16.НИОКР'!X:X)+SUMIF('17.НМА'!$D:$D, $D32, '17.НМА'!Y:Y)+SUMIF('18.ПКЗ'!$D:$D, $D32, '18.ПКЗ'!Y:Y)+SUMIF('19.БФИ'!$D:$D, $D32, '19.БФИ'!Y:Y)) -> 0 | Y32: =IF($D32="", 0, SUMIF('7.СМР'!$D:$D, $D32, '7.СМР'!Y:Y)+SUMIF('8.ОСС'!$D:$D, $D32, '8.ОСС'!AQ:AQ)+SUMIF('9.ПИР'!$D:$D, $D32, '9.ПИР'!Y:Y)+SUMIF('10.БКП'!$D:$D, $D32, '10.БКП'!Y:Y)+SUMIF('11.ПЗС'!$D:$D, $D32, '11.ПЗС'!Z:Z)+SUMIF('12.ТП_БЭФ'!$D:$D, $D32, '12.ТП_БЭФ'!AS:AS)+SUMIF('13.ТП_СЭФ'!$D:$D, $D32, '13.ТП_СЭФ'!BA:BA)+SUMIF('14.ОВИЗ'!$D:$D, $D32, '14.ОВИЗ'!BB:BB)+SUMIF('15.ГРР'!$D:$D, $D32, '15.ГРР'!Y:Y)+SUMIF('16.НИОКР'!$D:$D, $D32, '16.НИОКР'!Y:Y)+SUMIF('17.НМА'!$D:$D, $D32, '17.НМА'!Z:Z)+SUMIF('18.ПКЗ'!$D:$D, $D32, '18.ПКЗ'!Z:Z)+SUMIF('19.БФИ'!$D:$D, $D32, '19.БФИ'!Z:Z)) -> 0 | Z32: =IF($D32="", 0, SUMIF('7.СМР'!$D:$D, $D32, '7.СМР'!Z:Z)+SUMIF('8.ОСС'!$D:$D, $D32, '8.ОСС'!AR:AR)+SUMIF('9.ПИР'!$D:$D, $D32, '9.ПИР'!Z:Z)+SUMIF('10.БКП'!$D:$D, $D32, '10.БКП'!Z:Z)+SUMIF('11.ПЗС'!$D:$D, $D32, '11.ПЗС'!AA:AA)+SUMIF('12.ТП_БЭФ'!$D:$D, $D32, '12.ТП_БЭФ'!AT:AT)+SUMIF('13.ТП_СЭФ'!$D:$D, $D32, '13.ТП_СЭФ'!BB:BB)+SUMIF('14.ОВИЗ'!$D:$D, $D32, '14.ОВИЗ'!BC:BC)+SUMIF('15.ГРР'!$D:$D, $D32, '15.ГРР'!Z:Z)+SUMIF('16.НИОКР'!$D:$D, $D32, '16.НИОКР'!Z:Z)+SUMIF('17.НМА'!$D:$D, $D32, '17.НМА'!AA:AA)+SUMIF('18.ПКЗ'!$D:$D, $D32, '18.ПКЗ'!AA:AA)+SUMIF('19.БФИ'!$D:$D, $D32, '19.БФИ'!AA:AA)) -> 0 | AA32: =IF($D32="", 0, SUMIF('7.СМР'!$D:$D, $D32, '7.СМР'!AA:AA)+SUMIF('8.ОСС'!$D:$D, $D32, '8.ОСС'!AS:AS)+SUMIF('9.ПИР'!$D:$D, $D32, '9.ПИР'!AA:AA)+SUMIF('10.БКП'!$D:$D, $D32, '10.БКП'!AA:AA)+SUMIF('11.ПЗС'!$D:$D, $D32, '11.ПЗС'!AB:AB)+SUMIF('12.ТП_БЭФ'!$D:$D, $D32, '12.ТП_БЭФ'!AU:AU)+SUMIF('13.ТП_СЭФ'!$D:$D, $D32, '13.ТП_СЭФ'!BC:BC)+SUMIF('14.ОВИЗ'!$D:$D, $D32, '14.ОВИЗ'!BD:BD)+SUMIF('15.ГРР'!$D:$D, $D32, '15.ГРР'!AA:AA)+SUMIF('16.НИОКР'!$D:$D, $D32, '16.НИОКР'!AA:AA)+SUMIF('17.НМА'!$D:$D, $D32, '17.НМА'!AB:AB)+SUMIF('18.ПКЗ'!$D:$D, $D32, '18.ПКЗ'!AB:AB)+SUMIF('19.БФИ'!$D:$D, $D32, '19.БФИ'!AB:AB)) -> 0 | AB32: =IF($D32="", 0, SUMIF('7.СМР'!$D:$D, $D32, '7.СМР'!AB:AB)+SUMIF('8.ОСС'!$D:$D, $D32, '8.ОСС'!AT:AT)+SUMIF('9.ПИР'!$D:$D, $D32, '9.ПИР'!AB:AB)+SUMIF('10.БКП'!$D:$D, $D32, '10.БКП'!AB:AB)+SUMIF('11.ПЗС'!$D:$D, $D32, '11.ПЗС'!AC:AC)+SUMIF('12.ТП_БЭФ'!$D:$D, $D32, '12.ТП_БЭФ'!AV:AV)+SUMIF('13.ТП_СЭФ'!$D:$D, $D32, '13.ТП_СЭФ'!BD:BD)+SUMIF('14.ОВИЗ'!$D:$D, $D32, '14.ОВИЗ'!BE:BE)+SUMIF('15.ГРР'!$D:$D, $D32, '15.ГРР'!AB:AB)+SUMIF('16.НИОКР'!$D:$D, $D32, '16.НИОКР'!AB:AB)+SUMIF('17.НМА'!$D:$D, $D32, '17.НМА'!AC:AC)+SUMIF('18.ПКЗ'!$D:$D, $D32, '18.ПКЗ'!AC:AC)+SUMIF('19.БФИ'!$D:$D, $D32, '19.БФИ'!AC:AC)) -> 0 | AC32: =IF($D32="", 0, SUMIF('7.СМР'!$D:$D, $D32, '7.СМР'!AC:AC)+SUMIF('8.ОСС'!$D:$D, $D32, '8.ОСС'!AU:AU)+SUMIF('9.ПИР'!$D:$D, $D32, '9.ПИР'!AC:AC)+SUMIF('10.БКП'!$D:$D, $D32, '10.БКП'!AC:AC)+SUMIF('11.ПЗС'!$D:$D, $D32, '11.ПЗС'!AD:AD)+SUMIF('12.ТП_БЭФ'!$D:$D, $D32, '12.ТП_БЭФ'!AW:AW)+SUMIF('13.ТП_СЭФ'!$D:$D, $D32, '13.ТП_СЭФ'!BE:BE)+SUMIF('14.ОВИЗ'!$D:$D, $D32, '14.ОВИЗ'!BF:BF)+SUMIF('15.ГРР'!$D:$D, $D32, '15.ГРР'!AC:AC)+SUMIF('16.НИОКР'!$D:$D, $D32, '16.НИОКР'!AC:AC)+SUMIF('17.НМА'!$D:$D, $D32, '17.НМА'!AD:AD)+SUMIF('18.ПКЗ'!$D:$D, $D32, '18.ПКЗ'!AD:AD)+SUMIF('19.БФИ'!$D:$D, $D32, '19.БФИ'!AD:AD)) -> 0 | AD32: =IF($D32="", 0, SUMIF('7.СМР'!$D:$D, $D32, '7.СМР'!AD:AD)+SUMIF('8.ОСС'!$D:$D, $D32, '8.ОСС'!AV:AV)+SUMIF('9.ПИР'!$D:$D, $D32, '9.ПИР'!AD:AD)+SUMIF('10.БКП'!$D:$D, $D32, '10.БКП'!AD:AD)+SUMIF('11.ПЗС'!$D:$D, $D32, '11.ПЗС'!AE:AE)+SUMIF('12.ТП_БЭФ'!$D:$D, $D32, '12.ТП_БЭФ'!AX:AX)+SUMIF('13.ТП_СЭФ'!$D:$D, $D32, '13.ТП_СЭФ'!BF:BF)+SUMIF('14.ОВИЗ'!$D:$D, $D32, '14.ОВИЗ'!BG:BG)+SUMIF('15.ГРР'!$D:$D, $D32, '15.ГРР'!AD:AD)+SUMIF('16.НИОКР'!$D:$D, $D32, '16.НИОКР'!AD:AD)+SUMIF('17.НМА'!$D:$D, $D32, '17.НМА'!AE:AE)+SUMIF('18.ПКЗ'!$D:$D, $D32, '18.ПКЗ'!AE:AE)+SUMIF('19.БФИ'!$D:$D, $D32, '19.БФИ'!AE:AE)) -> 0 | AE32: =IF($D32="", 0, SUMIF('7.СМР'!$D:$D, $D32, '7.СМР'!AE:AE)+SUMIF('8.ОСС'!$D:$D, $D32, '8.ОСС'!AW:AW)+SUMIF('9.ПИР'!$D:$D, $D32, '9.ПИР'!AE:AE)+SUMIF('10.БКП'!$D:$D, $D32, '10.БКП'!AE:AE)+SUMIF('11.ПЗС'!$D:$D, $D32, '11.ПЗС'!AF:AF)+SUMIF('12.ТП_БЭФ'!$D:$D, $D32, '12.ТП_БЭФ'!AY:AY)+SUMIF('13.ТП_СЭФ'!$D:$D, $D32, '13.ТП_СЭФ'!BG:BG)+SUMIF('14.ОВИЗ'!$D:$D, $D32, '14.ОВИЗ'!BH:BH)+SUMIF('15.ГРР'!$D:$D, $D32, '15.ГРР'!AE:AE)+SUMIF('16.НИОКР'!$D:$D, $D32, '16.НИОКР'!AE:AE)+SUMIF('17.НМА'!$D:$D, $D32, '17.НМА'!AF:AF)+SUMIF('18.ПКЗ'!$D:$D, $D32, '18.ПКЗ'!AF:AF)+SUMIF('19.БФИ'!$D:$D, $D32, '19.БФИ'!AF:AF)) -> 0 | AG32: 0
B33: =IF(D33="", "", '04.РИП'!A43) ->  | C33: =IF(D33="", "", '04.РИП'!D43) ->  | D33: =IF(ISBLANK('04.РИП'!B43), "", '04.РИП'!B43) ->  | E33: =IF(D33="", "", '04.РИП'!E43) ->  | F33: =IF(D33="", "", '04.РИП'!D43) ->  | G33: =IF($D33="", 0, SUMIF('7.СМР'!$D:$D, $D33, '7.СМР'!G:G)+SUMIF('8.ОСС'!$D:$D, $D33, '8.ОСС'!Y:Y)+SUMIF('9.ПИР'!$D:$D, $D33, '9.ПИР'!G:G)+SUMIF('10.БКП'!$D:$D, $D33, '10.БКП'!G:G)+SUMIF('11.ПЗС'!$D:$D, $D33, '11.ПЗС'!H:H)+SUMIF('12.ТП_БЭФ'!$D:$D, $D33, '12.ТП_БЭФ'!AA:AA)+SUMIF('13.ТП_СЭФ'!$D:$D, $D33, '13.ТП_СЭФ'!AI:AI)+SUMIF('14.ОВИЗ'!$D:$D, $D33, '14.ОВИЗ'!AJ:AJ)+SUMIF('15.ГРР'!$D:$D, $D33, '15.ГРР'!G:G)+SUMIF('16.НИОКР'!$D:$D, $D33, '16.НИОКР'!G:G)+SUMIF('17.НМА'!$D:$D, $D33, '17.НМА'!H:H)+SUMIF('18.ПКЗ'!$D:$D, $D33, '18.ПКЗ'!H:H)+SUMIF('19.БФИ'!$D:$D, $D33, '19.БФИ'!H:H)) -> 0 | H33: =IF($D33="", 0, SUMIF('7.СМР'!$D:$D, $D33, '7.СМР'!H:H)+SUMIF('8.ОСС'!$D:$D, $D33, '8.ОСС'!Z:Z)+SUMIF('9.ПИР'!$D:$D, $D33, '9.ПИР'!H:H)+SUMIF('10.БКП'!$D:$D, $D33, '10.БКП'!H:H)+SUMIF('11.ПЗС'!$D:$D, $D33, '11.ПЗС'!I:I)+SUMIF('12.ТП_БЭФ'!$D:$D, $D33, '12.ТП_БЭФ'!AB:AB)+SUMIF('13.ТП_СЭФ'!$D:$D, $D33, '13.ТП_СЭФ'!AJ:AJ)+SUMIF('14.ОВИЗ'!$D:$D, $D33, '14.ОВИЗ'!AK:AK)+SUMIF('15.ГРР'!$D:$D, $D33, '15.ГРР'!H:H)+SUMIF('16.НИОКР'!$D:$D, $D33, '16.НИОКР'!H:H)+SUMIF('17.НМА'!$D:$D, $D33, '17.НМА'!I:I)+SUMIF('18.ПКЗ'!$D:$D, $D33, '18.ПКЗ'!I:I)+SUMIF('19.БФИ'!$D:$D, $D33, '19.БФИ'!I:I)) -> 0 | I33: =IF($D33="", 0, SUMIF('7.СМР'!$D:$D, $D33, '7.СМР'!I:I)+SUMIF('8.ОСС'!$D:$D, $D33, '8.ОСС'!AA:AA)+SUMIF('9.ПИР'!$D:$D, $D33, '9.ПИР'!I:I)+SUMIF('10.БКП'!$D:$D, $D33, '10.БКП'!I:I)+SUMIF('11.ПЗС'!$D:$D, $D33, '11.ПЗС'!J:J)+SUMIF('12.ТП_БЭФ'!$D:$D, $D33, '12.ТП_БЭФ'!AC:AC)+SUMIF('13.ТП_СЭФ'!$D:$D, $D33, '13.ТП_СЭФ'!AK:AK)+SUMIF('14.ОВИЗ'!$D:$D, $D33, '14.ОВИЗ'!AL:AL)+SUMIF('15.ГРР'!$D:$D, $D33, '15.ГРР'!I:I)+SUMIF('16.НИОКР'!$D:$D, $D33, '16.НИОКР'!I:I)+SUMIF('17.НМА'!$D:$D, $D33, '17.НМА'!J:J)+SUMIF('18.ПКЗ'!$D:$D, $D33, '18.ПКЗ'!J:J)+SUMIF('19.БФИ'!$D:$D, $D33, '19.БФИ'!J:J)) -> 0 | J33: =IF($D33="", 0, SUMIF('7.СМР'!$D:$D, $D33, '7.СМР'!J:J)+SUMIF('8.ОСС'!$D:$D, $D33, '8.ОСС'!AB:AB)+SUMIF('9.ПИР'!$D:$D, $D33, '9.ПИР'!J:J)+SUMIF('10.БКП'!$D:$D, $D33, '10.БКП'!J:J)+SUMIF('11.ПЗС'!$D:$D, $D33, '11.ПЗС'!K:K)+SUMIF('12.ТП_БЭФ'!$D:$D, $D33, '12.ТП_БЭФ'!AD:AD)+SUMIF('13.ТП_СЭФ'!$D:$D, $D33, '13.ТП_СЭФ'!AL:AL)+SUMIF('14.ОВИЗ'!$D:$D, $D33, '14.ОВИЗ'!AM:AM)+SUMIF('15.ГРР'!$D:$D, $D33, '15.ГРР'!J:J)+SUMIF('16.НИОКР'!$D:$D, $D33, '16.НИОКР'!J:J)+SUMIF('17.НМА'!$D:$D, $D33, '17.НМА'!K:K)+SUMIF('18.ПКЗ'!$D:$D, $D33, '18.ПКЗ'!K:K)+SUMIF('19.БФИ'!$D:$D, $D33, '19.БФИ'!K:K)) -> 0 | K33: =IF($D33="", 0, SUMIF('7.СМР'!$D:$D, $D33, '7.СМР'!K:K)+SUMIF('8.ОСС'!$D:$D, $D33, '8.ОСС'!AC:AC)+SUMIF('9.ПИР'!$D:$D, $D33, '9.ПИР'!K:K)+SUMIF('10.БКП'!$D:$D, $D33, '10.БКП'!K:K)+SUMIF('11.ПЗС'!$D:$D, $D33, '11.ПЗС'!L:L)+SUMIF('12.ТП_БЭФ'!$D:$D, $D33, '12.ТП_БЭФ'!AE:AE)+SUMIF('13.ТП_СЭФ'!$D:$D, $D33, '13.ТП_СЭФ'!AM:AM)+SUMIF('14.ОВИЗ'!$D:$D, $D33, '14.ОВИЗ'!AN:AN)+SUMIF('15.ГРР'!$D:$D, $D33, '15.ГРР'!K:K)+SUMIF('16.НИОКР'!$D:$D, $D33, '16.НИОКР'!K:K)+SUMIF('17.НМА'!$D:$D, $D33, '17.НМА'!L:L)+SUMIF('18.ПКЗ'!$D:$D, $D33, '18.ПКЗ'!L:L)+SUMIF('19.БФИ'!$D:$D, $D33, '19.БФИ'!L:L)) -> 0 | L33: =IF($D33="", 0, SUMIF('7.СМР'!$D:$D, $D33, '7.СМР'!L:L)+SUMIF('8.ОСС'!$D:$D, $D33, '8.ОСС'!AD:AD)+SUMIF('9.ПИР'!$D:$D, $D33, '9.ПИР'!L:L)+SUMIF('10.БКП'!$D:$D, $D33, '10.БКП'!L:L)+SUMIF('11.ПЗС'!$D:$D, $D33, '11.ПЗС'!M:M)+SUMIF('12.ТП_БЭФ'!$D:$D, $D33, '12.ТП_БЭФ'!AF:AF)+SUMIF('13.ТП_СЭФ'!$D:$D, $D33, '13.ТП_СЭФ'!AN:AN)+SUMIF('14.ОВИЗ'!$D:$D, $D33, '14.ОВИЗ'!AO:AO)+SUMIF('15.ГРР'!$D:$D, $D33, '15.ГРР'!L:L)+SUMIF('16.НИОКР'!$D:$D, $D33, '16.НИОКР'!L:L)+SUMIF('17.НМА'!$D:$D, $D33, '17.НМА'!M:M)+SUMIF('18.ПКЗ'!$D:$D, $D33, '18.ПКЗ'!M:M)+SUMIF('19.БФИ'!$D:$D, $D33, '19.БФИ'!M:M)) -> 0 | M33: =IF($D33="", 0, SUMIF('7.СМР'!$D:$D, $D33, '7.СМР'!M:M)+SUMIF('8.ОСС'!$D:$D, $D33, '8.ОСС'!AE:AE)+SUMIF('9.ПИР'!$D:$D, $D33, '9.ПИР'!M:M)+SUMIF('10.БКП'!$D:$D, $D33, '10.БКП'!M:M)+SUMIF('11.ПЗС'!$D:$D, $D33, '11.ПЗС'!N:N)+SUMIF('12.ТП_БЭФ'!$D:$D, $D33, '12.ТП_БЭФ'!AG:AG)+SUMIF('13.ТП_СЭФ'!$D:$D, $D33, '13.ТП_СЭФ'!AO:AO)+SUMIF('14.ОВИЗ'!$D:$D, $D33, '14.ОВИЗ'!AP:AP)+SUMIF('15.ГРР'!$D:$D, $D33, '15.ГРР'!M:M)+SUMIF('16.НИОКР'!$D:$D, $D33, '16.НИОКР'!M:M)+SUMIF('17.НМА'!$D:$D, $D33, '17.НМА'!N:N)+SUMIF('18.ПКЗ'!$D:$D, $D33, '18.ПКЗ'!N:N)+SUMIF('19.БФИ'!$D:$D, $D33, '19.БФИ'!N:N)) -> 0 | N33: =IF($D33="", 0, SUMIF('7.СМР'!$D:$D, $D33, '7.СМР'!N:N)+SUMIF('8.ОСС'!$D:$D, $D33, '8.ОСС'!AF:AF)+SUMIF('9.ПИР'!$D:$D, $D33, '9.ПИР'!N:N)+SUMIF('10.БКП'!$D:$D, $D33, '10.БКП'!N:N)+SUMIF('11.ПЗС'!$D:$D, $D33, '11.ПЗС'!O:O)+SUMIF('12.ТП_БЭФ'!$D:$D, $D33, '12.ТП_БЭФ'!AH:AH)+SUMIF('13.ТП_СЭФ'!$D:$D, $D33, '13.ТП_СЭФ'!AP:AP)+SUMIF('14.ОВИЗ'!$D:$D, $D33, '14.ОВИЗ'!AQ:AQ)+SUMIF('15.ГРР'!$D:$D, $D33, '15.ГРР'!N:N)+SUMIF('16.НИОКР'!$D:$D, $D33, '16.НИОКР'!N:N)+SUMIF('17.НМА'!$D:$D, $D33, '17.НМА'!O:O)+SUMIF('18.ПКЗ'!$D:$D, $D33, '18.ПКЗ'!O:O)+SUMIF('19.БФИ'!$D:$D, $D33, '19.БФИ'!O:O)) -> 0 | O33: =IF($D33="", 0, SUMIF('7.СМР'!$D:$D, $D33, '7.СМР'!O:O)+SUMIF('8.ОСС'!$D:$D, $D33, '8.ОСС'!AG:AG)+SUMIF('9.ПИР'!$D:$D, $D33, '9.ПИР'!O:O)+SUMIF('10.БКП'!$D:$D, $D33, '10.БКП'!O:O)+SUMIF('11.ПЗС'!$D:$D, $D33, '11.ПЗС'!P:P)+SUMIF('12.ТП_БЭФ'!$D:$D, $D33, '12.ТП_БЭФ'!AI:AI)+SUMIF('13.ТП_СЭФ'!$D:$D, $D33, '13.ТП_СЭФ'!AQ:AQ)+SUMIF('14.ОВИЗ'!$D:$D, $D33, '14.ОВИЗ'!AR:AR)+SUMIF('15.ГРР'!$D:$D, $D33, '15.ГРР'!O:O)+SUMIF('16.НИОКР'!$D:$D, $D33, '16.НИОКР'!O:O)+SUMIF('17.НМА'!$D:$D, $D33, '17.НМА'!P:P)+SUMIF('18.ПКЗ'!$D:$D, $D33, '18.ПКЗ'!P:P)+SUMIF('19.БФИ'!$D:$D, $D33, '19.БФИ'!P:P)) -> 0 | P33: =IF($D33="", 0, SUMIF('7.СМР'!$D:$D, $D33, '7.СМР'!P:P)+SUMIF('8.ОСС'!$D:$D, $D33, '8.ОСС'!AH:AH)+SUMIF('9.ПИР'!$D:$D, $D33, '9.ПИР'!P:P)+SUMIF('10.БКП'!$D:$D, $D33, '10.БКП'!P:P)+SUMIF('11.ПЗС'!$D:$D, $D33, '11.ПЗС'!Q:Q)+SUMIF('12.ТП_БЭФ'!$D:$D, $D33, '12.ТП_БЭФ'!AJ:AJ)+SUMIF('13.ТП_СЭФ'!$D:$D, $D33, '13.ТП_СЭФ'!AR:AR)+SUMIF('14.ОВИЗ'!$D:$D, $D33, '14.ОВИЗ'!AS:AS)+SUMIF('15.ГРР'!$D:$D, $D33, '15.ГРР'!P:P)+SUMIF('16.НИОКР'!$D:$D, $D33, '16.НИОКР'!P:P)+SUMIF('17.НМА'!$D:$D, $D33, '17.НМА'!Q:Q)+SUMIF('18.ПКЗ'!$D:$D, $D33, '18.ПКЗ'!Q:Q)+SUMIF('19.БФИ'!$D:$D, $D33, '19.БФИ'!Q:Q)) -> 0 | Q33: 0 | R33: 0 | S33: 0 | T33: 0 | V33: 0 | W33: 0 | X33: =IF($D33="", 0, SUMIF('7.СМР'!$D:$D, $D33, '7.СМР'!X:X)+SUMIF('8.ОСС'!$D:$D, $D33, '8.ОСС'!AP:AP)+SUMIF('9.ПИР'!$D:$D, $D33, '9.ПИР'!X:X)+SUMIF('10.БКП'!$D:$D, $D33, '10.БКП'!X:X)+SUMIF('11.ПЗС'!$D:$D, $D33, '11.ПЗС'!Y:Y)+SUMIF('12.ТП_БЭФ'!$D:$D, $D33, '12.ТП_БЭФ'!AR:AR)+SUMIF('13.ТП_СЭФ'!$D:$D, $D33, '13.ТП_СЭФ'!AZ:AZ)+SUMIF('14.ОВИЗ'!$D:$D, $D33, '14.ОВИЗ'!BA:BA)+SUMIF('15.ГРР'!$D:$D, $D33, '15.ГРР'!X:X)+SUMIF('16.НИОКР'!$D:$D, $D33, '16.НИОКР'!X:X)+SUMIF('17.НМА'!$D:$D, $D33, '17.НМА'!Y:Y)+SUMIF('18.ПКЗ'!$D:$D, $D33, '18.ПКЗ'!Y:Y)+SUMIF('19.БФИ'!$D:$D, $D33, '19.БФИ'!Y:Y)) -> 0 | Y33: =IF($D33="", 0, SUMIF('7.СМР'!$D:$D, $D33, '7.СМР'!Y:Y)+SUMIF('8.ОСС'!$D:$D, $D33, '8.ОСС'!AQ:AQ)+SUMIF('9.ПИР'!$D:$D, $D33, '9.ПИР'!Y:Y)+SUMIF('10.БКП'!$D:$D, $D33, '10.БКП'!Y:Y)+SUMIF('11.ПЗС'!$D:$D, $D33, '11.ПЗС'!Z:Z)+SUMIF('12.ТП_БЭФ'!$D:$D, $D33, '12.ТП_БЭФ'!AS:AS)+SUMIF('13.ТП_СЭФ'!$D:$D, $D33, '13.ТП_СЭФ'!BA:BA)+SUMIF('14.ОВИЗ'!$D:$D, $D33, '14.ОВИЗ'!BB:BB)+SUMIF('15.ГРР'!$D:$D, $D33, '15.ГРР'!Y:Y)+SUMIF('16.НИОКР'!$D:$D, $D33, '16.НИОКР'!Y:Y)+SUMIF('17.НМА'!$D:$D, $D33, '17.НМА'!Z:Z)+SUMIF('18.ПКЗ'!$D:$D, $D33, '18.ПКЗ'!Z:Z)+SUMIF('19.БФИ'!$D:$D, $D33, '19.БФИ'!Z:Z)) -> 0 | Z33: =IF($D33="", 0, SUMIF('7.СМР'!$D:$D, $D33, '7.СМР'!Z:Z)+SUMIF('8.ОСС'!$D:$D, $D33, '8.ОСС'!AR:AR)+SUMIF('9.ПИР'!$D:$D, $D33, '9.ПИР'!Z:Z)+SUMIF('10.БКП'!$D:$D, $D33, '10.БКП'!Z:Z)+SUMIF('11.ПЗС'!$D:$D, $D33, '11.ПЗС'!AA:AA)+SUMIF('12.ТП_БЭФ'!$D:$D, $D33, '12.ТП_БЭФ'!AT:AT)+SUMIF('13.ТП_СЭФ'!$D:$D, $D33, '13.ТП_СЭФ'!BB:BB)+SUMIF('14.ОВИЗ'!$D:$D, $D33, '14.ОВИЗ'!BC:BC)+SUMIF('15.ГРР'!$D:$D, $D33, '15.ГРР'!Z:Z)+SUMIF('16.НИОКР'!$D:$D, $D33, '16.НИОКР'!Z:Z)+SUMIF('17.НМА'!$D:$D, $D33, '17.НМА'!AA:AA)+SUMIF('18.ПКЗ'!$D:$D, $D33, '18.ПКЗ'!AA:AA)+SUMIF('19.БФИ'!$D:$D, $D33, '19.БФИ'!AA:AA)) -> 0 | AA33: =IF($D33="", 0, SUMIF('7.СМР'!$D:$D, $D33, '7.СМР'!AA:AA)+SUMIF('8.ОСС'!$D:$D, $D33, '8.ОСС'!AS:AS)+SUMIF('9.ПИР'!$D:$D, $D33, '9.ПИР'!AA:AA)+SUMIF('10.БКП'!$D:$D, $D33, '10.БКП'!AA:AA)+SUMIF('11.ПЗС'!$D:$D, $D33, '11.ПЗС'!AB:AB)+SUMIF('12.ТП_БЭФ'!$D:$D, $D33, '12.ТП_БЭФ'!AU:AU)+SUMIF('13.ТП_СЭФ'!$D:$D, $D33, '13.ТП_СЭФ'!BC:BC)+SUMIF('14.ОВИЗ'!$D:$D, $D33, '14.ОВИЗ'!BD:BD)+SUMIF('15.ГРР'!$D:$D, $D33, '15.ГРР'!AA:AA)+SUMIF('16.НИОКР'!$D:$D, $D33, '16.НИОКР'!AA:AA)+SUMIF('17.НМА'!$D:$D, $D33, '17.НМА'!AB:AB)+SUMIF('18.ПКЗ'!$D:$D, $D33, '18.ПКЗ'!AB:AB)+SUMIF('19.БФИ'!$D:$D, $D33, '19.БФИ'!AB:AB)) -> 0 | AB33: =IF($D33="", 0, SUMIF('7.СМР'!$D:$D, $D33, '7.СМР'!AB:AB)+SUMIF('8.ОСС'!$D:$D, $D33, '8.ОСС'!AT:AT)+SUMIF('9.ПИР'!$D:$D, $D33, '9.ПИР'!AB:AB)+SUMIF('10.БКП'!$D:$D, $D33, '10.БКП'!AB:AB)+SUMIF('11.ПЗС'!$D:$D, $D33, '11.ПЗС'!AC:AC)+SUMIF('12.ТП_БЭФ'!$D:$D, $D33, '12.ТП_БЭФ'!AV:AV)+SUMIF('13.ТП_СЭФ'!$D:$D, $D33, '13.ТП_СЭФ'!BD:BD)+SUMIF('14.ОВИЗ'!$D:$D, $D33, '14.ОВИЗ'!BE:BE)+SUMIF('15.ГРР'!$D:$D, $D33, '15.ГРР'!AB:AB)+SUMIF('16.НИОКР'!$D:$D, $D33, '16.НИОКР'!AB:AB)+SUMIF('17.НМА'!$D:$D, $D33, '17.НМА'!AC:AC)+SUMIF('18.ПКЗ'!$D:$D, $D33, '18.ПКЗ'!AC:AC)+SUMIF('19.БФИ'!$D:$D, $D33, '19.БФИ'!AC:AC)) -> 0 | AC33: =IF($D33="", 0, SUMIF('7.СМР'!$D:$D, $D33, '7.СМР'!AC:AC)+SUMIF('8.ОСС'!$D:$D, $D33, '8.ОСС'!AU:AU)+SUMIF('9.ПИР'!$D:$D, $D33, '9.ПИР'!AC:AC)+SUMIF('10.БКП'!$D:$D, $D33, '10.БКП'!AC:AC)+SUMIF('11.ПЗС'!$D:$D, $D33, '11.ПЗС'!AD:AD)+SUMIF('12.ТП_БЭФ'!$D:$D, $D33, '12.ТП_БЭФ'!AW:AW)+SUMIF('13.ТП_СЭФ'!$D:$D, $D33, '13.ТП_СЭФ'!BE:BE)+SUMIF('14.ОВИЗ'!$D:$D, $D33, '14.ОВИЗ'!BF:BF)+SUMIF('15.ГРР'!$D:$D, $D33, '15.ГРР'!AC:AC)+SUMIF('16.НИОКР'!$D:$D, $D33, '16.НИОКР'!AC:AC)+SUMIF('17.НМА'!$D:$D, $D33, '17.НМА'!AD:AD)+SUMIF('18.ПКЗ'!$D:$D, $D33, '18.ПКЗ'!AD:AD)+SUMIF('19.БФИ'!$D:$D, $D33, '19.БФИ'!AD:AD)) -> 0 | AD33: =IF($D33="", 0, SUMIF('7.СМР'!$D:$D, $D33, '7.СМР'!AD:AD)+SUMIF('8.ОСС'!$D:$D, $D33, '8.ОСС'!AV:AV)+SUMIF('9.ПИР'!$D:$D, $D33, '9.ПИР'!AD:AD)+SUMIF('10.БКП'!$D:$D, $D33, '10.БКП'!AD:AD)+SUMIF('11.ПЗС'!$D:$D, $D33, '11.ПЗС'!AE:AE)+SUMIF('12.ТП_БЭФ'!$D:$D, $D33, '12.ТП_БЭФ'!AX:AX)+SUMIF('13.ТП_СЭФ'!$D:$D, $D33, '13.ТП_СЭФ'!BF:BF)+SUMIF('14.ОВИЗ'!$D:$D, $D33, '14.ОВИЗ'!BG:BG)+SUMIF('15.ГРР'!$D:$D, $D33, '15.ГРР'!AD:AD)+SUMIF('16.НИОКР'!$D:$D, $D33, '16.НИОКР'!AD:AD)+SUMIF('17.НМА'!$D:$D, $D33, '17.НМА'!AE:AE)+SUMIF('18.ПКЗ'!$D:$D, $D33, '18.ПКЗ'!AE:AE)+SUMIF('19.БФИ'!$D:$D, $D33, '19.БФИ'!AE:AE)) -> 0 | AE33: =IF($D33="", 0, SUMIF('7.СМР'!$D:$D, $D33, '7.СМР'!AE:AE)+SUMIF('8.ОСС'!$D:$D, $D33, '8.ОСС'!AW:AW)+SUMIF('9.ПИР'!$D:$D, $D33, '9.ПИР'!AE:AE)+SUMIF('10.БКП'!$D:$D, $D33, '10.БКП'!AE:AE)+SUMIF('11.ПЗС'!$D:$D, $D33, '11.ПЗС'!AF:AF)+SUMIF('12.ТП_БЭФ'!$D:$D, $D33, '12.ТП_БЭФ'!AY:AY)+SUMIF('13.ТП_СЭФ'!$D:$D, $D33, '13.ТП_СЭФ'!BG:BG)+SUMIF('14.ОВИЗ'!$D:$D, $D33, '14.ОВИЗ'!BH:BH)+SUMIF('15.ГРР'!$D:$D, $D33, '15.ГРР'!AE:AE)+SUMIF('16.НИОКР'!$D:$D, $D33, '16.НИОКР'!AE:AE)+SUMIF('17.НМА'!$D:$D, $D33, '17.НМА'!AF:AF)+SUMIF('18.ПКЗ'!$D:$D, $D33, '18.ПКЗ'!AF:AF)+SUMIF('19.БФИ'!$D:$D, $D33, '19.БФИ'!AF:AF)) -> 0 | AG33: 0
B34: =IF(D34="", "", '04.РИП'!A44) ->  | C34: =IF(D34="", "", '04.РИП'!D44) ->  | D34: =IF(ISBLANK('04.РИП'!B44), "", '04.РИП'!B44) ->  | E34: =IF(D34="", "", '04.РИП'!E44) ->  | F34: =IF(D34="", "", '04.РИП'!D44) ->  | G34: =IF($D34="", 0, SUMIF('7.СМР'!$D:$D, $D34, '7.СМР'!G:G)+SUMIF('8.ОСС'!$D:$D, $D34, '8.ОСС'!Y:Y)+SUMIF('9.ПИР'!$D:$D, $D34, '9.ПИР'!G:G)+SUMIF('10.БКП'!$D:$D, $D34, '10.БКП'!G:G)+SUMIF('11.ПЗС'!$D:$D, $D34, '11.ПЗС'!H:H)+SUMIF('12.ТП_БЭФ'!$D:$D, $D34, '12.ТП_БЭФ'!AA:AA)+SUMIF('13.ТП_СЭФ'!$D:$D, $D34, '13.ТП_СЭФ'!AI:AI)+SUMIF('14.ОВИЗ'!$D:$D, $D34, '14.ОВИЗ'!AJ:AJ)+SUMIF('15.ГРР'!$D:$D, $D34, '15.ГРР'!G:G)+SUMIF('16.НИОКР'!$D:$D, $D34, '16.НИОКР'!G:G)+SUMIF('17.НМА'!$D:$D, $D34, '17.НМА'!H:H)+SUMIF('18.ПКЗ'!$D:$D, $D34, '18.ПКЗ'!H:H)+SUMIF('19.БФИ'!$D:$D, $D34, '19.БФИ'!H:H)) -> 0 | H34: =IF($D34="", 0, SUMIF('7.СМР'!$D:$D, $D34, '7.СМР'!H:H)+SUMIF('8.ОСС'!$D:$D, $D34, '8.ОСС'!Z:Z)+SUMIF('9.ПИР'!$D:$D, $D34, '9.ПИР'!H:H)+SUMIF('10.БКП'!$D:$D, $D34, '10.БКП'!H:H)+SUMIF('11.ПЗС'!$D:$D, $D34, '11.ПЗС'!I:I)+SUMIF('12.ТП_БЭФ'!$D:$D, $D34, '12.ТП_БЭФ'!AB:AB)+SUMIF('13.ТП_СЭФ'!$D:$D, $D34, '13.ТП_СЭФ'!AJ:AJ)+SUMIF('14.ОВИЗ'!$D:$D, $D34, '14.ОВИЗ'!AK:AK)+SUMIF('15.ГРР'!$D:$D, $D34, '15.ГРР'!H:H)+SUMIF('16.НИОКР'!$D:$D, $D34, '16.НИОКР'!H:H)+SUMIF('17.НМА'!$D:$D, $D34, '17.НМА'!I:I)+SUMIF('18.ПКЗ'!$D:$D, $D34, '18.ПКЗ'!I:I)+SUMIF('19.БФИ'!$D:$D, $D34, '19.БФИ'!I:I)) -> 0 | I34: =IF($D34="", 0, SUMIF('7.СМР'!$D:$D, $D34, '7.СМР'!I:I)+SUMIF('8.ОСС'!$D:$D, $D34, '8.ОСС'!AA:AA)+SUMIF('9.ПИР'!$D:$D, $D34, '9.ПИР'!I:I)+SUMIF('10.БКП'!$D:$D, $D34, '10.БКП'!I:I)+SUMIF('11.ПЗС'!$D:$D, $D34, '11.ПЗС'!J:J)+SUMIF('12.ТП_БЭФ'!$D:$D, $D34, '12.ТП_БЭФ'!AC:AC)+SUMIF('13.ТП_СЭФ'!$D:$D, $D34, '13.ТП_СЭФ'!AK:AK)+SUMIF('14.ОВИЗ'!$D:$D, $D34, '14.ОВИЗ'!AL:AL)+SUMIF('15.ГРР'!$D:$D, $D34, '15.ГРР'!I:I)+SUMIF('16.НИОКР'!$D:$D, $D34, '16.НИОКР'!I:I)+SUMIF('17.НМА'!$D:$D, $D34, '17.НМА'!J:J)+SUMIF('18.ПКЗ'!$D:$D, $D34, '18.ПКЗ'!J:J)+SUMIF('19.БФИ'!$D:$D, $D34, '19.БФИ'!J:J)) -> 0 | J34: =IF($D34="", 0, SUMIF('7.СМР'!$D:$D, $D34, '7.СМР'!J:J)+SUMIF('8.ОСС'!$D:$D, $D34, '8.ОСС'!AB:AB)+SUMIF('9.ПИР'!$D:$D, $D34, '9.ПИР'!J:J)+SUMIF('10.БКП'!$D:$D, $D34, '10.БКП'!J:J)+SUMIF('11.ПЗС'!$D:$D, $D34, '11.ПЗС'!K:K)+SUMIF('12.ТП_БЭФ'!$D:$D, $D34, '12.ТП_БЭФ'!AD:AD)+SUMIF('13.ТП_СЭФ'!$D:$D, $D34, '13.ТП_СЭФ'!AL:AL)+SUMIF('14.ОВИЗ'!$D:$D, $D34, '14.ОВИЗ'!AM:AM)+SUMIF('15.ГРР'!$D:$D, $D34, '15.ГРР'!J:J)+SUMIF('16.НИОКР'!$D:$D, $D34, '16.НИОКР'!J:J)+SUMIF('17.НМА'!$D:$D, $D34, '17.НМА'!K:K)+SUMIF('18.ПКЗ'!$D:$D, $D34, '18.ПКЗ'!K:K)+SUMIF('19.БФИ'!$D:$D, $D34, '19.БФИ'!K:K)) -> 0 | K34: =IF($D34="", 0, SUMIF('7.СМР'!$D:$D, $D34, '7.СМР'!K:K)+SUMIF('8.ОСС'!$D:$D, $D34, '8.ОСС'!AC:AC)+SUMIF('9.ПИР'!$D:$D, $D34, '9.ПИР'!K:K)+SUMIF('10.БКП'!$D:$D, $D34, '10.БКП'!K:K)+SUMIF('11.ПЗС'!$D:$D, $D34, '11.ПЗС'!L:L)+SUMIF('12.ТП_БЭФ'!$D:$D, $D34, '12.ТП_БЭФ'!AE:AE)+SUMIF('13.ТП_СЭФ'!$D:$D, $D34, '13.ТП_СЭФ'!AM:AM)+SUMIF('14.ОВИЗ'!$D:$D, $D34, '14.ОВИЗ'!AN:AN)+SUMIF('15.ГРР'!$D:$D, $D34, '15.ГРР'!K:K)+SUMIF('16.НИОКР'!$D:$D, $D34, '16.НИОКР'!K:K)+SUMIF('17.НМА'!$D:$D, $D34, '17.НМА'!L:L)+SUMIF('18.ПКЗ'!$D:$D, $D34, '18.ПКЗ'!L:L)+SUMIF('19.БФИ'!$D:$D, $D34, '19.БФИ'!L:L)) -> 0 | L34: =IF($D34="", 0, SUMIF('7.СМР'!$D:$D, $D34, '7.СМР'!L:L)+SUMIF('8.ОСС'!$D:$D, $D34, '8.ОСС'!AD:AD)+SUMIF('9.ПИР'!$D:$D, $D34, '9.ПИР'!L:L)+SUMIF('10.БКП'!$D:$D, $D34, '10.БКП'!L:L)+SUMIF('11.ПЗС'!$D:$D, $D34, '11.ПЗС'!M:M)+SUMIF('12.ТП_БЭФ'!$D:$D, $D34, '12.ТП_БЭФ'!AF:AF)+SUMIF('13.ТП_СЭФ'!$D:$D, $D34, '13.ТП_СЭФ'!AN:AN)+SUMIF('14.ОВИЗ'!$D:$D, $D34, '14.ОВИЗ'!AO:AO)+SUMIF('15.ГРР'!$D:$D, $D34, '15.ГРР'!L:L)+SUMIF('16.НИОКР'!$D:$D, $D34, '16.НИОКР'!L:L)+SUMIF('17.НМА'!$D:$D, $D34, '17.НМА'!M:M)+SUMIF('18.ПКЗ'!$D:$D, $D34, '18.ПКЗ'!M:M)+SUMIF('19.БФИ'!$D:$D, $D34, '19.БФИ'!M:M)) -> 0 | M34: =IF($D34="", 0, SUMIF('7.СМР'!$D:$D, $D34, '7.СМР'!M:M)+SUMIF('8.ОСС'!$D:$D, $D34, '8.ОСС'!AE:AE)+SUMIF('9.ПИР'!$D:$D, $D34, '9.ПИР'!M:M)+SUMIF('10.БКП'!$D:$D, $D34, '10.БКП'!M:M)+SUMIF('11.ПЗС'!$D:$D, $D34, '11.ПЗС'!N:N)+SUMIF('12.ТП_БЭФ'!$D:$D, $D34, '12.ТП_БЭФ'!AG:AG)+SUMIF('13.ТП_СЭФ'!$D:$D, $D34, '13.ТП_СЭФ'!AO:AO)+SUMIF('14.ОВИЗ'!$D:$D, $D34, '14.ОВИЗ'!AP:AP)+SUMIF('15.ГРР'!$D:$D, $D34, '15.ГРР'!M:M)+SUMIF('16.НИОКР'!$D:$D, $D34, '16.НИОКР'!M:M)+SUMIF('17.НМА'!$D:$D, $D34, '17.НМА'!N:N)+SUMIF('18.ПКЗ'!$D:$D, $D34, '18.ПКЗ'!N:N)+SUMIF('19.БФИ'!$D:$D, $D34, '19.БФИ'!N:N)) -> 0 | N34: =IF($D34="", 0, SUMIF('7.СМР'!$D:$D, $D34, '7.СМР'!N:N)+SUMIF('8.ОСС'!$D:$D, $D34, '8.ОСС'!AF:AF)+SUMIF('9.ПИР'!$D:$D, $D34, '9.ПИР'!N:N)+SUMIF('10.БКП'!$D:$D, $D34, '10.БКП'!N:N)+SUMIF('11.ПЗС'!$D:$D, $D34, '11.ПЗС'!O:O)+SUMIF('12.ТП_БЭФ'!$D:$D, $D34, '12.ТП_БЭФ'!AH:AH)+SUMIF('13.ТП_СЭФ'!$D:$D, $D34, '13.ТП_СЭФ'!AP:AP)+SUMIF('14.ОВИЗ'!$D:$D, $D34, '14.ОВИЗ'!AQ:AQ)+SUMIF('15.ГРР'!$D:$D, $D34, '15.ГРР'!N:N)+SUMIF('16.НИОКР'!$D:$D, $D34, '16.НИОКР'!N:N)+SUMIF('17.НМА'!$D:$D, $D34, '17.НМА'!O:O)+SUMIF('18.ПКЗ'!$D:$D, $D34, '18.ПКЗ'!O:O)+SUMIF('19.БФИ'!$D:$D, $D34, '19.БФИ'!O:O)) -> 0 | O34: =IF($D34="", 0, SUMIF('7.СМР'!$D:$D, $D34, '7.СМР'!O:O)+SUMIF('8.ОСС'!$D:$D, $D34, '8.ОСС'!AG:AG)+SUMIF('9.ПИР'!$D:$D, $D34, '9.ПИР'!O:O)+SUMIF('10.БКП'!$D:$D, $D34, '10.БКП'!O:O)+SUMIF('11.ПЗС'!$D:$D, $D34, '11.ПЗС'!P:P)+SUMIF('12.ТП_БЭФ'!$D:$D, $D34, '12.ТП_БЭФ'!AI:AI)+SUMIF('13.ТП_СЭФ'!$D:$D, $D34, '13.ТП_СЭФ'!AQ:AQ)+SUMIF('14.ОВИЗ'!$D:$D, $D34, '14.ОВИЗ'!AR:AR)+SUMIF('15.ГРР'!$D:$D, $D34, '15.ГРР'!O:O)+SUMIF('16.НИОКР'!$D:$D, $D34, '16.НИОКР'!O:O)+SUMIF('17.НМА'!$D:$D, $D34, '17.НМА'!P:P)+SUMIF('18.ПКЗ'!$D:$D, $D34, '18.ПКЗ'!P:P)+SUMIF('19.БФИ'!$D:$D, $D34, '19.БФИ'!P:P)) -> 0 | P34: =IF($D34="", 0, SUMIF('7.СМР'!$D:$D, $D34, '7.СМР'!P:P)+SUMIF('8.ОСС'!$D:$D, $D34, '8.ОСС'!AH:AH)+SUMIF('9.ПИР'!$D:$D, $D34, '9.ПИР'!P:P)+SUMIF('10.БКП'!$D:$D, $D34, '10.БКП'!P:P)+SUMIF('11.ПЗС'!$D:$D, $D34, '11.ПЗС'!Q:Q)+SUMIF('12.ТП_БЭФ'!$D:$D, $D34, '12.ТП_БЭФ'!AJ:AJ)+SUMIF('13.ТП_СЭФ'!$D:$D, $D34, '13.ТП_СЭФ'!AR:AR)+SUMIF('14.ОВИЗ'!$D:$D, $D34, '14.ОВИЗ'!AS:AS)+SUMIF('15.ГРР'!$D:$D, $D34, '15.ГРР'!P:P)+SUMIF('16.НИОКР'!$D:$D, $D34, '16.НИОКР'!P:P)+SUMIF('17.НМА'!$D:$D, $D34, '17.НМА'!Q:Q)+SUMIF('18.ПКЗ'!$D:$D, $D34, '18.ПКЗ'!Q:Q)+SUMIF('19.БФИ'!$D:$D, $D34, '19.БФИ'!Q:Q)) -> 0 | Q34: 0 | R34: 0 | S34: 0 | T34: 0 | V34: 0 | W34: 0 | X34: =IF($D34="", 0, SUMIF('7.СМР'!$D:$D, $D34, '7.СМР'!X:X)+SUMIF('8.ОСС'!$D:$D, $D34, '8.ОСС'!AP:AP)+SUMIF('9.ПИР'!$D:$D, $D34, '9.ПИР'!X:X)+SUMIF('10.БКП'!$D:$D, $D34, '10.БКП'!X:X)+SUMIF('11.ПЗС'!$D:$D, $D34, '11.ПЗС'!Y:Y)+SUMIF('12.ТП_БЭФ'!$D:$D, $D34, '12.ТП_БЭФ'!AR:AR)+SUMIF('13.ТП_СЭФ'!$D:$D, $D34, '13.ТП_СЭФ'!AZ:AZ)+SUMIF('14.ОВИЗ'!$D:$D, $D34, '14.ОВИЗ'!BA:BA)+SUMIF('15.ГРР'!$D:$D, $D34, '15.ГРР'!X:X)+SUMIF('16.НИОКР'!$D:$D, $D34, '16.НИОКР'!X:X)+SUMIF('17.НМА'!$D:$D, $D34, '17.НМА'!Y:Y)+SUMIF('18.ПКЗ'!$D:$D, $D34, '18.ПКЗ'!Y:Y)+SUMIF('19.БФИ'!$D:$D, $D34, '19.БФИ'!Y:Y)) -> 0 | Y34: =IF($D34="", 0, SUMIF('7.СМР'!$D:$D, $D34, '7.СМР'!Y:Y)+SUMIF('8.ОСС'!$D:$D, $D34, '8.ОСС'!AQ:AQ)+SUMIF('9.ПИР'!$D:$D, $D34, '9.ПИР'!Y:Y)+SUMIF('10.БКП'!$D:$D, $D34, '10.БКП'!Y:Y)+SUMIF('11.ПЗС'!$D:$D, $D34, '11.ПЗС'!Z:Z)+SUMIF('12.ТП_БЭФ'!$D:$D, $D34, '12.ТП_БЭФ'!AS:AS)+SUMIF('13.ТП_СЭФ'!$D:$D, $D34, '13.ТП_СЭФ'!BA:BA)+SUMIF('14.ОВИЗ'!$D:$D, $D34, '14.ОВИЗ'!BB:BB)+SUMIF('15.ГРР'!$D:$D, $D34, '15.ГРР'!Y:Y)+SUMIF('16.НИОКР'!$D:$D, $D34, '16.НИОКР'!Y:Y)+SUMIF('17.НМА'!$D:$D, $D34, '17.НМА'!Z:Z)+SUMIF('18.ПКЗ'!$D:$D, $D34, '18.ПКЗ'!Z:Z)+SUMIF('19.БФИ'!$D:$D, $D34, '19.БФИ'!Z:Z)) -> 0 | Z34: =IF($D34="", 0, SUMIF('7.СМР'!$D:$D, $D34, '7.СМР'!Z:Z)+SUMIF('8.ОСС'!$D:$D, $D34, '8.ОСС'!AR:AR)+SUMIF('9.ПИР'!$D:$D, $D34, '9.ПИР'!Z:Z)+SUMIF('10.БКП'!$D:$D, $D34, '10.БКП'!Z:Z)+SUMIF('11.ПЗС'!$D:$D, $D34, '11.ПЗС'!AA:AA)+SUMIF('12.ТП_БЭФ'!$D:$D, $D34, '12.ТП_БЭФ'!AT:AT)+SUMIF('13.ТП_СЭФ'!$D:$D, $D34, '13.ТП_СЭФ'!BB:BB)+SUMIF('14.ОВИЗ'!$D:$D, $D34, '14.ОВИЗ'!BC:BC)+SUMIF('15.ГРР'!$D:$D, $D34, '15.ГРР'!Z:Z)+SUMIF('16.НИОКР'!$D:$D, $D34, '16.НИОКР'!Z:Z)+SUMIF('17.НМА'!$D:$D, $D34, '17.НМА'!AA:AA)+SUMIF('18.ПКЗ'!$D:$D, $D34, '18.ПКЗ'!AA:AA)+SUMIF('19.БФИ'!$D:$D, $D34, '19.БФИ'!AA:AA)) -> 0 | AA34: =IF($D34="", 0, SUMIF('7.СМР'!$D:$D, $D34, '7.СМР'!AA:AA)+SUMIF('8.ОСС'!$D:$D, $D34, '8.ОСС'!AS:AS)+SUMIF('9.ПИР'!$D:$D, $D34, '9.ПИР'!AA:AA)+SUMIF('10.БКП'!$D:$D, $D34, '10.БКП'!AA:AA)+SUMIF('11.ПЗС'!$D:$D, $D34, '11.ПЗС'!AB:AB)+SUMIF('12.ТП_БЭФ'!$D:$D, $D34, '12.ТП_БЭФ'!AU:AU)+SUMIF('13.ТП_СЭФ'!$D:$D, $D34, '13.ТП_СЭФ'!BC:BC)+SUMIF('14.ОВИЗ'!$D:$D, $D34, '14.ОВИЗ'!BD:BD)+SUMIF('15.ГРР'!$D:$D, $D34, '15.ГРР'!AA:AA)+SUMIF('16.НИОКР'!$D:$D, $D34, '16.НИОКР'!AA:AA)+SUMIF('17.НМА'!$D:$D, $D34, '17.НМА'!AB:AB)+SUMIF('18.ПКЗ'!$D:$D, $D34, '18.ПКЗ'!AB:AB)+SUMIF('19.БФИ'!$D:$D, $D34, '19.БФИ'!AB:AB)) -> 0 | AB34: =IF($D34="", 0, SUMIF('7.СМР'!$D:$D, $D34, '7.СМР'!AB:AB)+SUMIF('8.ОСС'!$D:$D, $D34, '8.ОСС'!AT:AT)+SUMIF('9.ПИР'!$D:$D, $D34, '9.ПИР'!AB:AB)+SUMIF('10.БКП'!$D:$D, $D34, '10.БКП'!AB:AB)+SUMIF('11.ПЗС'!$D:$D, $D34, '11.ПЗС'!AC:AC)+SUMIF('12.ТП_БЭФ'!$D:$D, $D34, '12.ТП_БЭФ'!AV:AV)+SUMIF('13.ТП_СЭФ'!$D:$D, $D34, '13.ТП_СЭФ'!BD:BD)+SUMIF('14.ОВИЗ'!$D:$D, $D34, '14.ОВИЗ'!BE:BE)+SUMIF('15.ГРР'!$D:$D, $D34, '15.ГРР'!AB:AB)+SUMIF('16.НИОКР'!$D:$D, $D34, '16.НИОКР'!AB:AB)+SUMIF('17.НМА'!$D:$D, $D34, '17.НМА'!AC:AC)+SUMIF('18.ПКЗ'!$D:$D, $D34, '18.ПКЗ'!AC:AC)+SUMIF('19.БФИ'!$D:$D, $D34, '19.БФИ'!AC:AC)) -> 0 | AC34: =IF($D34="", 0, SUMIF('7.СМР'!$D:$D, $D34, '7.СМР'!AC:AC)+SUMIF('8.ОСС'!$D:$D, $D34, '8.ОСС'!AU:AU)+SUMIF('9.ПИР'!$D:$D, $D34, '9.ПИР'!AC:AC)+SUMIF('10.БКП'!$D:$D, $D34, '10.БКП'!AC:AC)+SUMIF('11.ПЗС'!$D:$D, $D34, '11.ПЗС'!AD:AD)+SUMIF('12.ТП_БЭФ'!$D:$D, $D34, '12.ТП_БЭФ'!AW:AW)+SUMIF('13.ТП_СЭФ'!$D:$D, $D34, '13.ТП_СЭФ'!BE:BE)+SUMIF('14.ОВИЗ'!$D:$D, $D34, '14.ОВИЗ'!BF:BF)+SUMIF('15.ГРР'!$D:$D, $D34, '15.ГРР'!AC:AC)+SUMIF('16.НИОКР'!$D:$D, $D34, '16.НИОКР'!AC:AC)+SUMIF('17.НМА'!$D:$D, $D34, '17.НМА'!AD:AD)+SUMIF('18.ПКЗ'!$D:$D, $D34, '18.ПКЗ'!AD:AD)+SUMIF('19.БФИ'!$D:$D, $D34, '19.БФИ'!AD:AD)) -> 0 | AD34: =IF($D34="", 0, SUMIF('7.СМР'!$D:$D, $D34, '7.СМР'!AD:AD)+SUMIF('8.ОСС'!$D:$D, $D34, '8.ОСС'!AV:AV)+SUMIF('9.ПИР'!$D:$D, $D34, '9.ПИР'!AD:AD)+SUMIF('10.БКП'!$D:$D, $D34, '10.БКП'!AD:AD)+SUMIF('11.ПЗС'!$D:$D, $D34, '11.ПЗС'!AE:AE)+SUMIF('12.ТП_БЭФ'!$D:$D, $D34, '12.ТП_БЭФ'!AX:AX)+SUMIF('13.ТП_СЭФ'!$D:$D, $D34, '13.ТП_СЭФ'!BF:BF)+SUMIF('14.ОВИЗ'!$D:$D, $D34, '14.ОВИЗ'!BG:BG)+SUMIF('15.ГРР'!$D:$D, $D34, '15.ГРР'!AD:AD)+SUMIF('16.НИОКР'!$D:$D, $D34, '16.НИОКР'!AD:AD)+SUMIF('17.НМА'!$D:$D, $D34, '17.НМА'!AE:AE)+SUMIF('18.ПКЗ'!$D:$D, $D34, '18.ПКЗ'!AE:AE)+SUMIF('19.БФИ'!$D:$D, $D34, '19.БФИ'!AE:AE)) -> 0 | AE34: =IF($D34="", 0, SUMIF('7.СМР'!$D:$D, $D34, '7.СМР'!AE:AE)+SUMIF('8.ОСС'!$D:$D, $D34, '8.ОСС'!AW:AW)+SUMIF('9.ПИР'!$D:$D, $D34, '9.ПИР'!AE:AE)+SUMIF('10.БКП'!$D:$D, $D34, '10.БКП'!AE:AE)+SUMIF('11.ПЗС'!$D:$D, $D34, '11.ПЗС'!AF:AF)+SUMIF('12.ТП_БЭФ'!$D:$D, $D34, '12.ТП_БЭФ'!AY:AY)+SUMIF('13.ТП_СЭФ'!$D:$D, $D34, '13.ТП_СЭФ'!BG:BG)+SUMIF('14.ОВИЗ'!$D:$D, $D34, '14.ОВИЗ'!BH:BH)+SUMIF('15.ГРР'!$D:$D, $D34, '15.ГРР'!AE:AE)+SUMIF('16.НИОКР'!$D:$D, $D34, '16.НИОКР'!AE:AE)+SUMIF('17.НМА'!$D:$D, $D34, '17.НМА'!AF:AF)+SUMIF('18.ПКЗ'!$D:$D, $D34, '18.ПКЗ'!AF:AF)+SUMIF('19.БФИ'!$D:$D, $D34, '19.БФИ'!AF:AF)) -> 0 | AG34: 0
B35: =IF(D35="", "", '04.РИП'!A45) ->  | C35: =IF(D35="", "", '04.РИП'!D45) ->  | D35: =IF(ISBLANK('04.РИП'!B45), "", '04.РИП'!B45) ->  | E35: =IF(D35="", "", '04.РИП'!E45) ->  | F35: =IF(D35="", "", '04.РИП'!D45) ->  | G35: =IF($D35="", 0, SUMIF('7.СМР'!$D:$D, $D35, '7.СМР'!G:G)+SUMIF('8.ОСС'!$D:$D, $D35, '8.ОСС'!Y:Y)+SUMIF('9.ПИР'!$D:$D, $D35, '9.ПИР'!G:G)+SUMIF('10.БКП'!$D:$D, $D35, '10.БКП'!G:G)+SUMIF('11.ПЗС'!$D:$D, $D35, '11.ПЗС'!H:H)+SUMIF('12.ТП_БЭФ'!$D:$D, $D35, '12.ТП_БЭФ'!AA:AA)+SUMIF('13.ТП_СЭФ'!$D:$D, $D35, '13.ТП_СЭФ'!AI:AI)+SUMIF('14.ОВИЗ'!$D:$D, $D35, '14.ОВИЗ'!AJ:AJ)+SUMIF('15.ГРР'!$D:$D, $D35, '15.ГРР'!G:G)+SUMIF('16.НИОКР'!$D:$D, $D35, '16.НИОКР'!G:G)+SUMIF('17.НМА'!$D:$D, $D35, '17.НМА'!H:H)+SUMIF('18.ПКЗ'!$D:$D, $D35, '18.ПКЗ'!H:H)+SUMIF('19.БФИ'!$D:$D, $D35, '19.БФИ'!H:H)) -> 0 | H35: =IF($D35="", 0, SUMIF('7.СМР'!$D:$D, $D35, '7.СМР'!H:H)+SUMIF('8.ОСС'!$D:$D, $D35, '8.ОСС'!Z:Z)+SUMIF('9.ПИР'!$D:$D, $D35, '9.ПИР'!H:H)+SUMIF('10.БКП'!$D:$D, $D35, '10.БКП'!H:H)+SUMIF('11.ПЗС'!$D:$D, $D35, '11.ПЗС'!I:I)+SUMIF('12.ТП_БЭФ'!$D:$D, $D35, '12.ТП_БЭФ'!AB:AB)+SUMIF('13.ТП_СЭФ'!$D:$D, $D35, '13.ТП_СЭФ'!AJ:AJ)+SUMIF('14.ОВИЗ'!$D:$D, $D35, '14.ОВИЗ'!AK:AK)+SUMIF('15.ГРР'!$D:$D, $D35, '15.ГРР'!H:H)+SUMIF('16.НИОКР'!$D:$D, $D35, '16.НИОКР'!H:H)+SUMIF('17.НМА'!$D:$D, $D35, '17.НМА'!I:I)+SUMIF('18.ПКЗ'!$D:$D, $D35, '18.ПКЗ'!I:I)+SUMIF('19.БФИ'!$D:$D, $D35, '19.БФИ'!I:I)) -> 0 | I35: =IF($D35="", 0, SUMIF('7.СМР'!$D:$D, $D35, '7.СМР'!I:I)+SUMIF('8.ОСС'!$D:$D, $D35, '8.ОСС'!AA:AA)+SUMIF('9.ПИР'!$D:$D, $D35, '9.ПИР'!I:I)+SUMIF('10.БКП'!$D:$D, $D35, '10.БКП'!I:I)+SUMIF('11.ПЗС'!$D:$D, $D35, '11.ПЗС'!J:J)+SUMIF('12.ТП_БЭФ'!$D:$D, $D35, '12.ТП_БЭФ'!AC:AC)+SUMIF('13.ТП_СЭФ'!$D:$D, $D35, '13.ТП_СЭФ'!AK:AK)+SUMIF('14.ОВИЗ'!$D:$D, $D35, '14.ОВИЗ'!AL:AL)+SUMIF('15.ГРР'!$D:$D, $D35, '15.ГРР'!I:I)+SUMIF('16.НИОКР'!$D:$D, $D35, '16.НИОКР'!I:I)+SUMIF('17.НМА'!$D:$D, $D35, '17.НМА'!J:J)+SUMIF('18.ПКЗ'!$D:$D, $D35, '18.ПКЗ'!J:J)+SUMIF('19.БФИ'!$D:$D, $D35, '19.БФИ'!J:J)) -> 0 | J35: =IF($D35="", 0, SUMIF('7.СМР'!$D:$D, $D35, '7.СМР'!J:J)+SUMIF('8.ОСС'!$D:$D, $D35, '8.ОСС'!AB:AB)+SUMIF('9.ПИР'!$D:$D, $D35, '9.ПИР'!J:J)+SUMIF('10.БКП'!$D:$D, $D35, '10.БКП'!J:J)+SUMIF('11.ПЗС'!$D:$D, $D35, '11.ПЗС'!K:K)+SUMIF('12.ТП_БЭФ'!$D:$D, $D35, '12.ТП_БЭФ'!AD:AD)+SUMIF('13.ТП_СЭФ'!$D:$D, $D35, '13.ТП_СЭФ'!AL:AL)+SUMIF('14.ОВИЗ'!$D:$D, $D35, '14.ОВИЗ'!AM:AM)+SUMIF('15.ГРР'!$D:$D, $D35, '15.ГРР'!J:J)+SUMIF('16.НИОКР'!$D:$D, $D35, '16.НИОКР'!J:J)+SUMIF('17.НМА'!$D:$D, $D35, '17.НМА'!K:K)+SUMIF('18.ПКЗ'!$D:$D, $D35, '18.ПКЗ'!K:K)+SUMIF('19.БФИ'!$D:$D, $D35, '19.БФИ'!K:K)) -> 0 | K35: =IF($D35="", 0, SUMIF('7.СМР'!$D:$D, $D35, '7.СМР'!K:K)+SUMIF('8.ОСС'!$D:$D, $D35, '8.ОСС'!AC:AC)+SUMIF('9.ПИР'!$D:$D, $D35, '9.ПИР'!K:K)+SUMIF('10.БКП'!$D:$D, $D35, '10.БКП'!K:K)+SUMIF('11.ПЗС'!$D:$D, $D35, '11.ПЗС'!L:L)+SUMIF('12.ТП_БЭФ'!$D:$D, $D35, '12.ТП_БЭФ'!AE:AE)+SUMIF('13.ТП_СЭФ'!$D:$D, $D35, '13.ТП_СЭФ'!AM:AM)+SUMIF('14.ОВИЗ'!$D:$D, $D35, '14.ОВИЗ'!AN:AN)+SUMIF('15.ГРР'!$D:$D, $D35, '15.ГРР'!K:K)+SUMIF('16.НИОКР'!$D:$D, $D35, '16.НИОКР'!K:K)+SUMIF('17.НМА'!$D:$D, $D35, '17.НМА'!L:L)+SUMIF('18.ПКЗ'!$D:$D, $D35, '18.ПКЗ'!L:L)+SUMIF('19.БФИ'!$D:$D, $D35, '19.БФИ'!L:L)) -> 0 | L35: =IF($D35="", 0, SUMIF('7.СМР'!$D:$D, $D35, '7.СМР'!L:L)+SUMIF('8.ОСС'!$D:$D, $D35, '8.ОСС'!AD:AD)+SUMIF('9.ПИР'!$D:$D, $D35, '9.ПИР'!L:L)+SUMIF('10.БКП'!$D:$D, $D35, '10.БКП'!L:L)+SUMIF('11.ПЗС'!$D:$D, $D35, '11.ПЗС'!M:M)+SUMIF('12.ТП_БЭФ'!$D:$D, $D35, '12.ТП_БЭФ'!AF:AF)+SUMIF('13.ТП_СЭФ'!$D:$D, $D35, '13.ТП_СЭФ'!AN:AN)+SUMIF('14.ОВИЗ'!$D:$D, $D35, '14.ОВИЗ'!AO:AO)+SUMIF('15.ГРР'!$D:$D, $D35, '15.ГРР'!L:L)+SUMIF('16.НИОКР'!$D:$D, $D35, '16.НИОКР'!L:L)+SUMIF('17.НМА'!$D:$D, $D35, '17.НМА'!M:M)+SUMIF('18.ПКЗ'!$D:$D, $D35, '18.ПКЗ'!M:M)+SUMIF('19.БФИ'!$D:$D, $D35, '19.БФИ'!M:M)) -> 0 | M35: =IF($D35="", 0, SUMIF('7.СМР'!$D:$D, $D35, '7.СМР'!M:M)+SUMIF('8.ОСС'!$D:$D, $D35, '8.ОСС'!AE:AE)+SUMIF('9.ПИР'!$D:$D, $D35, '9.ПИР'!M:M)+SUMIF('10.БКП'!$D:$D, $D35, '10.БКП'!M:M)+SUMIF('11.ПЗС'!$D:$D, $D35, '11.ПЗС'!N:N)+SUMIF('12.ТП_БЭФ'!$D:$D, $D35, '12.ТП_БЭФ'!AG:AG)+SUMIF('13.ТП_СЭФ'!$D:$D, $D35, '13.ТП_СЭФ'!AO:AO)+SUMIF('14.ОВИЗ'!$D:$D, $D35, '14.ОВИЗ'!AP:AP)+SUMIF('15.ГРР'!$D:$D, $D35, '15.ГРР'!M:M)+SUMIF('16.НИОКР'!$D:$D, $D35, '16.НИОКР'!M:M)+SUMIF('17.НМА'!$D:$D, $D35, '17.НМА'!N:N)+SUMIF('18.ПКЗ'!$D:$D, $D35, '18.ПКЗ'!N:N)+SUMIF('19.БФИ'!$D:$D, $D35, '19.БФИ'!N:N)) -> 0 | N35: =IF($D35="", 0, SUMIF('7.СМР'!$D:$D, $D35, '7.СМР'!N:N)+SUMIF('8.ОСС'!$D:$D, $D35, '8.ОСС'!AF:AF)+SUMIF('9.ПИР'!$D:$D, $D35, '9.ПИР'!N:N)+SUMIF('10.БКП'!$D:$D, $D35, '10.БКП'!N:N)+SUMIF('11.ПЗС'!$D:$D, $D35, '11.ПЗС'!O:O)+SUMIF('12.ТП_БЭФ'!$D:$D, $D35, '12.ТП_БЭФ'!AH:AH)+SUMIF('13.ТП_СЭФ'!$D:$D, $D35, '13.ТП_СЭФ'!AP:AP)+SUMIF('14.ОВИЗ'!$D:$D, $D35, '14.ОВИЗ'!AQ:AQ)+SUMIF('15.ГРР'!$D:$D, $D35, '15.ГРР'!N:N)+SUMIF('16.НИОКР'!$D:$D, $D35, '16.НИОКР'!N:N)+SUMIF('17.НМА'!$D:$D, $D35, '17.НМА'!O:O)+SUMIF('18.ПКЗ'!$D:$D, $D35, '18.ПКЗ'!O:O)+SUMIF('19.БФИ'!$D:$D, $D35, '19.БФИ'!O:O)) -> 0 | O35: =IF($D35="", 0, SUMIF('7.СМР'!$D:$D, $D35, '7.СМР'!O:O)+SUMIF('8.ОСС'!$D:$D, $D35, '8.ОСС'!AG:AG)+SUMIF('9.ПИР'!$D:$D, $D35, '9.ПИР'!O:O)+SUMIF('10.БКП'!$D:$D, $D35, '10.БКП'!O:O)+SUMIF('11.ПЗС'!$D:$D, $D35, '11.ПЗС'!P:P)+SUMIF('12.ТП_БЭФ'!$D:$D, $D35, '12.ТП_БЭФ'!AI:AI)+SUMIF('13.ТП_СЭФ'!$D:$D, $D35, '13.ТП_СЭФ'!AQ:AQ)+SUMIF('14.ОВИЗ'!$D:$D, $D35, '14.ОВИЗ'!AR:AR)+SUMIF('15.ГРР'!$D:$D, $D35, '15.ГРР'!O:O)+SUMIF('16.НИОКР'!$D:$D, $D35, '16.НИОКР'!O:O)+SUMIF('17.НМА'!$D:$D, $D35, '17.НМА'!P:P)+SUMIF('18.ПКЗ'!$D:$D, $D35, '18.ПКЗ'!P:P)+SUMIF('19.БФИ'!$D:$D, $D35, '19.БФИ'!P:P)) -> 0 | P35: =IF($D35="", 0, SUMIF('7.СМР'!$D:$D, $D35, '7.СМР'!P:P)+SUMIF('8.ОСС'!$D:$D, $D35, '8.ОСС'!AH:AH)+SUMIF('9.ПИР'!$D:$D, $D35, '9.ПИР'!P:P)+SUMIF('10.БКП'!$D:$D, $D35, '10.БКП'!P:P)+SUMIF('11.ПЗС'!$D:$D, $D35, '11.ПЗС'!Q:Q)+SUMIF('12.ТП_БЭФ'!$D:$D, $D35, '12.ТП_БЭФ'!AJ:AJ)+SUMIF('13.ТП_СЭФ'!$D:$D, $D35, '13.ТП_СЭФ'!AR:AR)+SUMIF('14.ОВИЗ'!$D:$D, $D35, '14.ОВИЗ'!AS:AS)+SUMIF('15.ГРР'!$D:$D, $D35, '15.ГРР'!P:P)+SUMIF('16.НИОКР'!$D:$D, $D35, '16.НИОКР'!P:P)+SUMIF('17.НМА'!$D:$D, $D35, '17.НМА'!Q:Q)+SUMIF('18.ПКЗ'!$D:$D, $D35, '18.ПКЗ'!Q:Q)+SUMIF('19.БФИ'!$D:$D, $D35, '19.БФИ'!Q:Q)) -> 0 | Q35: 0 | R35: 0 | S35: 0 | T35: 0 | V35: 0 | W35: 0 | X35: =IF($D35="", 0, SUMIF('7.СМР'!$D:$D, $D35, '7.СМР'!X:X)+SUMIF('8.ОСС'!$D:$D, $D35, '8.ОСС'!AP:AP)+SUMIF('9.ПИР'!$D:$D, $D35, '9.ПИР'!X:X)+SUMIF('10.БКП'!$D:$D, $D35, '10.БКП'!X:X)+SUMIF('11.ПЗС'!$D:$D, $D35, '11.ПЗС'!Y:Y)+SUMIF('12.ТП_БЭФ'!$D:$D, $D35, '12.ТП_БЭФ'!AR:AR)+SUMIF('13.ТП_СЭФ'!$D:$D, $D35, '13.ТП_СЭФ'!AZ:AZ)+SUMIF('14.ОВИЗ'!$D:$D, $D35, '14.ОВИЗ'!BA:BA)+SUMIF('15.ГРР'!$D:$D, $D35, '15.ГРР'!X:X)+SUMIF('16.НИОКР'!$D:$D, $D35, '16.НИОКР'!X:X)+SUMIF('17.НМА'!$D:$D, $D35, '17.НМА'!Y:Y)+SUMIF('18.ПКЗ'!$D:$D, $D35, '18.ПКЗ'!Y:Y)+SUMIF('19.БФИ'!$D:$D, $D35, '19.БФИ'!Y:Y)) -> 0 | Y35: =IF($D35="", 0, SUMIF('7.СМР'!$D:$D, $D35, '7.СМР'!Y:Y)+SUMIF('8.ОСС'!$D:$D, $D35, '8.ОСС'!AQ:AQ)+SUMIF('9.ПИР'!$D:$D, $D35, '9.ПИР'!Y:Y)+SUMIF('10.БКП'!$D:$D, $D35, '10.БКП'!Y:Y)+SUMIF('11.ПЗС'!$D:$D, $D35, '11.ПЗС'!Z:Z)+SUMIF('12.ТП_БЭФ'!$D:$D, $D35, '12.ТП_БЭФ'!AS:AS)+SUMIF('13.ТП_СЭФ'!$D:$D, $D35, '13.ТП_СЭФ'!BA:BA)+SUMIF('14.ОВИЗ'!$D:$D, $D35, '14.ОВИЗ'!BB:BB)+SUMIF('15.ГРР'!$D:$D, $D35, '15.ГРР'!Y:Y)+SUMIF('16.НИОКР'!$D:$D, $D35, '16.НИОКР'!Y:Y)+SUMIF('17.НМА'!$D:$D, $D35, '17.НМА'!Z:Z)+SUMIF('18.ПКЗ'!$D:$D, $D35, '18.ПКЗ'!Z:Z)+SUMIF('19.БФИ'!$D:$D, $D35, '19.БФИ'!Z:Z)) -> 0 | Z35: =IF($D35="", 0, SUMIF('7.СМР'!$D:$D, $D35, '7.СМР'!Z:Z)+SUMIF('8.ОСС'!$D:$D, $D35, '8.ОСС'!AR:AR)+SUMIF('9.ПИР'!$D:$D, $D35, '9.ПИР'!Z:Z)+SUMIF('10.БКП'!$D:$D, $D35, '10.БКП'!Z:Z)+SUMIF('11.ПЗС'!$D:$D, $D35, '11.ПЗС'!AA:AA)+SUMIF('12.ТП_БЭФ'!$D:$D, $D35, '12.ТП_БЭФ'!AT:AT)+SUMIF('13.ТП_СЭФ'!$D:$D, $D35, '13.ТП_СЭФ'!BB:BB)+SUMIF('14.ОВИЗ'!$D:$D, $D35, '14.ОВИЗ'!BC:BC)+SUMIF('15.ГРР'!$D:$D, $D35, '15.ГРР'!Z:Z)+SUMIF('16.НИОКР'!$D:$D, $D35, '16.НИОКР'!Z:Z)+SUMIF('17.НМА'!$D:$D, $D35, '17.НМА'!AA:AA)+SUMIF('18.ПКЗ'!$D:$D, $D35, '18.ПКЗ'!AA:AA)+SUMIF('19.БФИ'!$D:$D, $D35, '19.БФИ'!AA:AA)) -> 0 | AA35: =IF($D35="", 0, SUMIF('7.СМР'!$D:$D, $D35, '7.СМР'!AA:AA)+SUMIF('8.ОСС'!$D:$D, $D35, '8.ОСС'!AS:AS)+SUMIF('9.ПИР'!$D:$D, $D35, '9.ПИР'!AA:AA)+SUMIF('10.БКП'!$D:$D, $D35, '10.БКП'!AA:AA)+SUMIF('11.ПЗС'!$D:$D, $D35, '11.ПЗС'!AB:AB)+SUMIF('12.ТП_БЭФ'!$D:$D, $D35, '12.ТП_БЭФ'!AU:AU)+SUMIF('13.ТП_СЭФ'!$D:$D, $D35, '13.ТП_СЭФ'!BC:BC)+SUMIF('14.ОВИЗ'!$D:$D, $D35, '14.ОВИЗ'!BD:BD)+SUMIF('15.ГРР'!$D:$D, $D35, '15.ГРР'!AA:AA)+SUMIF('16.НИОКР'!$D:$D, $D35, '16.НИОКР'!AA:AA)+SUMIF('17.НМА'!$D:$D, $D35, '17.НМА'!AB:AB)+SUMIF('18.ПКЗ'!$D:$D, $D35, '18.ПКЗ'!AB:AB)+SUMIF('19.БФИ'!$D:$D, $D35, '19.БФИ'!AB:AB)) -> 0 | AB35: =IF($D35="", 0, SUMIF('7.СМР'!$D:$D, $D35, '7.СМР'!AB:AB)+SUMIF('8.ОСС'!$D:$D, $D35, '8.ОСС'!AT:AT)+SUMIF('9.ПИР'!$D:$D, $D35, '9.ПИР'!AB:AB)+SUMIF('10.БКП'!$D:$D, $D35, '10.БКП'!AB:AB)+SUMIF('11.ПЗС'!$D:$D, $D35, '11.ПЗС'!AC:AC)+SUMIF('12.ТП_БЭФ'!$D:$D, $D35, '12.ТП_БЭФ'!AV:AV)+SUMIF('13.ТП_СЭФ'!$D:$D, $D35, '13.ТП_СЭФ'!BD:BD)+SUMIF('14.ОВИЗ'!$D:$D, $D35, '14.ОВИЗ'!BE:BE)+SUMIF('15.ГРР'!$D:$D, $D35, '15.ГРР'!AB:AB)+SUMIF('16.НИОКР'!$D:$D, $D35, '16.НИОКР'!AB:AB)+SUMIF('17.НМА'!$D:$D, $D35, '17.НМА'!AC:AC)+SUMIF('18.ПКЗ'!$D:$D, $D35, '18.ПКЗ'!AC:AC)+SUMIF('19.БФИ'!$D:$D, $D35, '19.БФИ'!AC:AC)) -> 0 | AC35: =IF($D35="", 0, SUMIF('7.СМР'!$D:$D, $D35, '7.СМР'!AC:AC)+SUMIF('8.ОСС'!$D:$D, $D35, '8.ОСС'!AU:AU)+SUMIF('9.ПИР'!$D:$D, $D35, '9.ПИР'!AC:AC)+SUMIF('10.БКП'!$D:$D, $D35, '10.БКП'!AC:AC)+SUMIF('11.ПЗС'!$D:$D, $D35, '11.ПЗС'!AD:AD)+SUMIF('12.ТП_БЭФ'!$D:$D, $D35, '12.ТП_БЭФ'!AW:AW)+SUMIF('13.ТП_СЭФ'!$D:$D, $D35, '13.ТП_СЭФ'!BE:BE)+SUMIF('14.ОВИЗ'!$D:$D, $D35, '14.ОВИЗ'!BF:BF)+SUMIF('15.ГРР'!$D:$D, $D35, '15.ГРР'!AC:AC)+SUMIF('16.НИОКР'!$D:$D, $D35, '16.НИОКР'!AC:AC)+SUMIF('17.НМА'!$D:$D, $D35, '17.НМА'!AD:AD)+SUMIF('18.ПКЗ'!$D:$D, $D35, '18.ПКЗ'!AD:AD)+SUMIF('19.БФИ'!$D:$D, $D35, '19.БФИ'!AD:AD)) -> 0 | AD35: =IF($D35="", 0, SUMIF('7.СМР'!$D:$D, $D35, '7.СМР'!AD:AD)+SUMIF('8.ОСС'!$D:$D, $D35, '8.ОСС'!AV:AV)+SUMIF('9.ПИР'!$D:$D, $D35, '9.ПИР'!AD:AD)+SUMIF('10.БКП'!$D:$D, $D35, '10.БКП'!AD:AD)+SUMIF('11.ПЗС'!$D:$D, $D35, '11.ПЗС'!AE:AE)+SUMIF('12.ТП_БЭФ'!$D:$D, $D35, '12.ТП_БЭФ'!AX:AX)+SUMIF('13.ТП_СЭФ'!$D:$D, $D35, '13.ТП_СЭФ'!BF:BF)+SUMIF('14.ОВИЗ'!$D:$D, $D35, '14.ОВИЗ'!BG:BG)+SUMIF('15.ГРР'!$D:$D, $D35, '15.ГРР'!AD:AD)+SUMIF('16.НИОКР'!$D:$D, $D35, '16.НИОКР'!AD:AD)+SUMIF('17.НМА'!$D:$D, $D35, '17.НМА'!AE:AE)+SUMIF('18.ПКЗ'!$D:$D, $D35, '18.ПКЗ'!AE:AE)+SUMIF('19.БФИ'!$D:$D, $D35, '19.БФИ'!AE:AE)) -> 0 | AE35: =IF($D35="", 0, SUMIF('7.СМР'!$D:$D, $D35, '7.СМР'!AE:AE)+SUMIF('8.ОСС'!$D:$D, $D35, '8.ОСС'!AW:AW)+SUMIF('9.ПИР'!$D:$D, $D35, '9.ПИР'!AE:AE)+SUMIF('10.БКП'!$D:$D, $D35, '10.БКП'!AE:AE)+SUMIF('11.ПЗС'!$D:$D, $D35, '11.ПЗС'!AF:AF)+SUMIF('12.ТП_БЭФ'!$D:$D, $D35, '12.ТП_БЭФ'!AY:AY)+SUMIF('13.ТП_СЭФ'!$D:$D, $D35, '13.ТП_СЭФ'!BG:BG)+SUMIF('14.ОВИЗ'!$D:$D, $D35, '14.ОВИЗ'!BH:BH)+SUMIF('15.ГРР'!$D:$D, $D35, '15.ГРР'!AE:AE)+SUMIF('16.НИОКР'!$D:$D, $D35, '16.НИОКР'!AE:AE)+SUMIF('17.НМА'!$D:$D, $D35, '17.НМА'!AF:AF)+SUMIF('18.ПКЗ'!$D:$D, $D35, '18.ПКЗ'!AF:AF)+SUMIF('19.БФИ'!$D:$D, $D35, '19.БФИ'!AF:AF)) -> 0 | AG35: 0
B36: =IF(D36="", "", '04.РИП'!A46) ->  | C36: =IF(D36="", "", '04.РИП'!D46) ->  | D36: =IF(ISBLANK('04.РИП'!B46), "", '04.РИП'!B46) ->  | E36: =IF(D36="", "", '04.РИП'!E46) ->  | F36: =IF(D36="", "", '04.РИП'!D46) ->  | G36: =IF($D36="", 0, SUMIF('7.СМР'!$D:$D, $D36, '7.СМР'!G:G)+SUMIF('8.ОСС'!$D:$D, $D36, '8.ОСС'!Y:Y)+SUMIF('9.ПИР'!$D:$D, $D36, '9.ПИР'!G:G)+SUMIF('10.БКП'!$D:$D, $D36, '10.БКП'!G:G)+SUMIF('11.ПЗС'!$D:$D, $D36, '11.ПЗС'!H:H)+SUMIF('12.ТП_БЭФ'!$D:$D, $D36, '12.ТП_БЭФ'!AA:AA)+SUMIF('13.ТП_СЭФ'!$D:$D, $D36, '13.ТП_СЭФ'!AI:AI)+SUMIF('14.ОВИЗ'!$D:$D, $D36, '14.ОВИЗ'!AJ:AJ)+SUMIF('15.ГРР'!$D:$D, $D36, '15.ГРР'!G:G)+SUMIF('16.НИОКР'!$D:$D, $D36, '16.НИОКР'!G:G)+SUMIF('17.НМА'!$D:$D, $D36, '17.НМА'!H:H)+SUMIF('18.ПКЗ'!$D:$D, $D36, '18.ПКЗ'!H:H)+SUMIF('19.БФИ'!$D:$D, $D36, '19.БФИ'!H:H)) -> 0 | H36: =IF($D36="", 0, SUMIF('7.СМР'!$D:$D, $D36, '7.СМР'!H:H)+SUMIF('8.ОСС'!$D:$D, $D36, '8.ОСС'!Z:Z)+SUMIF('9.ПИР'!$D:$D, $D36, '9.ПИР'!H:H)+SUMIF('10.БКП'!$D:$D, $D36, '10.БКП'!H:H)+SUMIF('11.ПЗС'!$D:$D, $D36, '11.ПЗС'!I:I)+SUMIF('12.ТП_БЭФ'!$D:$D, $D36, '12.ТП_БЭФ'!AB:AB)+SUMIF('13.ТП_СЭФ'!$D:$D, $D36, '13.ТП_СЭФ'!AJ:AJ)+SUMIF('14.ОВИЗ'!$D:$D, $D36, '14.ОВИЗ'!AK:AK)+SUMIF('15.ГРР'!$D:$D, $D36, '15.ГРР'!H:H)+SUMIF('16.НИОКР'!$D:$D, $D36, '16.НИОКР'!H:H)+SUMIF('17.НМА'!$D:$D, $D36, '17.НМА'!I:I)+SUMIF('18.ПКЗ'!$D:$D, $D36, '18.ПКЗ'!I:I)+SUMIF('19.БФИ'!$D:$D, $D36, '19.БФИ'!I:I)) -> 0 | I36: =IF($D36="", 0, SUMIF('7.СМР'!$D:$D, $D36, '7.СМР'!I:I)+SUMIF('8.ОСС'!$D:$D, $D36, '8.ОСС'!AA:AA)+SUMIF('9.ПИР'!$D:$D, $D36, '9.ПИР'!I:I)+SUMIF('10.БКП'!$D:$D, $D36, '10.БКП'!I:I)+SUMIF('11.ПЗС'!$D:$D, $D36, '11.ПЗС'!J:J)+SUMIF('12.ТП_БЭФ'!$D:$D, $D36, '12.ТП_БЭФ'!AC:AC)+SUMIF('13.ТП_СЭФ'!$D:$D, $D36, '13.ТП_СЭФ'!AK:AK)+SUMIF('14.ОВИЗ'!$D:$D, $D36, '14.ОВИЗ'!AL:AL)+SUMIF('15.ГРР'!$D:$D, $D36, '15.ГРР'!I:I)+SUMIF('16.НИОКР'!$D:$D, $D36, '16.НИОКР'!I:I)+SUMIF('17.НМА'!$D:$D, $D36, '17.НМА'!J:J)+SUMIF('18.ПКЗ'!$D:$D, $D36, '18.ПКЗ'!J:J)+SUMIF('19.БФИ'!$D:$D, $D36, '19.БФИ'!J:J)) -> 0 | J36: =IF($D36="", 0, SUMIF('7.СМР'!$D:$D, $D36, '7.СМР'!J:J)+SUMIF('8.ОСС'!$D:$D, $D36, '8.ОСС'!AB:AB)+SUMIF('9.ПИР'!$D:$D, $D36, '9.ПИР'!J:J)+SUMIF('10.БКП'!$D:$D, $D36, '10.БКП'!J:J)+SUMIF('11.ПЗС'!$D:$D, $D36, '11.ПЗС'!K:K)+SUMIF('12.ТП_БЭФ'!$D:$D, $D36, '12.ТП_БЭФ'!AD:AD)+SUMIF('13.ТП_СЭФ'!$D:$D, $D36, '13.ТП_СЭФ'!AL:AL)+SUMIF('14.ОВИЗ'!$D:$D, $D36, '14.ОВИЗ'!AM:AM)+SUMIF('15.ГРР'!$D:$D, $D36, '15.ГРР'!J:J)+SUMIF('16.НИОКР'!$D:$D, $D36, '16.НИОКР'!J:J)+SUMIF('17.НМА'!$D:$D, $D36, '17.НМА'!K:K)+SUMIF('18.ПКЗ'!$D:$D, $D36, '18.ПКЗ'!K:K)+SUMIF('19.БФИ'!$D:$D, $D36, '19.БФИ'!K:K)) -> 0 | K36: =IF($D36="", 0, SUMIF('7.СМР'!$D:$D, $D36, '7.СМР'!K:K)+SUMIF('8.ОСС'!$D:$D, $D36, '8.ОСС'!AC:AC)+SUMIF('9.ПИР'!$D:$D, $D36, '9.ПИР'!K:K)+SUMIF('10.БКП'!$D:$D, $D36, '10.БКП'!K:K)+SUMIF('11.ПЗС'!$D:$D, $D36, '11.ПЗС'!L:L)+SUMIF('12.ТП_БЭФ'!$D:$D, $D36, '12.ТП_БЭФ'!AE:AE)+SUMIF('13.ТП_СЭФ'!$D:$D, $D36, '13.ТП_СЭФ'!AM:AM)+SUMIF('14.ОВИЗ'!$D:$D, $D36, '14.ОВИЗ'!AN:AN)+SUMIF('15.ГРР'!$D:$D, $D36, '15.ГРР'!K:K)+SUMIF('16.НИОКР'!$D:$D, $D36, '16.НИОКР'!K:K)+SUMIF('17.НМА'!$D:$D, $D36, '17.НМА'!L:L)+SUMIF('18.ПКЗ'!$D:$D, $D36, '18.ПКЗ'!L:L)+SUMIF('19.БФИ'!$D:$D, $D36, '19.БФИ'!L:L)) -> 0 | L36: =IF($D36="", 0, SUMIF('7.СМР'!$D:$D, $D36, '7.СМР'!L:L)+SUMIF('8.ОСС'!$D:$D, $D36, '8.ОСС'!AD:AD)+SUMIF('9.ПИР'!$D:$D, $D36, '9.ПИР'!L:L)+SUMIF('10.БКП'!$D:$D, $D36, '10.БКП'!L:L)+SUMIF('11.ПЗС'!$D:$D, $D36, '11.ПЗС'!M:M)+SUMIF('12.ТП_БЭФ'!$D:$D, $D36, '12.ТП_БЭФ'!AF:AF)+SUMIF('13.ТП_СЭФ'!$D:$D, $D36, '13.ТП_СЭФ'!AN:AN)+SUMIF('14.ОВИЗ'!$D:$D, $D36, '14.ОВИЗ'!AO:AO)+SUMIF('15.ГРР'!$D:$D, $D36, '15.ГРР'!L:L)+SUMIF('16.НИОКР'!$D:$D, $D36, '16.НИОКР'!L:L)+SUMIF('17.НМА'!$D:$D, $D36, '17.НМА'!M:M)+SUMIF('18.ПКЗ'!$D:$D, $D36, '18.ПКЗ'!M:M)+SUMIF('19.БФИ'!$D:$D, $D36, '19.БФИ'!M:M)) -> 0 | M36: =IF($D36="", 0, SUMIF('7.СМР'!$D:$D, $D36, '7.СМР'!M:M)+SUMIF('8.ОСС'!$D:$D, $D36, '8.ОСС'!AE:AE)+SUMIF('9.ПИР'!$D:$D, $D36, '9.ПИР'!M:M)+SUMIF('10.БКП'!$D:$D, $D36, '10.БКП'!M:M)+SUMIF('11.ПЗС'!$D:$D, $D36, '11.ПЗС'!N:N)+SUMIF('12.ТП_БЭФ'!$D:$D, $D36, '12.ТП_БЭФ'!AG:AG)+SUMIF('13.ТП_СЭФ'!$D:$D, $D36, '13.ТП_СЭФ'!AO:AO)+SUMIF('14.ОВИЗ'!$D:$D, $D36, '14.ОВИЗ'!AP:AP)+SUMIF('15.ГРР'!$D:$D, $D36, '15.ГРР'!M:M)+SUMIF('16.НИОКР'!$D:$D, $D36, '16.НИОКР'!M:M)+SUMIF('17.НМА'!$D:$D, $D36, '17.НМА'!N:N)+SUMIF('18.ПКЗ'!$D:$D, $D36, '18.ПКЗ'!N:N)+SUMIF('19.БФИ'!$D:$D, $D36, '19.БФИ'!N:N)) -> 0 | N36: =IF($D36="", 0, SUMIF('7.СМР'!$D:$D, $D36, '7.СМР'!N:N)+SUMIF('8.ОСС'!$D:$D, $D36, '8.ОСС'!AF:AF)+SUMIF('9.ПИР'!$D:$D, $D36, '9.ПИР'!N:N)+SUMIF('10.БКП'!$D:$D, $D36, '10.БКП'!N:N)+SUMIF('11.ПЗС'!$D:$D, $D36, '11.ПЗС'!O:O)+SUMIF('12.ТП_БЭФ'!$D:$D, $D36, '12.ТП_БЭФ'!AH:AH)+SUMIF('13.ТП_СЭФ'!$D:$D, $D36, '13.ТП_СЭФ'!AP:AP)+SUMIF('14.ОВИЗ'!$D:$D, $D36, '14.ОВИЗ'!AQ:AQ)+SUMIF('15.ГРР'!$D:$D, $D36, '15.ГРР'!N:N)+SUMIF('16.НИОКР'!$D:$D, $D36, '16.НИОКР'!N:N)+SUMIF('17.НМА'!$D:$D, $D36, '17.НМА'!O:O)+SUMIF('18.ПКЗ'!$D:$D, $D36, '18.ПКЗ'!O:O)+SUMIF('19.БФИ'!$D:$D, $D36, '19.БФИ'!O:O)) -> 0 | O36: =IF($D36="", 0, SUMIF('7.СМР'!$D:$D, $D36, '7.СМР'!O:O)+SUMIF('8.ОСС'!$D:$D, $D36, '8.ОСС'!AG:AG)+SUMIF('9.ПИР'!$D:$D, $D36, '9.ПИР'!O:O)+SUMIF('10.БКП'!$D:$D, $D36, '10.БКП'!O:O)+SUMIF('11.ПЗС'!$D:$D, $D36, '11.ПЗС'!P:P)+SUMIF('12.ТП_БЭФ'!$D:$D, $D36, '12.ТП_БЭФ'!AI:AI)+SUMIF('13.ТП_СЭФ'!$D:$D, $D36, '13.ТП_СЭФ'!AQ:AQ)+SUMIF('14.ОВИЗ'!$D:$D, $D36, '14.ОВИЗ'!AR:AR)+SUMIF('15.ГРР'!$D:$D, $D36, '15.ГРР'!O:O)+SUMIF('16.НИОКР'!$D:$D, $D36, '16.НИОКР'!O:O)+SUMIF('17.НМА'!$D:$D, $D36, '17.НМА'!P:P)+SUMIF('18.ПКЗ'!$D:$D, $D36, '18.ПКЗ'!P:P)+SUMIF('19.БФИ'!$D:$D, $D36, '19.БФИ'!P:P)) -> 0 | P36: =IF($D36="", 0, SUMIF('7.СМР'!$D:$D, $D36, '7.СМР'!P:P)+SUMIF('8.ОСС'!$D:$D, $D36, '8.ОСС'!AH:AH)+SUMIF('9.ПИР'!$D:$D, $D36, '9.ПИР'!P:P)+SUMIF('10.БКП'!$D:$D, $D36, '10.БКП'!P:P)+SUMIF('11.ПЗС'!$D:$D, $D36, '11.ПЗС'!Q:Q)+SUMIF('12.ТП_БЭФ'!$D:$D, $D36, '12.ТП_БЭФ'!AJ:AJ)+SUMIF('13.ТП_СЭФ'!$D:$D, $D36, '13.ТП_СЭФ'!AR:AR)+SUMIF('14.ОВИЗ'!$D:$D, $D36, '14.ОВИЗ'!AS:AS)+SUMIF('15.ГРР'!$D:$D, $D36, '15.ГРР'!P:P)+SUMIF('16.НИОКР'!$D:$D, $D36, '16.НИОКР'!P:P)+SUMIF('17.НМА'!$D:$D, $D36, '17.НМА'!Q:Q)+SUMIF('18.ПКЗ'!$D:$D, $D36, '18.ПКЗ'!Q:Q)+SUMIF('19.БФИ'!$D:$D, $D36, '19.БФИ'!Q:Q)) -> 0 | Q36: 0 | R36: 0 | S36: 0 | T36: 0 | V36: 0 | W36: 0 | X36: =IF($D36="", 0, SUMIF('7.СМР'!$D:$D, $D36, '7.СМР'!X:X)+SUMIF('8.ОСС'!$D:$D, $D36, '8.ОСС'!AP:AP)+SUMIF('9.ПИР'!$D:$D, $D36, '9.ПИР'!X:X)+SUMIF('10.БКП'!$D:$D, $D36, '10.БКП'!X:X)+SUMIF('11.ПЗС'!$D:$D, $D36, '11.ПЗС'!Y:Y)+SUMIF('12.ТП_БЭФ'!$D:$D, $D36, '12.ТП_БЭФ'!AR:AR)+SUMIF('13.ТП_СЭФ'!$D:$D, $D36, '13.ТП_СЭФ'!AZ:AZ)+SUMIF('14.ОВИЗ'!$D:$D, $D36, '14.ОВИЗ'!BA:BA)+SUMIF('15.ГРР'!$D:$D, $D36, '15.ГРР'!X:X)+SUMIF('16.НИОКР'!$D:$D, $D36, '16.НИОКР'!X:X)+SUMIF('17.НМА'!$D:$D, $D36, '17.НМА'!Y:Y)+SUMIF('18.ПКЗ'!$D:$D, $D36, '18.ПКЗ'!Y:Y)+SUMIF('19.БФИ'!$D:$D, $D36, '19.БФИ'!Y:Y)) -> 0 | Y36: =IF($D36="", 0, SUMIF('7.СМР'!$D:$D, $D36, '7.СМР'!Y:Y)+SUMIF('8.ОСС'!$D:$D, $D36, '8.ОСС'!AQ:AQ)+SUMIF('9.ПИР'!$D:$D, $D36, '9.ПИР'!Y:Y)+SUMIF('10.БКП'!$D:$D, $D36, '10.БКП'!Y:Y)+SUMIF('11.ПЗС'!$D:$D, $D36, '11.ПЗС'!Z:Z)+SUMIF('12.ТП_БЭФ'!$D:$D, $D36, '12.ТП_БЭФ'!AS:AS)+SUMIF('13.ТП_СЭФ'!$D:$D, $D36, '13.ТП_СЭФ'!BA:BA)+SUMIF('14.ОВИЗ'!$D:$D, $D36, '14.ОВИЗ'!BB:BB)+SUMIF('15.ГРР'!$D:$D, $D36, '15.ГРР'!Y:Y)+SUMIF('16.НИОКР'!$D:$D, $D36, '16.НИОКР'!Y:Y)+SUMIF('17.НМА'!$D:$D, $D36, '17.НМА'!Z:Z)+SUMIF('18.ПКЗ'!$D:$D, $D36, '18.ПКЗ'!Z:Z)+SUMIF('19.БФИ'!$D:$D, $D36, '19.БФИ'!Z:Z)) -> 0 | Z36: =IF($D36="", 0, SUMIF('7.СМР'!$D:$D, $D36, '7.СМР'!Z:Z)+SUMIF('8.ОСС'!$D:$D, $D36, '8.ОСС'!AR:AR)+SUMIF('9.ПИР'!$D:$D, $D36, '9.ПИР'!Z:Z)+SUMIF('10.БКП'!$D:$D, $D36, '10.БКП'!Z:Z)+SUMIF('11.ПЗС'!$D:$D, $D36, '11.ПЗС'!AA:AA)+SUMIF('12.ТП_БЭФ'!$D:$D, $D36, '12.ТП_БЭФ'!AT:AT)+SUMIF('13.ТП_СЭФ'!$D:$D, $D36, '13.ТП_СЭФ'!BB:BB)+SUMIF('14.ОВИЗ'!$D:$D, $D36, '14.ОВИЗ'!BC:BC)+SUMIF('15.ГРР'!$D:$D, $D36, '15.ГРР'!Z:Z)+SUMIF('16.НИОКР'!$D:$D, $D36, '16.НИОКР'!Z:Z)+SUMIF('17.НМА'!$D:$D, $D36, '17.НМА'!AA:AA)+SUMIF('18.ПКЗ'!$D:$D, $D36, '18.ПКЗ'!AA:AA)+SUMIF('19.БФИ'!$D:$D, $D36, '19.БФИ'!AA:AA)) -> 0 | AA36: =IF($D36="", 0, SUMIF('7.СМР'!$D:$D, $D36, '7.СМР'!AA:AA)+SUMIF('8.ОСС'!$D:$D, $D36, '8.ОСС'!AS:AS)+SUMIF('9.ПИР'!$D:$D, $D36, '9.ПИР'!AA:AA)+SUMIF('10.БКП'!$D:$D, $D36, '10.БКП'!AA:AA)+SUMIF('11.ПЗС'!$D:$D, $D36, '11.ПЗС'!AB:AB)+SUMIF('12.ТП_БЭФ'!$D:$D, $D36, '12.ТП_БЭФ'!AU:AU)+SUMIF('13.ТП_СЭФ'!$D:$D, $D36, '13.ТП_СЭФ'!BC:BC)+SUMIF('14.ОВИЗ'!$D:$D, $D36, '14.ОВИЗ'!BD:BD)+SUMIF('15.ГРР'!$D:$D, $D36, '15.ГРР'!AA:AA)+SUMIF('16.НИОКР'!$D:$D, $D36, '16.НИОКР'!AA:AA)+SUMIF('17.НМА'!$D:$D, $D36, '17.НМА'!AB:AB)+SUMIF('18.ПКЗ'!$D:$D, $D36, '18.ПКЗ'!AB:AB)+SUMIF('19.БФИ'!$D:$D, $D36, '19.БФИ'!AB:AB)) -> 0 | AB36: =IF($D36="", 0, SUMIF('7.СМР'!$D:$D, $D36, '7.СМР'!AB:AB)+SUMIF('8.ОСС'!$D:$D, $D36, '8.ОСС'!AT:AT)+SUMIF('9.ПИР'!$D:$D, $D36, '9.ПИР'!AB:AB)+SUMIF('10.БКП'!$D:$D, $D36, '10.БКП'!AB:AB)+SUMIF('11.ПЗС'!$D:$D, $D36, '11.ПЗС'!AC:AC)+SUMIF('12.ТП_БЭФ'!$D:$D, $D36, '12.ТП_БЭФ'!AV:AV)+SUMIF('13.ТП_СЭФ'!$D:$D, $D36, '13.ТП_СЭФ'!BD:BD)+SUMIF('14.ОВИЗ'!$D:$D, $D36, '14.ОВИЗ'!BE:BE)+SUMIF('15.ГРР'!$D:$D, $D36, '15.ГРР'!AB:AB)+SUMIF('16.НИОКР'!$D:$D, $D36, '16.НИОКР'!AB:AB)+SUMIF('17.НМА'!$D:$D, $D36, '17.НМА'!AC:AC)+SUMIF('18.ПКЗ'!$D:$D, $D36, '18.ПКЗ'!AC:AC)+SUMIF('19.БФИ'!$D:$D, $D36, '19.БФИ'!AC:AC)) -> 0 | AC36: =IF($D36="", 0, SUMIF('7.СМР'!$D:$D, $D36, '7.СМР'!AC:AC)+SUMIF('8.ОСС'!$D:$D, $D36, '8.ОСС'!AU:AU)+SUMIF('9.ПИР'!$D:$D, $D36, '9.ПИР'!AC:AC)+SUMIF('10.БКП'!$D:$D, $D36, '10.БКП'!AC:AC)+SUMIF('11.ПЗС'!$D:$D, $D36, '11.ПЗС'!AD:AD)+SUMIF('12.ТП_БЭФ'!$D:$D, $D36, '12.ТП_БЭФ'!AW:AW)+SUMIF('13.ТП_СЭФ'!$D:$D, $D36, '13.ТП_СЭФ'!BE:BE)+SUMIF('14.ОВИЗ'!$D:$D, $D36, '14.ОВИЗ'!BF:BF)+SUMIF('15.ГРР'!$D:$D, $D36, '15.ГРР'!AC:AC)+SUMIF('16.НИОКР'!$D:$D, $D36, '16.НИОКР'!AC:AC)+SUMIF('17.НМА'!$D:$D, $D36, '17.НМА'!AD:AD)+SUMIF('18.ПКЗ'!$D:$D, $D36, '18.ПКЗ'!AD:AD)+SUMIF('19.БФИ'!$D:$D, $D36, '19.БФИ'!AD:AD)) -> 0 | AD36: =IF($D36="", 0, SUMIF('7.СМР'!$D:$D, $D36, '7.СМР'!AD:AD)+SUMIF('8.ОСС'!$D:$D, $D36, '8.ОСС'!AV:AV)+SUMIF('9.ПИР'!$D:$D, $D36, '9.ПИР'!AD:AD)+SUMIF('10.БКП'!$D:$D, $D36, '10.БКП'!AD:AD)+SUMIF('11.ПЗС'!$D:$D, $D36, '11.ПЗС'!AE:AE)+SUMIF('12.ТП_БЭФ'!$D:$D, $D36, '12.ТП_БЭФ'!AX:AX)+SUMIF('13.ТП_СЭФ'!$D:$D, $D36, '13.ТП_СЭФ'!BF:BF)+SUMIF('14.ОВИЗ'!$D:$D, $D36, '14.ОВИЗ'!BG:BG)+SUMIF('15.ГРР'!$D:$D, $D36, '15.ГРР'!AD:AD)+SUMIF('16.НИОКР'!$D:$D, $D36, '16.НИОКР'!AD:AD)+SUMIF('17.НМА'!$D:$D, $D36, '17.НМА'!AE:AE)+SUMIF('18.ПКЗ'!$D:$D, $D36, '18.ПКЗ'!AE:AE)+SUMIF('19.БФИ'!$D:$D, $D36, '19.БФИ'!AE:AE)) -> 0 | AE36: =IF($D36="", 0, SUMIF('7.СМР'!$D:$D, $D36, '7.СМР'!AE:AE)+SUMIF('8.ОСС'!$D:$D, $D36, '8.ОСС'!AW:AW)+SUMIF('9.ПИР'!$D:$D, $D36, '9.ПИР'!AE:AE)+SUMIF('10.БКП'!$D:$D, $D36, '10.БКП'!AE:AE)+SUMIF('11.ПЗС'!$D:$D, $D36, '11.ПЗС'!AF:AF)+SUMIF('12.ТП_БЭФ'!$D:$D, $D36, '12.ТП_БЭФ'!AY:AY)+SUMIF('13.ТП_СЭФ'!$D:$D, $D36, '13.ТП_СЭФ'!BG:BG)+SUMIF('14.ОВИЗ'!$D:$D, $D36, '14.ОВИЗ'!BH:BH)+SUMIF('15.ГРР'!$D:$D, $D36, '15.ГРР'!AE:AE)+SUMIF('16.НИОКР'!$D:$D, $D36, '16.НИОКР'!AE:AE)+SUMIF('17.НМА'!$D:$D, $D36, '17.НМА'!AF:AF)+SUMIF('18.ПКЗ'!$D:$D, $D36, '18.ПКЗ'!AF:AF)+SUMIF('19.БФИ'!$D:$D, $D36, '19.БФИ'!AF:AF)) -> 0 | AG36: 0
B37: =IF(D37="", "", '04.РИП'!A47) ->  | C37: =IF(D37="", "", '04.РИП'!D47) ->  | D37: =IF(ISBLANK('04.РИП'!B47), "", '04.РИП'!B47) ->  | E37: =IF(D37="", "", '04.РИП'!E47) ->  | F37: =IF(D37="", "", '04.РИП'!D47) ->  | G37: =IF($D37="", 0, SUMIF('7.СМР'!$D:$D, $D37, '7.СМР'!G:G)+SUMIF('8.ОСС'!$D:$D, $D37, '8.ОСС'!Y:Y)+SUMIF('9.ПИР'!$D:$D, $D37, '9.ПИР'!G:G)+SUMIF('10.БКП'!$D:$D, $D37, '10.БКП'!G:G)+SUMIF('11.ПЗС'!$D:$D, $D37, '11.ПЗС'!H:H)+SUMIF('12.ТП_БЭФ'!$D:$D, $D37, '12.ТП_БЭФ'!AA:AA)+SUMIF('13.ТП_СЭФ'!$D:$D, $D37, '13.ТП_СЭФ'!AI:AI)+SUMIF('14.ОВИЗ'!$D:$D, $D37, '14.ОВИЗ'!AJ:AJ)+SUMIF('15.ГРР'!$D:$D, $D37, '15.ГРР'!G:G)+SUMIF('16.НИОКР'!$D:$D, $D37, '16.НИОКР'!G:G)+SUMIF('17.НМА'!$D:$D, $D37, '17.НМА'!H:H)+SUMIF('18.ПКЗ'!$D:$D, $D37, '18.ПКЗ'!H:H)+SUMIF('19.БФИ'!$D:$D, $D37, '19.БФИ'!H:H)) -> 0 | H37: =IF($D37="", 0, SUMIF('7.СМР'!$D:$D, $D37, '7.СМР'!H:H)+SUMIF('8.ОСС'!$D:$D, $D37, '8.ОСС'!Z:Z)+SUMIF('9.ПИР'!$D:$D, $D37, '9.ПИР'!H:H)+SUMIF('10.БКП'!$D:$D, $D37, '10.БКП'!H:H)+SUMIF('11.ПЗС'!$D:$D, $D37, '11.ПЗС'!I:I)+SUMIF('12.ТП_БЭФ'!$D:$D, $D37, '12.ТП_БЭФ'!AB:AB)+SUMIF('13.ТП_СЭФ'!$D:$D, $D37, '13.ТП_СЭФ'!AJ:AJ)+SUMIF('14.ОВИЗ'!$D:$D, $D37, '14.ОВИЗ'!AK:AK)+SUMIF('15.ГРР'!$D:$D, $D37, '15.ГРР'!H:H)+SUMIF('16.НИОКР'!$D:$D, $D37, '16.НИОКР'!H:H)+SUMIF('17.НМА'!$D:$D, $D37, '17.НМА'!I:I)+SUMIF('18.ПКЗ'!$D:$D, $D37, '18.ПКЗ'!I:I)+SUMIF('19.БФИ'!$D:$D, $D37, '19.БФИ'!I:I)) -> 0 | I37: =IF($D37="", 0, SUMIF('7.СМР'!$D:$D, $D37, '7.СМР'!I:I)+SUMIF('8.ОСС'!$D:$D, $D37, '8.ОСС'!AA:AA)+SUMIF('9.ПИР'!$D:$D, $D37, '9.ПИР'!I:I)+SUMIF('10.БКП'!$D:$D, $D37, '10.БКП'!I:I)+SUMIF('11.ПЗС'!$D:$D, $D37, '11.ПЗС'!J:J)+SUMIF('12.ТП_БЭФ'!$D:$D, $D37, '12.ТП_БЭФ'!AC:AC)+SUMIF('13.ТП_СЭФ'!$D:$D, $D37, '13.ТП_СЭФ'!AK:AK)+SUMIF('14.ОВИЗ'!$D:$D, $D37, '14.ОВИЗ'!AL:AL)+SUMIF('15.ГРР'!$D:$D, $D37, '15.ГРР'!I:I)+SUMIF('16.НИОКР'!$D:$D, $D37, '16.НИОКР'!I:I)+SUMIF('17.НМА'!$D:$D, $D37, '17.НМА'!J:J)+SUMIF('18.ПКЗ'!$D:$D, $D37, '18.ПКЗ'!J:J)+SUMIF('19.БФИ'!$D:$D, $D37, '19.БФИ'!J:J)) -> 0 | J37: =IF($D37="", 0, SUMIF('7.СМР'!$D:$D, $D37, '7.СМР'!J:J)+SUMIF('8.ОСС'!$D:$D, $D37, '8.ОСС'!AB:AB)+SUMIF('9.ПИР'!$D:$D, $D37, '9.ПИР'!J:J)+SUMIF('10.БКП'!$D:$D, $D37, '10.БКП'!J:J)+SUMIF('11.ПЗС'!$D:$D, $D37, '11.ПЗС'!K:K)+SUMIF('12.ТП_БЭФ'!$D:$D, $D37, '12.ТП_БЭФ'!AD:AD)+SUMIF('13.ТП_СЭФ'!$D:$D, $D37, '13.ТП_СЭФ'!AL:AL)+SUMIF('14.ОВИЗ'!$D:$D, $D37, '14.ОВИЗ'!AM:AM)+SUMIF('15.ГРР'!$D:$D, $D37, '15.ГРР'!J:J)+SUMIF('16.НИОКР'!$D:$D, $D37, '16.НИОКР'!J:J)+SUMIF('17.НМА'!$D:$D, $D37, '17.НМА'!K:K)+SUMIF('18.ПКЗ'!$D:$D, $D37, '18.ПКЗ'!K:K)+SUMIF('19.БФИ'!$D:$D, $D37, '19.БФИ'!K:K)) -> 0 | K37: =IF($D37="", 0, SUMIF('7.СМР'!$D:$D, $D37, '7.СМР'!K:K)+SUMIF('8.ОСС'!$D:$D, $D37, '8.ОСС'!AC:AC)+SUMIF('9.ПИР'!$D:$D, $D37, '9.ПИР'!K:K)+SUMIF('10.БКП'!$D:$D, $D37, '10.БКП'!K:K)+SUMIF('11.ПЗС'!$D:$D, $D37, '11.ПЗС'!L:L)+SUMIF('12.ТП_БЭФ'!$D:$D, $D37, '12.ТП_БЭФ'!AE:AE)+SUMIF('13.ТП_СЭФ'!$D:$D, $D37, '13.ТП_СЭФ'!AM:AM)+SUMIF('14.ОВИЗ'!$D:$D, $D37, '14.ОВИЗ'!AN:AN)+SUMIF('15.ГРР'!$D:$D, $D37, '15.ГРР'!K:K)+SUMIF('16.НИОКР'!$D:$D, $D37, '16.НИОКР'!K:K)+SUMIF('17.НМА'!$D:$D, $D37, '17.НМА'!L:L)+SUMIF('18.ПКЗ'!$D:$D, $D37, '18.ПКЗ'!L:L)+SUMIF('19.БФИ'!$D:$D, $D37, '19.БФИ'!L:L)) -> 0 | L37: =IF($D37="", 0, SUMIF('7.СМР'!$D:$D, $D37, '7.СМР'!L:L)+SUMIF('8.ОСС'!$D:$D, $D37, '8.ОСС'!AD:AD)+SUMIF('9.ПИР'!$D:$D, $D37, '9.ПИР'!L:L)+SUMIF('10.БКП'!$D:$D, $D37, '10.БКП'!L:L)+SUMIF('11.ПЗС'!$D:$D, $D37, '11.ПЗС'!M:M)+SUMIF('12.ТП_БЭФ'!$D:$D, $D37, '12.ТП_БЭФ'!AF:AF)+SUMIF('13.ТП_СЭФ'!$D:$D, $D37, '13.ТП_СЭФ'!AN:AN)+SUMIF('14.ОВИЗ'!$D:$D, $D37, '14.ОВИЗ'!AO:AO)+SUMIF('15.ГРР'!$D:$D, $D37, '15.ГРР'!L:L)+SUMIF('16.НИОКР'!$D:$D, $D37, '16.НИОКР'!L:L)+SUMIF('17.НМА'!$D:$D, $D37, '17.НМА'!M:M)+SUMIF('18.ПКЗ'!$D:$D, $D37, '18.ПКЗ'!M:M)+SUMIF('19.БФИ'!$D:$D, $D37, '19.БФИ'!M:M)) -> 0 | M37: =IF($D37="", 0, SUMIF('7.СМР'!$D:$D, $D37, '7.СМР'!M:M)+SUMIF('8.ОСС'!$D:$D, $D37, '8.ОСС'!AE:AE)+SUMIF('9.ПИР'!$D:$D, $D37, '9.ПИР'!M:M)+SUMIF('10.БКП'!$D:$D, $D37, '10.БКП'!M:M)+SUMIF('11.ПЗС'!$D:$D, $D37, '11.ПЗС'!N:N)+SUMIF('12.ТП_БЭФ'!$D:$D, $D37, '12.ТП_БЭФ'!AG:AG)+SUMIF('13.ТП_СЭФ'!$D:$D, $D37, '13.ТП_СЭФ'!AO:AO)+SUMIF('14.ОВИЗ'!$D:$D, $D37, '14.ОВИЗ'!AP:AP)+SUMIF('15.ГРР'!$D:$D, $D37, '15.ГРР'!M:M)+SUMIF('16.НИОКР'!$D:$D, $D37, '16.НИОКР'!M:M)+SUMIF('17.НМА'!$D:$D, $D37, '17.НМА'!N:N)+SUMIF('18.ПКЗ'!$D:$D, $D37, '18.ПКЗ'!N:N)+SUMIF('19.БФИ'!$D:$D, $D37, '19.БФИ'!N:N)) -> 0 | N37: =IF($D37="", 0, SUMIF('7.СМР'!$D:$D, $D37, '7.СМР'!N:N)+SUMIF('8.ОСС'!$D:$D, $D37, '8.ОСС'!AF:AF)+SUMIF('9.ПИР'!$D:$D, $D37, '9.ПИР'!N:N)+SUMIF('10.БКП'!$D:$D, $D37, '10.БКП'!N:N)+SUMIF('11.ПЗС'!$D:$D, $D37, '11.ПЗС'!O:O)+SUMIF('12.ТП_БЭФ'!$D:$D, $D37, '12.ТП_БЭФ'!AH:AH)+SUMIF('13.ТП_СЭФ'!$D:$D, $D37, '13.ТП_СЭФ'!AP:AP)+SUMIF('14.ОВИЗ'!$D:$D, $D37, '14.ОВИЗ'!AQ:AQ)+SUMIF('15.ГРР'!$D:$D, $D37, '15.ГРР'!N:N)+SUMIF('16.НИОКР'!$D:$D, $D37, '16.НИОКР'!N:N)+SUMIF('17.НМА'!$D:$D, $D37, '17.НМА'!O:O)+SUMIF('18.ПКЗ'!$D:$D, $D37, '18.ПКЗ'!O:O)+SUMIF('19.БФИ'!$D:$D, $D37, '19.БФИ'!O:O)) -> 0 | O37: =IF($D37="", 0, SUMIF('7.СМР'!$D:$D, $D37, '7.СМР'!O:O)+SUMIF('8.ОСС'!$D:$D, $D37, '8.ОСС'!AG:AG)+SUMIF('9.ПИР'!$D:$D, $D37, '9.ПИР'!O:O)+SUMIF('10.БКП'!$D:$D, $D37, '10.БКП'!O:O)+SUMIF('11.ПЗС'!$D:$D, $D37, '11.ПЗС'!P:P)+SUMIF('12.ТП_БЭФ'!$D:$D, $D37, '12.ТП_БЭФ'!AI:AI)+SUMIF('13.ТП_СЭФ'!$D:$D, $D37, '13.ТП_СЭФ'!AQ:AQ)+SUMIF('14.ОВИЗ'!$D:$D, $D37, '14.ОВИЗ'!AR:AR)+SUMIF('15.ГРР'!$D:$D, $D37, '15.ГРР'!O:O)+SUMIF('16.НИОКР'!$D:$D, $D37, '16.НИОКР'!O:O)+SUMIF('17.НМА'!$D:$D, $D37, '17.НМА'!P:P)+SUMIF('18.ПКЗ'!$D:$D, $D37, '18.ПКЗ'!P:P)+SUMIF('19.БФИ'!$D:$D, $D37, '19.БФИ'!P:P)) -> 0 | P37: =IF($D37="", 0, SUMIF('7.СМР'!$D:$D, $D37, '7.СМР'!P:P)+SUMIF('8.ОСС'!$D:$D, $D37, '8.ОСС'!AH:AH)+SUMIF('9.ПИР'!$D:$D, $D37, '9.ПИР'!P:P)+SUMIF('10.БКП'!$D:$D, $D37, '10.БКП'!P:P)+SUMIF('11.ПЗС'!$D:$D, $D37, '11.ПЗС'!Q:Q)+SUMIF('12.ТП_БЭФ'!$D:$D, $D37, '12.ТП_БЭФ'!AJ:AJ)+SUMIF('13.ТП_СЭФ'!$D:$D, $D37, '13.ТП_СЭФ'!AR:AR)+SUMIF('14.ОВИЗ'!$D:$D, $D37, '14.ОВИЗ'!AS:AS)+SUMIF('15.ГРР'!$D:$D, $D37, '15.ГРР'!P:P)+SUMIF('16.НИОКР'!$D:$D, $D37, '16.НИОКР'!P:P)+SUMIF('17.НМА'!$D:$D, $D37, '17.НМА'!Q:Q)+SUMIF('18.ПКЗ'!$D:$D, $D37, '18.ПКЗ'!Q:Q)+SUMIF('19.БФИ'!$D:$D, $D37, '19.БФИ'!Q:Q)) -> 0 | Q37: 0 | R37: 0 | S37: 0 | T37: 0 | V37: 0 | W37: 0 | X37: =IF($D37="", 0, SUMIF('7.СМР'!$D:$D, $D37, '7.СМР'!X:X)+SUMIF('8.ОСС'!$D:$D, $D37, '8.ОСС'!AP:AP)+SUMIF('9.ПИР'!$D:$D, $D37, '9.ПИР'!X:X)+SUMIF('10.БКП'!$D:$D, $D37, '10.БКП'!X:X)+SUMIF('11.ПЗС'!$D:$D, $D37, '11.ПЗС'!Y:Y)+SUMIF('12.ТП_БЭФ'!$D:$D, $D37, '12.ТП_БЭФ'!AR:AR)+SUMIF('13.ТП_СЭФ'!$D:$D, $D37, '13.ТП_СЭФ'!AZ:AZ)+SUMIF('14.ОВИЗ'!$D:$D, $D37, '14.ОВИЗ'!BA:BA)+SUMIF('15.ГРР'!$D:$D, $D37, '15.ГРР'!X:X)+SUMIF('16.НИОКР'!$D:$D, $D37, '16.НИОКР'!X:X)+SUMIF('17.НМА'!$D:$D, $D37, '17.НМА'!Y:Y)+SUMIF('18.ПКЗ'!$D:$D, $D37, '18.ПКЗ'!Y:Y)+SUMIF('19.БФИ'!$D:$D, $D37, '19.БФИ'!Y:Y)) -> 0 | Y37: =IF($D37="", 0, SUMIF('7.СМР'!$D:$D, $D37, '7.СМР'!Y:Y)+SUMIF('8.ОСС'!$D:$D, $D37, '8.ОСС'!AQ:AQ)+SUMIF('9.ПИР'!$D:$D, $D37, '9.ПИР'!Y:Y)+SUMIF('10.БКП'!$D:$D, $D37, '10.БКП'!Y:Y)+SUMIF('11.ПЗС'!$D:$D, $D37, '11.ПЗС'!Z:Z)+SUMIF('12.ТП_БЭФ'!$D:$D, $D37, '12.ТП_БЭФ'!AS:AS)+SUMIF('13.ТП_СЭФ'!$D:$D, $D37, '13.ТП_СЭФ'!BA:BA)+SUMIF('14.ОВИЗ'!$D:$D, $D37, '14.ОВИЗ'!BB:BB)+SUMIF('15.ГРР'!$D:$D, $D37, '15.ГРР'!Y:Y)+SUMIF('16.НИОКР'!$D:$D, $D37, '16.НИОКР'!Y:Y)+SUMIF('17.НМА'!$D:$D, $D37, '17.НМА'!Z:Z)+SUMIF('18.ПКЗ'!$D:$D, $D37, '18.ПКЗ'!Z:Z)+SUMIF('19.БФИ'!$D:$D, $D37, '19.БФИ'!Z:Z)) -> 0 | Z37: =IF($D37="", 0, SUMIF('7.СМР'!$D:$D, $D37, '7.СМР'!Z:Z)+SUMIF('8.ОСС'!$D:$D, $D37, '8.ОСС'!AR:AR)+SUMIF('9.ПИР'!$D:$D, $D37, '9.ПИР'!Z:Z)+SUMIF('10.БКП'!$D:$D, $D37, '10.БКП'!Z:Z)+SUMIF('11.ПЗС'!$D:$D, $D37, '11.ПЗС'!AA:AA)+SUMIF('12.ТП_БЭФ'!$D:$D, $D37, '12.ТП_БЭФ'!AT:AT)+SUMIF('13.ТП_СЭФ'!$D:$D, $D37, '13.ТП_СЭФ'!BB:BB)+SUMIF('14.ОВИЗ'!$D:$D, $D37, '14.ОВИЗ'!BC:BC)+SUMIF('15.ГРР'!$D:$D, $D37, '15.ГРР'!Z:Z)+SUMIF('16.НИОКР'!$D:$D, $D37, '16.НИОКР'!Z:Z)+SUMIF('17.НМА'!$D:$D, $D37, '17.НМА'!AA:AA)+SUMIF('18.ПКЗ'!$D:$D, $D37, '18.ПКЗ'!AA:AA)+SUMIF('19.БФИ'!$D:$D, $D37, '19.БФИ'!AA:AA)) -> 0 | AA37: =IF($D37="", 0, SUMIF('7.СМР'!$D:$D, $D37, '7.СМР'!AA:AA)+SUMIF('8.ОСС'!$D:$D, $D37, '8.ОСС'!AS:AS)+SUMIF('9.ПИР'!$D:$D, $D37, '9.ПИР'!AA:AA)+SUMIF('10.БКП'!$D:$D, $D37, '10.БКП'!AA:AA)+SUMIF('11.ПЗС'!$D:$D, $D37, '11.ПЗС'!AB:AB)+SUMIF('12.ТП_БЭФ'!$D:$D, $D37, '12.ТП_БЭФ'!AU:AU)+SUMIF('13.ТП_СЭФ'!$D:$D, $D37, '13.ТП_СЭФ'!BC:BC)+SUMIF('14.ОВИЗ'!$D:$D, $D37, '14.ОВИЗ'!BD:BD)+SUMIF('15.ГРР'!$D:$D, $D37, '15.ГРР'!AA:AA)+SUMIF('16.НИОКР'!$D:$D, $D37, '16.НИОКР'!AA:AA)+SUMIF('17.НМА'!$D:$D, $D37, '17.НМА'!AB:AB)+SUMIF('18.ПКЗ'!$D:$D, $D37, '18.ПКЗ'!AB:AB)+SUMIF('19.БФИ'!$D:$D, $D37, '19.БФИ'!AB:AB)) -> 0 | AB37: =IF($D37="", 0, SUMIF('7.СМР'!$D:$D, $D37, '7.СМР'!AB:AB)+SUMIF('8.ОСС'!$D:$D, $D37, '8.ОСС'!AT:AT)+SUMIF('9.ПИР'!$D:$D, $D37, '9.ПИР'!AB:AB)+SUMIF('10.БКП'!$D:$D, $D37, '10.БКП'!AB:AB)+SUMIF('11.ПЗС'!$D:$D, $D37, '11.ПЗС'!AC:AC)+SUMIF('12.ТП_БЭФ'!$D:$D, $D37, '12.ТП_БЭФ'!AV:AV)+SUMIF('13.ТП_СЭФ'!$D:$D, $D37, '13.ТП_СЭФ'!BD:BD)+SUMIF('14.ОВИЗ'!$D:$D, $D37, '14.ОВИЗ'!BE:BE)+SUMIF('15.ГРР'!$D:$D, $D37, '15.ГРР'!AB:AB)+SUMIF('16.НИОКР'!$D:$D, $D37, '16.НИОКР'!AB:AB)+SUMIF('17.НМА'!$D:$D, $D37, '17.НМА'!AC:AC)+SUMIF('18.ПКЗ'!$D:$D, $D37, '18.ПКЗ'!AC:AC)+SUMIF('19.БФИ'!$D:$D, $D37, '19.БФИ'!AC:AC)) -> 0 | AC37: =IF($D37="", 0, SUMIF('7.СМР'!$D:$D, $D37, '7.СМР'!AC:AC)+SUMIF('8.ОСС'!$D:$D, $D37, '8.ОСС'!AU:AU)+SUMIF('9.ПИР'!$D:$D, $D37, '9.ПИР'!AC:AC)+SUMIF('10.БКП'!$D:$D, $D37, '10.БКП'!AC:AC)+SUMIF('11.ПЗС'!$D:$D, $D37, '11.ПЗС'!AD:AD)+SUMIF('12.ТП_БЭФ'!$D:$D, $D37, '12.ТП_БЭФ'!AW:AW)+SUMIF('13.ТП_СЭФ'!$D:$D, $D37, '13.ТП_СЭФ'!BE:BE)+SUMIF('14.ОВИЗ'!$D:$D, $D37, '14.ОВИЗ'!BF:BF)+SUMIF('15.ГРР'!$D:$D, $D37, '15.ГРР'!AC:AC)+SUMIF('16.НИОКР'!$D:$D, $D37, '16.НИОКР'!AC:AC)+SUMIF('17.НМА'!$D:$D, $D37, '17.НМА'!AD:AD)+SUMIF('18.ПКЗ'!$D:$D, $D37, '18.ПКЗ'!AD:AD)+SUMIF('19.БФИ'!$D:$D, $D37, '19.БФИ'!AD:AD)) -> 0 | AD37: =IF($D37="", 0, SUMIF('7.СМР'!$D:$D, $D37, '7.СМР'!AD:AD)+SUMIF('8.ОСС'!$D:$D, $D37, '8.ОСС'!AV:AV)+SUMIF('9.ПИР'!$D:$D, $D37, '9.ПИР'!AD:AD)+SUMIF('10.БКП'!$D:$D, $D37, '10.БКП'!AD:AD)+SUMIF('11.ПЗС'!$D:$D, $D37, '11.ПЗС'!AE:AE)+SUMIF('12.ТП_БЭФ'!$D:$D, $D37, '12.ТП_БЭФ'!AX:AX)+SUMIF('13.ТП_СЭФ'!$D:$D, $D37, '13.ТП_СЭФ'!BF:BF)+SUMIF('14.ОВИЗ'!$D:$D, $D37, '14.ОВИЗ'!BG:BG)+SUMIF('15.ГРР'!$D:$D, $D37, '15.ГРР'!AD:AD)+SUMIF('16.НИОКР'!$D:$D, $D37, '16.НИОКР'!AD:AD)+SUMIF('17.НМА'!$D:$D, $D37, '17.НМА'!AE:AE)+SUMIF('18.ПКЗ'!$D:$D, $D37, '18.ПКЗ'!AE:AE)+SUMIF('19.БФИ'!$D:$D, $D37, '19.БФИ'!AE:AE)) -> 0 | AE37: =IF($D37="", 0, SUMIF('7.СМР'!$D:$D, $D37, '7.СМР'!AE:AE)+SUMIF('8.ОСС'!$D:$D, $D37, '8.ОСС'!AW:AW)+SUMIF('9.ПИР'!$D:$D, $D37, '9.ПИР'!AE:AE)+SUMIF('10.БКП'!$D:$D, $D37, '10.БКП'!AE:AE)+SUMIF('11.ПЗС'!$D:$D, $D37, '11.ПЗС'!AF:AF)+SUMIF('12.ТП_БЭФ'!$D:$D, $D37, '12.ТП_БЭФ'!AY:AY)+SUMIF('13.ТП_СЭФ'!$D:$D, $D37, '13.ТП_СЭФ'!BG:BG)+SUMIF('14.ОВИЗ'!$D:$D, $D37, '14.ОВИЗ'!BH:BH)+SUMIF('15.ГРР'!$D:$D, $D37, '15.ГРР'!AE:AE)+SUMIF('16.НИОКР'!$D:$D, $D37, '16.НИОКР'!AE:AE)+SUMIF('17.НМА'!$D:$D, $D37, '17.НМА'!AF:AF)+SUMIF('18.ПКЗ'!$D:$D, $D37, '18.ПКЗ'!AF:AF)+SUMIF('19.БФИ'!$D:$D, $D37, '19.БФИ'!AF:AF)) -> 0 | AG37: 0
B38: =IF(D38="", "", '04.РИП'!A48) ->  | C38: =IF(D38="", "", '04.РИП'!D48) ->  | D38: =IF(ISBLANK('04.РИП'!B48), "", '04.РИП'!B48) ->  | E38: =IF(D38="", "", '04.РИП'!E48) ->  | F38: =IF(D38="", "", '04.РИП'!D48) ->  | G38: =IF($D38="", 0, SUMIF('7.СМР'!$D:$D, $D38, '7.СМР'!G:G)+SUMIF('8.ОСС'!$D:$D, $D38, '8.ОСС'!Y:Y)+SUMIF('9.ПИР'!$D:$D, $D38, '9.ПИР'!G:G)+SUMIF('10.БКП'!$D:$D, $D38, '10.БКП'!G:G)+SUMIF('11.ПЗС'!$D:$D, $D38, '11.ПЗС'!H:H)+SUMIF('12.ТП_БЭФ'!$D:$D, $D38, '12.ТП_БЭФ'!AA:AA)+SUMIF('13.ТП_СЭФ'!$D:$D, $D38, '13.ТП_СЭФ'!AI:AI)+SUMIF('14.ОВИЗ'!$D:$D, $D38, '14.ОВИЗ'!AJ:AJ)+SUMIF('15.ГРР'!$D:$D, $D38, '15.ГРР'!G:G)+SUMIF('16.НИОКР'!$D:$D, $D38, '16.НИОКР'!G:G)+SUMIF('17.НМА'!$D:$D, $D38, '17.НМА'!H:H)+SUMIF('18.ПКЗ'!$D:$D, $D38, '18.ПКЗ'!H:H)+SUMIF('19.БФИ'!$D:$D, $D38, '19.БФИ'!H:H)) -> 0 | H38: =IF($D38="", 0, SUMIF('7.СМР'!$D:$D, $D38, '7.СМР'!H:H)+SUMIF('8.ОСС'!$D:$D, $D38, '8.ОСС'!Z:Z)+SUMIF('9.ПИР'!$D:$D, $D38, '9.ПИР'!H:H)+SUMIF('10.БКП'!$D:$D, $D38, '10.БКП'!H:H)+SUMIF('11.ПЗС'!$D:$D, $D38, '11.ПЗС'!I:I)+SUMIF('12.ТП_БЭФ'!$D:$D, $D38, '12.ТП_БЭФ'!AB:AB)+SUMIF('13.ТП_СЭФ'!$D:$D, $D38, '13.ТП_СЭФ'!AJ:AJ)+SUMIF('14.ОВИЗ'!$D:$D, $D38, '14.ОВИЗ'!AK:AK)+SUMIF('15.ГРР'!$D:$D, $D38, '15.ГРР'!H:H)+SUMIF('16.НИОКР'!$D:$D, $D38, '16.НИОКР'!H:H)+SUMIF('17.НМА'!$D:$D, $D38, '17.НМА'!I:I)+SUMIF('18.ПКЗ'!$D:$D, $D38, '18.ПКЗ'!I:I)+SUMIF('19.БФИ'!$D:$D, $D38, '19.БФИ'!I:I)) -> 0 | I38: =IF($D38="", 0, SUMIF('7.СМР'!$D:$D, $D38, '7.СМР'!I:I)+SUMIF('8.ОСС'!$D:$D, $D38, '8.ОСС'!AA:AA)+SUMIF('9.ПИР'!$D:$D, $D38, '9.ПИР'!I:I)+SUMIF('10.БКП'!$D:$D, $D38, '10.БКП'!I:I)+SUMIF('11.ПЗС'!$D:$D, $D38, '11.ПЗС'!J:J)+SUMIF('12.ТП_БЭФ'!$D:$D, $D38, '12.ТП_БЭФ'!AC:AC)+SUMIF('13.ТП_СЭФ'!$D:$D, $D38, '13.ТП_СЭФ'!AK:AK)+SUMIF('14.ОВИЗ'!$D:$D, $D38, '14.ОВИЗ'!AL:AL)+SUMIF('15.ГРР'!$D:$D, $D38, '15.ГРР'!I:I)+SUMIF('16.НИОКР'!$D:$D, $D38, '16.НИОКР'!I:I)+SUMIF('17.НМА'!$D:$D, $D38, '17.НМА'!J:J)+SUMIF('18.ПКЗ'!$D:$D, $D38, '18.ПКЗ'!J:J)+SUMIF('19.БФИ'!$D:$D, $D38, '19.БФИ'!J:J)) -> 0 | J38: =IF($D38="", 0, SUMIF('7.СМР'!$D:$D, $D38, '7.СМР'!J:J)+SUMIF('8.ОСС'!$D:$D, $D38, '8.ОСС'!AB:AB)+SUMIF('9.ПИР'!$D:$D, $D38, '9.ПИР'!J:J)+SUMIF('10.БКП'!$D:$D, $D38, '10.БКП'!J:J)+SUMIF('11.ПЗС'!$D:$D, $D38, '11.ПЗС'!K:K)+SUMIF('12.ТП_БЭФ'!$D:$D, $D38, '12.ТП_БЭФ'!AD:AD)+SUMIF('13.ТП_СЭФ'!$D:$D, $D38, '13.ТП_СЭФ'!AL:AL)+SUMIF('14.ОВИЗ'!$D:$D, $D38, '14.ОВИЗ'!AM:AM)+SUMIF('15.ГРР'!$D:$D, $D38, '15.ГРР'!J:J)+SUMIF('16.НИОКР'!$D:$D, $D38, '16.НИОКР'!J:J)+SUMIF('17.НМА'!$D:$D, $D38, '17.НМА'!K:K)+SUMIF('18.ПКЗ'!$D:$D, $D38, '18.ПКЗ'!K:K)+SUMIF('19.БФИ'!$D:$D, $D38, '19.БФИ'!K:K)) -> 0 | K38: =IF($D38="", 0, SUMIF('7.СМР'!$D:$D, $D38, '7.СМР'!K:K)+SUMIF('8.ОСС'!$D:$D, $D38, '8.ОСС'!AC:AC)+SUMIF('9.ПИР'!$D:$D, $D38, '9.ПИР'!K:K)+SUMIF('10.БКП'!$D:$D, $D38, '10.БКП'!K:K)+SUMIF('11.ПЗС'!$D:$D, $D38, '11.ПЗС'!L:L)+SUMIF('12.ТП_БЭФ'!$D:$D, $D38, '12.ТП_БЭФ'!AE:AE)+SUMIF('13.ТП_СЭФ'!$D:$D, $D38, '13.ТП_СЭФ'!AM:AM)+SUMIF('14.ОВИЗ'!$D:$D, $D38, '14.ОВИЗ'!AN:AN)+SUMIF('15.ГРР'!$D:$D, $D38, '15.ГРР'!K:K)+SUMIF('16.НИОКР'!$D:$D, $D38, '16.НИОКР'!K:K)+SUMIF('17.НМА'!$D:$D, $D38, '17.НМА'!L:L)+SUMIF('18.ПКЗ'!$D:$D, $D38, '18.ПКЗ'!L:L)+SUMIF('19.БФИ'!$D:$D, $D38, '19.БФИ'!L:L)) -> 0 | L38: =IF($D38="", 0, SUMIF('7.СМР'!$D:$D, $D38, '7.СМР'!L:L)+SUMIF('8.ОСС'!$D:$D, $D38, '8.ОСС'!AD:AD)+SUMIF('9.ПИР'!$D:$D, $D38, '9.ПИР'!L:L)+SUMIF('10.БКП'!$D:$D, $D38, '10.БКП'!L:L)+SUMIF('11.ПЗС'!$D:$D, $D38, '11.ПЗС'!M:M)+SUMIF('12.ТП_БЭФ'!$D:$D, $D38, '12.ТП_БЭФ'!AF:AF)+SUMIF('13.ТП_СЭФ'!$D:$D, $D38, '13.ТП_СЭФ'!AN:AN)+SUMIF('14.ОВИЗ'!$D:$D, $D38, '14.ОВИЗ'!AO:AO)+SUMIF('15.ГРР'!$D:$D, $D38, '15.ГРР'!L:L)+SUMIF('16.НИОКР'!$D:$D, $D38, '16.НИОКР'!L:L)+SUMIF('17.НМА'!$D:$D, $D38, '17.НМА'!M:M)+SUMIF('18.ПКЗ'!$D:$D, $D38, '18.ПКЗ'!M:M)+SUMIF('19.БФИ'!$D:$D, $D38, '19.БФИ'!M:M)) -> 0 | M38: =IF($D38="", 0, SUMIF('7.СМР'!$D:$D, $D38, '7.СМР'!M:M)+SUMIF('8.ОСС'!$D:$D, $D38, '8.ОСС'!AE:AE)+SUMIF('9.ПИР'!$D:$D, $D38, '9.ПИР'!M:M)+SUMIF('10.БКП'!$D:$D, $D38, '10.БКП'!M:M)+SUMIF('11.ПЗС'!$D:$D, $D38, '11.ПЗС'!N:N)+SUMIF('12.ТП_БЭФ'!$D:$D, $D38, '12.ТП_БЭФ'!AG:AG)+SUMIF('13.ТП_СЭФ'!$D:$D, $D38, '13.ТП_СЭФ'!AO:AO)+SUMIF('14.ОВИЗ'!$D:$D, $D38, '14.ОВИЗ'!AP:AP)+SUMIF('15.ГРР'!$D:$D, $D38, '15.ГРР'!M:M)+SUMIF('16.НИОКР'!$D:$D, $D38, '16.НИОКР'!M:M)+SUMIF('17.НМА'!$D:$D, $D38, '17.НМА'!N:N)+SUMIF('18.ПКЗ'!$D:$D, $D38, '18.ПКЗ'!N:N)+SUMIF('19.БФИ'!$D:$D, $D38, '19.БФИ'!N:N)) -> 0 | N38: =IF($D38="", 0, SUMIF('7.СМР'!$D:$D, $D38, '7.СМР'!N:N)+SUMIF('8.ОСС'!$D:$D, $D38, '8.ОСС'!AF:AF)+SUMIF('9.ПИР'!$D:$D, $D38, '9.ПИР'!N:N)+SUMIF('10.БКП'!$D:$D, $D38, '10.БКП'!N:N)+SUMIF('11.ПЗС'!$D:$D, $D38, '11.ПЗС'!O:O)+SUMIF('12.ТП_БЭФ'!$D:$D, $D38, '12.ТП_БЭФ'!AH:AH)+SUMIF('13.ТП_СЭФ'!$D:$D, $D38, '13.ТП_СЭФ'!AP:AP)+SUMIF('14.ОВИЗ'!$D:$D, $D38, '14.ОВИЗ'!AQ:AQ)+SUMIF('15.ГРР'!$D:$D, $D38, '15.ГРР'!N:N)+SUMIF('16.НИОКР'!$D:$D, $D38, '16.НИОКР'!N:N)+SUMIF('17.НМА'!$D:$D, $D38, '17.НМА'!O:O)+SUMIF('18.ПКЗ'!$D:$D, $D38, '18.ПКЗ'!O:O)+SUMIF('19.БФИ'!$D:$D, $D38, '19.БФИ'!O:O)) -> 0 | O38: =IF($D38="", 0, SUMIF('7.СМР'!$D:$D, $D38, '7.СМР'!O:O)+SUMIF('8.ОСС'!$D:$D, $D38, '8.ОСС'!AG:AG)+SUMIF('9.ПИР'!$D:$D, $D38, '9.ПИР'!O:O)+SUMIF('10.БКП'!$D:$D, $D38, '10.БКП'!O:O)+SUMIF('11.ПЗС'!$D:$D, $D38, '11.ПЗС'!P:P)+SUMIF('12.ТП_БЭФ'!$D:$D, $D38, '12.ТП_БЭФ'!AI:AI)+SUMIF('13.ТП_СЭФ'!$D:$D, $D38, '13.ТП_СЭФ'!AQ:AQ)+SUMIF('14.ОВИЗ'!$D:$D, $D38, '14.ОВИЗ'!AR:AR)+SUMIF('15.ГРР'!$D:$D, $D38, '15.ГРР'!O:O)+SUMIF('16.НИОКР'!$D:$D, $D38, '16.НИОКР'!O:O)+SUMIF('17.НМА'!$D:$D, $D38, '17.НМА'!P:P)+SUMIF('18.ПКЗ'!$D:$D, $D38, '18.ПКЗ'!P:P)+SUMIF('19.БФИ'!$D:$D, $D38, '19.БФИ'!P:P)) -> 0 | P38: =IF($D38="", 0, SUMIF('7.СМР'!$D:$D, $D38, '7.СМР'!P:P)+SUMIF('8.ОСС'!$D:$D, $D38, '8.ОСС'!AH:AH)+SUMIF('9.ПИР'!$D:$D, $D38, '9.ПИР'!P:P)+SUMIF('10.БКП'!$D:$D, $D38, '10.БКП'!P:P)+SUMIF('11.ПЗС'!$D:$D, $D38, '11.ПЗС'!Q:Q)+SUMIF('12.ТП_БЭФ'!$D:$D, $D38, '12.ТП_БЭФ'!AJ:AJ)+SUMIF('13.ТП_СЭФ'!$D:$D, $D38, '13.ТП_СЭФ'!AR:AR)+SUMIF('14.ОВИЗ'!$D:$D, $D38, '14.ОВИЗ'!AS:AS)+SUMIF('15.ГРР'!$D:$D, $D38, '15.ГРР'!P:P)+SUMIF('16.НИОКР'!$D:$D, $D38, '16.НИОКР'!P:P)+SUMIF('17.НМА'!$D:$D, $D38, '17.НМА'!Q:Q)+SUMIF('18.ПКЗ'!$D:$D, $D38, '18.ПКЗ'!Q:Q)+SUMIF('19.БФИ'!$D:$D, $D38, '19.БФИ'!Q:Q)) -> 0 | Q38: 0 | R38: 0 | S38: 0 | T38: 0 | V38: 0 | W38: 0 | X38: =IF($D38="", 0, SUMIF('7.СМР'!$D:$D, $D38, '7.СМР'!X:X)+SUMIF('8.ОСС'!$D:$D, $D38, '8.ОСС'!AP:AP)+SUMIF('9.ПИР'!$D:$D, $D38, '9.ПИР'!X:X)+SUMIF('10.БКП'!$D:$D, $D38, '10.БКП'!X:X)+SUMIF('11.ПЗС'!$D:$D, $D38, '11.ПЗС'!Y:Y)+SUMIF('12.ТП_БЭФ'!$D:$D, $D38, '12.ТП_БЭФ'!AR:AR)+SUMIF('13.ТП_СЭФ'!$D:$D, $D38, '13.ТП_СЭФ'!AZ:AZ)+SUMIF('14.ОВИЗ'!$D:$D, $D38, '14.ОВИЗ'!BA:BA)+SUMIF('15.ГРР'!$D:$D, $D38, '15.ГРР'!X:X)+SUMIF('16.НИОКР'!$D:$D, $D38, '16.НИОКР'!X:X)+SUMIF('17.НМА'!$D:$D, $D38, '17.НМА'!Y:Y)+SUMIF('18.ПКЗ'!$D:$D, $D38, '18.ПКЗ'!Y:Y)+SUMIF('19.БФИ'!$D:$D, $D38, '19.БФИ'!Y:Y)) -> 0 | Y38: =IF($D38="", 0, SUMIF('7.СМР'!$D:$D, $D38, '7.СМР'!Y:Y)+SUMIF('8.ОСС'!$D:$D, $D38, '8.ОСС'!AQ:AQ)+SUMIF('9.ПИР'!$D:$D, $D38, '9.ПИР'!Y:Y)+SUMIF('10.БКП'!$D:$D, $D38, '10.БКП'!Y:Y)+SUMIF('11.ПЗС'!$D:$D, $D38, '11.ПЗС'!Z:Z)+SUMIF('12.ТП_БЭФ'!$D:$D, $D38, '12.ТП_БЭФ'!AS:AS)+SUMIF('13.ТП_СЭФ'!$D:$D, $D38, '13.ТП_СЭФ'!BA:BA)+SUMIF('14.ОВИЗ'!$D:$D, $D38, '14.ОВИЗ'!BB:BB)+SUMIF('15.ГРР'!$D:$D, $D38, '15.ГРР'!Y:Y)+SUMIF('16.НИОКР'!$D:$D, $D38, '16.НИОКР'!Y:Y)+SUMIF('17.НМА'!$D:$D, $D38, '17.НМА'!Z:Z)+SUMIF('18.ПКЗ'!$D:$D, $D38, '18.ПКЗ'!Z:Z)+SUMIF('19.БФИ'!$D:$D, $D38, '19.БФИ'!Z:Z)) -> 0 | Z38: =IF($D38="", 0, SUMIF('7.СМР'!$D:$D, $D38, '7.СМР'!Z:Z)+SUMIF('8.ОСС'!$D:$D, $D38, '8.ОСС'!AR:AR)+SUMIF('9.ПИР'!$D:$D, $D38, '9.ПИР'!Z:Z)+SUMIF('10.БКП'!$D:$D, $D38, '10.БКП'!Z:Z)+SUMIF('11.ПЗС'!$D:$D, $D38, '11.ПЗС'!AA:AA)+SUMIF('12.ТП_БЭФ'!$D:$D, $D38, '12.ТП_БЭФ'!AT:AT)+SUMIF('13.ТП_СЭФ'!$D:$D, $D38, '13.ТП_СЭФ'!BB:BB)+SUMIF('14.ОВИЗ'!$D:$D, $D38, '14.ОВИЗ'!BC:BC)+SUMIF('15.ГРР'!$D:$D, $D38, '15.ГРР'!Z:Z)+SUMIF('16.НИОКР'!$D:$D, $D38, '16.НИОКР'!Z:Z)+SUMIF('17.НМА'!$D:$D, $D38, '17.НМА'!AA:AA)+SUMIF('18.ПКЗ'!$D:$D, $D38, '18.ПКЗ'!AA:AA)+SUMIF('19.БФИ'!$D:$D, $D38, '19.БФИ'!AA:AA)) -> 0 | AA38: =IF($D38="", 0, SUMIF('7.СМР'!$D:$D, $D38, '7.СМР'!AA:AA)+SUMIF('8.ОСС'!$D:$D, $D38, '8.ОСС'!AS:AS)+SUMIF('9.ПИР'!$D:$D, $D38, '9.ПИР'!AA:AA)+SUMIF('10.БКП'!$D:$D, $D38, '10.БКП'!AA:AA)+SUMIF('11.ПЗС'!$D:$D, $D38, '11.ПЗС'!AB:AB)+SUMIF('12.ТП_БЭФ'!$D:$D, $D38, '12.ТП_БЭФ'!AU:AU)+SUMIF('13.ТП_СЭФ'!$D:$D, $D38, '13.ТП_СЭФ'!BC:BC)+SUMIF('14.ОВИЗ'!$D:$D, $D38, '14.ОВИЗ'!BD:BD)+SUMIF('15.ГРР'!$D:$D, $D38, '15.ГРР'!AA:AA)+SUMIF('16.НИОКР'!$D:$D, $D38, '16.НИОКР'!AA:AA)+SUMIF('17.НМА'!$D:$D, $D38, '17.НМА'!AB:AB)+SUMIF('18.ПКЗ'!$D:$D, $D38, '18.ПКЗ'!AB:AB)+SUMIF('19.БФИ'!$D:$D, $D38, '19.БФИ'!AB:AB)) -> 0 | AB38: =IF($D38="", 0, SUMIF('7.СМР'!$D:$D, $D38, '7.СМР'!AB:AB)+SUMIF('8.ОСС'!$D:$D, $D38, '8.ОСС'!AT:AT)+SUMIF('9.ПИР'!$D:$D, $D38, '9.ПИР'!AB:AB)+SUMIF('10.БКП'!$D:$D, $D38, '10.БКП'!AB:AB)+SUMIF('11.ПЗС'!$D:$D, $D38, '11.ПЗС'!AC:AC)+SUMIF('12.ТП_БЭФ'!$D:$D, $D38, '12.ТП_БЭФ'!AV:AV)+SUMIF('13.ТП_СЭФ'!$D:$D, $D38, '13.ТП_СЭФ'!BD:BD)+SUMIF('14.ОВИЗ'!$D:$D, $D38, '14.ОВИЗ'!BE:BE)+SUMIF('15.ГРР'!$D:$D, $D38, '15.ГРР'!AB:AB)+SUMIF('16.НИОКР'!$D:$D, $D38, '16.НИОКР'!AB:AB)+SUMIF('17.НМА'!$D:$D, $D38, '17.НМА'!AC:AC)+SUMIF('18.ПКЗ'!$D:$D, $D38, '18.ПКЗ'!AC:AC)+SUMIF('19.БФИ'!$D:$D, $D38, '19.БФИ'!AC:AC)) -> 0 | AC38: =IF($D38="", 0, SUMIF('7.СМР'!$D:$D, $D38, '7.СМР'!AC:AC)+SUMIF('8.ОСС'!$D:$D, $D38, '8.ОСС'!AU:AU)+SUMIF('9.ПИР'!$D:$D, $D38, '9.ПИР'!AC:AC)+SUMIF('10.БКП'!$D:$D, $D38, '10.БКП'!AC:AC)+SUMIF('11.ПЗС'!$D:$D, $D38, '11.ПЗС'!AD:AD)+SUMIF('12.ТП_БЭФ'!$D:$D, $D38, '12.ТП_БЭФ'!AW:AW)+SUMIF('13.ТП_СЭФ'!$D:$D, $D38, '13.ТП_СЭФ'!BE:BE)+SUMIF('14.ОВИЗ'!$D:$D, $D38, '14.ОВИЗ'!BF:BF)+SUMIF('15.ГРР'!$D:$D, $D38, '15.ГРР'!AC:AC)+SUMIF('16.НИОКР'!$D:$D, $D38, '16.НИОКР'!AC:AC)+SUMIF('17.НМА'!$D:$D, $D38, '17.НМА'!AD:AD)+SUMIF('18.ПКЗ'!$D:$D, $D38, '18.ПКЗ'!AD:AD)+SUMIF('19.БФИ'!$D:$D, $D38, '19.БФИ'!AD:AD)) -> 0 | AD38: =IF($D38="", 0, SUMIF('7.СМР'!$D:$D, $D38, '7.СМР'!AD:AD)+SUMIF('8.ОСС'!$D:$D, $D38, '8.ОСС'!AV:AV)+SUMIF('9.ПИР'!$D:$D, $D38, '9.ПИР'!AD:AD)+SUMIF('10.БКП'!$D:$D, $D38, '10.БКП'!AD:AD)+SUMIF('11.ПЗС'!$D:$D, $D38, '11.ПЗС'!AE:AE)+SUMIF('12.ТП_БЭФ'!$D:$D, $D38, '12.ТП_БЭФ'!AX:AX)+SUMIF('13.ТП_СЭФ'!$D:$D, $D38, '13.ТП_СЭФ'!BF:BF)+SUMIF('14.ОВИЗ'!$D:$D, $D38, '14.ОВИЗ'!BG:BG)+SUMIF('15.ГРР'!$D:$D, $D38, '15.ГРР'!AD:AD)+SUMIF('16.НИОКР'!$D:$D, $D38, '16.НИОКР'!AD:AD)+SUMIF('17.НМА'!$D:$D, $D38, '17.НМА'!AE:AE)+SUMIF('18.ПКЗ'!$D:$D, $D38, '18.ПКЗ'!AE:AE)+SUMIF('19.БФИ'!$D:$D, $D38, '19.БФИ'!AE:AE)) -> 0 | AE38: =IF($D38="", 0, SUMIF('7.СМР'!$D:$D, $D38, '7.СМР'!AE:AE)+SUMIF('8.ОСС'!$D:$D, $D38, '8.ОСС'!AW:AW)+SUMIF('9.ПИР'!$D:$D, $D38, '9.ПИР'!AE:AE)+SUMIF('10.БКП'!$D:$D, $D38, '10.БКП'!AE:AE)+SUMIF('11.ПЗС'!$D:$D, $D38, '11.ПЗС'!AF:AF)+SUMIF('12.ТП_БЭФ'!$D:$D, $D38, '12.ТП_БЭФ'!AY:AY)+SUMIF('13.ТП_СЭФ'!$D:$D, $D38, '13.ТП_СЭФ'!BG:BG)+SUMIF('14.ОВИЗ'!$D:$D, $D38, '14.ОВИЗ'!BH:BH)+SUMIF('15.ГРР'!$D:$D, $D38, '15.ГРР'!AE:AE)+SUMIF('16.НИОКР'!$D:$D, $D38, '16.НИОКР'!AE:AE)+SUMIF('17.НМА'!$D:$D, $D38, '17.НМА'!AF:AF)+SUMIF('18.ПКЗ'!$D:$D, $D38, '18.ПКЗ'!AF:AF)+SUMIF('19.БФИ'!$D:$D, $D38, '19.БФИ'!AF:AF)) -> 0 | AG38: 0
B39: =IF(D39="", "", '04.РИП'!A49) ->  | C39: =IF(D39="", "", '04.РИП'!D49) ->  | D39: =IF(ISBLANK('04.РИП'!B49), "", '04.РИП'!B49) ->  | E39: =IF(D39="", "", '04.РИП'!E49) ->  | F39: =IF(D39="", "", '04.РИП'!D49) ->  | G39: =IF($D39="", 0, SUMIF('7.СМР'!$D:$D, $D39, '7.СМР'!G:G)+SUMIF('8.ОСС'!$D:$D, $D39, '8.ОСС'!Y:Y)+SUMIF('9.ПИР'!$D:$D, $D39, '9.ПИР'!G:G)+SUMIF('10.БКП'!$D:$D, $D39, '10.БКП'!G:G)+SUMIF('11.ПЗС'!$D:$D, $D39, '11.ПЗС'!H:H)+SUMIF('12.ТП_БЭФ'!$D:$D, $D39, '12.ТП_БЭФ'!AA:AA)+SUMIF('13.ТП_СЭФ'!$D:$D, $D39, '13.ТП_СЭФ'!AI:AI)+SUMIF('14.ОВИЗ'!$D:$D, $D39, '14.ОВИЗ'!AJ:AJ)+SUMIF('15.ГРР'!$D:$D, $D39, '15.ГРР'!G:G)+SUMIF('16.НИОКР'!$D:$D, $D39, '16.НИОКР'!G:G)+SUMIF('17.НМА'!$D:$D, $D39, '17.НМА'!H:H)+SUMIF('18.ПКЗ'!$D:$D, $D39, '18.ПКЗ'!H:H)+SUMIF('19.БФИ'!$D:$D, $D39, '19.БФИ'!H:H)) -> 0 | H39: =IF($D39="", 0, SUMIF('7.СМР'!$D:$D, $D39, '7.СМР'!H:H)+SUMIF('8.ОСС'!$D:$D, $D39, '8.ОСС'!Z:Z)+SUMIF('9.ПИР'!$D:$D, $D39, '9.ПИР'!H:H)+SUMIF('10.БКП'!$D:$D, $D39, '10.БКП'!H:H)+SUMIF('11.ПЗС'!$D:$D, $D39, '11.ПЗС'!I:I)+SUMIF('12.ТП_БЭФ'!$D:$D, $D39, '12.ТП_БЭФ'!AB:AB)+SUMIF('13.ТП_СЭФ'!$D:$D, $D39, '13.ТП_СЭФ'!AJ:AJ)+SUMIF('14.ОВИЗ'!$D:$D, $D39, '14.ОВИЗ'!AK:AK)+SUMIF('15.ГРР'!$D:$D, $D39, '15.ГРР'!H:H)+SUMIF('16.НИОКР'!$D:$D, $D39, '16.НИОКР'!H:H)+SUMIF('17.НМА'!$D:$D, $D39, '17.НМА'!I:I)+SUMIF('18.ПКЗ'!$D:$D, $D39, '18.ПКЗ'!I:I)+SUMIF('19.БФИ'!$D:$D, $D39, '19.БФИ'!I:I)) -> 0 | I39: =IF($D39="", 0, SUMIF('7.СМР'!$D:$D, $D39, '7.СМР'!I:I)+SUMIF('8.ОСС'!$D:$D, $D39, '8.ОСС'!AA:AA)+SUMIF('9.ПИР'!$D:$D, $D39, '9.ПИР'!I:I)+SUMIF('10.БКП'!$D:$D, $D39, '10.БКП'!I:I)+SUMIF('11.ПЗС'!$D:$D, $D39, '11.ПЗС'!J:J)+SUMIF('12.ТП_БЭФ'!$D:$D, $D39, '12.ТП_БЭФ'!AC:AC)+SUMIF('13.ТП_СЭФ'!$D:$D, $D39, '13.ТП_СЭФ'!AK:AK)+SUMIF('14.ОВИЗ'!$D:$D, $D39, '14.ОВИЗ'!AL:AL)+SUMIF('15.ГРР'!$D:$D, $D39, '15.ГРР'!I:I)+SUMIF('16.НИОКР'!$D:$D, $D39, '16.НИОКР'!I:I)+SUMIF('17.НМА'!$D:$D, $D39, '17.НМА'!J:J)+SUMIF('18.ПКЗ'!$D:$D, $D39, '18.ПКЗ'!J:J)+SUMIF('19.БФИ'!$D:$D, $D39, '19.БФИ'!J:J)) -> 0 | J39: =IF($D39="", 0, SUMIF('7.СМР'!$D:$D, $D39, '7.СМР'!J:J)+SUMIF('8.ОСС'!$D:$D, $D39, '8.ОСС'!AB:AB)+SUMIF('9.ПИР'!$D:$D, $D39, '9.ПИР'!J:J)+SUMIF('10.БКП'!$D:$D, $D39, '10.БКП'!J:J)+SUMIF('11.ПЗС'!$D:$D, $D39, '11.ПЗС'!K:K)+SUMIF('12.ТП_БЭФ'!$D:$D, $D39, '12.ТП_БЭФ'!AD:AD)+SUMIF('13.ТП_СЭФ'!$D:$D, $D39, '13.ТП_СЭФ'!AL:AL)+SUMIF('14.ОВИЗ'!$D:$D, $D39, '14.ОВИЗ'!AM:AM)+SUMIF('15.ГРР'!$D:$D, $D39, '15.ГРР'!J:J)+SUMIF('16.НИОКР'!$D:$D, $D39, '16.НИОКР'!J:J)+SUMIF('17.НМА'!$D:$D, $D39, '17.НМА'!K:K)+SUMIF('18.ПКЗ'!$D:$D, $D39, '18.ПКЗ'!K:K)+SUMIF('19.БФИ'!$D:$D, $D39, '19.БФИ'!K:K)) -> 0 | K39: =IF($D39="", 0, SUMIF('7.СМР'!$D:$D, $D39, '7.СМР'!K:K)+SUMIF('8.ОСС'!$D:$D, $D39, '8.ОСС'!AC:AC)+SUMIF('9.ПИР'!$D:$D, $D39, '9.ПИР'!K:K)+SUMIF('10.БКП'!$D:$D, $D39, '10.БКП'!K:K)+SUMIF('11.ПЗС'!$D:$D, $D39, '11.ПЗС'!L:L)+SUMIF('12.ТП_БЭФ'!$D:$D, $D39, '12.ТП_БЭФ'!AE:AE)+SUMIF('13.ТП_СЭФ'!$D:$D, $D39, '13.ТП_СЭФ'!AM:AM)+SUMIF('14.ОВИЗ'!$D:$D, $D39, '14.ОВИЗ'!AN:AN)+SUMIF('15.ГРР'!$D:$D, $D39, '15.ГРР'!K:K)+SUMIF('16.НИОКР'!$D:$D, $D39, '16.НИОКР'!K:K)+SUMIF('17.НМА'!$D:$D, $D39, '17.НМА'!L:L)+SUMIF('18.ПКЗ'!$D:$D, $D39, '18.ПКЗ'!L:L)+SUMIF('19.БФИ'!$D:$D, $D39, '19.БФИ'!L:L)) -> 0 | L39: =IF($D39="", 0, SUMIF('7.СМР'!$D:$D, $D39, '7.СМР'!L:L)+SUMIF('8.ОСС'!$D:$D, $D39, '8.ОСС'!AD:AD)+SUMIF('9.ПИР'!$D:$D, $D39, '9.ПИР'!L:L)+SUMIF('10.БКП'!$D:$D, $D39, '10.БКП'!L:L)+SUMIF('11.ПЗС'!$D:$D, $D39, '11.ПЗС'!M:M)+SUMIF('12.ТП_БЭФ'!$D:$D, $D39, '12.ТП_БЭФ'!AF:AF)+SUMIF('13.ТП_СЭФ'!$D:$D, $D39, '13.ТП_СЭФ'!AN:AN)+SUMIF('14.ОВИЗ'!$D:$D, $D39, '14.ОВИЗ'!AO:AO)+SUMIF('15.ГРР'!$D:$D, $D39, '15.ГРР'!L:L)+SUMIF('16.НИОКР'!$D:$D, $D39, '16.НИОКР'!L:L)+SUMIF('17.НМА'!$D:$D, $D39, '17.НМА'!M:M)+SUMIF('18.ПКЗ'!$D:$D, $D39, '18.ПКЗ'!M:M)+SUMIF('19.БФИ'!$D:$D, $D39, '19.БФИ'!M:M)) -> 0 | M39: =IF($D39="", 0, SUMIF('7.СМР'!$D:$D, $D39, '7.СМР'!M:M)+SUMIF('8.ОСС'!$D:$D, $D39, '8.ОСС'!AE:AE)+SUMIF('9.ПИР'!$D:$D, $D39, '9.ПИР'!M:M)+SUMIF('10.БКП'!$D:$D, $D39, '10.БКП'!M:M)+SUMIF('11.ПЗС'!$D:$D, $D39, '11.ПЗС'!N:N)+SUMIF('12.ТП_БЭФ'!$D:$D, $D39, '12.ТП_БЭФ'!AG:AG)+SUMIF('13.ТП_СЭФ'!$D:$D, $D39, '13.ТП_СЭФ'!AO:AO)+SUMIF('14.ОВИЗ'!$D:$D, $D39, '14.ОВИЗ'!AP:AP)+SUMIF('15.ГРР'!$D:$D, $D39, '15.ГРР'!M:M)+SUMIF('16.НИОКР'!$D:$D, $D39, '16.НИОКР'!M:M)+SUMIF('17.НМА'!$D:$D, $D39, '17.НМА'!N:N)+SUMIF('18.ПКЗ'!$D:$D, $D39, '18.ПКЗ'!N:N)+SUMIF('19.БФИ'!$D:$D, $D39, '19.БФИ'!N:N)) -> 0 | N39: =IF($D39="", 0, SUMIF('7.СМР'!$D:$D, $D39, '7.СМР'!N:N)+SUMIF('8.ОСС'!$D:$D, $D39, '8.ОСС'!AF:AF)+SUMIF('9.ПИР'!$D:$D, $D39, '9.ПИР'!N:N)+SUMIF('10.БКП'!$D:$D, $D39, '10.БКП'!N:N)+SUMIF('11.ПЗС'!$D:$D, $D39, '11.ПЗС'!O:O)+SUMIF('12.ТП_БЭФ'!$D:$D, $D39, '12.ТП_БЭФ'!AH:AH)+SUMIF('13.ТП_СЭФ'!$D:$D, $D39, '13.ТП_СЭФ'!AP:AP)+SUMIF('14.ОВИЗ'!$D:$D, $D39, '14.ОВИЗ'!AQ:AQ)+SUMIF('15.ГРР'!$D:$D, $D39, '15.ГРР'!N:N)+SUMIF('16.НИОКР'!$D:$D, $D39, '16.НИОКР'!N:N)+SUMIF('17.НМА'!$D:$D, $D39, '17.НМА'!O:O)+SUMIF('18.ПКЗ'!$D:$D, $D39, '18.ПКЗ'!O:O)+SUMIF('19.БФИ'!$D:$D, $D39, '19.БФИ'!O:O)) -> 0 | O39: =IF($D39="", 0, SUMIF('7.СМР'!$D:$D, $D39, '7.СМР'!O:O)+SUMIF('8.ОСС'!$D:$D, $D39, '8.ОСС'!AG:AG)+SUMIF('9.ПИР'!$D:$D, $D39, '9.ПИР'!O:O)+SUMIF('10.БКП'!$D:$D, $D39, '10.БКП'!O:O)+SUMIF('11.ПЗС'!$D:$D, $D39, '11.ПЗС'!P:P)+SUMIF('12.ТП_БЭФ'!$D:$D, $D39, '12.ТП_БЭФ'!AI:AI)+SUMIF('13.ТП_СЭФ'!$D:$D, $D39, '13.ТП_СЭФ'!AQ:AQ)+SUMIF('14.ОВИЗ'!$D:$D, $D39, '14.ОВИЗ'!AR:AR)+SUMIF('15.ГРР'!$D:$D, $D39, '15.ГРР'!O:O)+SUMIF('16.НИОКР'!$D:$D, $D39, '16.НИОКР'!O:O)+SUMIF('17.НМА'!$D:$D, $D39, '17.НМА'!P:P)+SUMIF('18.ПКЗ'!$D:$D, $D39, '18.ПКЗ'!P:P)+SUMIF('19.БФИ'!$D:$D, $D39, '19.БФИ'!P:P)) -> 0 | P39: =IF($D39="", 0, SUMIF('7.СМР'!$D:$D, $D39, '7.СМР'!P:P)+SUMIF('8.ОСС'!$D:$D, $D39, '8.ОСС'!AH:AH)+SUMIF('9.ПИР'!$D:$D, $D39, '9.ПИР'!P:P)+SUMIF('10.БКП'!$D:$D, $D39, '10.БКП'!P:P)+SUMIF('11.ПЗС'!$D:$D, $D39, '11.ПЗС'!Q:Q)+SUMIF('12.ТП_БЭФ'!$D:$D, $D39, '12.ТП_БЭФ'!AJ:AJ)+SUMIF('13.ТП_СЭФ'!$D:$D, $D39, '13.ТП_СЭФ'!AR:AR)+SUMIF('14.ОВИЗ'!$D:$D, $D39, '14.ОВИЗ'!AS:AS)+SUMIF('15.ГРР'!$D:$D, $D39, '15.ГРР'!P:P)+SUMIF('16.НИОКР'!$D:$D, $D39, '16.НИОКР'!P:P)+SUMIF('17.НМА'!$D:$D, $D39, '17.НМА'!Q:Q)+SUMIF('18.ПКЗ'!$D:$D, $D39, '18.ПКЗ'!Q:Q)+SUMIF('19.БФИ'!$D:$D, $D39, '19.БФИ'!Q:Q)) -> 0 | Q39: 0 | R39: 0 | S39: 0 | T39: 0 | V39: 0 | W39: 0 | X39: =IF($D39="", 0, SUMIF('7.СМР'!$D:$D, $D39, '7.СМР'!X:X)+SUMIF('8.ОСС'!$D:$D, $D39, '8.ОСС'!AP:AP)+SUMIF('9.ПИР'!$D:$D, $D39, '9.ПИР'!X:X)+SUMIF('10.БКП'!$D:$D, $D39, '10.БКП'!X:X)+SUMIF('11.ПЗС'!$D:$D, $D39, '11.ПЗС'!Y:Y)+SUMIF('12.ТП_БЭФ'!$D:$D, $D39, '12.ТП_БЭФ'!AR:AR)+SUMIF('13.ТП_СЭФ'!$D:$D, $D39, '13.ТП_СЭФ'!AZ:AZ)+SUMIF('14.ОВИЗ'!$D:$D, $D39, '14.ОВИЗ'!BA:BA)+SUMIF('15.ГРР'!$D:$D, $D39, '15.ГРР'!X:X)+SUMIF('16.НИОКР'!$D:$D, $D39, '16.НИОКР'!X:X)+SUMIF('17.НМА'!$D:$D, $D39, '17.НМА'!Y:Y)+SUMIF('18.ПКЗ'!$D:$D, $D39, '18.ПКЗ'!Y:Y)+SUMIF('19.БФИ'!$D:$D, $D39, '19.БФИ'!Y:Y)) -> 0 | Y39: =IF($D39="", 0, SUMIF('7.СМР'!$D:$D, $D39, '7.СМР'!Y:Y)+SUMIF('8.ОСС'!$D:$D, $D39, '8.ОСС'!AQ:AQ)+SUMIF('9.ПИР'!$D:$D, $D39, '9.ПИР'!Y:Y)+SUMIF('10.БКП'!$D:$D, $D39, '10.БКП'!Y:Y)+SUMIF('11.ПЗС'!$D:$D, $D39, '11.ПЗС'!Z:Z)+SUMIF('12.ТП_БЭФ'!$D:$D, $D39, '12.ТП_БЭФ'!AS:AS)+SUMIF('13.ТП_СЭФ'!$D:$D, $D39, '13.ТП_СЭФ'!BA:BA)+SUMIF('14.ОВИЗ'!$D:$D, $D39, '14.ОВИЗ'!BB:BB)+SUMIF('15.ГРР'!$D:$D, $D39, '15.ГРР'!Y:Y)+SUMIF('16.НИОКР'!$D:$D, $D39, '16.НИОКР'!Y:Y)+SUMIF('17.НМА'!$D:$D, $D39, '17.НМА'!Z:Z)+SUMIF('18.ПКЗ'!$D:$D, $D39, '18.ПКЗ'!Z:Z)+SUMIF('19.БФИ'!$D:$D, $D39, '19.БФИ'!Z:Z)) -> 0 | Z39: =IF($D39="", 0, SUMIF('7.СМР'!$D:$D, $D39, '7.СМР'!Z:Z)+SUMIF('8.ОСС'!$D:$D, $D39, '8.ОСС'!AR:AR)+SUMIF('9.ПИР'!$D:$D, $D39, '9.ПИР'!Z:Z)+SUMIF('10.БКП'!$D:$D, $D39, '10.БКП'!Z:Z)+SUMIF('11.ПЗС'!$D:$D, $D39, '11.ПЗС'!AA:AA)+SUMIF('12.ТП_БЭФ'!$D:$D, $D39, '12.ТП_БЭФ'!AT:AT)+SUMIF('13.ТП_СЭФ'!$D:$D, $D39, '13.ТП_СЭФ'!BB:BB)+SUMIF('14.ОВИЗ'!$D:$D, $D39, '14.ОВИЗ'!BC:BC)+SUMIF('15.ГРР'!$D:$D, $D39, '15.ГРР'!Z:Z)+SUMIF('16.НИОКР'!$D:$D, $D39, '16.НИОКР'!Z:Z)+SUMIF('17.НМА'!$D:$D, $D39, '17.НМА'!AA:AA)+SUMIF('18.ПКЗ'!$D:$D, $D39, '18.ПКЗ'!AA:AA)+SUMIF('19.БФИ'!$D:$D, $D39, '19.БФИ'!AA:AA)) -> 0 | AA39: =IF($D39="", 0, SUMIF('7.СМР'!$D:$D, $D39, '7.СМР'!AA:AA)+SUMIF('8.ОСС'!$D:$D, $D39, '8.ОСС'!AS:AS)+SUMIF('9.ПИР'!$D:$D, $D39, '9.ПИР'!AA:AA)+SUMIF('10.БКП'!$D:$D, $D39, '10.БКП'!AA:AA)+SUMIF('11.ПЗС'!$D:$D, $D39, '11.ПЗС'!AB:AB)+SUMIF('12.ТП_БЭФ'!$D:$D, $D39, '12.ТП_БЭФ'!AU:AU)+SUMIF('13.ТП_СЭФ'!$D:$D, $D39, '13.ТП_СЭФ'!BC:BC)+SUMIF('14.ОВИЗ'!$D:$D, $D39, '14.ОВИЗ'!BD:BD)+SUMIF('15.ГРР'!$D:$D, $D39, '15.ГРР'!AA:AA)+SUMIF('16.НИОКР'!$D:$D, $D39, '16.НИОКР'!AA:AA)+SUMIF('17.НМА'!$D:$D, $D39, '17.НМА'!AB:AB)+SUMIF('18.ПКЗ'!$D:$D, $D39, '18.ПКЗ'!AB:AB)+SUMIF('19.БФИ'!$D:$D, $D39, '19.БФИ'!AB:AB)) -> 0 | AB39: =IF($D39="", 0, SUMIF('7.СМР'!$D:$D, $D39, '7.СМР'!AB:AB)+SUMIF('8.ОСС'!$D:$D, $D39, '8.ОСС'!AT:AT)+SUMIF('9.ПИР'!$D:$D, $D39, '9.ПИР'!AB:AB)+SUMIF('10.БКП'!$D:$D, $D39, '10.БКП'!AB:AB)+SUMIF('11.ПЗС'!$D:$D, $D39, '11.ПЗС'!AC:AC)+SUMIF('12.ТП_БЭФ'!$D:$D, $D39, '12.ТП_БЭФ'!AV:AV)+SUMIF('13.ТП_СЭФ'!$D:$D, $D39, '13.ТП_СЭФ'!BD:BD)+SUMIF('14.ОВИЗ'!$D:$D, $D39, '14.ОВИЗ'!BE:BE)+SUMIF('15.ГРР'!$D:$D, $D39, '15.ГРР'!AB:AB)+SUMIF('16.НИОКР'!$D:$D, $D39, '16.НИОКР'!AB:AB)+SUMIF('17.НМА'!$D:$D, $D39, '17.НМА'!AC:AC)+SUMIF('18.ПКЗ'!$D:$D, $D39, '18.ПКЗ'!AC:AC)+SUMIF('19.БФИ'!$D:$D, $D39, '19.БФИ'!AC:AC)) -> 0 | AC39: =IF($D39="", 0, SUMIF('7.СМР'!$D:$D, $D39, '7.СМР'!AC:AC)+SUMIF('8.ОСС'!$D:$D, $D39, '8.ОСС'!AU:AU)+SUMIF('9.ПИР'!$D:$D, $D39, '9.ПИР'!AC:AC)+SUMIF('10.БКП'!$D:$D, $D39, '10.БКП'!AC:AC)+SUMIF('11.ПЗС'!$D:$D, $D39, '11.ПЗС'!AD:AD)+SUMIF('12.ТП_БЭФ'!$D:$D, $D39, '12.ТП_БЭФ'!AW:AW)+SUMIF('13.ТП_СЭФ'!$D:$D, $D39, '13.ТП_СЭФ'!BE:BE)+SUMIF('14.ОВИЗ'!$D:$D, $D39, '14.ОВИЗ'!BF:BF)+SUMIF('15.ГРР'!$D:$D, $D39, '15.ГРР'!AC:AC)+SUMIF('16.НИОКР'!$D:$D, $D39, '16.НИОКР'!AC:AC)+SUMIF('17.НМА'!$D:$D, $D39, '17.НМА'!AD:AD)+SUMIF('18.ПКЗ'!$D:$D, $D39, '18.ПКЗ'!AD:AD)+SUMIF('19.БФИ'!$D:$D, $D39, '19.БФИ'!AD:AD)) -> 0 | AD39: =IF($D39="", 0, SUMIF('7.СМР'!$D:$D, $D39, '7.СМР'!AD:AD)+SUMIF('8.ОСС'!$D:$D, $D39, '8.ОСС'!AV:AV)+SUMIF('9.ПИР'!$D:$D, $D39, '9.ПИР'!AD:AD)+SUMIF('10.БКП'!$D:$D, $D39, '10.БКП'!AD:AD)+SUMIF('11.ПЗС'!$D:$D, $D39, '11.ПЗС'!AE:AE)+SUMIF('12.ТП_БЭФ'!$D:$D, $D39, '12.ТП_БЭФ'!AX:AX)+SUMIF('13.ТП_СЭФ'!$D:$D, $D39, '13.ТП_СЭФ'!BF:BF)+SUMIF('14.ОВИЗ'!$D:$D, $D39, '14.ОВИЗ'!BG:BG)+SUMIF('15.ГРР'!$D:$D, $D39, '15.ГРР'!AD:AD)+SUMIF('16.НИОКР'!$D:$D, $D39, '16.НИОКР'!AD:AD)+SUMIF('17.НМА'!$D:$D, $D39, '17.НМА'!AE:AE)+SUMIF('18.ПКЗ'!$D:$D, $D39, '18.ПКЗ'!AE:AE)+SUMIF('19.БФИ'!$D:$D, $D39, '19.БФИ'!AE:AE)) -> 0 | AE39: =IF($D39="", 0, SUMIF('7.СМР'!$D:$D, $D39, '7.СМР'!AE:AE)+SUMIF('8.ОСС'!$D:$D, $D39, '8.ОСС'!AW:AW)+SUMIF('9.ПИР'!$D:$D, $D39, '9.ПИР'!AE:AE)+SUMIF('10.БКП'!$D:$D, $D39, '10.БКП'!AE:AE)+SUMIF('11.ПЗС'!$D:$D, $D39, '11.ПЗС'!AF:AF)+SUMIF('12.ТП_БЭФ'!$D:$D, $D39, '12.ТП_БЭФ'!AY:AY)+SUMIF('13.ТП_СЭФ'!$D:$D, $D39, '13.ТП_СЭФ'!BG:BG)+SUMIF('14.ОВИЗ'!$D:$D, $D39, '14.ОВИЗ'!BH:BH)+SUMIF('15.ГРР'!$D:$D, $D39, '15.ГРР'!AE:AE)+SUMIF('16.НИОКР'!$D:$D, $D39, '16.НИОКР'!AE:AE)+SUMIF('17.НМА'!$D:$D, $D39, '17.НМА'!AF:AF)+SUMIF('18.ПКЗ'!$D:$D, $D39, '18.ПКЗ'!AF:AF)+SUMIF('19.БФИ'!$D:$D, $D39, '19.БФИ'!AF:AF)) -> 0 | AG39: 0
B40: =IF(D40="", "", '04.РИП'!A50) ->  | C40: =IF(D40="", "", '04.РИП'!D50) ->  | D40: =IF(ISBLANK('04.РИП'!B50), "", '04.РИП'!B50) ->  | E40: =IF(D40="", "", '04.РИП'!E50) ->  | F40: =IF(D40="", "", '04.РИП'!D50) ->  | G40: =IF($D40="", 0, SUMIF('7.СМР'!$D:$D, $D40, '7.СМР'!G:G)+SUMIF('8.ОСС'!$D:$D, $D40, '8.ОСС'!Y:Y)+SUMIF('9.ПИР'!$D:$D, $D40, '9.ПИР'!G:G)+SUMIF('10.БКП'!$D:$D, $D40, '10.БКП'!G:G)+SUMIF('11.ПЗС'!$D:$D, $D40, '11.ПЗС'!H:H)+SUMIF('12.ТП_БЭФ'!$D:$D, $D40, '12.ТП_БЭФ'!AA:AA)+SUMIF('13.ТП_СЭФ'!$D:$D, $D40, '13.ТП_СЭФ'!AI:AI)+SUMIF('14.ОВИЗ'!$D:$D, $D40, '14.ОВИЗ'!AJ:AJ)+SUMIF('15.ГРР'!$D:$D, $D40, '15.ГРР'!G:G)+SUMIF('16.НИОКР'!$D:$D, $D40, '16.НИОКР'!G:G)+SUMIF('17.НМА'!$D:$D, $D40, '17.НМА'!H:H)+SUMIF('18.ПКЗ'!$D:$D, $D40, '18.ПКЗ'!H:H)+SUMIF('19.БФИ'!$D:$D, $D40, '19.БФИ'!H:H)) -> 0 | H40: =IF($D40="", 0, SUMIF('7.СМР'!$D:$D, $D40, '7.СМР'!H:H)+SUMIF('8.ОСС'!$D:$D, $D40, '8.ОСС'!Z:Z)+SUMIF('9.ПИР'!$D:$D, $D40, '9.ПИР'!H:H)+SUMIF('10.БКП'!$D:$D, $D40, '10.БКП'!H:H)+SUMIF('11.ПЗС'!$D:$D, $D40, '11.ПЗС'!I:I)+SUMIF('12.ТП_БЭФ'!$D:$D, $D40, '12.ТП_БЭФ'!AB:AB)+SUMIF('13.ТП_СЭФ'!$D:$D, $D40, '13.ТП_СЭФ'!AJ:AJ)+SUMIF('14.ОВИЗ'!$D:$D, $D40, '14.ОВИЗ'!AK:AK)+SUMIF('15.ГРР'!$D:$D, $D40, '15.ГРР'!H:H)+SUMIF('16.НИОКР'!$D:$D, $D40, '16.НИОКР'!H:H)+SUMIF('17.НМА'!$D:$D, $D40, '17.НМА'!I:I)+SUMIF('18.ПКЗ'!$D:$D, $D40, '18.ПКЗ'!I:I)+SUMIF('19.БФИ'!$D:$D, $D40, '19.БФИ'!I:I)) -> 0 | I40: =IF($D40="", 0, SUMIF('7.СМР'!$D:$D, $D40, '7.СМР'!I:I)+SUMIF('8.ОСС'!$D:$D, $D40, '8.ОСС'!AA:AA)+SUMIF('9.ПИР'!$D:$D, $D40, '9.ПИР'!I:I)+SUMIF('10.БКП'!$D:$D, $D40, '10.БКП'!I:I)+SUMIF('11.ПЗС'!$D:$D, $D40, '11.ПЗС'!J:J)+SUMIF('12.ТП_БЭФ'!$D:$D, $D40, '12.ТП_БЭФ'!AC:AC)+SUMIF('13.ТП_СЭФ'!$D:$D, $D40, '13.ТП_СЭФ'!AK:AK)+SUMIF('14.ОВИЗ'!$D:$D, $D40, '14.ОВИЗ'!AL:AL)+SUMIF('15.ГРР'!$D:$D, $D40, '15.ГРР'!I:I)+SUMIF('16.НИОКР'!$D:$D, $D40, '16.НИОКР'!I:I)+SUMIF('17.НМА'!$D:$D, $D40, '17.НМА'!J:J)+SUMIF('18.ПКЗ'!$D:$D, $D40, '18.ПКЗ'!J:J)+SUMIF('19.БФИ'!$D:$D, $D40, '19.БФИ'!J:J)) -> 0 | J40: =IF($D40="", 0, SUMIF('7.СМР'!$D:$D, $D40, '7.СМР'!J:J)+SUMIF('8.ОСС'!$D:$D, $D40, '8.ОСС'!AB:AB)+SUMIF('9.ПИР'!$D:$D, $D40, '9.ПИР'!J:J)+SUMIF('10.БКП'!$D:$D, $D40, '10.БКП'!J:J)+SUMIF('11.ПЗС'!$D:$D, $D40, '11.ПЗС'!K:K)+SUMIF('12.ТП_БЭФ'!$D:$D, $D40, '12.ТП_БЭФ'!AD:AD)+SUMIF('13.ТП_СЭФ'!$D:$D, $D40, '13.ТП_СЭФ'!AL:AL)+SUMIF('14.ОВИЗ'!$D:$D, $D40, '14.ОВИЗ'!AM:AM)+SUMIF('15.ГРР'!$D:$D, $D40, '15.ГРР'!J:J)+SUMIF('16.НИОКР'!$D:$D, $D40, '16.НИОКР'!J:J)+SUMIF('17.НМА'!$D:$D, $D40, '17.НМА'!K:K)+SUMIF('18.ПКЗ'!$D:$D, $D40, '18.ПКЗ'!K:K)+SUMIF('19.БФИ'!$D:$D, $D40, '19.БФИ'!K:K)) -> 0 | K40: =IF($D40="", 0, SUMIF('7.СМР'!$D:$D, $D40, '7.СМР'!K:K)+SUMIF('8.ОСС'!$D:$D, $D40, '8.ОСС'!AC:AC)+SUMIF('9.ПИР'!$D:$D, $D40, '9.ПИР'!K:K)+SUMIF('10.БКП'!$D:$D, $D40, '10.БКП'!K:K)+SUMIF('11.ПЗС'!$D:$D, $D40, '11.ПЗС'!L:L)+SUMIF('12.ТП_БЭФ'!$D:$D, $D40, '12.ТП_БЭФ'!AE:AE)+SUMIF('13.ТП_СЭФ'!$D:$D, $D40, '13.ТП_СЭФ'!AM:AM)+SUMIF('14.ОВИЗ'!$D:$D, $D40, '14.ОВИЗ'!AN:AN)+SUMIF('15.ГРР'!$D:$D, $D40, '15.ГРР'!K:K)+SUMIF('16.НИОКР'!$D:$D, $D40, '16.НИОКР'!K:K)+SUMIF('17.НМА'!$D:$D, $D40, '17.НМА'!L:L)+SUMIF('18.ПКЗ'!$D:$D, $D40, '18.ПКЗ'!L:L)+SUMIF('19.БФИ'!$D:$D, $D40, '19.БФИ'!L:L)) -> 0 | L40: =IF($D40="", 0, SUMIF('7.СМР'!$D:$D, $D40, '7.СМР'!L:L)+SUMIF('8.ОСС'!$D:$D, $D40, '8.ОСС'!AD:AD)+SUMIF('9.ПИР'!$D:$D, $D40, '9.ПИР'!L:L)+SUMIF('10.БКП'!$D:$D, $D40, '10.БКП'!L:L)+SUMIF('11.ПЗС'!$D:$D, $D40, '11.ПЗС'!M:M)+SUMIF('12.ТП_БЭФ'!$D:$D, $D40, '12.ТП_БЭФ'!AF:AF)+SUMIF('13.ТП_СЭФ'!$D:$D, $D40, '13.ТП_СЭФ'!AN:AN)+SUMIF('14.ОВИЗ'!$D:$D, $D40, '14.ОВИЗ'!AO:AO)+SUMIF('15.ГРР'!$D:$D, $D40, '15.ГРР'!L:L)+SUMIF('16.НИОКР'!$D:$D, $D40, '16.НИОКР'!L:L)+SUMIF('17.НМА'!$D:$D, $D40, '17.НМА'!M:M)+SUMIF('18.ПКЗ'!$D:$D, $D40, '18.ПКЗ'!M:M)+SUMIF('19.БФИ'!$D:$D, $D40, '19.БФИ'!M:M)) -> 0 | M40: =IF($D40="", 0, SUMIF('7.СМР'!$D:$D, $D40, '7.СМР'!M:M)+SUMIF('8.ОСС'!$D:$D, $D40, '8.ОСС'!AE:AE)+SUMIF('9.ПИР'!$D:$D, $D40, '9.ПИР'!M:M)+SUMIF('10.БКП'!$D:$D, $D40, '10.БКП'!M:M)+SUMIF('11.ПЗС'!$D:$D, $D40, '11.ПЗС'!N:N)+SUMIF('12.ТП_БЭФ'!$D:$D, $D40, '12.ТП_БЭФ'!AG:AG)+SUMIF('13.ТП_СЭФ'!$D:$D, $D40, '13.ТП_СЭФ'!AO:AO)+SUMIF('14.ОВИЗ'!$D:$D, $D40, '14.ОВИЗ'!AP:AP)+SUMIF('15.ГРР'!$D:$D, $D40, '15.ГРР'!M:M)+SUMIF('16.НИОКР'!$D:$D, $D40, '16.НИОКР'!M:M)+SUMIF('17.НМА'!$D:$D, $D40, '17.НМА'!N:N)+SUMIF('18.ПКЗ'!$D:$D, $D40, '18.ПКЗ'!N:N)+SUMIF('19.БФИ'!$D:$D, $D40, '19.БФИ'!N:N)) -> 0 | N40: =IF($D40="", 0, SUMIF('7.СМР'!$D:$D, $D40, '7.СМР'!N:N)+SUMIF('8.ОСС'!$D:$D, $D40, '8.ОСС'!AF:AF)+SUMIF('9.ПИР'!$D:$D, $D40, '9.ПИР'!N:N)+SUMIF('10.БКП'!$D:$D, $D40, '10.БКП'!N:N)+SUMIF('11.ПЗС'!$D:$D, $D40, '11.ПЗС'!O:O)+SUMIF('12.ТП_БЭФ'!$D:$D, $D40, '12.ТП_БЭФ'!AH:AH)+SUMIF('13.ТП_СЭФ'!$D:$D, $D40, '13.ТП_СЭФ'!AP:AP)+SUMIF('14.ОВИЗ'!$D:$D, $D40, '14.ОВИЗ'!AQ:AQ)+SUMIF('15.ГРР'!$D:$D, $D40, '15.ГРР'!N:N)+SUMIF('16.НИОКР'!$D:$D, $D40, '16.НИОКР'!N:N)+SUMIF('17.НМА'!$D:$D, $D40, '17.НМА'!O:O)+SUMIF('18.ПКЗ'!$D:$D, $D40, '18.ПКЗ'!O:O)+SUMIF('19.БФИ'!$D:$D, $D40, '19.БФИ'!O:O)) -> 0 | O40: =IF($D40="", 0, SUMIF('7.СМР'!$D:$D, $D40, '7.СМР'!O:O)+SUMIF('8.ОСС'!$D:$D, $D40, '8.ОСС'!AG:AG)+SUMIF('9.ПИР'!$D:$D, $D40, '9.ПИР'!O:O)+SUMIF('10.БКП'!$D:$D, $D40, '10.БКП'!O:O)+SUMIF('11.ПЗС'!$D:$D, $D40, '11.ПЗС'!P:P)+SUMIF('12.ТП_БЭФ'!$D:$D, $D40, '12.ТП_БЭФ'!AI:AI)+SUMIF('13.ТП_СЭФ'!$D:$D, $D40, '13.ТП_СЭФ'!AQ:AQ)+SUMIF('14.ОВИЗ'!$D:$D, $D40, '14.ОВИЗ'!AR:AR)+SUMIF('15.ГРР'!$D:$D, $D40, '15.ГРР'!O:O)+SUMIF('16.НИОКР'!$D:$D, $D40, '16.НИОКР'!O:O)+SUMIF('17.НМА'!$D:$D, $D40, '17.НМА'!P:P)+SUMIF('18.ПКЗ'!$D:$D, $D40, '18.ПКЗ'!P:P)+SUMIF('19.БФИ'!$D:$D, $D40, '19.БФИ'!P:P)) -> 0 | P40: =IF($D40="", 0, SUMIF('7.СМР'!$D:$D, $D40, '7.СМР'!P:P)+SUMIF('8.ОСС'!$D:$D, $D40, '8.ОСС'!AH:AH)+SUMIF('9.ПИР'!$D:$D, $D40, '9.ПИР'!P:P)+SUMIF('10.БКП'!$D:$D, $D40, '10.БКП'!P:P)+SUMIF('11.ПЗС'!$D:$D, $D40, '11.ПЗС'!Q:Q)+SUMIF('12.ТП_БЭФ'!$D:$D, $D40, '12.ТП_БЭФ'!AJ:AJ)+SUMIF('13.ТП_СЭФ'!$D:$D, $D40, '13.ТП_СЭФ'!AR:AR)+SUMIF('14.ОВИЗ'!$D:$D, $D40, '14.ОВИЗ'!AS:AS)+SUMIF('15.ГРР'!$D:$D, $D40, '15.ГРР'!P:P)+SUMIF('16.НИОКР'!$D:$D, $D40, '16.НИОКР'!P:P)+SUMIF('17.НМА'!$D:$D, $D40, '17.НМА'!Q:Q)+SUMIF('18.ПКЗ'!$D:$D, $D40, '18.ПКЗ'!Q:Q)+SUMIF('19.БФИ'!$D:$D, $D40, '19.БФИ'!Q:Q)) -> 0 | Q40: 0 | R40: 0 | S40: 0 | T40: 0 | V40: 0 | W40: 0 | X40: =IF($D40="", 0, SUMIF('7.СМР'!$D:$D, $D40, '7.СМР'!X:X)+SUMIF('8.ОСС'!$D:$D, $D40, '8.ОСС'!AP:AP)+SUMIF('9.ПИР'!$D:$D, $D40, '9.ПИР'!X:X)+SUMIF('10.БКП'!$D:$D, $D40, '10.БКП'!X:X)+SUMIF('11.ПЗС'!$D:$D, $D40, '11.ПЗС'!Y:Y)+SUMIF('12.ТП_БЭФ'!$D:$D, $D40, '12.ТП_БЭФ'!AR:AR)+SUMIF('13.ТП_СЭФ'!$D:$D, $D40, '13.ТП_СЭФ'!AZ:AZ)+SUMIF('14.ОВИЗ'!$D:$D, $D40, '14.ОВИЗ'!BA:BA)+SUMIF('15.ГРР'!$D:$D, $D40, '15.ГРР'!X:X)+SUMIF('16.НИОКР'!$D:$D, $D40, '16.НИОКР'!X:X)+SUMIF('17.НМА'!$D:$D, $D40, '17.НМА'!Y:Y)+SUMIF('18.ПКЗ'!$D:$D, $D40, '18.ПКЗ'!Y:Y)+SUMIF('19.БФИ'!$D:$D, $D40, '19.БФИ'!Y:Y)) -> 0 | Y40: =IF($D40="", 0, SUMIF('7.СМР'!$D:$D, $D40, '7.СМР'!Y:Y)+SUMIF('8.ОСС'!$D:$D, $D40, '8.ОСС'!AQ:AQ)+SUMIF('9.ПИР'!$D:$D, $D40, '9.ПИР'!Y:Y)+SUMIF('10.БКП'!$D:$D, $D40, '10.БКП'!Y:Y)+SUMIF('11.ПЗС'!$D:$D, $D40, '11.ПЗС'!Z:Z)+SUMIF('12.ТП_БЭФ'!$D:$D, $D40, '12.ТП_БЭФ'!AS:AS)+SUMIF('13.ТП_СЭФ'!$D:$D, $D40, '13.ТП_СЭФ'!BA:BA)+SUMIF('14.ОВИЗ'!$D:$D, $D40, '14.ОВИЗ'!BB:BB)+SUMIF('15.ГРР'!$D:$D, $D40, '15.ГРР'!Y:Y)+SUMIF('16.НИОКР'!$D:$D, $D40, '16.НИОКР'!Y:Y)+SUMIF('17.НМА'!$D:$D, $D40, '17.НМА'!Z:Z)+SUMIF('18.ПКЗ'!$D:$D, $D40, '18.ПКЗ'!Z:Z)+SUMIF('19.БФИ'!$D:$D, $D40, '19.БФИ'!Z:Z)) -> 0 | Z40: =IF($D40="", 0, SUMIF('7.СМР'!$D:$D, $D40, '7.СМР'!Z:Z)+SUMIF('8.ОСС'!$D:$D, $D40, '8.ОСС'!AR:AR)+SUMIF('9.ПИР'!$D:$D, $D40, '9.ПИР'!Z:Z)+SUMIF('10.БКП'!$D:$D, $D40, '10.БКП'!Z:Z)+SUMIF('11.ПЗС'!$D:$D, $D40, '11.ПЗС'!AA:AA)+SUMIF('12.ТП_БЭФ'!$D:$D, $D40, '12.ТП_БЭФ'!AT:AT)+SUMIF('13.ТП_СЭФ'!$D:$D, $D40, '13.ТП_СЭФ'!BB:BB)+SUMIF('14.ОВИЗ'!$D:$D, $D40, '14.ОВИЗ'!BC:BC)+SUMIF('15.ГРР'!$D:$D, $D40, '15.ГРР'!Z:Z)+SUMIF('16.НИОКР'!$D:$D, $D40, '16.НИОКР'!Z:Z)+SUMIF('17.НМА'!$D:$D, $D40, '17.НМА'!AA:AA)+SUMIF('18.ПКЗ'!$D:$D, $D40, '18.ПКЗ'!AA:AA)+SUMIF('19.БФИ'!$D:$D, $D40, '19.БФИ'!AA:AA)) -> 0 | AA40: =IF($D40="", 0, SUMIF('7.СМР'!$D:$D, $D40, '7.СМР'!AA:AA)+SUMIF('8.ОСС'!$D:$D, $D40, '8.ОСС'!AS:AS)+SUMIF('9.ПИР'!$D:$D, $D40, '9.ПИР'!AA:AA)+SUMIF('10.БКП'!$D:$D, $D40, '10.БКП'!AA:AA)+SUMIF('11.ПЗС'!$D:$D, $D40, '11.ПЗС'!AB:AB)+SUMIF('12.ТП_БЭФ'!$D:$D, $D40, '12.ТП_БЭФ'!AU:AU)+SUMIF('13.ТП_СЭФ'!$D:$D, $D40, '13.ТП_СЭФ'!BC:BC)+SUMIF('14.ОВИЗ'!$D:$D, $D40, '14.ОВИЗ'!BD:BD)+SUMIF('15.ГРР'!$D:$D, $D40, '15.ГРР'!AA:AA)+SUMIF('16.НИОКР'!$D:$D, $D40, '16.НИОКР'!AA:AA)+SUMIF('17.НМА'!$D:$D, $D40, '17.НМА'!AB:AB)+SUMIF('18.ПКЗ'!$D:$D, $D40, '18.ПКЗ'!AB:AB)+SUMIF('19.БФИ'!$D:$D, $D40, '19.БФИ'!AB:AB)) -> 0 | AB40: =IF($D40="", 0, SUMIF('7.СМР'!$D:$D, $D40, '7.СМР'!AB:AB)+SUMIF('8.ОСС'!$D:$D, $D40, '8.ОСС'!AT:AT)+SUMIF('9.ПИР'!$D:$D, $D40, '9.ПИР'!AB:AB)+SUMIF('10.БКП'!$D:$D, $D40, '10.БКП'!AB:AB)+SUMIF('11.ПЗС'!$D:$D, $D40, '11.ПЗС'!AC:AC)+SUMIF('12.ТП_БЭФ'!$D:$D, $D40, '12.ТП_БЭФ'!AV:AV)+SUMIF('13.ТП_СЭФ'!$D:$D, $D40, '13.ТП_СЭФ'!BD:BD)+SUMIF('14.ОВИЗ'!$D:$D, $D40, '14.ОВИЗ'!BE:BE)+SUMIF('15.ГРР'!$D:$D, $D40, '15.ГРР'!AB:AB)+SUMIF('16.НИОКР'!$D:$D, $D40, '16.НИОКР'!AB:AB)+SUMIF('17.НМА'!$D:$D, $D40, '17.НМА'!AC:AC)+SUMIF('18.ПКЗ'!$D:$D, $D40, '18.ПКЗ'!AC:AC)+SUMIF('19.БФИ'!$D:$D, $D40, '19.БФИ'!AC:AC)) -> 0 | AC40: =IF($D40="", 0, SUMIF('7.СМР'!$D:$D, $D40, '7.СМР'!AC:AC)+SUMIF('8.ОСС'!$D:$D, $D40, '8.ОСС'!AU:AU)+SUMIF('9.ПИР'!$D:$D, $D40, '9.ПИР'!AC:AC)+SUMIF('10.БКП'!$D:$D, $D40, '10.БКП'!AC:AC)+SUMIF('11.ПЗС'!$D:$D, $D40, '11.ПЗС'!AD:AD)+SUMIF('12.ТП_БЭФ'!$D:$D, $D40, '12.ТП_БЭФ'!AW:AW)+SUMIF('13.ТП_СЭФ'!$D:$D, $D40, '13.ТП_СЭФ'!BE:BE)+SUMIF('14.ОВИЗ'!$D:$D, $D40, '14.ОВИЗ'!BF:BF)+SUMIF('15.ГРР'!$D:$D, $D40, '15.ГРР'!AC:AC)+SUMIF('16.НИОКР'!$D:$D, $D40, '16.НИОКР'!AC:AC)+SUMIF('17.НМА'!$D:$D, $D40, '17.НМА'!AD:AD)+SUMIF('18.ПКЗ'!$D:$D, $D40, '18.ПКЗ'!AD:AD)+SUMIF('19.БФИ'!$D:$D, $D40, '19.БФИ'!AD:AD)) -> 0 | AD40: =IF($D40="", 0, SUMIF('7.СМР'!$D:$D, $D40, '7.СМР'!AD:AD)+SUMIF('8.ОСС'!$D:$D, $D40, '8.ОСС'!AV:AV)+SUMIF('9.ПИР'!$D:$D, $D40, '9.ПИР'!AD:AD)+SUMIF('10.БКП'!$D:$D, $D40, '10.БКП'!AD:AD)+SUMIF('11.ПЗС'!$D:$D, $D40, '11.ПЗС'!AE:AE)+SUMIF('12.ТП_БЭФ'!$D:$D, $D40, '12.ТП_БЭФ'!AX:AX)+SUMIF('13.ТП_СЭФ'!$D:$D, $D40, '13.ТП_СЭФ'!BF:BF)+SUMIF('14.ОВИЗ'!$D:$D, $D40, '14.ОВИЗ'!BG:BG)+SUMIF('15.ГРР'!$D:$D, $D40, '15.ГРР'!AD:AD)+SUMIF('16.НИОКР'!$D:$D, $D40, '16.НИОКР'!AD:AD)+SUMIF('17.НМА'!$D:$D, $D40, '17.НМА'!AE:AE)+SUMIF('18.ПКЗ'!$D:$D, $D40, '18.ПКЗ'!AE:AE)+SUMIF('19.БФИ'!$D:$D, $D40, '19.БФИ'!AE:AE)) -> 0 | AE40: =IF($D40="", 0, SUMIF('7.СМР'!$D:$D, $D40, '7.СМР'!AE:AE)+SUMIF('8.ОСС'!$D:$D, $D40, '8.ОСС'!AW:AW)+SUMIF('9.ПИР'!$D:$D, $D40, '9.ПИР'!AE:AE)+SUMIF('10.БКП'!$D:$D, $D40, '10.БКП'!AE:AE)+SUMIF('11.ПЗС'!$D:$D, $D40, '11.ПЗС'!AF:AF)+SUMIF('12.ТП_БЭФ'!$D:$D, $D40, '12.ТП_БЭФ'!AY:AY)+SUMIF('13.ТП_СЭФ'!$D:$D, $D40, '13.ТП_СЭФ'!BG:BG)+SUMIF('14.ОВИЗ'!$D:$D, $D40, '14.ОВИЗ'!BH:BH)+SUMIF('15.ГРР'!$D:$D, $D40, '15.ГРР'!AE:AE)+SUMIF('16.НИОКР'!$D:$D, $D40, '16.НИОКР'!AE:AE)+SUMIF('17.НМА'!$D:$D, $D40, '17.НМА'!AF:AF)+SUMIF('18.ПКЗ'!$D:$D, $D40, '18.ПКЗ'!AF:AF)+SUMIF('19.БФИ'!$D:$D, $D40, '19.БФИ'!AF:AF)) -> 0 | AG40: 0
B41: =IF(D41="", "", '04.РИП'!A51) ->  | C41: =IF(D41="", "", '04.РИП'!D51) ->  | D41: =IF(ISBLANK('04.РИП'!B51), "", '04.РИП'!B51) ->  | E41: =IF(D41="", "", '04.РИП'!E51) ->  | F41: =IF(D41="", "", '04.РИП'!D51) ->  | G41: =IF($D41="", 0, SUMIF('7.СМР'!$D:$D, $D41, '7.СМР'!G:G)+SUMIF('8.ОСС'!$D:$D, $D41, '8.ОСС'!Y:Y)+SUMIF('9.ПИР'!$D:$D, $D41, '9.ПИР'!G:G)+SUMIF('10.БКП'!$D:$D, $D41, '10.БКП'!G:G)+SUMIF('11.ПЗС'!$D:$D, $D41, '11.ПЗС'!H:H)+SUMIF('12.ТП_БЭФ'!$D:$D, $D41, '12.ТП_БЭФ'!AA:AA)+SUMIF('13.ТП_СЭФ'!$D:$D, $D41, '13.ТП_СЭФ'!AI:AI)+SUMIF('14.ОВИЗ'!$D:$D, $D41, '14.ОВИЗ'!AJ:AJ)+SUMIF('15.ГРР'!$D:$D, $D41, '15.ГРР'!G:G)+SUMIF('16.НИОКР'!$D:$D, $D41, '16.НИОКР'!G:G)+SUMIF('17.НМА'!$D:$D, $D41, '17.НМА'!H:H)+SUMIF('18.ПКЗ'!$D:$D, $D41, '18.ПКЗ'!H:H)+SUMIF('19.БФИ'!$D:$D, $D41, '19.БФИ'!H:H)) -> 0 | H41: =IF($D41="", 0, SUMIF('7.СМР'!$D:$D, $D41, '7.СМР'!H:H)+SUMIF('8.ОСС'!$D:$D, $D41, '8.ОСС'!Z:Z)+SUMIF('9.ПИР'!$D:$D, $D41, '9.ПИР'!H:H)+SUMIF('10.БКП'!$D:$D, $D41, '10.БКП'!H:H)+SUMIF('11.ПЗС'!$D:$D, $D41, '11.ПЗС'!I:I)+SUMIF('12.ТП_БЭФ'!$D:$D, $D41, '12.ТП_БЭФ'!AB:AB)+SUMIF('13.ТП_СЭФ'!$D:$D, $D41, '13.ТП_СЭФ'!AJ:AJ)+SUMIF('14.ОВИЗ'!$D:$D, $D41, '14.ОВИЗ'!AK:AK)+SUMIF('15.ГРР'!$D:$D, $D41, '15.ГРР'!H:H)+SUMIF('16.НИОКР'!$D:$D, $D41, '16.НИОКР'!H:H)+SUMIF('17.НМА'!$D:$D, $D41, '17.НМА'!I:I)+SUMIF('18.ПКЗ'!$D:$D, $D41, '18.ПКЗ'!I:I)+SUMIF('19.БФИ'!$D:$D, $D41, '19.БФИ'!I:I)) -> 0 | I41: =IF($D41="", 0, SUMIF('7.СМР'!$D:$D, $D41, '7.СМР'!I:I)+SUMIF('8.ОСС'!$D:$D, $D41, '8.ОСС'!AA:AA)+SUMIF('9.ПИР'!$D:$D, $D41, '9.ПИР'!I:I)+SUMIF('10.БКП'!$D:$D, $D41, '10.БКП'!I:I)+SUMIF('11.ПЗС'!$D:$D, $D41, '11.ПЗС'!J:J)+SUMIF('12.ТП_БЭФ'!$D:$D, $D41, '12.ТП_БЭФ'!AC:AC)+SUMIF('13.ТП_СЭФ'!$D:$D, $D41, '13.ТП_СЭФ'!AK:AK)+SUMIF('14.ОВИЗ'!$D:$D, $D41, '14.ОВИЗ'!AL:AL)+SUMIF('15.ГРР'!$D:$D, $D41, '15.ГРР'!I:I)+SUMIF('16.НИОКР'!$D:$D, $D41, '16.НИОКР'!I:I)+SUMIF('17.НМА'!$D:$D, $D41, '17.НМА'!J:J)+SUMIF('18.ПКЗ'!$D:$D, $D41, '18.ПКЗ'!J:J)+SUMIF('19.БФИ'!$D:$D, $D41, '19.БФИ'!J:J)) -> 0 | J41: =IF($D41="", 0, SUMIF('7.СМР'!$D:$D, $D41, '7.СМР'!J:J)+SUMIF('8.ОСС'!$D:$D, $D41, '8.ОСС'!AB:AB)+SUMIF('9.ПИР'!$D:$D, $D41, '9.ПИР'!J:J)+SUMIF('10.БКП'!$D:$D, $D41, '10.БКП'!J:J)+SUMIF('11.ПЗС'!$D:$D, $D41, '11.ПЗС'!K:K)+SUMIF('12.ТП_БЭФ'!$D:$D, $D41, '12.ТП_БЭФ'!AD:AD)+SUMIF('13.ТП_СЭФ'!$D:$D, $D41, '13.ТП_СЭФ'!AL:AL)+SUMIF('14.ОВИЗ'!$D:$D, $D41, '14.ОВИЗ'!AM:AM)+SUMIF('15.ГРР'!$D:$D, $D41, '15.ГРР'!J:J)+SUMIF('16.НИОКР'!$D:$D, $D41, '16.НИОКР'!J:J)+SUMIF('17.НМА'!$D:$D, $D41, '17.НМА'!K:K)+SUMIF('18.ПКЗ'!$D:$D, $D41, '18.ПКЗ'!K:K)+SUMIF('19.БФИ'!$D:$D, $D41, '19.БФИ'!K:K)) -> 0 | K41: =IF($D41="", 0, SUMIF('7.СМР'!$D:$D, $D41, '7.СМР'!K:K)+SUMIF('8.ОСС'!$D:$D, $D41, '8.ОСС'!AC:AC)+SUMIF('9.ПИР'!$D:$D, $D41, '9.ПИР'!K:K)+SUMIF('10.БКП'!$D:$D, $D41, '10.БКП'!K:K)+SUMIF('11.ПЗС'!$D:$D, $D41, '11.ПЗС'!L:L)+SUMIF('12.ТП_БЭФ'!$D:$D, $D41, '12.ТП_БЭФ'!AE:AE)+SUMIF('13.ТП_СЭФ'!$D:$D, $D41, '13.ТП_СЭФ'!AM:AM)+SUMIF('14.ОВИЗ'!$D:$D, $D41, '14.ОВИЗ'!AN:AN)+SUMIF('15.ГРР'!$D:$D, $D41, '15.ГРР'!K:K)+SUMIF('16.НИОКР'!$D:$D, $D41, '16.НИОКР'!K:K)+SUMIF('17.НМА'!$D:$D, $D41, '17.НМА'!L:L)+SUMIF('18.ПКЗ'!$D:$D, $D41, '18.ПКЗ'!L:L)+SUMIF('19.БФИ'!$D:$D, $D41, '19.БФИ'!L:L)) -> 0 | L41: =IF($D41="", 0, SUMIF('7.СМР'!$D:$D, $D41, '7.СМР'!L:L)+SUMIF('8.ОСС'!$D:$D, $D41, '8.ОСС'!AD:AD)+SUMIF('9.ПИР'!$D:$D, $D41, '9.ПИР'!L:L)+SUMIF('10.БКП'!$D:$D, $D41, '10.БКП'!L:L)+SUMIF('11.ПЗС'!$D:$D, $D41, '11.ПЗС'!M:M)+SUMIF('12.ТП_БЭФ'!$D:$D, $D41, '12.ТП_БЭФ'!AF:AF)+SUMIF('13.ТП_СЭФ'!$D:$D, $D41, '13.ТП_СЭФ'!AN:AN)+SUMIF('14.ОВИЗ'!$D:$D, $D41, '14.ОВИЗ'!AO:AO)+SUMIF('15.ГРР'!$D:$D, $D41, '15.ГРР'!L:L)+SUMIF('16.НИОКР'!$D:$D, $D41, '16.НИОКР'!L:L)+SUMIF('17.НМА'!$D:$D, $D41, '17.НМА'!M:M)+SUMIF('18.ПКЗ'!$D:$D, $D41, '18.ПКЗ'!M:M)+SUMIF('19.БФИ'!$D:$D, $D41, '19.БФИ'!M:M)) -> 0 | M41: =IF($D41="", 0, SUMIF('7.СМР'!$D:$D, $D41, '7.СМР'!M:M)+SUMIF('8.ОСС'!$D:$D, $D41, '8.ОСС'!AE:AE)+SUMIF('9.ПИР'!$D:$D, $D41, '9.ПИР'!M:M)+SUMIF('10.БКП'!$D:$D, $D41, '10.БКП'!M:M)+SUMIF('11.ПЗС'!$D:$D, $D41, '11.ПЗС'!N:N)+SUMIF('12.ТП_БЭФ'!$D:$D, $D41, '12.ТП_БЭФ'!AG:AG)+SUMIF('13.ТП_СЭФ'!$D:$D, $D41, '13.ТП_СЭФ'!AO:AO)+SUMIF('14.ОВИЗ'!$D:$D, $D41, '14.ОВИЗ'!AP:AP)+SUMIF('15.ГРР'!$D:$D, $D41, '15.ГРР'!M:M)+SUMIF('16.НИОКР'!$D:$D, $D41, '16.НИОКР'!M:M)+SUMIF('17.НМА'!$D:$D, $D41, '17.НМА'!N:N)+SUMIF('18.ПКЗ'!$D:$D, $D41, '18.ПКЗ'!N:N)+SUMIF('19.БФИ'!$D:$D, $D41, '19.БФИ'!N:N)) -> 0 | N41: =IF($D41="", 0, SUMIF('7.СМР'!$D:$D, $D41, '7.СМР'!N:N)+SUMIF('8.ОСС'!$D:$D, $D41, '8.ОСС'!AF:AF)+SUMIF('9.ПИР'!$D:$D, $D41, '9.ПИР'!N:N)+SUMIF('10.БКП'!$D:$D, $D41, '10.БКП'!N:N)+SUMIF('11.ПЗС'!$D:$D, $D41, '11.ПЗС'!O:O)+SUMIF('12.ТП_БЭФ'!$D:$D, $D41, '12.ТП_БЭФ'!AH:AH)+SUMIF('13.ТП_СЭФ'!$D:$D, $D41, '13.ТП_СЭФ'!AP:AP)+SUMIF('14.ОВИЗ'!$D:$D, $D41, '14.ОВИЗ'!AQ:AQ)+SUMIF('15.ГРР'!$D:$D, $D41, '15.ГРР'!N:N)+SUMIF('16.НИОКР'!$D:$D, $D41, '16.НИОКР'!N:N)+SUMIF('17.НМА'!$D:$D, $D41, '17.НМА'!O:O)+SUMIF('18.ПКЗ'!$D:$D, $D41, '18.ПКЗ'!O:O)+SUMIF('19.БФИ'!$D:$D, $D41, '19.БФИ'!O:O)) -> 0 | O41: =IF($D41="", 0, SUMIF('7.СМР'!$D:$D, $D41, '7.СМР'!O:O)+SUMIF('8.ОСС'!$D:$D, $D41, '8.ОСС'!AG:AG)+SUMIF('9.ПИР'!$D:$D, $D41, '9.ПИР'!O:O)+SUMIF('10.БКП'!$D:$D, $D41, '10.БКП'!O:O)+SUMIF('11.ПЗС'!$D:$D, $D41, '11.ПЗС'!P:P)+SUMIF('12.ТП_БЭФ'!$D:$D, $D41, '12.ТП_БЭФ'!AI:AI)+SUMIF('13.ТП_СЭФ'!$D:$D, $D41, '13.ТП_СЭФ'!AQ:AQ)+SUMIF('14.ОВИЗ'!$D:$D, $D41, '14.ОВИЗ'!AR:AR)+SUMIF('15.ГРР'!$D:$D, $D41, '15.ГРР'!O:O)+SUMIF('16.НИОКР'!$D:$D, $D41, '16.НИОКР'!O:O)+SUMIF('17.НМА'!$D:$D, $D41, '17.НМА'!P:P)+SUMIF('18.ПКЗ'!$D:$D, $D41, '18.ПКЗ'!P:P)+SUMIF('19.БФИ'!$D:$D, $D41, '19.БФИ'!P:P)) -> 0 | P41: =IF($D41="", 0, SUMIF('7.СМР'!$D:$D, $D41, '7.СМР'!P:P)+SUMIF('8.ОСС'!$D:$D, $D41, '8.ОСС'!AH:AH)+SUMIF('9.ПИР'!$D:$D, $D41, '9.ПИР'!P:P)+SUMIF('10.БКП'!$D:$D, $D41, '10.БКП'!P:P)+SUMIF('11.ПЗС'!$D:$D, $D41, '11.ПЗС'!Q:Q)+SUMIF('12.ТП_БЭФ'!$D:$D, $D41, '12.ТП_БЭФ'!AJ:AJ)+SUMIF('13.ТП_СЭФ'!$D:$D, $D41, '13.ТП_СЭФ'!AR:AR)+SUMIF('14.ОВИЗ'!$D:$D, $D41, '14.ОВИЗ'!AS:AS)+SUMIF('15.ГРР'!$D:$D, $D41, '15.ГРР'!P:P)+SUMIF('16.НИОКР'!$D:$D, $D41, '16.НИОКР'!P:P)+SUMIF('17.НМА'!$D:$D, $D41, '17.НМА'!Q:Q)+SUMIF('18.ПКЗ'!$D:$D, $D41, '18.ПКЗ'!Q:Q)+SUMIF('19.БФИ'!$D:$D, $D41, '19.БФИ'!Q:Q)) -> 0 | Q41: 0 | R41: 0 | S41: 0 | T41: 0 | V41: 0 | W41: 0 | X41: =IF($D41="", 0, SUMIF('7.СМР'!$D:$D, $D41, '7.СМР'!X:X)+SUMIF('8.ОСС'!$D:$D, $D41, '8.ОСС'!AP:AP)+SUMIF('9.ПИР'!$D:$D, $D41, '9.ПИР'!X:X)+SUMIF('10.БКП'!$D:$D, $D41, '10.БКП'!X:X)+SUMIF('11.ПЗС'!$D:$D, $D41, '11.ПЗС'!Y:Y)+SUMIF('12.ТП_БЭФ'!$D:$D, $D41, '12.ТП_БЭФ'!AR:AR)+SUMIF('13.ТП_СЭФ'!$D:$D, $D41, '13.ТП_СЭФ'!AZ:AZ)+SUMIF('14.ОВИЗ'!$D:$D, $D41, '14.ОВИЗ'!BA:BA)+SUMIF('15.ГРР'!$D:$D, $D41, '15.ГРР'!X:X)+SUMIF('16.НИОКР'!$D:$D, $D41, '16.НИОКР'!X:X)+SUMIF('17.НМА'!$D:$D, $D41, '17.НМА'!Y:Y)+SUMIF('18.ПКЗ'!$D:$D, $D41, '18.ПКЗ'!Y:Y)+SUMIF('19.БФИ'!$D:$D, $D41, '19.БФИ'!Y:Y)) -> 0 | Y41: =IF($D41="", 0, SUMIF('7.СМР'!$D:$D, $D41, '7.СМР'!Y:Y)+SUMIF('8.ОСС'!$D:$D, $D41, '8.ОСС'!AQ:AQ)+SUMIF('9.ПИР'!$D:$D, $D41, '9.ПИР'!Y:Y)+SUMIF('10.БКП'!$D:$D, $D41, '10.БКП'!Y:Y)+SUMIF('11.ПЗС'!$D:$D, $D41, '11.ПЗС'!Z:Z)+SUMIF('12.ТП_БЭФ'!$D:$D, $D41, '12.ТП_БЭФ'!AS:AS)+SUMIF('13.ТП_СЭФ'!$D:$D, $D41, '13.ТП_СЭФ'!BA:BA)+SUMIF('14.ОВИЗ'!$D:$D, $D41, '14.ОВИЗ'!BB:BB)+SUMIF('15.ГРР'!$D:$D, $D41, '15.ГРР'!Y:Y)+SUMIF('16.НИОКР'!$D:$D, $D41, '16.НИОКР'!Y:Y)+SUMIF('17.НМА'!$D:$D, $D41, '17.НМА'!Z:Z)+SUMIF('18.ПКЗ'!$D:$D, $D41, '18.ПКЗ'!Z:Z)+SUMIF('19.БФИ'!$D:$D, $D41, '19.БФИ'!Z:Z)) -> 0 | Z41: =IF($D41="", 0, SUMIF('7.СМР'!$D:$D, $D41, '7.СМР'!Z:Z)+SUMIF('8.ОСС'!$D:$D, $D41, '8.ОСС'!AR:AR)+SUMIF('9.ПИР'!$D:$D, $D41, '9.ПИР'!Z:Z)+SUMIF('10.БКП'!$D:$D, $D41, '10.БКП'!Z:Z)+SUMIF('11.ПЗС'!$D:$D, $D41, '11.ПЗС'!AA:AA)+SUMIF('12.ТП_БЭФ'!$D:$D, $D41, '12.ТП_БЭФ'!AT:AT)+SUMIF('13.ТП_СЭФ'!$D:$D, $D41, '13.ТП_СЭФ'!BB:BB)+SUMIF('14.ОВИЗ'!$D:$D, $D41, '14.ОВИЗ'!BC:BC)+SUMIF('15.ГРР'!$D:$D, $D41, '15.ГРР'!Z:Z)+SUMIF('16.НИОКР'!$D:$D, $D41, '16.НИОКР'!Z:Z)+SUMIF('17.НМА'!$D:$D, $D41, '17.НМА'!AA:AA)+SUMIF('18.ПКЗ'!$D:$D, $D41, '18.ПКЗ'!AA:AA)+SUMIF('19.БФИ'!$D:$D, $D41, '19.БФИ'!AA:AA)) -> 0 | AA41: =IF($D41="", 0, SUMIF('7.СМР'!$D:$D, $D41, '7.СМР'!AA:AA)+SUMIF('8.ОСС'!$D:$D, $D41, '8.ОСС'!AS:AS)+SUMIF('9.ПИР'!$D:$D, $D41, '9.ПИР'!AA:AA)+SUMIF('10.БКП'!$D:$D, $D41, '10.БКП'!AA:AA)+SUMIF('11.ПЗС'!$D:$D, $D41, '11.ПЗС'!AB:AB)+SUMIF('12.ТП_БЭФ'!$D:$D, $D41, '12.ТП_БЭФ'!AU:AU)+SUMIF('13.ТП_СЭФ'!$D:$D, $D41, '13.ТП_СЭФ'!BC:BC)+SUMIF('14.ОВИЗ'!$D:$D, $D41, '14.ОВИЗ'!BD:BD)+SUMIF('15.ГРР'!$D:$D, $D41, '15.ГРР'!AA:AA)+SUMIF('16.НИОКР'!$D:$D, $D41, '16.НИОКР'!AA:AA)+SUMIF('17.НМА'!$D:$D, $D41, '17.НМА'!AB:AB)+SUMIF('18.ПКЗ'!$D:$D, $D41, '18.ПКЗ'!AB:AB)+SUMIF('19.БФИ'!$D:$D, $D41, '19.БФИ'!AB:AB)) -> 0 | AB41: =IF($D41="", 0, SUMIF('7.СМР'!$D:$D, $D41, '7.СМР'!AB:AB)+SUMIF('8.ОСС'!$D:$D, $D41, '8.ОСС'!AT:AT)+SUMIF('9.ПИР'!$D:$D, $D41, '9.ПИР'!AB:AB)+SUMIF('10.БКП'!$D:$D, $D41, '10.БКП'!AB:AB)+SUMIF('11.ПЗС'!$D:$D, $D41, '11.ПЗС'!AC:AC)+SUMIF('12.ТП_БЭФ'!$D:$D, $D41, '12.ТП_БЭФ'!AV:AV)+SUMIF('13.ТП_СЭФ'!$D:$D, $D41, '13.ТП_СЭФ'!BD:BD)+SUMIF('14.ОВИЗ'!$D:$D, $D41, '14.ОВИЗ'!BE:BE)+SUMIF('15.ГРР'!$D:$D, $D41, '15.ГРР'!AB:AB)+SUMIF('16.НИОКР'!$D:$D, $D41, '16.НИОКР'!AB:AB)+SUMIF('17.НМА'!$D:$D, $D41, '17.НМА'!AC:AC)+SUMIF('18.ПКЗ'!$D:$D, $D41, '18.ПКЗ'!AC:AC)+SUMIF('19.БФИ'!$D:$D, $D41, '19.БФИ'!AC:AC)) -> 0 | AC41: =IF($D41="", 0, SUMIF('7.СМР'!$D:$D, $D41, '7.СМР'!AC:AC)+SUMIF('8.ОСС'!$D:$D, $D41, '8.ОСС'!AU:AU)+SUMIF('9.ПИР'!$D:$D, $D41, '9.ПИР'!AC:AC)+SUMIF('10.БКП'!$D:$D, $D41, '10.БКП'!AC:AC)+SUMIF('11.ПЗС'!$D:$D, $D41, '11.ПЗС'!AD:AD)+SUMIF('12.ТП_БЭФ'!$D:$D, $D41, '12.ТП_БЭФ'!AW:AW)+SUMIF('13.ТП_СЭФ'!$D:$D, $D41, '13.ТП_СЭФ'!BE:BE)+SUMIF('14.ОВИЗ'!$D:$D, $D41, '14.ОВИЗ'!BF:BF)+SUMIF('15.ГРР'!$D:$D, $D41, '15.ГРР'!AC:AC)+SUMIF('16.НИОКР'!$D:$D, $D41, '16.НИОКР'!AC:AC)+SUMIF('17.НМА'!$D:$D, $D41, '17.НМА'!AD:AD)+SUMIF('18.ПКЗ'!$D:$D, $D41, '18.ПКЗ'!AD:AD)+SUMIF('19.БФИ'!$D:$D, $D41, '19.БФИ'!AD:AD)) -> 0 | AD41: =IF($D41="", 0, SUMIF('7.СМР'!$D:$D, $D41, '7.СМР'!AD:AD)+SUMIF('8.ОСС'!$D:$D, $D41, '8.ОСС'!AV:AV)+SUMIF('9.ПИР'!$D:$D, $D41, '9.ПИР'!AD:AD)+SUMIF('10.БКП'!$D:$D, $D41, '10.БКП'!AD:AD)+SUMIF('11.ПЗС'!$D:$D, $D41, '11.ПЗС'!AE:AE)+SUMIF('12.ТП_БЭФ'!$D:$D, $D41, '12.ТП_БЭФ'!AX:AX)+SUMIF('13.ТП_СЭФ'!$D:$D, $D41, '13.ТП_СЭФ'!BF:BF)+SUMIF('14.ОВИЗ'!$D:$D, $D41, '14.ОВИЗ'!BG:BG)+SUMIF('15.ГРР'!$D:$D, $D41, '15.ГРР'!AD:AD)+SUMIF('16.НИОКР'!$D:$D, $D41, '16.НИОКР'!AD:AD)+SUMIF('17.НМА'!$D:$D, $D41, '17.НМА'!AE:AE)+SUMIF('18.ПКЗ'!$D:$D, $D41, '18.ПКЗ'!AE:AE)+SUMIF('19.БФИ'!$D:$D, $D41, '19.БФИ'!AE:AE)) -> 0 | AE41: =IF($D41="", 0, SUMIF('7.СМР'!$D:$D, $D41, '7.СМР'!AE:AE)+SUMIF('8.ОСС'!$D:$D, $D41, '8.ОСС'!AW:AW)+SUMIF('9.ПИР'!$D:$D, $D41, '9.ПИР'!AE:AE)+SUMIF('10.БКП'!$D:$D, $D41, '10.БКП'!AE:AE)+SUMIF('11.ПЗС'!$D:$D, $D41, '11.ПЗС'!AF:AF)+SUMIF('12.ТП_БЭФ'!$D:$D, $D41, '12.ТП_БЭФ'!AY:AY)+SUMIF('13.ТП_СЭФ'!$D:$D, $D41, '13.ТП_СЭФ'!BG:BG)+SUMIF('14.ОВИЗ'!$D:$D, $D41, '14.ОВИЗ'!BH:BH)+SUMIF('15.ГРР'!$D:$D, $D41, '15.ГРР'!AE:AE)+SUMIF('16.НИОКР'!$D:$D, $D41, '16.НИОКР'!AE:AE)+SUMIF('17.НМА'!$D:$D, $D41, '17.НМА'!AF:AF)+SUMIF('18.ПКЗ'!$D:$D, $D41, '18.ПКЗ'!AF:AF)+SUMIF('19.БФИ'!$D:$D, $D41, '19.БФИ'!AF:AF)) -> 0 | AG41: 0
B42: =IF(D42="", "", '04.РИП'!A52) ->  | C42: =IF(D42="", "", '04.РИП'!D52) ->  | D42: =IF(ISBLANK('04.РИП'!B52), "", '04.РИП'!B52) ->  | E42: =IF(D42="", "", '04.РИП'!E52) ->  | F42: =IF(D42="", "", '04.РИП'!D52) ->  | G42: =IF($D42="", 0, SUMIF('7.СМР'!$D:$D, $D42, '7.СМР'!G:G)+SUMIF('8.ОСС'!$D:$D, $D42, '8.ОСС'!Y:Y)+SUMIF('9.ПИР'!$D:$D, $D42, '9.ПИР'!G:G)+SUMIF('10.БКП'!$D:$D, $D42, '10.БКП'!G:G)+SUMIF('11.ПЗС'!$D:$D, $D42, '11.ПЗС'!H:H)+SUMIF('12.ТП_БЭФ'!$D:$D, $D42, '12.ТП_БЭФ'!AA:AA)+SUMIF('13.ТП_СЭФ'!$D:$D, $D42, '13.ТП_СЭФ'!AI:AI)+SUMIF('14.ОВИЗ'!$D:$D, $D42, '14.ОВИЗ'!AJ:AJ)+SUMIF('15.ГРР'!$D:$D, $D42, '15.ГРР'!G:G)+SUMIF('16.НИОКР'!$D:$D, $D42, '16.НИОКР'!G:G)+SUMIF('17.НМА'!$D:$D, $D42, '17.НМА'!H:H)+SUMIF('18.ПКЗ'!$D:$D, $D42, '18.ПКЗ'!H:H)+SUMIF('19.БФИ'!$D:$D, $D42, '19.БФИ'!H:H)) -> 0 | H42: =IF($D42="", 0, SUMIF('7.СМР'!$D:$D, $D42, '7.СМР'!H:H)+SUMIF('8.ОСС'!$D:$D, $D42, '8.ОСС'!Z:Z)+SUMIF('9.ПИР'!$D:$D, $D42, '9.ПИР'!H:H)+SUMIF('10.БКП'!$D:$D, $D42, '10.БКП'!H:H)+SUMIF('11.ПЗС'!$D:$D, $D42, '11.ПЗС'!I:I)+SUMIF('12.ТП_БЭФ'!$D:$D, $D42, '12.ТП_БЭФ'!AB:AB)+SUMIF('13.ТП_СЭФ'!$D:$D, $D42, '13.ТП_СЭФ'!AJ:AJ)+SUMIF('14.ОВИЗ'!$D:$D, $D42, '14.ОВИЗ'!AK:AK)+SUMIF('15.ГРР'!$D:$D, $D42, '15.ГРР'!H:H)+SUMIF('16.НИОКР'!$D:$D, $D42, '16.НИОКР'!H:H)+SUMIF('17.НМА'!$D:$D, $D42, '17.НМА'!I:I)+SUMIF('18.ПКЗ'!$D:$D, $D42, '18.ПКЗ'!I:I)+SUMIF('19.БФИ'!$D:$D, $D42, '19.БФИ'!I:I)) -> 0 | I42: =IF($D42="", 0, SUMIF('7.СМР'!$D:$D, $D42, '7.СМР'!I:I)+SUMIF('8.ОСС'!$D:$D, $D42, '8.ОСС'!AA:AA)+SUMIF('9.ПИР'!$D:$D, $D42, '9.ПИР'!I:I)+SUMIF('10.БКП'!$D:$D, $D42, '10.БКП'!I:I)+SUMIF('11.ПЗС'!$D:$D, $D42, '11.ПЗС'!J:J)+SUMIF('12.ТП_БЭФ'!$D:$D, $D42, '12.ТП_БЭФ'!AC:AC)+SUMIF('13.ТП_СЭФ'!$D:$D, $D42, '13.ТП_СЭФ'!AK:AK)+SUMIF('14.ОВИЗ'!$D:$D, $D42, '14.ОВИЗ'!AL:AL)+SUMIF('15.ГРР'!$D:$D, $D42, '15.ГРР'!I:I)+SUMIF('16.НИОКР'!$D:$D, $D42, '16.НИОКР'!I:I)+SUMIF('17.НМА'!$D:$D, $D42, '17.НМА'!J:J)+SUMIF('18.ПКЗ'!$D:$D, $D42, '18.ПКЗ'!J:J)+SUMIF('19.БФИ'!$D:$D, $D42, '19.БФИ'!J:J)) -> 0 | J42: =IF($D42="", 0, SUMIF('7.СМР'!$D:$D, $D42, '7.СМР'!J:J)+SUMIF('8.ОСС'!$D:$D, $D42, '8.ОСС'!AB:AB)+SUMIF('9.ПИР'!$D:$D, $D42, '9.ПИР'!J:J)+SUMIF('10.БКП'!$D:$D, $D42, '10.БКП'!J:J)+SUMIF('11.ПЗС'!$D:$D, $D42, '11.ПЗС'!K:K)+SUMIF('12.ТП_БЭФ'!$D:$D, $D42, '12.ТП_БЭФ'!AD:AD)+SUMIF('13.ТП_СЭФ'!$D:$D, $D42, '13.ТП_СЭФ'!AL:AL)+SUMIF('14.ОВИЗ'!$D:$D, $D42, '14.ОВИЗ'!AM:AM)+SUMIF('15.ГРР'!$D:$D, $D42, '15.ГРР'!J:J)+SUMIF('16.НИОКР'!$D:$D, $D42, '16.НИОКР'!J:J)+SUMIF('17.НМА'!$D:$D, $D42, '17.НМА'!K:K)+SUMIF('18.ПКЗ'!$D:$D, $D42, '18.ПКЗ'!K:K)+SUMIF('19.БФИ'!$D:$D, $D42, '19.БФИ'!K:K)) -> 0 | K42: =IF($D42="", 0, SUMIF('7.СМР'!$D:$D, $D42, '7.СМР'!K:K)+SUMIF('8.ОСС'!$D:$D, $D42, '8.ОСС'!AC:AC)+SUMIF('9.ПИР'!$D:$D, $D42, '9.ПИР'!K:K)+SUMIF('10.БКП'!$D:$D, $D42, '10.БКП'!K:K)+SUMIF('11.ПЗС'!$D:$D, $D42, '11.ПЗС'!L:L)+SUMIF('12.ТП_БЭФ'!$D:$D, $D42, '12.ТП_БЭФ'!AE:AE)+SUMIF('13.ТП_СЭФ'!$D:$D, $D42, '13.ТП_СЭФ'!AM:AM)+SUMIF('14.ОВИЗ'!$D:$D, $D42, '14.ОВИЗ'!AN:AN)+SUMIF('15.ГРР'!$D:$D, $D42, '15.ГРР'!K:K)+SUMIF('16.НИОКР'!$D:$D, $D42, '16.НИОКР'!K:K)+SUMIF('17.НМА'!$D:$D, $D42, '17.НМА'!L:L)+SUMIF('18.ПКЗ'!$D:$D, $D42, '18.ПКЗ'!L:L)+SUMIF('19.БФИ'!$D:$D, $D42, '19.БФИ'!L:L)) -> 0 | L42: =IF($D42="", 0, SUMIF('7.СМР'!$D:$D, $D42, '7.СМР'!L:L)+SUMIF('8.ОСС'!$D:$D, $D42, '8.ОСС'!AD:AD)+SUMIF('9.ПИР'!$D:$D, $D42, '9.ПИР'!L:L)+SUMIF('10.БКП'!$D:$D, $D42, '10.БКП'!L:L)+SUMIF('11.ПЗС'!$D:$D, $D42, '11.ПЗС'!M:M)+SUMIF('12.ТП_БЭФ'!$D:$D, $D42, '12.ТП_БЭФ'!AF:AF)+SUMIF('13.ТП_СЭФ'!$D:$D, $D42, '13.ТП_СЭФ'!AN:AN)+SUMIF('14.ОВИЗ'!$D:$D, $D42, '14.ОВИЗ'!AO:AO)+SUMIF('15.ГРР'!$D:$D, $D42, '15.ГРР'!L:L)+SUMIF('16.НИОКР'!$D:$D, $D42, '16.НИОКР'!L:L)+SUMIF('17.НМА'!$D:$D, $D42, '17.НМА'!M:M)+SUMIF('18.ПКЗ'!$D:$D, $D42, '18.ПКЗ'!M:M)+SUMIF('19.БФИ'!$D:$D, $D42, '19.БФИ'!M:M)) -> 0 | M42: =IF($D42="", 0, SUMIF('7.СМР'!$D:$D, $D42, '7.СМР'!M:M)+SUMIF('8.ОСС'!$D:$D, $D42, '8.ОСС'!AE:AE)+SUMIF('9.ПИР'!$D:$D, $D42, '9.ПИР'!M:M)+SUMIF('10.БКП'!$D:$D, $D42, '10.БКП'!M:M)+SUMIF('11.ПЗС'!$D:$D, $D42, '11.ПЗС'!N:N)+SUMIF('12.ТП_БЭФ'!$D:$D, $D42, '12.ТП_БЭФ'!AG:AG)+SUMIF('13.ТП_СЭФ'!$D:$D, $D42, '13.ТП_СЭФ'!AO:AO)+SUMIF('14.ОВИЗ'!$D:$D, $D42, '14.ОВИЗ'!AP:AP)+SUMIF('15.ГРР'!$D:$D, $D42, '15.ГРР'!M:M)+SUMIF('16.НИОКР'!$D:$D, $D42, '16.НИОКР'!M:M)+SUMIF('17.НМА'!$D:$D, $D42, '17.НМА'!N:N)+SUMIF('18.ПКЗ'!$D:$D, $D42, '18.ПКЗ'!N:N)+SUMIF('19.БФИ'!$D:$D, $D42, '19.БФИ'!N:N)) -> 0 | N42: =IF($D42="", 0, SUMIF('7.СМР'!$D:$D, $D42, '7.СМР'!N:N)+SUMIF('8.ОСС'!$D:$D, $D42, '8.ОСС'!AF:AF)+SUMIF('9.ПИР'!$D:$D, $D42, '9.ПИР'!N:N)+SUMIF('10.БКП'!$D:$D, $D42, '10.БКП'!N:N)+SUMIF('11.ПЗС'!$D:$D, $D42, '11.ПЗС'!O:O)+SUMIF('12.ТП_БЭФ'!$D:$D, $D42, '12.ТП_БЭФ'!AH:AH)+SUMIF('13.ТП_СЭФ'!$D:$D, $D42, '13.ТП_СЭФ'!AP:AP)+SUMIF('14.ОВИЗ'!$D:$D, $D42, '14.ОВИЗ'!AQ:AQ)+SUMIF('15.ГРР'!$D:$D, $D42, '15.ГРР'!N:N)+SUMIF('16.НИОКР'!$D:$D, $D42, '16.НИОКР'!N:N)+SUMIF('17.НМА'!$D:$D, $D42, '17.НМА'!O:O)+SUMIF('18.ПКЗ'!$D:$D, $D42, '18.ПКЗ'!O:O)+SUMIF('19.БФИ'!$D:$D, $D42, '19.БФИ'!O:O)) -> 0 | O42: =IF($D42="", 0, SUMIF('7.СМР'!$D:$D, $D42, '7.СМР'!O:O)+SUMIF('8.ОСС'!$D:$D, $D42, '8.ОСС'!AG:AG)+SUMIF('9.ПИР'!$D:$D, $D42, '9.ПИР'!O:O)+SUMIF('10.БКП'!$D:$D, $D42, '10.БКП'!O:O)+SUMIF('11.ПЗС'!$D:$D, $D42, '11.ПЗС'!P:P)+SUMIF('12.ТП_БЭФ'!$D:$D, $D42, '12.ТП_БЭФ'!AI:AI)+SUMIF('13.ТП_СЭФ'!$D:$D, $D42, '13.ТП_СЭФ'!AQ:AQ)+SUMIF('14.ОВИЗ'!$D:$D, $D42, '14.ОВИЗ'!AR:AR)+SUMIF('15.ГРР'!$D:$D, $D42, '15.ГРР'!O:O)+SUMIF('16.НИОКР'!$D:$D, $D42, '16.НИОКР'!O:O)+SUMIF('17.НМА'!$D:$D, $D42, '17.НМА'!P:P)+SUMIF('18.ПКЗ'!$D:$D, $D42, '18.ПКЗ'!P:P)+SUMIF('19.БФИ'!$D:$D, $D42, '19.БФИ'!P:P)) -> 0 | P42: =IF($D42="", 0, SUMIF('7.СМР'!$D:$D, $D42, '7.СМР'!P:P)+SUMIF('8.ОСС'!$D:$D, $D42, '8.ОСС'!AH:AH)+SUMIF('9.ПИР'!$D:$D, $D42, '9.ПИР'!P:P)+SUMIF('10.БКП'!$D:$D, $D42, '10.БКП'!P:P)+SUMIF('11.ПЗС'!$D:$D, $D42, '11.ПЗС'!Q:Q)+SUMIF('12.ТП_БЭФ'!$D:$D, $D42, '12.ТП_БЭФ'!AJ:AJ)+SUMIF('13.ТП_СЭФ'!$D:$D, $D42, '13.ТП_СЭФ'!AR:AR)+SUMIF('14.ОВИЗ'!$D:$D, $D42, '14.ОВИЗ'!AS:AS)+SUMIF('15.ГРР'!$D:$D, $D42, '15.ГРР'!P:P)+SUMIF('16.НИОКР'!$D:$D, $D42, '16.НИОКР'!P:P)+SUMIF('17.НМА'!$D:$D, $D42, '17.НМА'!Q:Q)+SUMIF('18.ПКЗ'!$D:$D, $D42, '18.ПКЗ'!Q:Q)+SUMIF('19.БФИ'!$D:$D, $D42, '19.БФИ'!Q:Q)) -> 0 | Q42: 0 | R42: 0 | S42: 0 | T42: 0 | V42: 0 | W42: 0 | X42: =IF($D42="", 0, SUMIF('7.СМР'!$D:$D, $D42, '7.СМР'!X:X)+SUMIF('8.ОСС'!$D:$D, $D42, '8.ОСС'!AP:AP)+SUMIF('9.ПИР'!$D:$D, $D42, '9.ПИР'!X:X)+SUMIF('10.БКП'!$D:$D, $D42, '10.БКП'!X:X)+SUMIF('11.ПЗС'!$D:$D, $D42, '11.ПЗС'!Y:Y)+SUMIF('12.ТП_БЭФ'!$D:$D, $D42, '12.ТП_БЭФ'!AR:AR)+SUMIF('13.ТП_СЭФ'!$D:$D, $D42, '13.ТП_СЭФ'!AZ:AZ)+SUMIF('14.ОВИЗ'!$D:$D, $D42, '14.ОВИЗ'!BA:BA)+SUMIF('15.ГРР'!$D:$D, $D42, '15.ГРР'!X:X)+SUMIF('16.НИОКР'!$D:$D, $D42, '16.НИОКР'!X:X)+SUMIF('17.НМА'!$D:$D, $D42, '17.НМА'!Y:Y)+SUMIF('18.ПКЗ'!$D:$D, $D42, '18.ПКЗ'!Y:Y)+SUMIF('19.БФИ'!$D:$D, $D42, '19.БФИ'!Y:Y)) -> 0 | Y42: =IF($D42="", 0, SUMIF('7.СМР'!$D:$D, $D42, '7.СМР'!Y:Y)+SUMIF('8.ОСС'!$D:$D, $D42, '8.ОСС'!AQ:AQ)+SUMIF('9.ПИР'!$D:$D, $D42, '9.ПИР'!Y:Y)+SUMIF('10.БКП'!$D:$D, $D42, '10.БКП'!Y:Y)+SUMIF('11.ПЗС'!$D:$D, $D42, '11.ПЗС'!Z:Z)+SUMIF('12.ТП_БЭФ'!$D:$D, $D42, '12.ТП_БЭФ'!AS:AS)+SUMIF('13.ТП_СЭФ'!$D:$D, $D42, '13.ТП_СЭФ'!BA:BA)+SUMIF('14.ОВИЗ'!$D:$D, $D42, '14.ОВИЗ'!BB:BB)+SUMIF('15.ГРР'!$D:$D, $D42, '15.ГРР'!Y:Y)+SUMIF('16.НИОКР'!$D:$D, $D42, '16.НИОКР'!Y:Y)+SUMIF('17.НМА'!$D:$D, $D42, '17.НМА'!Z:Z)+SUMIF('18.ПКЗ'!$D:$D, $D42, '18.ПКЗ'!Z:Z)+SUMIF('19.БФИ'!$D:$D, $D42, '19.БФИ'!Z:Z)) -> 0 | Z42: =IF($D42="", 0, SUMIF('7.СМР'!$D:$D, $D42, '7.СМР'!Z:Z)+SUMIF('8.ОСС'!$D:$D, $D42, '8.ОСС'!AR:AR)+SUMIF('9.ПИР'!$D:$D, $D42, '9.ПИР'!Z:Z)+SUMIF('10.БКП'!$D:$D, $D42, '10.БКП'!Z:Z)+SUMIF('11.ПЗС'!$D:$D, $D42, '11.ПЗС'!AA:AA)+SUMIF('12.ТП_БЭФ'!$D:$D, $D42, '12.ТП_БЭФ'!AT:AT)+SUMIF('13.ТП_СЭФ'!$D:$D, $D42, '13.ТП_СЭФ'!BB:BB)+SUMIF('14.ОВИЗ'!$D:$D, $D42, '14.ОВИЗ'!BC:BC)+SUMIF('15.ГРР'!$D:$D, $D42, '15.ГРР'!Z:Z)+SUMIF('16.НИОКР'!$D:$D, $D42, '16.НИОКР'!Z:Z)+SUMIF('17.НМА'!$D:$D, $D42, '17.НМА'!AA:AA)+SUMIF('18.ПКЗ'!$D:$D, $D42, '18.ПКЗ'!AA:AA)+SUMIF('19.БФИ'!$D:$D, $D42, '19.БФИ'!AA:AA)) -> 0 | AA42: =IF($D42="", 0, SUMIF('7.СМР'!$D:$D, $D42, '7.СМР'!AA:AA)+SUMIF('8.ОСС'!$D:$D, $D42, '8.ОСС'!AS:AS)+SUMIF('9.ПИР'!$D:$D, $D42, '9.ПИР'!AA:AA)+SUMIF('10.БКП'!$D:$D, $D42, '10.БКП'!AA:AA)+SUMIF('11.ПЗС'!$D:$D, $D42, '11.ПЗС'!AB:AB)+SUMIF('12.ТП_БЭФ'!$D:$D, $D42, '12.ТП_БЭФ'!AU:AU)+SUMIF('13.ТП_СЭФ'!$D:$D, $D42, '13.ТП_СЭФ'!BC:BC)+SUMIF('14.ОВИЗ'!$D:$D, $D42, '14.ОВИЗ'!BD:BD)+SUMIF('15.ГРР'!$D:$D, $D42, '15.ГРР'!AA:AA)+SUMIF('16.НИОКР'!$D:$D, $D42, '16.НИОКР'!AA:AA)+SUMIF('17.НМА'!$D:$D, $D42, '17.НМА'!AB:AB)+SUMIF('18.ПКЗ'!$D:$D, $D42, '18.ПКЗ'!AB:AB)+SUMIF('19.БФИ'!$D:$D, $D42, '19.БФИ'!AB:AB)) -> 0 | AB42: =IF($D42="", 0, SUMIF('7.СМР'!$D:$D, $D42, '7.СМР'!AB:AB)+SUMIF('8.ОСС'!$D:$D, $D42, '8.ОСС'!AT:AT)+SUMIF('9.ПИР'!$D:$D, $D42, '9.ПИР'!AB:AB)+SUMIF('10.БКП'!$D:$D, $D42, '10.БКП'!AB:AB)+SUMIF('11.ПЗС'!$D:$D, $D42, '11.ПЗС'!AC:AC)+SUMIF('12.ТП_БЭФ'!$D:$D, $D42, '12.ТП_БЭФ'!AV:AV)+SUMIF('13.ТП_СЭФ'!$D:$D, $D42, '13.ТП_СЭФ'!BD:BD)+SUMIF('14.ОВИЗ'!$D:$D, $D42, '14.ОВИЗ'!BE:BE)+SUMIF('15.ГРР'!$D:$D, $D42, '15.ГРР'!AB:AB)+SUMIF('16.НИОКР'!$D:$D, $D42, '16.НИОКР'!AB:AB)+SUMIF('17.НМА'!$D:$D, $D42, '17.НМА'!AC:AC)+SUMIF('18.ПКЗ'!$D:$D, $D42, '18.ПКЗ'!AC:AC)+SUMIF('19.БФИ'!$D:$D, $D42, '19.БФИ'!AC:AC)) -> 0 | AC42: =IF($D42="", 0, SUMIF('7.СМР'!$D:$D, $D42, '7.СМР'!AC:AC)+SUMIF('8.ОСС'!$D:$D, $D42, '8.ОСС'!AU:AU)+SUMIF('9.ПИР'!$D:$D, $D42, '9.ПИР'!AC:AC)+SUMIF('10.БКП'!$D:$D, $D42, '10.БКП'!AC:AC)+SUMIF('11.ПЗС'!$D:$D, $D42, '11.ПЗС'!AD:AD)+SUMIF('12.ТП_БЭФ'!$D:$D, $D42, '12.ТП_БЭФ'!AW:AW)+SUMIF('13.ТП_СЭФ'!$D:$D, $D42, '13.ТП_СЭФ'!BE:BE)+SUMIF('14.ОВИЗ'!$D:$D, $D42, '14.ОВИЗ'!BF:BF)+SUMIF('15.ГРР'!$D:$D, $D42, '15.ГРР'!AC:AC)+SUMIF('16.НИОКР'!$D:$D, $D42, '16.НИОКР'!AC:AC)+SUMIF('17.НМА'!$D:$D, $D42, '17.НМА'!AD:AD)+SUMIF('18.ПКЗ'!$D:$D, $D42, '18.ПКЗ'!AD:AD)+SUMIF('19.БФИ'!$D:$D, $D42, '19.БФИ'!AD:AD)) -> 0 | AD42: =IF($D42="", 0, SUMIF('7.СМР'!$D:$D, $D42, '7.СМР'!AD:AD)+SUMIF('8.ОСС'!$D:$D, $D42, '8.ОСС'!AV:AV)+SUMIF('9.ПИР'!$D:$D, $D42, '9.ПИР'!AD:AD)+SUMIF('10.БКП'!$D:$D, $D42, '10.БКП'!AD:AD)+SUMIF('11.ПЗС'!$D:$D, $D42, '11.ПЗС'!AE:AE)+SUMIF('12.ТП_БЭФ'!$D:$D, $D42, '12.ТП_БЭФ'!AX:AX)+SUMIF('13.ТП_СЭФ'!$D:$D, $D42, '13.ТП_СЭФ'!BF:BF)+SUMIF('14.ОВИЗ'!$D:$D, $D42, '14.ОВИЗ'!BG:BG)+SUMIF('15.ГРР'!$D:$D, $D42, '15.ГРР'!AD:AD)+SUMIF('16.НИОКР'!$D:$D, $D42, '16.НИОКР'!AD:AD)+SUMIF('17.НМА'!$D:$D, $D42, '17.НМА'!AE:AE)+SUMIF('18.ПКЗ'!$D:$D, $D42, '18.ПКЗ'!AE:AE)+SUMIF('19.БФИ'!$D:$D, $D42, '19.БФИ'!AE:AE)) -> 0 | AE42: =IF($D42="", 0, SUMIF('7.СМР'!$D:$D, $D42, '7.СМР'!AE:AE)+SUMIF('8.ОСС'!$D:$D, $D42, '8.ОСС'!AW:AW)+SUMIF('9.ПИР'!$D:$D, $D42, '9.ПИР'!AE:AE)+SUMIF('10.БКП'!$D:$D, $D42, '10.БКП'!AE:AE)+SUMIF('11.ПЗС'!$D:$D, $D42, '11.ПЗС'!AF:AF)+SUMIF('12.ТП_БЭФ'!$D:$D, $D42, '12.ТП_БЭФ'!AY:AY)+SUMIF('13.ТП_СЭФ'!$D:$D, $D42, '13.ТП_СЭФ'!BG:BG)+SUMIF('14.ОВИЗ'!$D:$D, $D42, '14.ОВИЗ'!BH:BH)+SUMIF('15.ГРР'!$D:$D, $D42, '15.ГРР'!AE:AE)+SUMIF('16.НИОКР'!$D:$D, $D42, '16.НИОКР'!AE:AE)+SUMIF('17.НМА'!$D:$D, $D42, '17.НМА'!AF:AF)+SUMIF('18.ПКЗ'!$D:$D, $D42, '18.ПКЗ'!AF:AF)+SUMIF('19.БФИ'!$D:$D, $D42, '19.БФИ'!AF:AF)) -> 0 | AG42: 0
B43: =IF(D43="", "", '04.РИП'!A53) ->  | C43: =IF(D43="", "", '04.РИП'!D53) ->  | D43: =IF(ISBLANK('04.РИП'!B53), "", '04.РИП'!B53) ->  | E43: =IF(D43="", "", '04.РИП'!E53) ->  | F43: =IF(D43="", "", '04.РИП'!D53) ->  | G43: =IF($D43="", 0, SUMIF('7.СМР'!$D:$D, $D43, '7.СМР'!G:G)+SUMIF('8.ОСС'!$D:$D, $D43, '8.ОСС'!Y:Y)+SUMIF('9.ПИР'!$D:$D, $D43, '9.ПИР'!G:G)+SUMIF('10.БКП'!$D:$D, $D43, '10.БКП'!G:G)+SUMIF('11.ПЗС'!$D:$D, $D43, '11.ПЗС'!H:H)+SUMIF('12.ТП_БЭФ'!$D:$D, $D43, '12.ТП_БЭФ'!AA:AA)+SUMIF('13.ТП_СЭФ'!$D:$D, $D43, '13.ТП_СЭФ'!AI:AI)+SUMIF('14.ОВИЗ'!$D:$D, $D43, '14.ОВИЗ'!AJ:AJ)+SUMIF('15.ГРР'!$D:$D, $D43, '15.ГРР'!G:G)+SUMIF('16.НИОКР'!$D:$D, $D43, '16.НИОКР'!G:G)+SUMIF('17.НМА'!$D:$D, $D43, '17.НМА'!H:H)+SUMIF('18.ПКЗ'!$D:$D, $D43, '18.ПКЗ'!H:H)+SUMIF('19.БФИ'!$D:$D, $D43, '19.БФИ'!H:H)) -> 0 | H43: =IF($D43="", 0, SUMIF('7.СМР'!$D:$D, $D43, '7.СМР'!H:H)+SUMIF('8.ОСС'!$D:$D, $D43, '8.ОСС'!Z:Z)+SUMIF('9.ПИР'!$D:$D, $D43, '9.ПИР'!H:H)+SUMIF('10.БКП'!$D:$D, $D43, '10.БКП'!H:H)+SUMIF('11.ПЗС'!$D:$D, $D43, '11.ПЗС'!I:I)+SUMIF('12.ТП_БЭФ'!$D:$D, $D43, '12.ТП_БЭФ'!AB:AB)+SUMIF('13.ТП_СЭФ'!$D:$D, $D43, '13.ТП_СЭФ'!AJ:AJ)+SUMIF('14.ОВИЗ'!$D:$D, $D43, '14.ОВИЗ'!AK:AK)+SUMIF('15.ГРР'!$D:$D, $D43, '15.ГРР'!H:H)+SUMIF('16.НИОКР'!$D:$D, $D43, '16.НИОКР'!H:H)+SUMIF('17.НМА'!$D:$D, $D43, '17.НМА'!I:I)+SUMIF('18.ПКЗ'!$D:$D, $D43, '18.ПКЗ'!I:I)+SUMIF('19.БФИ'!$D:$D, $D43, '19.БФИ'!I:I)) -> 0 | I43: =IF($D43="", 0, SUMIF('7.СМР'!$D:$D, $D43, '7.СМР'!I:I)+SUMIF('8.ОСС'!$D:$D, $D43, '8.ОСС'!AA:AA)+SUMIF('9.ПИР'!$D:$D, $D43, '9.ПИР'!I:I)+SUMIF('10.БКП'!$D:$D, $D43, '10.БКП'!I:I)+SUMIF('11.ПЗС'!$D:$D, $D43, '11.ПЗС'!J:J)+SUMIF('12.ТП_БЭФ'!$D:$D, $D43, '12.ТП_БЭФ'!AC:AC)+SUMIF('13.ТП_СЭФ'!$D:$D, $D43, '13.ТП_СЭФ'!AK:AK)+SUMIF('14.ОВИЗ'!$D:$D, $D43, '14.ОВИЗ'!AL:AL)+SUMIF('15.ГРР'!$D:$D, $D43, '15.ГРР'!I:I)+SUMIF('16.НИОКР'!$D:$D, $D43, '16.НИОКР'!I:I)+SUMIF('17.НМА'!$D:$D, $D43, '17.НМА'!J:J)+SUMIF('18.ПКЗ'!$D:$D, $D43, '18.ПКЗ'!J:J)+SUMIF('19.БФИ'!$D:$D, $D43, '19.БФИ'!J:J)) -> 0 | J43: =IF($D43="", 0, SUMIF('7.СМР'!$D:$D, $D43, '7.СМР'!J:J)+SUMIF('8.ОСС'!$D:$D, $D43, '8.ОСС'!AB:AB)+SUMIF('9.ПИР'!$D:$D, $D43, '9.ПИР'!J:J)+SUMIF('10.БКП'!$D:$D, $D43, '10.БКП'!J:J)+SUMIF('11.ПЗС'!$D:$D, $D43, '11.ПЗС'!K:K)+SUMIF('12.ТП_БЭФ'!$D:$D, $D43, '12.ТП_БЭФ'!AD:AD)+SUMIF('13.ТП_СЭФ'!$D:$D, $D43, '13.ТП_СЭФ'!AL:AL)+SUMIF('14.ОВИЗ'!$D:$D, $D43, '14.ОВИЗ'!AM:AM)+SUMIF('15.ГРР'!$D:$D, $D43, '15.ГРР'!J:J)+SUMIF('16.НИОКР'!$D:$D, $D43, '16.НИОКР'!J:J)+SUMIF('17.НМА'!$D:$D, $D43, '17.НМА'!K:K)+SUMIF('18.ПКЗ'!$D:$D, $D43, '18.ПКЗ'!K:K)+SUMIF('19.БФИ'!$D:$D, $D43, '19.БФИ'!K:K)) -> 0 | K43: =IF($D43="", 0, SUMIF('7.СМР'!$D:$D, $D43, '7.СМР'!K:K)+SUMIF('8.ОСС'!$D:$D, $D43, '8.ОСС'!AC:AC)+SUMIF('9.ПИР'!$D:$D, $D43, '9.ПИР'!K:K)+SUMIF('10.БКП'!$D:$D, $D43, '10.БКП'!K:K)+SUMIF('11.ПЗС'!$D:$D, $D43, '11.ПЗС'!L:L)+SUMIF('12.ТП_БЭФ'!$D:$D, $D43, '12.ТП_БЭФ'!AE:AE)+SUMIF('13.ТП_СЭФ'!$D:$D, $D43, '13.ТП_СЭФ'!AM:AM)+SUMIF('14.ОВИЗ'!$D:$D, $D43, '14.ОВИЗ'!AN:AN)+SUMIF('15.ГРР'!$D:$D, $D43, '15.ГРР'!K:K)+SUMIF('16.НИОКР'!$D:$D, $D43, '16.НИОКР'!K:K)+SUMIF('17.НМА'!$D:$D, $D43, '17.НМА'!L:L)+SUMIF('18.ПКЗ'!$D:$D, $D43, '18.ПКЗ'!L:L)+SUMIF('19.БФИ'!$D:$D, $D43, '19.БФИ'!L:L)) -> 0 | L43: =IF($D43="", 0, SUMIF('7.СМР'!$D:$D, $D43, '7.СМР'!L:L)+SUMIF('8.ОСС'!$D:$D, $D43, '8.ОСС'!AD:AD)+SUMIF('9.ПИР'!$D:$D, $D43, '9.ПИР'!L:L)+SUMIF('10.БКП'!$D:$D, $D43, '10.БКП'!L:L)+SUMIF('11.ПЗС'!$D:$D, $D43, '11.ПЗС'!M:M)+SUMIF('12.ТП_БЭФ'!$D:$D, $D43, '12.ТП_БЭФ'!AF:AF)+SUMIF('13.ТП_СЭФ'!$D:$D, $D43, '13.ТП_СЭФ'!AN:AN)+SUMIF('14.ОВИЗ'!$D:$D, $D43, '14.ОВИЗ'!AO:AO)+SUMIF('15.ГРР'!$D:$D, $D43, '15.ГРР'!L:L)+SUMIF('16.НИОКР'!$D:$D, $D43, '16.НИОКР'!L:L)+SUMIF('17.НМА'!$D:$D, $D43, '17.НМА'!M:M)+SUMIF('18.ПКЗ'!$D:$D, $D43, '18.ПКЗ'!M:M)+SUMIF('19.БФИ'!$D:$D, $D43, '19.БФИ'!M:M)) -> 0 | M43: =IF($D43="", 0, SUMIF('7.СМР'!$D:$D, $D43, '7.СМР'!M:M)+SUMIF('8.ОСС'!$D:$D, $D43, '8.ОСС'!AE:AE)+SUMIF('9.ПИР'!$D:$D, $D43, '9.ПИР'!M:M)+SUMIF('10.БКП'!$D:$D, $D43, '10.БКП'!M:M)+SUMIF('11.ПЗС'!$D:$D, $D43, '11.ПЗС'!N:N)+SUMIF('12.ТП_БЭФ'!$D:$D, $D43, '12.ТП_БЭФ'!AG:AG)+SUMIF('13.ТП_СЭФ'!$D:$D, $D43, '13.ТП_СЭФ'!AO:AO)+SUMIF('14.ОВИЗ'!$D:$D, $D43, '14.ОВИЗ'!AP:AP)+SUMIF('15.ГРР'!$D:$D, $D43, '15.ГРР'!M:M)+SUMIF('16.НИОКР'!$D:$D, $D43, '16.НИОКР'!M:M)+SUMIF('17.НМА'!$D:$D, $D43, '17.НМА'!N:N)+SUMIF('18.ПКЗ'!$D:$D, $D43, '18.ПКЗ'!N:N)+SUMIF('19.БФИ'!$D:$D, $D43, '19.БФИ'!N:N)) -> 0 | N43: =IF($D43="", 0, SUMIF('7.СМР'!$D:$D, $D43, '7.СМР'!N:N)+SUMIF('8.ОСС'!$D:$D, $D43, '8.ОСС'!AF:AF)+SUMIF('9.ПИР'!$D:$D, $D43, '9.ПИР'!N:N)+SUMIF('10.БКП'!$D:$D, $D43, '10.БКП'!N:N)+SUMIF('11.ПЗС'!$D:$D, $D43, '11.ПЗС'!O:O)+SUMIF('12.ТП_БЭФ'!$D:$D, $D43, '12.ТП_БЭФ'!AH:AH)+SUMIF('13.ТП_СЭФ'!$D:$D, $D43, '13.ТП_СЭФ'!AP:AP)+SUMIF('14.ОВИЗ'!$D:$D, $D43, '14.ОВИЗ'!AQ:AQ)+SUMIF('15.ГРР'!$D:$D, $D43, '15.ГРР'!N:N)+SUMIF('16.НИОКР'!$D:$D, $D43, '16.НИОКР'!N:N)+SUMIF('17.НМА'!$D:$D, $D43, '17.НМА'!O:O)+SUMIF('18.ПКЗ'!$D:$D, $D43, '18.ПКЗ'!O:O)+SUMIF('19.БФИ'!$D:$D, $D43, '19.БФИ'!O:O)) -> 0 | O43: =IF($D43="", 0, SUMIF('7.СМР'!$D:$D, $D43, '7.СМР'!O:O)+SUMIF('8.ОСС'!$D:$D, $D43, '8.ОСС'!AG:AG)+SUMIF('9.ПИР'!$D:$D, $D43, '9.ПИР'!O:O)+SUMIF('10.БКП'!$D:$D, $D43, '10.БКП'!O:O)+SUMIF('11.ПЗС'!$D:$D, $D43, '11.ПЗС'!P:P)+SUMIF('12.ТП_БЭФ'!$D:$D, $D43, '12.ТП_БЭФ'!AI:AI)+SUMIF('13.ТП_СЭФ'!$D:$D, $D43, '13.ТП_СЭФ'!AQ:AQ)+SUMIF('14.ОВИЗ'!$D:$D, $D43, '14.ОВИЗ'!AR:AR)+SUMIF('15.ГРР'!$D:$D, $D43, '15.ГРР'!O:O)+SUMIF('16.НИОКР'!$D:$D, $D43, '16.НИОКР'!O:O)+SUMIF('17.НМА'!$D:$D, $D43, '17.НМА'!P:P)+SUMIF('18.ПКЗ'!$D:$D, $D43, '18.ПКЗ'!P:P)+SUMIF('19.БФИ'!$D:$D, $D43, '19.БФИ'!P:P)) -> 0 | P43: =IF($D43="", 0, SUMIF('7.СМР'!$D:$D, $D43, '7.СМР'!P:P)+SUMIF('8.ОСС'!$D:$D, $D43, '8.ОСС'!AH:AH)+SUMIF('9.ПИР'!$D:$D, $D43, '9.ПИР'!P:P)+SUMIF('10.БКП'!$D:$D, $D43, '10.БКП'!P:P)+SUMIF('11.ПЗС'!$D:$D, $D43, '11.ПЗС'!Q:Q)+SUMIF('12.ТП_БЭФ'!$D:$D, $D43, '12.ТП_БЭФ'!AJ:AJ)+SUMIF('13.ТП_СЭФ'!$D:$D, $D43, '13.ТП_СЭФ'!AR:AR)+SUMIF('14.ОВИЗ'!$D:$D, $D43, '14.ОВИЗ'!AS:AS)+SUMIF('15.ГРР'!$D:$D, $D43, '15.ГРР'!P:P)+SUMIF('16.НИОКР'!$D:$D, $D43, '16.НИОКР'!P:P)+SUMIF('17.НМА'!$D:$D, $D43, '17.НМА'!Q:Q)+SUMIF('18.ПКЗ'!$D:$D, $D43, '18.ПКЗ'!Q:Q)+SUMIF('19.БФИ'!$D:$D, $D43, '19.БФИ'!Q:Q)) -> 0 | Q43: 0 | R43: 0 | S43: 0 | T43: 0 | V43: 0 | W43: 0 | X43: =IF($D43="", 0, SUMIF('7.СМР'!$D:$D, $D43, '7.СМР'!X:X)+SUMIF('8.ОСС'!$D:$D, $D43, '8.ОСС'!AP:AP)+SUMIF('9.ПИР'!$D:$D, $D43, '9.ПИР'!X:X)+SUMIF('10.БКП'!$D:$D, $D43, '10.БКП'!X:X)+SUMIF('11.ПЗС'!$D:$D, $D43, '11.ПЗС'!Y:Y)+SUMIF('12.ТП_БЭФ'!$D:$D, $D43, '12.ТП_БЭФ'!AR:AR)+SUMIF('13.ТП_СЭФ'!$D:$D, $D43, '13.ТП_СЭФ'!AZ:AZ)+SUMIF('14.ОВИЗ'!$D:$D, $D43, '14.ОВИЗ'!BA:BA)+SUMIF('15.ГРР'!$D:$D, $D43, '15.ГРР'!X:X)+SUMIF('16.НИОКР'!$D:$D, $D43, '16.НИОКР'!X:X)+SUMIF('17.НМА'!$D:$D, $D43, '17.НМА'!Y:Y)+SUMIF('18.ПКЗ'!$D:$D, $D43, '18.ПКЗ'!Y:Y)+SUMIF('19.БФИ'!$D:$D, $D43, '19.БФИ'!Y:Y)) -> 0 | Y43: =IF($D43="", 0, SUMIF('7.СМР'!$D:$D, $D43, '7.СМР'!Y:Y)+SUMIF('8.ОСС'!$D:$D, $D43, '8.ОСС'!AQ:AQ)+SUMIF('9.ПИР'!$D:$D, $D43, '9.ПИР'!Y:Y)+SUMIF('10.БКП'!$D:$D, $D43, '10.БКП'!Y:Y)+SUMIF('11.ПЗС'!$D:$D, $D43, '11.ПЗС'!Z:Z)+SUMIF('12.ТП_БЭФ'!$D:$D, $D43, '12.ТП_БЭФ'!AS:AS)+SUMIF('13.ТП_СЭФ'!$D:$D, $D43, '13.ТП_СЭФ'!BA:BA)+SUMIF('14.ОВИЗ'!$D:$D, $D43, '14.ОВИЗ'!BB:BB)+SUMIF('15.ГРР'!$D:$D, $D43, '15.ГРР'!Y:Y)+SUMIF('16.НИОКР'!$D:$D, $D43, '16.НИОКР'!Y:Y)+SUMIF('17.НМА'!$D:$D, $D43, '17.НМА'!Z:Z)+SUMIF('18.ПКЗ'!$D:$D, $D43, '18.ПКЗ'!Z:Z)+SUMIF('19.БФИ'!$D:$D, $D43, '19.БФИ'!Z:Z)) -> 0 | Z43: =IF($D43="", 0, SUMIF('7.СМР'!$D:$D, $D43, '7.СМР'!Z:Z)+SUMIF('8.ОСС'!$D:$D, $D43, '8.ОСС'!AR:AR)+SUMIF('9.ПИР'!$D:$D, $D43, '9.ПИР'!Z:Z)+SUMIF('10.БКП'!$D:$D, $D43, '10.БКП'!Z:Z)+SUMIF('11.ПЗС'!$D:$D, $D43, '11.ПЗС'!AA:AA)+SUMIF('12.ТП_БЭФ'!$D:$D, $D43, '12.ТП_БЭФ'!AT:AT)+SUMIF('13.ТП_СЭФ'!$D:$D, $D43, '13.ТП_СЭФ'!BB:BB)+SUMIF('14.ОВИЗ'!$D:$D, $D43, '14.ОВИЗ'!BC:BC)+SUMIF('15.ГРР'!$D:$D, $D43, '15.ГРР'!Z:Z)+SUMIF('16.НИОКР'!$D:$D, $D43, '16.НИОКР'!Z:Z)+SUMIF('17.НМА'!$D:$D, $D43, '17.НМА'!AA:AA)+SUMIF('18.ПКЗ'!$D:$D, $D43, '18.ПКЗ'!AA:AA)+SUMIF('19.БФИ'!$D:$D, $D43, '19.БФИ'!AA:AA)) -> 0 | AA43: =IF($D43="", 0, SUMIF('7.СМР'!$D:$D, $D43, '7.СМР'!AA:AA)+SUMIF('8.ОСС'!$D:$D, $D43, '8.ОСС'!AS:AS)+SUMIF('9.ПИР'!$D:$D, $D43, '9.ПИР'!AA:AA)+SUMIF('10.БКП'!$D:$D, $D43, '10.БКП'!AA:AA)+SUMIF('11.ПЗС'!$D:$D, $D43, '11.ПЗС'!AB:AB)+SUMIF('12.ТП_БЭФ'!$D:$D, $D43, '12.ТП_БЭФ'!AU:AU)+SUMIF('13.ТП_СЭФ'!$D:$D, $D43, '13.ТП_СЭФ'!BC:BC)+SUMIF('14.ОВИЗ'!$D:$D, $D43, '14.ОВИЗ'!BD:BD)+SUMIF('15.ГРР'!$D:$D, $D43, '15.ГРР'!AA:AA)+SUMIF('16.НИОКР'!$D:$D, $D43, '16.НИОКР'!AA:AA)+SUMIF('17.НМА'!$D:$D, $D43, '17.НМА'!AB:AB)+SUMIF('18.ПКЗ'!$D:$D, $D43, '18.ПКЗ'!AB:AB)+SUMIF('19.БФИ'!$D:$D, $D43, '19.БФИ'!AB:AB)) -> 0 | AB43: =IF($D43="", 0, SUMIF('7.СМР'!$D:$D, $D43, '7.СМР'!AB:AB)+SUMIF('8.ОСС'!$D:$D, $D43, '8.ОСС'!AT:AT)+SUMIF('9.ПИР'!$D:$D, $D43, '9.ПИР'!AB:AB)+SUMIF('10.БКП'!$D:$D, $D43, '10.БКП'!AB:AB)+SUMIF('11.ПЗС'!$D:$D, $D43, '11.ПЗС'!AC:AC)+SUMIF('12.ТП_БЭФ'!$D:$D, $D43, '12.ТП_БЭФ'!AV:AV)+SUMIF('13.ТП_СЭФ'!$D:$D, $D43, '13.ТП_СЭФ'!BD:BD)+SUMIF('14.ОВИЗ'!$D:$D, $D43, '14.ОВИЗ'!BE:BE)+SUMIF('15.ГРР'!$D:$D, $D43, '15.ГРР'!AB:AB)+SUMIF('16.НИОКР'!$D:$D, $D43, '16.НИОКР'!AB:AB)+SUMIF('17.НМА'!$D:$D, $D43, '17.НМА'!AC:AC)+SUMIF('18.ПКЗ'!$D:$D, $D43, '18.ПКЗ'!AC:AC)+SUMIF('19.БФИ'!$D:$D, $D43, '19.БФИ'!AC:AC)) -> 0 | AC43: =IF($D43="", 0, SUMIF('7.СМР'!$D:$D, $D43, '7.СМР'!AC:AC)+SUMIF('8.ОСС'!$D:$D, $D43, '8.ОСС'!AU:AU)+SUMIF('9.ПИР'!$D:$D, $D43, '9.ПИР'!AC:AC)+SUMIF('10.БКП'!$D:$D, $D43, '10.БКП'!AC:AC)+SUMIF('11.ПЗС'!$D:$D, $D43, '11.ПЗС'!AD:AD)+SUMIF('12.ТП_БЭФ'!$D:$D, $D43, '12.ТП_БЭФ'!AW:AW)+SUMIF('13.ТП_СЭФ'!$D:$D, $D43, '13.ТП_СЭФ'!BE:BE)+SUMIF('14.ОВИЗ'!$D:$D, $D43, '14.ОВИЗ'!BF:BF)+SUMIF('15.ГРР'!$D:$D, $D43, '15.ГРР'!AC:AC)+SUMIF('16.НИОКР'!$D:$D, $D43, '16.НИОКР'!AC:AC)+SUMIF('17.НМА'!$D:$D, $D43, '17.НМА'!AD:AD)+SUMIF('18.ПКЗ'!$D:$D, $D43, '18.ПКЗ'!AD:AD)+SUMIF('19.БФИ'!$D:$D, $D43, '19.БФИ'!AD:AD)) -> 0 | AD43: =IF($D43="", 0, SUMIF('7.СМР'!$D:$D, $D43, '7.СМР'!AD:AD)+SUMIF('8.ОСС'!$D:$D, $D43, '8.ОСС'!AV:AV)+SUMIF('9.ПИР'!$D:$D, $D43, '9.ПИР'!AD:AD)+SUMIF('10.БКП'!$D:$D, $D43, '10.БКП'!AD:AD)+SUMIF('11.ПЗС'!$D:$D, $D43, '11.ПЗС'!AE:AE)+SUMIF('12.ТП_БЭФ'!$D:$D, $D43, '12.ТП_БЭФ'!AX:AX)+SUMIF('13.ТП_СЭФ'!$D:$D, $D43, '13.ТП_СЭФ'!BF:BF)+SUMIF('14.ОВИЗ'!$D:$D, $D43, '14.ОВИЗ'!BG:BG)+SUMIF('15.ГРР'!$D:$D, $D43, '15.ГРР'!AD:AD)+SUMIF('16.НИОКР'!$D:$D, $D43, '16.НИОКР'!AD:AD)+SUMIF('17.НМА'!$D:$D, $D43, '17.НМА'!AE:AE)+SUMIF('18.ПКЗ'!$D:$D, $D43, '18.ПКЗ'!AE:AE)+SUMIF('19.БФИ'!$D:$D, $D43, '19.БФИ'!AE:AE)) -> 0 | AE43: =IF($D43="", 0, SUMIF('7.СМР'!$D:$D, $D43, '7.СМР'!AE:AE)+SUMIF('8.ОСС'!$D:$D, $D43, '8.ОСС'!AW:AW)+SUMIF('9.ПИР'!$D:$D, $D43, '9.ПИР'!AE:AE)+SUMIF('10.БКП'!$D:$D, $D43, '10.БКП'!AE:AE)+SUMIF('11.ПЗС'!$D:$D, $D43, '11.ПЗС'!AF:AF)+SUMIF('12.ТП_БЭФ'!$D:$D, $D43, '12.ТП_БЭФ'!AY:AY)+SUMIF('13.ТП_СЭФ'!$D:$D, $D43, '13.ТП_СЭФ'!BG:BG)+SUMIF('14.ОВИЗ'!$D:$D, $D43, '14.ОВИЗ'!BH:BH)+SUMIF('15.ГРР'!$D:$D, $D43, '15.ГРР'!AE:AE)+SUMIF('16.НИОКР'!$D:$D, $D43, '16.НИОКР'!AE:AE)+SUMIF('17.НМА'!$D:$D, $D43, '17.НМА'!AF:AF)+SUMIF('18.ПКЗ'!$D:$D, $D43, '18.ПКЗ'!AF:AF)+SUMIF('19.БФИ'!$D:$D, $D43, '19.БФИ'!AF:AF)) -> 0 | AG43: 0
B44: =IF(D44="", "", '04.РИП'!A54) ->  | C44: =IF(D44="", "", '04.РИП'!D54) ->  | D44: =IF(ISBLANK('04.РИП'!B54), "", '04.РИП'!B54) ->  | E44: =IF(D44="", "", '04.РИП'!E54) ->  | F44: =IF(D44="", "", '04.РИП'!D54) ->  | G44: =IF($D44="", 0, SUMIF('7.СМР'!$D:$D, $D44, '7.СМР'!G:G)+SUMIF('8.ОСС'!$D:$D, $D44, '8.ОСС'!Y:Y)+SUMIF('9.ПИР'!$D:$D, $D44, '9.ПИР'!G:G)+SUMIF('10.БКП'!$D:$D, $D44, '10.БКП'!G:G)+SUMIF('11.ПЗС'!$D:$D, $D44, '11.ПЗС'!H:H)+SUMIF('12.ТП_БЭФ'!$D:$D, $D44, '12.ТП_БЭФ'!AA:AA)+SUMIF('13.ТП_СЭФ'!$D:$D, $D44, '13.ТП_СЭФ'!AI:AI)+SUMIF('14.ОВИЗ'!$D:$D, $D44, '14.ОВИЗ'!AJ:AJ)+SUMIF('15.ГРР'!$D:$D, $D44, '15.ГРР'!G:G)+SUMIF('16.НИОКР'!$D:$D, $D44, '16.НИОКР'!G:G)+SUMIF('17.НМА'!$D:$D, $D44, '17.НМА'!H:H)+SUMIF('18.ПКЗ'!$D:$D, $D44, '18.ПКЗ'!H:H)+SUMIF('19.БФИ'!$D:$D, $D44, '19.БФИ'!H:H)) -> 0 | H44: =IF($D44="", 0, SUMIF('7.СМР'!$D:$D, $D44, '7.СМР'!H:H)+SUMIF('8.ОСС'!$D:$D, $D44, '8.ОСС'!Z:Z)+SUMIF('9.ПИР'!$D:$D, $D44, '9.ПИР'!H:H)+SUMIF('10.БКП'!$D:$D, $D44, '10.БКП'!H:H)+SUMIF('11.ПЗС'!$D:$D, $D44, '11.ПЗС'!I:I)+SUMIF('12.ТП_БЭФ'!$D:$D, $D44, '12.ТП_БЭФ'!AB:AB)+SUMIF('13.ТП_СЭФ'!$D:$D, $D44, '13.ТП_СЭФ'!AJ:AJ)+SUMIF('14.ОВИЗ'!$D:$D, $D44, '14.ОВИЗ'!AK:AK)+SUMIF('15.ГРР'!$D:$D, $D44, '15.ГРР'!H:H)+SUMIF('16.НИОКР'!$D:$D, $D44, '16.НИОКР'!H:H)+SUMIF('17.НМА'!$D:$D, $D44, '17.НМА'!I:I)+SUMIF('18.ПКЗ'!$D:$D, $D44, '18.ПКЗ'!I:I)+SUMIF('19.БФИ'!$D:$D, $D44, '19.БФИ'!I:I)) -> 0 | I44: =IF($D44="", 0, SUMIF('7.СМР'!$D:$D, $D44, '7.СМР'!I:I)+SUMIF('8.ОСС'!$D:$D, $D44, '8.ОСС'!AA:AA)+SUMIF('9.ПИР'!$D:$D, $D44, '9.ПИР'!I:I)+SUMIF('10.БКП'!$D:$D, $D44, '10.БКП'!I:I)+SUMIF('11.ПЗС'!$D:$D, $D44, '11.ПЗС'!J:J)+SUMIF('12.ТП_БЭФ'!$D:$D, $D44, '12.ТП_БЭФ'!AC:AC)+SUMIF('13.ТП_СЭФ'!$D:$D, $D44, '13.ТП_СЭФ'!AK:AK)+SUMIF('14.ОВИЗ'!$D:$D, $D44, '14.ОВИЗ'!AL:AL)+SUMIF('15.ГРР'!$D:$D, $D44, '15.ГРР'!I:I)+SUMIF('16.НИОКР'!$D:$D, $D44, '16.НИОКР'!I:I)+SUMIF('17.НМА'!$D:$D, $D44, '17.НМА'!J:J)+SUMIF('18.ПКЗ'!$D:$D, $D44, '18.ПКЗ'!J:J)+SUMIF('19.БФИ'!$D:$D, $D44, '19.БФИ'!J:J)) -> 0 | J44: =IF($D44="", 0, SUMIF('7.СМР'!$D:$D, $D44, '7.СМР'!J:J)+SUMIF('8.ОСС'!$D:$D, $D44, '8.ОСС'!AB:AB)+SUMIF('9.ПИР'!$D:$D, $D44, '9.ПИР'!J:J)+SUMIF('10.БКП'!$D:$D, $D44, '10.БКП'!J:J)+SUMIF('11.ПЗС'!$D:$D, $D44, '11.ПЗС'!K:K)+SUMIF('12.ТП_БЭФ'!$D:$D, $D44, '12.ТП_БЭФ'!AD:AD)+SUMIF('13.ТП_СЭФ'!$D:$D, $D44, '13.ТП_СЭФ'!AL:AL)+SUMIF('14.ОВИЗ'!$D:$D, $D44, '14.ОВИЗ'!AM:AM)+SUMIF('15.ГРР'!$D:$D, $D44, '15.ГРР'!J:J)+SUMIF('16.НИОКР'!$D:$D, $D44, '16.НИОКР'!J:J)+SUMIF('17.НМА'!$D:$D, $D44, '17.НМА'!K:K)+SUMIF('18.ПКЗ'!$D:$D, $D44, '18.ПКЗ'!K:K)+SUMIF('19.БФИ'!$D:$D, $D44, '19.БФИ'!K:K)) -> 0 | K44: =IF($D44="", 0, SUMIF('7.СМР'!$D:$D, $D44, '7.СМР'!K:K)+SUMIF('8.ОСС'!$D:$D, $D44, '8.ОСС'!AC:AC)+SUMIF('9.ПИР'!$D:$D, $D44, '9.ПИР'!K:K)+SUMIF('10.БКП'!$D:$D, $D44, '10.БКП'!K:K)+SUMIF('11.ПЗС'!$D:$D, $D44, '11.ПЗС'!L:L)+SUMIF('12.ТП_БЭФ'!$D:$D, $D44, '12.ТП_БЭФ'!AE:AE)+SUMIF('13.ТП_СЭФ'!$D:$D, $D44, '13.ТП_СЭФ'!AM:AM)+SUMIF('14.ОВИЗ'!$D:$D, $D44, '14.ОВИЗ'!AN:AN)+SUMIF('15.ГРР'!$D:$D, $D44, '15.ГРР'!K:K)+SUMIF('16.НИОКР'!$D:$D, $D44, '16.НИОКР'!K:K)+SUMIF('17.НМА'!$D:$D, $D44, '17.НМА'!L:L)+SUMIF('18.ПКЗ'!$D:$D, $D44, '18.ПКЗ'!L:L)+SUMIF('19.БФИ'!$D:$D, $D44, '19.БФИ'!L:L)) -> 0 | L44: =IF($D44="", 0, SUMIF('7.СМР'!$D:$D, $D44, '7.СМР'!L:L)+SUMIF('8.ОСС'!$D:$D, $D44, '8.ОСС'!AD:AD)+SUMIF('9.ПИР'!$D:$D, $D44, '9.ПИР'!L:L)+SUMIF('10.БКП'!$D:$D, $D44, '10.БКП'!L:L)+SUMIF('11.ПЗС'!$D:$D, $D44, '11.ПЗС'!M:M)+SUMIF('12.ТП_БЭФ'!$D:$D, $D44, '12.ТП_БЭФ'!AF:AF)+SUMIF('13.ТП_СЭФ'!$D:$D, $D44, '13.ТП_СЭФ'!AN:AN)+SUMIF('14.ОВИЗ'!$D:$D, $D44, '14.ОВИЗ'!AO:AO)+SUMIF('15.ГРР'!$D:$D, $D44, '15.ГРР'!L:L)+SUMIF('16.НИОКР'!$D:$D, $D44, '16.НИОКР'!L:L)+SUMIF('17.НМА'!$D:$D, $D44, '17.НМА'!M:M)+SUMIF('18.ПКЗ'!$D:$D, $D44, '18.ПКЗ'!M:M)+SUMIF('19.БФИ'!$D:$D, $D44, '19.БФИ'!M:M)) -> 0 | M44: =IF($D44="", 0, SUMIF('7.СМР'!$D:$D, $D44, '7.СМР'!M:M)+SUMIF('8.ОСС'!$D:$D, $D44, '8.ОСС'!AE:AE)+SUMIF('9.ПИР'!$D:$D, $D44, '9.ПИР'!M:M)+SUMIF('10.БКП'!$D:$D, $D44, '10.БКП'!M:M)+SUMIF('11.ПЗС'!$D:$D, $D44, '11.ПЗС'!N:N)+SUMIF('12.ТП_БЭФ'!$D:$D, $D44, '12.ТП_БЭФ'!AG:AG)+SUMIF('13.ТП_СЭФ'!$D:$D, $D44, '13.ТП_СЭФ'!AO:AO)+SUMIF('14.ОВИЗ'!$D:$D, $D44, '14.ОВИЗ'!AP:AP)+SUMIF('15.ГРР'!$D:$D, $D44, '15.ГРР'!M:M)+SUMIF('16.НИОКР'!$D:$D, $D44, '16.НИОКР'!M:M)+SUMIF('17.НМА'!$D:$D, $D44, '17.НМА'!N:N)+SUMIF('18.ПКЗ'!$D:$D, $D44, '18.ПКЗ'!N:N)+SUMIF('19.БФИ'!$D:$D, $D44, '19.БФИ'!N:N)) -> 0 | N44: =IF($D44="", 0, SUMIF('7.СМР'!$D:$D, $D44, '7.СМР'!N:N)+SUMIF('8.ОСС'!$D:$D, $D44, '8.ОСС'!AF:AF)+SUMIF('9.ПИР'!$D:$D, $D44, '9.ПИР'!N:N)+SUMIF('10.БКП'!$D:$D, $D44, '10.БКП'!N:N)+SUMIF('11.ПЗС'!$D:$D, $D44, '11.ПЗС'!O:O)+SUMIF('12.ТП_БЭФ'!$D:$D, $D44, '12.ТП_БЭФ'!AH:AH)+SUMIF('13.ТП_СЭФ'!$D:$D, $D44, '13.ТП_СЭФ'!AP:AP)+SUMIF('14.ОВИЗ'!$D:$D, $D44, '14.ОВИЗ'!AQ:AQ)+SUMIF('15.ГРР'!$D:$D, $D44, '15.ГРР'!N:N)+SUMIF('16.НИОКР'!$D:$D, $D44, '16.НИОКР'!N:N)+SUMIF('17.НМА'!$D:$D, $D44, '17.НМА'!O:O)+SUMIF('18.ПКЗ'!$D:$D, $D44, '18.ПКЗ'!O:O)+SUMIF('19.БФИ'!$D:$D, $D44, '19.БФИ'!O:O)) -> 0 | O44: =IF($D44="", 0, SUMIF('7.СМР'!$D:$D, $D44, '7.СМР'!O:O)+SUMIF('8.ОСС'!$D:$D, $D44, '8.ОСС'!AG:AG)+SUMIF('9.ПИР'!$D:$D, $D44, '9.ПИР'!O:O)+SUMIF('10.БКП'!$D:$D, $D44, '10.БКП'!O:O)+SUMIF('11.ПЗС'!$D:$D, $D44, '11.ПЗС'!P:P)+SUMIF('12.ТП_БЭФ'!$D:$D, $D44, '12.ТП_БЭФ'!AI:AI)+SUMIF('13.ТП_СЭФ'!$D:$D, $D44, '13.ТП_СЭФ'!AQ:AQ)+SUMIF('14.ОВИЗ'!$D:$D, $D44, '14.ОВИЗ'!AR:AR)+SUMIF('15.ГРР'!$D:$D, $D44, '15.ГРР'!O:O)+SUMIF('16.НИОКР'!$D:$D, $D44, '16.НИОКР'!O:O)+SUMIF('17.НМА'!$D:$D, $D44, '17.НМА'!P:P)+SUMIF('18.ПКЗ'!$D:$D, $D44, '18.ПКЗ'!P:P)+SUMIF('19.БФИ'!$D:$D, $D44, '19.БФИ'!P:P)) -> 0 | P44: =IF($D44="", 0, SUMIF('7.СМР'!$D:$D, $D44, '7.СМР'!P:P)+SUMIF('8.ОСС'!$D:$D, $D44, '8.ОСС'!AH:AH)+SUMIF('9.ПИР'!$D:$D, $D44, '9.ПИР'!P:P)+SUMIF('10.БКП'!$D:$D, $D44, '10.БКП'!P:P)+SUMIF('11.ПЗС'!$D:$D, $D44, '11.ПЗС'!Q:Q)+SUMIF('12.ТП_БЭФ'!$D:$D, $D44, '12.ТП_БЭФ'!AJ:AJ)+SUMIF('13.ТП_СЭФ'!$D:$D, $D44, '13.ТП_СЭФ'!AR:AR)+SUMIF('14.ОВИЗ'!$D:$D, $D44, '14.ОВИЗ'!AS:AS)+SUMIF('15.ГРР'!$D:$D, $D44, '15.ГРР'!P:P)+SUMIF('16.НИОКР'!$D:$D, $D44, '16.НИОКР'!P:P)+SUMIF('17.НМА'!$D:$D, $D44, '17.НМА'!Q:Q)+SUMIF('18.ПКЗ'!$D:$D, $D44, '18.ПКЗ'!Q:Q)+SUMIF('19.БФИ'!$D:$D, $D44, '19.БФИ'!Q:Q)) -> 0 | Q44: 0 | R44: 0 | S44: 0 | T44: 0 | V44: 0 | W44: 0 | X44: =IF($D44="", 0, SUMIF('7.СМР'!$D:$D, $D44, '7.СМР'!X:X)+SUMIF('8.ОСС'!$D:$D, $D44, '8.ОСС'!AP:AP)+SUMIF('9.ПИР'!$D:$D, $D44, '9.ПИР'!X:X)+SUMIF('10.БКП'!$D:$D, $D44, '10.БКП'!X:X)+SUMIF('11.ПЗС'!$D:$D, $D44, '11.ПЗС'!Y:Y)+SUMIF('12.ТП_БЭФ'!$D:$D, $D44, '12.ТП_БЭФ'!AR:AR)+SUMIF('13.ТП_СЭФ'!$D:$D, $D44, '13.ТП_СЭФ'!AZ:AZ)+SUMIF('14.ОВИЗ'!$D:$D, $D44, '14.ОВИЗ'!BA:BA)+SUMIF('15.ГРР'!$D:$D, $D44, '15.ГРР'!X:X)+SUMIF('16.НИОКР'!$D:$D, $D44, '16.НИОКР'!X:X)+SUMIF('17.НМА'!$D:$D, $D44, '17.НМА'!Y:Y)+SUMIF('18.ПКЗ'!$D:$D, $D44, '18.ПКЗ'!Y:Y)+SUMIF('19.БФИ'!$D:$D, $D44, '19.БФИ'!Y:Y)) -> 0 | Y44: =IF($D44="", 0, SUMIF('7.СМР'!$D:$D, $D44, '7.СМР'!Y:Y)+SUMIF('8.ОСС'!$D:$D, $D44, '8.ОСС'!AQ:AQ)+SUMIF('9.ПИР'!$D:$D, $D44, '9.ПИР'!Y:Y)+SUMIF('10.БКП'!$D:$D, $D44, '10.БКП'!Y:Y)+SUMIF('11.ПЗС'!$D:$D, $D44, '11.ПЗС'!Z:Z)+SUMIF('12.ТП_БЭФ'!$D:$D, $D44, '12.ТП_БЭФ'!AS:AS)+SUMIF('13.ТП_СЭФ'!$D:$D, $D44, '13.ТП_СЭФ'!BA:BA)+SUMIF('14.ОВИЗ'!$D:$D, $D44, '14.ОВИЗ'!BB:BB)+SUMIF('15.ГРР'!$D:$D, $D44, '15.ГРР'!Y:Y)+SUMIF('16.НИОКР'!$D:$D, $D44, '16.НИОКР'!Y:Y)+SUMIF('17.НМА'!$D:$D, $D44, '17.НМА'!Z:Z)+SUMIF('18.ПКЗ'!$D:$D, $D44, '18.ПКЗ'!Z:Z)+SUMIF('19.БФИ'!$D:$D, $D44, '19.БФИ'!Z:Z)) -> 0 | Z44: =IF($D44="", 0, SUMIF('7.СМР'!$D:$D, $D44, '7.СМР'!Z:Z)+SUMIF('8.ОСС'!$D:$D, $D44, '8.ОСС'!AR:AR)+SUMIF('9.ПИР'!$D:$D, $D44, '9.ПИР'!Z:Z)+SUMIF('10.БКП'!$D:$D, $D44, '10.БКП'!Z:Z)+SUMIF('11.ПЗС'!$D:$D, $D44, '11.ПЗС'!AA:AA)+SUMIF('12.ТП_БЭФ'!$D:$D, $D44, '12.ТП_БЭФ'!AT:AT)+SUMIF('13.ТП_СЭФ'!$D:$D, $D44, '13.ТП_СЭФ'!BB:BB)+SUMIF('14.ОВИЗ'!$D:$D, $D44, '14.ОВИЗ'!BC:BC)+SUMIF('15.ГРР'!$D:$D, $D44, '15.ГРР'!Z:Z)+SUMIF('16.НИОКР'!$D:$D, $D44, '16.НИОКР'!Z:Z)+SUMIF('17.НМА'!$D:$D, $D44, '17.НМА'!AA:AA)+SUMIF('18.ПКЗ'!$D:$D, $D44, '18.ПКЗ'!AA:AA)+SUMIF('19.БФИ'!$D:$D, $D44, '19.БФИ'!AA:AA)) -> 0 | AA44: =IF($D44="", 0, SUMIF('7.СМР'!$D:$D, $D44, '7.СМР'!AA:AA)+SUMIF('8.ОСС'!$D:$D, $D44, '8.ОСС'!AS:AS)+SUMIF('9.ПИР'!$D:$D, $D44, '9.ПИР'!AA:AA)+SUMIF('10.БКП'!$D:$D, $D44, '10.БКП'!AA:AA)+SUMIF('11.ПЗС'!$D:$D, $D44, '11.ПЗС'!AB:AB)+SUMIF('12.ТП_БЭФ'!$D:$D, $D44, '12.ТП_БЭФ'!AU:AU)+SUMIF('13.ТП_СЭФ'!$D:$D, $D44, '13.ТП_СЭФ'!BC:BC)+SUMIF('14.ОВИЗ'!$D:$D, $D44, '14.ОВИЗ'!BD:BD)+SUMIF('15.ГРР'!$D:$D, $D44, '15.ГРР'!AA:AA)+SUMIF('16.НИОКР'!$D:$D, $D44, '16.НИОКР'!AA:AA)+SUMIF('17.НМА'!$D:$D, $D44, '17.НМА'!AB:AB)+SUMIF('18.ПКЗ'!$D:$D, $D44, '18.ПКЗ'!AB:AB)+SUMIF('19.БФИ'!$D:$D, $D44, '19.БФИ'!AB:AB)) -> 0 | AB44: =IF($D44="", 0, SUMIF('7.СМР'!$D:$D, $D44, '7.СМР'!AB:AB)+SUMIF('8.ОСС'!$D:$D, $D44, '8.ОСС'!AT:AT)+SUMIF('9.ПИР'!$D:$D, $D44, '9.ПИР'!AB:AB)+SUMIF('10.БКП'!$D:$D, $D44, '10.БКП'!AB:AB)+SUMIF('11.ПЗС'!$D:$D, $D44, '11.ПЗС'!AC:AC)+SUMIF('12.ТП_БЭФ'!$D:$D, $D44, '12.ТП_БЭФ'!AV:AV)+SUMIF('13.ТП_СЭФ'!$D:$D, $D44, '13.ТП_СЭФ'!BD:BD)+SUMIF('14.ОВИЗ'!$D:$D, $D44, '14.ОВИЗ'!BE:BE)+SUMIF('15.ГРР'!$D:$D, $D44, '15.ГРР'!AB:AB)+SUMIF('16.НИОКР'!$D:$D, $D44, '16.НИОКР'!AB:AB)+SUMIF('17.НМА'!$D:$D, $D44, '17.НМА'!AC:AC)+SUMIF('18.ПКЗ'!$D:$D, $D44, '18.ПКЗ'!AC:AC)+SUMIF('19.БФИ'!$D:$D, $D44, '19.БФИ'!AC:AC)) -> 0 | AC44: =IF($D44="", 0, SUMIF('7.СМР'!$D:$D, $D44, '7.СМР'!AC:AC)+SUMIF('8.ОСС'!$D:$D, $D44, '8.ОСС'!AU:AU)+SUMIF('9.ПИР'!$D:$D, $D44, '9.ПИР'!AC:AC)+SUMIF('10.БКП'!$D:$D, $D44, '10.БКП'!AC:AC)+SUMIF('11.ПЗС'!$D:$D, $D44, '11.ПЗС'!AD:AD)+SUMIF('12.ТП_БЭФ'!$D:$D, $D44, '12.ТП_БЭФ'!AW:AW)+SUMIF('13.ТП_СЭФ'!$D:$D, $D44, '13.ТП_СЭФ'!BE:BE)+SUMIF('14.ОВИЗ'!$D:$D, $D44, '14.ОВИЗ'!BF:BF)+SUMIF('15.ГРР'!$D:$D, $D44, '15.ГРР'!AC:AC)+SUMIF('16.НИОКР'!$D:$D, $D44, '16.НИОКР'!AC:AC)+SUMIF('17.НМА'!$D:$D, $D44, '17.НМА'!AD:AD)+SUMIF('18.ПКЗ'!$D:$D, $D44, '18.ПКЗ'!AD:AD)+SUMIF('19.БФИ'!$D:$D, $D44, '19.БФИ'!AD:AD)) -> 0 | AD44: =IF($D44="", 0, SUMIF('7.СМР'!$D:$D, $D44, '7.СМР'!AD:AD)+SUMIF('8.ОСС'!$D:$D, $D44, '8.ОСС'!AV:AV)+SUMIF('9.ПИР'!$D:$D, $D44, '9.ПИР'!AD:AD)+SUMIF('10.БКП'!$D:$D, $D44, '10.БКП'!AD:AD)+SUMIF('11.ПЗС'!$D:$D, $D44, '11.ПЗС'!AE:AE)+SUMIF('12.ТП_БЭФ'!$D:$D, $D44, '12.ТП_БЭФ'!AX:AX)+SUMIF('13.ТП_СЭФ'!$D:$D, $D44, '13.ТП_СЭФ'!BF:BF)+SUMIF('14.ОВИЗ'!$D:$D, $D44, '14.ОВИЗ'!BG:BG)+SUMIF('15.ГРР'!$D:$D, $D44, '15.ГРР'!AD:AD)+SUMIF('16.НИОКР'!$D:$D, $D44, '16.НИОКР'!AD:AD)+SUMIF('17.НМА'!$D:$D, $D44, '17.НМА'!AE:AE)+SUMIF('18.ПКЗ'!$D:$D, $D44, '18.ПКЗ'!AE:AE)+SUMIF('19.БФИ'!$D:$D, $D44, '19.БФИ'!AE:AE)) -> 0 | AE44: =IF($D44="", 0, SUMIF('7.СМР'!$D:$D, $D44, '7.СМР'!AE:AE)+SUMIF('8.ОСС'!$D:$D, $D44, '8.ОСС'!AW:AW)+SUMIF('9.ПИР'!$D:$D, $D44, '9.ПИР'!AE:AE)+SUMIF('10.БКП'!$D:$D, $D44, '10.БКП'!AE:AE)+SUMIF('11.ПЗС'!$D:$D, $D44, '11.ПЗС'!AF:AF)+SUMIF('12.ТП_БЭФ'!$D:$D, $D44, '12.ТП_БЭФ'!AY:AY)+SUMIF('13.ТП_СЭФ'!$D:$D, $D44, '13.ТП_СЭФ'!BG:BG)+SUMIF('14.ОВИЗ'!$D:$D, $D44, '14.ОВИЗ'!BH:BH)+SUMIF('15.ГРР'!$D:$D, $D44, '15.ГРР'!AE:AE)+SUMIF('16.НИОКР'!$D:$D, $D44, '16.НИОКР'!AE:AE)+SUMIF('17.НМА'!$D:$D, $D44, '17.НМА'!AF:AF)+SUMIF('18.ПКЗ'!$D:$D, $D44, '18.ПКЗ'!AF:AF)+SUMIF('19.БФИ'!$D:$D, $D44, '19.БФИ'!AF:AF)) -> 0 | AG44: 0
AG45: 0
E46: Сверка | G46: =SUM(ABS(G17-G18-G19),ABS(G19-SUM(G20:G27)),ABS(G19-SUM(G28:G45))) -> 0 | H46: 0 | I46: 0 | J46: 0 | K46: 0 | L46: 0 | M46: 0 | N46: 0 | O46: 0 | P46: 0 | Q46: =SUM(ABS(Q17-Q18-Q19),ABS(Q19-SUM(Q20:Q27)),ABS(Q19-SUM(Q28:Q45))) -> 0 | R46: 0 | S46: 0 | U46: =SUM(ABS(U17-U18-U19),ABS(U19-SUM(U20:U27)),ABS(U19-SUM(U28:U45))) -> 0 | V46: 0 | X46: 0 | Y46: 0 | Z46: 0 | AA46: 0 | AB46: 0 | AC46: 0 | AD46: 0 | AE46: 0 | AF46: 0
B47: 1 Форма заполняется по освоениию (начислению). Подробнее -порядок заполнения формы определён в "Положении об инвестиционном бюджете АК "АЛРОСА" .
B48: 2 В графе "Отклонение" производится сравнение факта с плановым периодом нарастающим итогом.
B49: 3 При отклонении более 10% (не зависимо +/-) в графе "Комментарии по отклонениям"- в форме указывается причина отклонения. Подробно - причины отклонений указываются в Пояснительной записке к инвестиционному бюджету/отчёту
E53: Прудниченкова Софья Юрьевна
E54: Исполнитель (ФИО):
E56: начальник ОКС
E57: Должность:
E59: 8(41136)79464
E60: Контактный телефон:
E62: oks@shpp.ru
E63: Электронный адрес:

Sheet 3.БКС
B1: Назад к оглавлению | P1: base_fact | Q1: base_fact | R1: base_fact | S1: base_fact | T1: base_fact | U1: fact_fields | V1: fact_fields | W1: fact_fields | X1: fact_fields | Y1: fact_fields | Z1: corr_fields | AA1: corr_fields | AB1: corr_fields | AC1: corr_fields | AD1: corr_fields | AE1: corr_fields | AF1: corr_fields | AG1: corr_fields | AH1: corr_fields | AI1: corr_fields | AJ1: corr_fields | AK1: plan_fields | AL1: plan_fields | AM1: plan_fields | AN1: plan_fields | AO1: plan_fields | AP1: plan_fields | AQ1: plan_fields
B3: Приложение № 2 к "Положению об инвестиционном бюджете АК "АЛРОСА""
B4: Код формы: БКС
C6: =org -> АО "Вилюйская ГЭС-3"
C7: Организационно-правовая форма и название Общества/структурного подразделения
C8: =period_txt -> 12 месяцев 2017
C9: Плановый / отчётный период
C10: Бюджет капитального строительства
B11: Тыс. руб. без НДС 1
B12: № | C12: Общество / cтруктурное подразделение | D12: Строительная площадка | E12: Код проекта2 | F12: Краткое название прооекта | G12: Вид КС по направлению деятельности | H12: Приоритет (объекта) | I12: Код объекта | J12: Наименование | K12: Плановый / отчётный период | U12: ПЛАН за | V12: ФАКТ за | W12: Отклонение за период3 | Y12: Комментарии по отклонениям4 | Z12: Изменения к утверждённому плану по году | AE12: Скорректированный план | AJ12: Комментарии по изменениям плана | AK12: Общая стоимость работ | AN12: Сроки работ (мес. год) | AP12: Основание для начала строительства | AQ12: Примечание | AR12: Сверка
K13: ПЛАН | L13: в т.ч. по кварталам: | P13: ФАКТ | Q13: в т.ч. по кварталам: | U13: =period -> 12 месяцев | V13: =U13 -> 12 месяцев | W13: 12 месяцев | AE13: ПЛАН | AF13: в т.ч. по кварталам:
K14: Год всего | L14: 1 кв. | M14: 2 кв. | N14: 3 кв. | O14: 4 кв. | P14: Год всего | Q14: 1 кв. | R14: 2 кв. | S14: 3 кв. | T14: 4 кв. | U14: Тыс. руб. | V14: Тыс. руб. | W14: Тыс. руб. | X14: % | Z14: Изменение всего | AB14: В т.ч. | AE14: Год всего | AF14: 1 кв. | AG14: 2 кв. | AH14: 3 кв. | AI14: 4 кв. | AK14: Общая плановая (сметная) стоимость | AL14: Освоено на начало планового периода | AM14: Остаток к освоению на конец планового периода (ПЛАН) | AN14: Начало | AO14: Ожидаемое окончание
Z15: Тыс. руб. | AA15: % | AB15: Вновь добавлено (указывается со знаком "+") | AC15: Исключено (указывается со знаком "-") | AD15: Изменение стоимости (удорожание "+", удешвление "-")
B16: 1 | C16: =B16+1 -> 2 | D16: 3 | E16: 4 | F16: 5 | G16: 6 | H16: 7 | I16: 8 | J16: 9 | K16: 10 | L16: 11 | M16: 12 | N16: 13 | O16: 14 | P16: 15 | Q16: 16 | R16: 17 | S16: 18 | T16: 19 | U16: 20 | V16: 21 | W16: 22 | X16: 23 | Y16: 24 | Z16: 25 | AA16: 26 | AB16: 27 | AC16: 28 | AD16: 29 | AE16: 30 | AF16: 31 | AG16: 32 | AH16: 33 | AI16: 34 | AJ16: 35 | AK16: 36 | AL16: 37 | AM16: 38 | AN16: 39 | AO16: 40 | AP16: 41 | AQ16: 42
D17: КАПИТАЛЬНОЕ СТРОИТЕЛЬСТВО (всего) | K17: =SUM(K18:K68) -> 253224.191 | L17: =SUM(L18:L68) -> 3417.25 | M17: 6647.041 | N17: 158077.05 | O17: 85082.85 | P17: 170440.898 | Q17: 3417.23 | R17: 6647.93503 | S17: 62039.358 | T17: 98336.375 | U17: =IF(period=period_1Q, L17, IF(period=period_1H, SUM(L17:M17), IF(period=period_9M, SUM(L17:N17), IF(period=period_1Y,SUM(L17:O17),0)))) -> 253224.191 | V17: =IF(period=period_1Q, Q17, IF(period=period_1H, SUM(Q17:R17), IF(period=period_9M, SUM(Q17:S17), IF(period=period_1Y,SUM(Q17:T17),0)))) -> 170440.898 | W17: =V17-U17 -> -82783.29297 | X17: =IFERROR(W17/U17, 0) -> -0.3269170005 | Z17: =SUM(AB17:AD17) -> 31.7614 | AA17: =IFERROR(Z17/K17, 0) -> 0.0001254279849 | AB17: =SUM(AB18:AB68) -> 0 | AC17: 0 | AD17: 31.7614 | AE17: =SUM(AE18:AE68) -> 253255.9524 | AF17: 3417.23 | AG17: =SUM(AG18:AG68) -> 6647.265 | AH17: 158077.4386 | AI17: 85114.0188 | AK17: =SUM(AK18:AK1045) -> 546849.992 | AL17: 45999 | AM17: =AK17-(AL17+K17) -> 247626.801 | AR17: =SUM(ABS(K17-SUM(L17:O17)), ABS(P17-SUM(Q17:T17)), ABS(Z17-SUM(AB17:AD17)), ABS(AE17-SUM(AF17:AI17))) -> 2.910383046e-11
C18: =IF(I18="", "", VLOOKUP(I18,objects, 3, 0)) -> АО "Вилюйская ГЭС-3" | D18: =IF(I18="", "", VLOOKUP(I18,objects, 7, 0)) -> Прочее | E18: =IF(I18="", "", VLOOKUP(I18,objects, 4, 0)) -> 0 | F18: =IF(I18="", "", VLOOKUP(I18,objects, 5, 0)) ->  | G18: =IF(I18="", "", VLOOKUP(I18,objects, 6, 0)) -> Прочая основная деятельность | H18: =IF(I18="", "", VLOOKUP(I18,objects, 8, 0)) -> Высокий | I18: =IF(ISBLANK('05.РКС'!B19), "", '05.РКС'!B19) -> 2016-1.1. | J18: =IF(I18="", "", VLOOKUP(I18,objects, 2, 0)) -> Здание ГЭС.Монтаж вентсистем | K18: =IF($I18="", 0, SUMIF('7.СМР'!$E:$E, $I18, '7.СМР'!G:G)+SUMIF('8.ОСС'!$E:$E, $I18, '8.ОСС'!Y:Y)+SUMIF('9.ПИР'!$E:$E, $I18, '9.ПИР'!G:G)+SUMIF('10.БКП'!$E:$E, $I18, '10.БКП'!G:G)+SUMIF('11.ПЗС'!$E:$E, $I18, '11.ПЗС'!H:H)) -> 3359 | L18: =IF($I18="", 0, SUMIF('7.СМР'!$E:$E, $I18, '7.СМР'!H:H)+SUMIF('8.ОСС'!$E:$E, $I18, '8.ОСС'!Z:Z)+SUMIF('9.ПИР'!$E:$E, $I18, '9.ПИР'!H:H)+SUMIF('10.БКП'!$E:$E, $I18, '10.БКП'!H:H)+SUMIF('11.ПЗС'!$E:$E, $I18, '11.ПЗС'!I:I)) -> 0 | M18: =IF($I18="", 0, SUMIF('7.СМР'!$E:$E, $I18, '7.СМР'!I:I)+SUMIF('8.ОСС'!$E:$E, $I18, '8.ОСС'!AA:AA)+SUMIF('9.ПИР'!$E:$E, $I18, '9.ПИР'!I:I)+SUMIF('10.БКП'!$E:$E, $I18, '10.БКП'!I:I)+SUMIF('11.ПЗС'!$E:$E, $I18, '11.ПЗС'!J:J)) -> 604 | N18: =IF($I18="", 0, SUMIF('7.СМР'!$E:$E, $I18, '7.СМР'!J:J)+SUMIF('8.ОСС'!$E:$E, $I18, '8.ОСС'!AB:AB)+SUMIF('9.ПИР'!$E:$E, $I18, '9.ПИР'!J:J)+SUMIF('10.БКП'!$E:$E, $I18, '10.БКП'!J:J)+SUMIF('11.ПЗС'!$E:$E, $I18, '11.ПЗС'!K:K)) -> 1901 | O18: =IF($I18="", 0, SUMIF('7.СМР'!$E:$E, $I18, '7.СМР'!K:K)+SUMIF('8.ОСС'!$E:$E, $I18, '8.ОСС'!AC:AC)+SUMIF('9.ПИР'!$E:$E, $I18, '9.ПИР'!K:K)+SUMIF('10.БКП'!$E:$E, $I18, '10.БКП'!K:K)+SUMIF('11.ПЗС'!$E:$E, $I18, '11.ПЗС'!L:L)) -> 854 | P18: =IF($I18="", 0, SUMIF('7.СМР'!$E:$E, $I18, '7.СМР'!L:L)+SUMIF('8.ОСС'!$E:$E, $I18, '8.ОСС'!AD:AD)+SUMIF('9.ПИР'!$E:$E, $I18, '9.ПИР'!L:L)+SUMIF('10.БКП'!$E:$E, $I18, '10.БКП'!L:L)+SUMIF('11.ПЗС'!$E:$E, $I18, '11.ПЗС'!M:M)) -> 3082.257 | Q18: =IF($I18="", 0, SUMIF('7.СМР'!$E:$E, $I18, '7.СМР'!M:M)+SUMIF('8.ОСС'!$E:$E, $I18, '8.ОСС'!AE:AE)+SUMIF('9.ПИР'!$E:$E, $I18, '9.ПИР'!M:M)+SUMIF('10.БКП'!$E:$E, $I18, '10.БКП'!M:M)+SUMIF('11.ПЗС'!$E:$E, $I18, '11.ПЗС'!N:N)) -> 0 | R18: =IF($I18="", 0, SUMIF('7.СМР'!$E:$E, $I18, '7.СМР'!N:N)+SUMIF('8.ОСС'!$E:$E, $I18, '8.ОСС'!AF:AF)+SUMIF('9.ПИР'!$E:$E, $I18, '9.ПИР'!N:N)+SUMIF('10.БКП'!$E:$E, $I18, '10.БКП'!N:N)+SUMIF('11.ПЗС'!$E:$E, $I18, '11.ПЗС'!O:O)) -> 604.435 | S18: =IF($I18="", 0, SUMIF('7.СМР'!$E:$E, $I18, '7.СМР'!O:O)+SUMIF('8.ОСС'!$E:$E, $I18, '8.ОСС'!AG:AG)+SUMIF('9.ПИР'!$E:$E, $I18, '9.ПИР'!O:O)+SUMIF('10.БКП'!$E:$E, $I18, '10.БКП'!O:O)+SUMIF('11.ПЗС'!$E:$E, $I18, '11.ПЗС'!P:P)) -> 1184.964 | T18: =IF($I18="", 0, SUMIF('7.СМР'!$E:$E, $I18, '7.СМР'!P:P)+SUMIF('8.ОСС'!$E:$E, $I18, '8.ОСС'!AH:AH)+SUMIF('9.ПИР'!$E:$E, $I18, '9.ПИР'!P:P)+SUMIF('10.БКП'!$E:$E, $I18, '10.БКП'!P:P)+SUMIF('11.ПЗС'!$E:$E, $I18, '11.ПЗС'!Q:Q)) -> 1292.858 | U18: 3359 | V18: 3082.257 | W18: -276.743 | X18: -0.08238850848 | Z18: 0.8084 | AA18: 0.0002406668651 | AB18: =IF($I18="", 0, SUMIF('7.СМР'!$E:$E, $I18, '7.СМР'!X:X)+SUMIF('8.ОСС'!$E:$E, $I18, '8.ОСС'!AP:AP)+SUMIF('9.ПИР'!$E:$E, $I18, '9.ПИР'!X:X)+SUMIF('10.БКП'!$E:$E, $I18, '10.БКП'!X:X)+SUMIF('11.ПЗС'!$E:$E, $I18, '11.ПЗС'!Y:Y)) -> 0 | AC18: =IF($I18="", 0, SUMIF('7.СМР'!$E:$E, $I18, '7.СМР'!Y:Y)+SUMIF('8.ОСС'!$E:$E, $I18, '8.ОСС'!AQ:AQ)+SUMIF('9.ПИР'!$E:$E, $I18, '9.ПИР'!Y:Y)+SUMIF('10.БКП'!$E:$E, $I18, '10.БКП'!Y:Y)+SUMIF('11.ПЗС'!$E:$E, $I18, '11.ПЗС'!Z:Z)) -> 0 | AD18: =IF($I18="", 0, SUMIF('7.СМР'!$E:$E, $I18, '7.СМР'!Z:Z)+SUMIF('8.ОСС'!$E:$E, $I18, '8.ОСС'!AR:AR)+SUMIF('9.ПИР'!$E:$E, $I18, '9.ПИР'!Z:Z)+SUMIF('10.БКП'!$E:$E, $I18, '10.БКП'!Z:Z)+SUMIF('11.ПЗС'!$E:$E, $I18, '11.ПЗС'!AA:AA)) -> 0.8084 | AE18: =IF($I18="", 0, SUMIF('7.СМР'!$E:$E, $I18, '7.СМР'!AA:AA)+SUMIF('8.ОСС'!$E:$E, $I18, '8.ОСС'!AS:AS)+SUMIF('9.ПИР'!$E:$E, $I18, '9.ПИР'!AA:AA)+SUMIF('10.БКП'!$E:$E, $I18, '10.БКП'!AA:AA)+SUMIF('11.ПЗС'!$E:$E, $I18, '11.ПЗС'!AB:AB)) -> 3359.8084 | AF18: =IF($I18="", 0, SUMIF('7.СМР'!$E:$E, $I18, '7.СМР'!AB:AB)+SUMIF('8.ОСС'!$E:$E, $I18, '8.ОСС'!AT:AT)+SUMIF('9.ПИР'!$E:$E, $I18, '9.ПИР'!AB:AB)+SUMIF('10.БКП'!$E:$E, $I18, '10.БКП'!AB:AB)+SUMIF('11.ПЗС'!$E:$E, $I18, '11.ПЗС'!AC:AC)) -> 0 | AG18: =IF($I18="", 0, SUMIF('7.СМР'!$E:$E, $I18, '7.СМР'!AC:AC)+SUMIF('8.ОСС'!$E:$E, $I18, '8.ОСС'!AU:AU)+SUMIF('9.ПИР'!$E:$E, $I18, '9.ПИР'!AC:AC)+SUMIF('10.БКП'!$E:$E, $I18, '10.БКП'!AC:AC)+SUMIF('11.ПЗС'!$E:$E, $I18, '11.ПЗС'!AD:AD)) -> 604.435 | AH18: =IF($I18="", 0, SUMIF('7.СМР'!$E:$E, $I18, '7.СМР'!AD:AD)+SUMIF('8.ОСС'!$E:$E, $I18, '8.ОСС'!AV:AV)+SUMIF('9.ПИР'!$E:$E, $I18, '9.ПИР'!AD:AD)+SUMIF('10.БКП'!$E:$E, $I18, '10.БКП'!AD:AD)+SUMIF('11.ПЗС'!$E:$E, $I18, '11.ПЗС'!AE:AE)) -> 1900.9746 | AI18: =IF($I18="", 0, SUMIF('7.СМР'!$E:$E, $I18, '7.СМР'!AE:AE)+SUMIF('8.ОСС'!$E:$E, $I18, '8.ОСС'!AW:AW)+SUMIF('9.ПИР'!$E:$E, $I18, '9.ПИР'!AE:AE)+SUMIF('10.БКП'!$E:$E, $I18, '10.БКП'!AE:AE)+SUMIF('11.ПЗС'!$E:$E, $I18, '11.ПЗС'!AF:AF)) -> 854.3988 | AK18: =IF($I18="", "", VLOOKUP($I18,objects, 9, 0)) -> 4723 | AL18: =IF($I18="", "", VLOOKUP($I18,objects, 10, 0)) -> 0 | AM18: =IF($I18="","",AK18-(AL18+K18)) -> 1364 | AN18: =IF($I18="", "", VLOOKUP($I18,objects, '05.РКС'!L$18-'05.РКС'!$B$18+1, 0)) -> 2017-01-01 | AO18: =IF($I18="", "", VLOOKUP($I18,objects, '05.РКС'!M$18-'05.РКС'!$B$18+1, 0)) -> 2017-12-01 | AP18: =IF($I18="", "", VLOOKUP($I18,objects, '05.РКС'!N$18-'05.РКС'!$B$18+1, 0)) -> Приказ Министерства энергетики и электрификации СССР № 51пс от 19.04.1978 г. об утверждении ТЭО строительства Вилюйской ГЭС-3 на р.Вилюй; Разрешение на строительство № 8-5 от 15.06.2005 г., выданное УиАГ МО "Мирнинский район" | AQ18: =IF($I18="", "", VLOOKUP($I18,objects, '05.РКС'!P$18-'05.РКС'!$B$18+1, 0)) -> 0 | AR18: 0
C19: =IF(I19="", "", VLOOKUP(I19,objects, 3, 0)) -> АО "Вилюйская ГЭС-3" | D19: =IF(I19="", "", VLOOKUP(I19,objects, 7, 0)) -> Прочее | E19: =IF(I19="", "", VLOOKUP(I19,objects, 4, 0)) -> 0 | F19: =IF(I19="", "", VLOOKUP(I19,objects, 5, 0)) ->  | G19: =IF(I19="", "", VLOOKUP(I19,objects, 6, 0)) -> Прочая основная деятельность | H19: =IF(I19="", "", VLOOKUP(I19,objects, 8, 0)) -> Высокий | I19: =IF(ISBLANK('05.РКС'!B20), "", '05.РКС'!B20) -> 2016-1.2. | J19: =IF(I19="", "", VLOOKUP(I19,objects, 2, 0)) -> Здание ГЭС. Общестроительные работы | K19: =IF($I19="", 0, SUMIF('7.СМР'!$E:$E, $I19, '7.СМР'!G:G)+SUMIF('8.ОСС'!$E:$E, $I19, '8.ОСС'!Y:Y)+SUMIF('9.ПИР'!$E:$E, $I19, '9.ПИР'!G:G)+SUMIF('10.БКП'!$E:$E, $I19, '10.БКП'!G:G)+SUMIF('11.ПЗС'!$E:$E, $I19, '11.ПЗС'!H:H)) -> 0 | L19: =IF($I19="", 0, SUMIF('7.СМР'!$E:$E, $I19, '7.СМР'!H:H)+SUMIF('8.ОСС'!$E:$E, $I19, '8.ОСС'!Z:Z)+SUMIF('9.ПИР'!$E:$E, $I19, '9.ПИР'!H:H)+SUMIF('10.БКП'!$E:$E, $I19, '10.БКП'!H:H)+SUMIF('11.ПЗС'!$E:$E, $I19, '11.ПЗС'!I:I)) -> 0 | M19: =IF($I19="", 0, SUMIF('7.СМР'!$E:$E, $I19, '7.СМР'!I:I)+SUMIF('8.ОСС'!$E:$E, $I19, '8.ОСС'!AA:AA)+SUMIF('9.ПИР'!$E:$E, $I19, '9.ПИР'!I:I)+SUMIF('10.БКП'!$E:$E, $I19, '10.БКП'!I:I)+SUMIF('11.ПЗС'!$E:$E, $I19, '11.ПЗС'!J:J)) -> 0 | N19: =IF($I19="", 0, SUMIF('7.СМР'!$E:$E, $I19, '7.СМР'!J:J)+SUMIF('8.ОСС'!$E:$E, $I19, '8.ОСС'!AB:AB)+SUMIF('9.ПИР'!$E:$E, $I19, '9.ПИР'!J:J)+SUMIF('10.БКП'!$E:$E, $I19, '10.БКП'!J:J)+SUMIF('11.ПЗС'!$E:$E, $I19, '11.ПЗС'!K:K)) -> 0 | O19: =IF($I19="", 0, SUMIF('7.СМР'!$E:$E, $I19, '7.СМР'!K:K)+SUMIF('8.ОСС'!$E:$E, $I19, '8.ОСС'!AC:AC)+SUMIF('9.ПИР'!$E:$E, $I19, '9.ПИР'!K:K)+SUMIF('10.БКП'!$E:$E, $I19, '10.БКП'!K:K)+SUMIF('11.ПЗС'!$E:$E, $I19, '11.ПЗС'!L:L)) -> 0 | P19: =IF($I19="", 0, SUMIF('7.СМР'!$E:$E, $I19, '7.СМР'!L:L)+SUMIF('8.ОСС'!$E:$E, $I19, '8.ОСС'!AD:AD)+SUMIF('9.ПИР'!$E:$E, $I19, '9.ПИР'!L:L)+SUMIF('10.БКП'!$E:$E, $I19, '10.БКП'!L:L)+SUMIF('11.ПЗС'!$E:$E, $I19, '11.ПЗС'!M:M)) -> 0 | Q19: =IF($I19="", 0, SUMIF('7.СМР'!$E:$E, $I19, '7.СМР'!M:M)+SUMIF('8.ОСС'!$E:$E, $I19, '8.ОСС'!AE:AE)+SUMIF('9.ПИР'!$E:$E, $I19, '9.ПИР'!M:M)+SUMIF('10.БКП'!$E:$E, $I19, '10.БКП'!M:M)+SUMIF('11.ПЗС'!$E:$E, $I19, '11.ПЗС'!N:N)) -> 0 | R19: =IF($I19="", 0, SUMIF('7.СМР'!$E:$E, $I19, '7.СМР'!N:N)+SUMIF('8.ОСС'!$E:$E, $I19, '8.ОСС'!AF:AF)+SUMIF('9.ПИР'!$E:$E, $I19, '9.ПИР'!N:N)+SUMIF('10.БКП'!$E:$E, $I19, '10.БКП'!N:N)+SUMIF('11.ПЗС'!$E:$E, $I19, '11.ПЗС'!O:O)) -> 0 | S19: =IF($I19="", 0, SUMIF('7.СМР'!$E:$E, $I19, '7.СМР'!O:O)+SUMIF('8.ОСС'!$E:$E, $I19, '8.ОСС'!AG:AG)+SUMIF('9.ПИР'!$E:$E, $I19, '9.ПИР'!O:O)+SUMIF('10.БКП'!$E:$E, $I19, '10.БКП'!O:O)+SUMIF('11.ПЗС'!$E:$E, $I19, '11.ПЗС'!P:P)) -> 0 | T19: =IF($I19="", 0, SUMIF('7.СМР'!$E:$E, $I19, '7.СМР'!P:P)+SUMIF('8.ОСС'!$E:$E, $I19, '8.ОСС'!AH:AH)+SUMIF('9.ПИР'!$E:$E, $I19, '9.ПИР'!P:P)+SUMIF('10.БКП'!$E:$E, $I19, '10.БКП'!P:P)+SUMIF('11.ПЗС'!$E:$E, $I19, '11.ПЗС'!Q:Q)) -> 0 | U19: =IF(period=period_1Q, L19, IF(period=period_1H, SUM(L19:M19), IF(period=period_9M, SUM(L19:N19), IF(period=period_1Y,SUM(L19:O19),0)))) -> 0 | V19: =IF(period=period_1Q, Q19, IF(period=period_1H, SUM(Q19:R19), IF(period=period_9M, SUM(Q19:S19), IF(period=period_1Y,SUM(Q19:T19),0)))) -> 0 | W19: =V19-U19 -> 0 | X19: =IFERROR(W19/U19, 0) -> 0 | Z19: =SUM(AB19:AD19) -> 0 | AA19: =IFERROR(Z19/K19, 0) -> 0 | AB19: =IF($I19="", 0, SUMIF('7.СМР'!$E:$E, $I19, '7.СМР'!X:X)+SUMIF('8.ОСС'!$E:$E, $I19, '8.ОСС'!AP:AP)+SUMIF('9.ПИР'!$E:$E, $I19, '9.ПИР'!X:X)+SUMIF('10.БКП'!$E:$E, $I19, '10.БКП'!X:X)+SUMIF('11.ПЗС'!$E:$E, $I19, '11.ПЗС'!Y:Y)) -> 0 | AC19: =IF($I19="", 0, SUMIF('7.СМР'!$E:$E, $I19, '7.СМР'!Y:Y)+SUMIF('8.ОСС'!$E:$E, $I19, '8.ОСС'!AQ:AQ)+SUMIF('9.ПИР'!$E:$E, $I19, '9.ПИР'!Y:Y)+SUMIF('10.БКП'!$E:$E, $I19, '10.БКП'!Y:Y)+SUMIF('11.ПЗС'!$E:$E, $I19, '11.ПЗС'!Z:Z)) -> 0 | AD19: =IF($I19="", 0, SUMIF('7.СМР'!$E:$E, $I19, '7.СМР'!Z:Z)+SUMIF('8.ОСС'!$E:$E, $I19, '8.ОСС'!AR:AR)+SUMIF('9.ПИР'!$E:$E, $I19, '9.ПИР'!Z:Z)+SUMIF('10.БКП'!$E:$E, $I19, '10.БКП'!Z:Z)+SUMIF('11.ПЗС'!$E:$E, $I19, '11.ПЗС'!AA:AA)) -> 0 | AE19: =IF($I19="", 0, SUMIF('7.СМР'!$E:$E, $I19, '7.СМР'!AA:AA)+SUMIF('8.ОСС'!$E:$E, $I19, '8.ОСС'!AS:AS)+SUMIF('9.ПИР'!$E:$E, $I19, '9.ПИР'!AA:AA)+SUMIF('10.БКП'!$E:$E, $I19, '10.БКП'!AA:AA)+SUMIF('11.ПЗС'!$E:$E, $I19, '11.ПЗС'!AB:AB)) -> 0 | AF19: =IF($I19="", 0, SUMIF('7.СМР'!$E:$E, $I19, '7.СМР'!AB:AB)+SUMIF('8.ОСС'!$E:$E, $I19, '8.ОСС'!AT:AT)+SUMIF('9.ПИР'!$E:$E, $I19, '9.ПИР'!AB:AB)+SUMIF('10.БКП'!$E:$E, $I19, '10.БКП'!AB:AB)+SUMIF('11.ПЗС'!$E:$E, $I19, '11.ПЗС'!AC:AC)) -> 0 | AG19: =IF($I19="", 0, SUMIF('7.СМР'!$E:$E, $I19, '7.СМР'!AC:AC)+SUMIF('8.ОСС'!$E:$E, $I19, '8.ОСС'!AU:AU)+SUMIF('9.ПИР'!$E:$E, $I19, '9.ПИР'!AC:AC)+SUMIF('10.БКП'!$E:$E, $I19, '10.БКП'!AC:AC)+SUMIF('11.ПЗС'!$E:$E, $I19, '11.ПЗС'!AD:AD)) -> 0 | AH19: =IF($I19="", 0, SUMIF('7.СМР'!$E:$E, $I19, '7.СМР'!AD:AD)+SUMIF('8.ОСС'!$E:$E, $I19, '8.ОСС'!AV:AV)+SUMIF('9.ПИР'!$E:$E, $I19, '9.ПИР'!AD:AD)+SUMIF('10.БКП'!$E:$E, $I19, '10.БКП'!AD:AD)+SUMIF('11.ПЗС'!$E:$E, $I19, '11.ПЗС'!AE:AE)) -> 0 | AI19: =IF($I19="", 0, SUMIF('7.СМР'!$E:$E, $I19, '7.СМР'!AE:AE)+SUMIF('8.ОСС'!$E:$E, $I19, '8.ОСС'!AW:AW)+SUMIF('9.ПИР'!$E:$E, $I19, '9.ПИР'!AE:AE)+SUMIF('10.БКП'!$E:$E, $I19, '10.БКП'!AE:AE)+SUMIF('11.ПЗС'!$E:$E, $I19, '11.ПЗС'!AF:AF)) -> 0 | AK19: 1000 | AL19: 0 | AM19: =IF($I19="","",AK19-(AL19+K19)) -> 1000 | AN19: =IF($I19="", "", VLOOKUP($I19,objects, '05.РКС'!L$18-'05.РКС'!$B$18+1, 0)) -> 2017-01-01 | AO19: =IF($I19="", "", VLOOKUP($I19,objects, '05.РКС'!M$18-'05.РКС'!$B$18+1, 0)) -> 2017-12-01 | AP19: =IF($I19="", "", VLOOKUP($I19,objects, '05.РКС'!N$18-'05.РКС'!$B$18+1, 0)) -> Приказ Министерства энергетики и электрификации СССР № 51пс от 19.04.1978 г. об утверждении ТЭО строительства Вилюйской ГЭС-3 на р.Вилюй; Разрешение на строительство № 8-5 от 15.06.2005 г., выданное УиАГ МО "Мирнинский район" | AQ19: =IF($I19="", "", VLOOKUP($I19,objects, '05.РКС'!P$18-'05.РКС'!$B$18+1, 0)) -> 0 | AR19: =SUM(ABS(K19-SUM(L19:O19)), ABS(P19-SUM(Q19:T19)), ABS(Z19-SUM(AB19:AD19)), ABS(AE19-SUM(AF19:AI19))) -> 0
C20: АО "Вилюйская ГЭС-3" | D20: Прочее | E20: 0 | G20: Прочая основная деятельность | H20: Высокий | I20: =IF(ISBLANK('05.РКС'!B21), "", '05.РКС'!B21) -> 2016-1.3. | J20: Здание ГЭС.Оснащение ответственных напорных гидротехнических сооружений автоматизированными системами диагностического контроля (АСДК), | K20: =IF($I20="", 0, SUMIF('7.СМР'!$E:$E, $I20, '7.СМР'!G:G)+SUMIF('8.ОСС'!$E:$E, $I20, '8.ОСС'!Y:Y)+SUMIF('9.ПИР'!$E:$E, $I20, '9.ПИР'!G:G)+SUMIF('10.БКП'!$E:$E, $I20, '10.БКП'!G:G)+SUMIF('11.ПЗС'!$E:$E, $I20, '11.ПЗС'!H:H)) -> 13867 | L20: =IF($I20="", 0, SUMIF('7.СМР'!$E:$E, $I20, '7.СМР'!H:H)+SUMIF('8.ОСС'!$E:$E, $I20, '8.ОСС'!Z:Z)+SUMIF('9.ПИР'!$E:$E, $I20, '9.ПИР'!H:H)+SUMIF('10.БКП'!$E:$E, $I20, '10.БКП'!H:H)+SUMIF('11.ПЗС'!$E:$E, $I20, '11.ПЗС'!I:I)) -> 0 | M20: =IF($I20="", 0, SUMIF('7.СМР'!$E:$E, $I20, '7.СМР'!I:I)+SUMIF('8.ОСС'!$E:$E, $I20, '8.ОСС'!AA:AA)+SUMIF('9.ПИР'!$E:$E, $I20, '9.ПИР'!I:I)+SUMIF('10.БКП'!$E:$E, $I20, '10.БКП'!I:I)+SUMIF('11.ПЗС'!$E:$E, $I20, '11.ПЗС'!J:J)) -> 0 | N20: =IF($I20="", 0, SUMIF('7.СМР'!$E:$E, $I20, '7.СМР'!J:J)+SUMIF('8.ОСС'!$E:$E, $I20, '8.ОСС'!AB:AB)+SUMIF('9.ПИР'!$E:$E, $I20, '9.ПИР'!J:J)+SUMIF('10.БКП'!$E:$E, $I20, '10.БКП'!J:J)+SUMIF('11.ПЗС'!$E:$E, $I20, '11.ПЗС'!K:K)) -> 4576 | O20: =IF($I20="", 0, SUMIF('7.СМР'!$E:$E, $I20, '7.СМР'!K:K)+SUMIF('8.ОСС'!$E:$E, $I20, '8.ОСС'!AC:AC)+SUMIF('9.ПИР'!$E:$E, $I20, '9.ПИР'!K:K)+SUMIF('10.БКП'!$E:$E, $I20, '10.БКП'!K:K)+SUMIF('11.ПЗС'!$E:$E, $I20, '11.ПЗС'!L:L)) -> 9291 | P20: =IF($I20="", 0, SUMIF('7.СМР'!$E:$E, $I20, '7.СМР'!L:L)+SUMIF('8.ОСС'!$E:$E, $I20, '8.ОСС'!AD:AD)+SUMIF('9.ПИР'!$E:$E, $I20, '9.ПИР'!L:L)+SUMIF('10.БКП'!$E:$E, $I20, '10.БКП'!L:L)+SUMIF('11.ПЗС'!$E:$E, $I20, '11.ПЗС'!M:M)) -> 4575.877 | Q20: =IF($I20="", 0, SUMIF('7.СМР'!$E:$E, $I20, '7.СМР'!M:M)+SUMIF('8.ОСС'!$E:$E, $I20, '8.ОСС'!AE:AE)+SUMIF('9.ПИР'!$E:$E, $I20, '9.ПИР'!M:M)+SUMIF('10.БКП'!$E:$E, $I20, '10.БКП'!M:M)+SUMIF('11.ПЗС'!$E:$E, $I20, '11.ПЗС'!N:N)) -> 0 | R20: =IF($I20="", 0, SUMIF('7.СМР'!$E:$E, $I20, '7.СМР'!N:N)+SUMIF('8.ОСС'!$E:$E, $I20, '8.ОСС'!AF:AF)+SUMIF('9.ПИР'!$E:$E, $I20, '9.ПИР'!N:N)+SUMIF('10.БКП'!$E:$E, $I20, '10.БКП'!N:N)+SUMIF('11.ПЗС'!$E:$E, $I20, '11.ПЗС'!O:O)) -> 0 | S20: =IF($I20="", 0, SUMIF('7.СМР'!$E:$E, $I20, '7.СМР'!O:O)+SUMIF('8.ОСС'!$E:$E, $I20, '8.ОСС'!AG:AG)+SUMIF('9.ПИР'!$E:$E, $I20, '9.ПИР'!O:O)+SUMIF('10.БКП'!$E:$E, $I20, '10.БКП'!O:O)+SUMIF('11.ПЗС'!$E:$E, $I20, '11.ПЗС'!P:P)) -> 0 | T20: =IF($I20="", 0, SUMIF('7.СМР'!$E:$E, $I20, '7.СМР'!P:P)+SUMIF('8.ОСС'!$E:$E, $I20, '8.ОСС'!AH:AH)+SUMIF('9.ПИР'!$E:$E, $I20, '9.ПИР'!P:P)+SUMIF('10.БКП'!$E:$E, $I20, '10.БКП'!P:P)+SUMIF('11.ПЗС'!$E:$E, $I20, '11.ПЗС'!Q:Q)) -> 4575.877 | U20: 13867 | V20: 4575.877 | W20: -9291.123 | X20: -0.6700168025 | Z20: 0 | AA20: 0 | AB20: =IF($I20="", 0, SUMIF('7.СМР'!$E:$E, $I20, '7.СМР'!X:X)+SUMIF('8.ОСС'!$E:$E, $I20, '8.ОСС'!AP:AP)+SUMIF('9.ПИР'!$E:$E, $I20, '9.ПИР'!X:X)+SUMIF('10.БКП'!$E:$E, $I20, '10.БКП'!X:X)+SUMIF('11.ПЗС'!$E:$E, $I20, '11.ПЗС'!Y:Y)) -> 0 | AC20: =IF($I20="", 0, SUMIF('7.СМР'!$E:$E, $I20, '7.СМР'!Y:Y)+SUMIF('8.ОСС'!$E:$E, $I20, '8.ОСС'!AQ:AQ)+SUMIF('9.ПИР'!$E:$E, $I20, '9.ПИР'!Y:Y)+SUMIF('10.БКП'!$E:$E, $I20, '10.БКП'!Y:Y)+SUMIF('11.ПЗС'!$E:$E, $I20, '11.ПЗС'!Z:Z)) -> 0 | AD20: =IF($I20="", 0, SUMIF('7.СМР'!$E:$E, $I20, '7.СМР'!Z:Z)+SUMIF('8.ОСС'!$E:$E, $I20, '8.ОСС'!AR:AR)+SUMIF('9.ПИР'!$E:$E, $I20, '9.ПИР'!Z:Z)+SUMIF('10.БКП'!$E:$E, $I20, '10.БКП'!Z:Z)+SUMIF('11.ПЗС'!$E:$E, $I20, '11.ПЗС'!AA:AA)) -> 0 | AE20: =IF($I20="", 0, SUMIF('7.СМР'!$E:$E, $I20, '7.СМР'!AA:AA)+SUMIF('8.ОСС'!$E:$E, $I20, '8.ОСС'!AS:AS)+SUMIF('9.ПИР'!$E:$E, $I20, '9.ПИР'!AA:AA)+SUMIF('10.БКП'!$E:$E, $I20, '10.БКП'!AA:AA)+SUMIF('11.ПЗС'!$E:$E, $I20, '11.ПЗС'!AB:AB)) -> 13867 | AF20: =IF($I20="", 0, SUMIF('7.СМР'!$E:$E, $I20, '7.СМР'!AB:AB)+SUMIF('8.ОСС'!$E:$E, $I20, '8.ОСС'!AT:AT)+SUMIF('9.ПИР'!$E:$E, $I20, '9.ПИР'!AB:AB)+SUMIF('10.БКП'!$E:$E, $I20, '10.БКП'!AB:AB)+SUMIF('11.ПЗС'!$E:$E, $I20, '11.ПЗС'!AC:AC)) -> 0 | AG20: =IF($I20="", 0, SUMIF('7.СМР'!$E:$E, $I20, '7.СМР'!AC:AC)+SUMIF('8.ОСС'!$E:$E, $I20, '8.ОСС'!AU:AU)+SUMIF('9.ПИР'!$E:$E, $I20, '9.ПИР'!AC:AC)+SUMIF('10.БКП'!$E:$E, $I20, '10.БКП'!AC:AC)+SUMIF('11.ПЗС'!$E:$E, $I20, '11.ПЗС'!AD:AD)) -> 0 | AH20: =IF($I20="", 0, SUMIF('7.СМР'!$E:$E, $I20, '7.СМР'!AD:AD)+SUMIF('8.ОСС'!$E:$E, $I20, '8.ОСС'!AV:AV)+SUMIF('9.ПИР'!$E:$E, $I20, '9.ПИР'!AD:AD)+SUMIF('10.БКП'!$E:$E, $I20, '10.БКП'!AD:AD)+SUMIF('11.ПЗС'!$E:$E, $I20, '11.ПЗС'!AE:AE)) -> 4576 | AI20: =IF($I20="", 0, SUMIF('7.СМР'!$E:$E, $I20, '7.СМР'!AE:AE)+SUMIF('8.ОСС'!$E:$E, $I20, '8.ОСС'!AW:AW)+SUMIF('9.ПИР'!$E:$E, $I20, '9.ПИР'!AE:AE)+SUMIF('10.БКП'!$E:$E, $I20, '10.БКП'!AE:AE)+SUMIF('11.ПЗС'!$E:$E, $I20, '11.ПЗС'!AF:AF)) -> 9291 | AK20: 13867 | AL20: 0 | AM20: 0 | AN20: =IF($I20="", "", VLOOKUP($I20,objects, '05.РКС'!L$18-'05.РКС'!$B$18+1, 0)) -> 2016-10-01 | AO20: =IF($I20="", "", VLOOKUP($I20,objects, '05.РКС'!M$18-'05.РКС'!$B$18+1, 0)) -> 2018-12-30 | AP20: =IF($I20="", "", VLOOKUP($I20,objects, '05.РКС'!N$18-'05.РКС'!$B$18+1, 0)) -> Декларация безопасности ГТ сооружений утв. Ростехнадзором РФ рег.№00-ДБ-0048-2015 | AQ20: =IF($I20="", "", VLOOKUP($I20,objects, '05.РКС'!P$18-'05.РКС'!$B$18+1, 0)) -> выведено из "РЕЗЕРВА" исх.№ 2049/011 от 18.11.2016 | AR20: 0
C21: АО "Вилюйская ГЭС-3" | D21: Прочее | E21: 0 | G21: Прочая основная деятельность | H21: Высокий | I21: =IF(ISBLANK('05.РКС'!B22), "", '05.РКС'!B22) -> 2016-1.4. | J21: Здание ГЭС.Противотаранное устройство на границе охранной зоны акватории | K21: =IF($I21="", 0, SUMIF('7.СМР'!$E:$E, $I21, '7.СМР'!G:G)+SUMIF('8.ОСС'!$E:$E, $I21, '8.ОСС'!Y:Y)+SUMIF('9.ПИР'!$E:$E, $I21, '9.ПИР'!G:G)+SUMIF('10.БКП'!$E:$E, $I21, '10.БКП'!G:G)+SUMIF('11.ПЗС'!$E:$E, $I21, '11.ПЗС'!H:H)) -> 14722 | L21: =IF($I21="", 0, SUMIF('7.СМР'!$E:$E, $I21, '7.СМР'!H:H)+SUMIF('8.ОСС'!$E:$E, $I21, '8.ОСС'!Z:Z)+SUMIF('9.ПИР'!$E:$E, $I21, '9.ПИР'!H:H)+SUMIF('10.БКП'!$E:$E, $I21, '10.БКП'!H:H)+SUMIF('11.ПЗС'!$E:$E, $I21, '11.ПЗС'!I:I)) -> 0 | M21: =IF($I21="", 0, SUMIF('7.СМР'!$E:$E, $I21, '7.СМР'!I:I)+SUMIF('8.ОСС'!$E:$E, $I21, '8.ОСС'!AA:AA)+SUMIF('9.ПИР'!$E:$E, $I21, '9.ПИР'!I:I)+SUMIF('10.БКП'!$E:$E, $I21, '10.БКП'!I:I)+SUMIF('11.ПЗС'!$E:$E, $I21, '11.ПЗС'!J:J)) -> 0 | N21: =IF($I21="", 0, SUMIF('7.СМР'!$E:$E, $I21, '7.СМР'!J:J)+SUMIF('8.ОСС'!$E:$E, $I21, '8.ОСС'!AB:AB)+SUMIF('9.ПИР'!$E:$E, $I21, '9.ПИР'!J:J)+SUMIF('10.БКП'!$E:$E, $I21, '10.БКП'!J:J)+SUMIF('11.ПЗС'!$E:$E, $I21, '11.ПЗС'!K:K)) -> 0 | O21: =IF($I21="", 0, SUMIF('7.СМР'!$E:$E, $I21, '7.СМР'!K:K)+SUMIF('8.ОСС'!$E:$E, $I21, '8.ОСС'!AC:AC)+SUMIF('9.ПИР'!$E:$E, $I21, '9.ПИР'!K:K)+SUMIF('10.БКП'!$E:$E, $I21, '10.БКП'!K:K)+SUMIF('11.ПЗС'!$E:$E, $I21, '11.ПЗС'!L:L)) -> 14722 | P21: =IF($I21="", 0, SUMIF('7.СМР'!$E:$E, $I21, '7.СМР'!L:L)+SUMIF('8.ОСС'!$E:$E, $I21, '8.ОСС'!AD:AD)+SUMIF('9.ПИР'!$E:$E, $I21, '9.ПИР'!L:L)+SUMIF('10.БКП'!$E:$E, $I21, '10.БКП'!L:L)+SUMIF('11.ПЗС'!$E:$E, $I21, '11.ПЗС'!M:M)) -> 15500.452 | Q21: =IF($I21="", 0, SUMIF('7.СМР'!$E:$E, $I21, '7.СМР'!M:M)+SUMIF('8.ОСС'!$E:$E, $I21, '8.ОСС'!AE:AE)+SUMIF('9.ПИР'!$E:$E, $I21, '9.ПИР'!M:M)+SUMIF('10.БКП'!$E:$E, $I21, '10.БКП'!M:M)+SUMIF('11.ПЗС'!$E:$E, $I21, '11.ПЗС'!N:N)) -> 0 | R21: =IF($I21="", 0, SUMIF('7.СМР'!$E:$E, $I21, '7.СМР'!N:N)+SUMIF('8.ОСС'!$E:$E, $I21, '8.ОСС'!AF:AF)+SUMIF('9.ПИР'!$E:$E, $I21, '9.ПИР'!N:N)+SUMIF('10.БКП'!$E:$E, $I21, '10.БКП'!N:N)+SUMIF('11.ПЗС'!$E:$E, $I21, '11.ПЗС'!O:O)) -> 0 | S21: =IF($I21="", 0, SUMIF('7.СМР'!$E:$E, $I21, '7.СМР'!O:O)+SUMIF('8.ОСС'!$E:$E, $I21, '8.ОСС'!AG:AG)+SUMIF('9.ПИР'!$E:$E, $I21, '9.ПИР'!O:O)+SUMIF('10.БКП'!$E:$E, $I21, '10.БКП'!O:O)+SUMIF('11.ПЗС'!$E:$E, $I21, '11.ПЗС'!P:P)) -> 0 | T21: =IF($I21="", 0, SUMIF('7.СМР'!$E:$E, $I21, '7.СМР'!P:P)+SUMIF('8.ОСС'!$E:$E, $I21, '8.ОСС'!AH:AH)+SUMIF('9.ПИР'!$E:$E, $I21, '9.ПИР'!P:P)+SUMIF('10.БКП'!$E:$E, $I21, '10.БКП'!P:P)+SUMIF('11.ПЗС'!$E:$E, $I21, '11.ПЗС'!Q:Q)) -> 15500.452 | U21: 14722 | V21: 15500.452 | W21: 778.452 | X21: 0.05287678305 | Z21: 0 | AA21: 0 | AB21: =IF($I21="", 0, SUMIF('7.СМР'!$E:$E, $I21, '7.СМР'!X:X)+SUMIF('8.ОСС'!$E:$E, $I21, '8.ОСС'!AP:AP)+SUMIF('9.ПИР'!$E:$E, $I21, '9.ПИР'!X:X)+SUMIF('10.БКП'!$E:$E, $I21, '10.БКП'!X:X)+SUMIF('11.ПЗС'!$E:$E, $I21, '11.ПЗС'!Y:Y)) -> 0 | AC21: =IF($I21="", 0, SUMIF('7.СМР'!$E:$E, $I21, '7.СМР'!Y:Y)+SUMIF('8.ОСС'!$E:$E, $I21, '8.ОСС'!AQ:AQ)+SUMIF('9.ПИР'!$E:$E, $I21, '9.ПИР'!Y:Y)+SUMIF('10.БКП'!$E:$E, $I21, '10.БКП'!Y:Y)+SUMIF('11.ПЗС'!$E:$E, $I21, '11.ПЗС'!Z:Z)) -> 0 | AD21: =IF($I21="", 0, SUMIF('7.СМР'!$E:$E, $I21, '7.СМР'!Z:Z)+SUMIF('8.ОСС'!$E:$E, $I21, '8.ОСС'!AR:AR)+SUMIF('9.ПИР'!$E:$E, $I21, '9.ПИР'!Z:Z)+SUMIF('10.БКП'!$E:$E, $I21, '10.БКП'!Z:Z)+SUMIF('11.ПЗС'!$E:$E, $I21, '11.ПЗС'!AA:AA)) -> 0 | AE21: =IF($I21="", 0, SUMIF('7.СМР'!$E:$E, $I21, '7.СМР'!AA:AA)+SUMIF('8.ОСС'!$E:$E, $I21, '8.ОСС'!AS:AS)+SUMIF('9.ПИР'!$E:$E, $I21, '9.ПИР'!AA:AA)+SUMIF('10.БКП'!$E:$E, $I21, '10.БКП'!AA:AA)+SUMIF('11.ПЗС'!$E:$E, $I21, '11.ПЗС'!AB:AB)) -> 14722 | AF21: =IF($I21="", 0, SUMIF('7.СМР'!$E:$E, $I21, '7.СМР'!AB:AB)+SUMIF('8.ОСС'!$E:$E, $I21, '8.ОСС'!AT:AT)+SUMIF('9.ПИР'!$E:$E, $I21, '9.ПИР'!AB:AB)+SUMIF('10.БКП'!$E:$E, $I21, '10.БКП'!AB:AB)+SUMIF('11.ПЗС'!$E:$E, $I21, '11.ПЗС'!AC:AC)) -> 0 | AG21: =IF($I21="", 0, SUMIF('7.СМР'!$E:$E, $I21, '7.СМР'!AC:AC)+SUMIF('8.ОСС'!$E:$E, $I21, '8.ОСС'!AU:AU)+SUMIF('9.ПИР'!$E:$E, $I21, '9.ПИР'!AC:AC)+SUMIF('10.БКП'!$E:$E, $I21, '10.БКП'!AC:AC)+SUMIF('11.ПЗС'!$E:$E, $I21, '11.ПЗС'!AD:AD)) -> 0 | AH21: =IF($I21="", 0, SUMIF('7.СМР'!$E:$E, $I21, '7.СМР'!AD:AD)+SUMIF('8.ОСС'!$E:$E, $I21, '8.ОСС'!AV:AV)+SUMIF('9.ПИР'!$E:$E, $I21, '9.ПИР'!AD:AD)+SUMIF('10.БКП'!$E:$E, $I21, '10.БКП'!AD:AD)+SUMIF('11.ПЗС'!$E:$E, $I21, '11.ПЗС'!AE:AE)) -> 0 | AI21: =IF($I21="", 0, SUMIF('7.СМР'!$E:$E, $I21, '7.СМР'!AE:AE)+SUMIF('8.ОСС'!$E:$E, $I21, '8.ОСС'!AW:AW)+SUMIF('9.ПИР'!$E:$E, $I21, '9.ПИР'!AE:AE)+SUMIF('10.БКП'!$E:$E, $I21, '10.БКП'!AE:AE)+SUMIF('11.ПЗС'!$E:$E, $I21, '11.ПЗС'!AF:AF)) -> 14722 | AK21: 14722 | AL21: 0 | AM21: =IF($I21="","",AK21-(AL21+K21)) -> 0 | AN21: =IF($I21="", "", VLOOKUP($I21,objects, '05.РКС'!L$18-'05.РКС'!$B$18+1, 0)) -> 2017-04-01 | AO21: =IF($I21="", "", VLOOKUP($I21,objects, '05.РКС'!M$18-'05.РКС'!$B$18+1, 0)) -> 2017-12-30 | AP21: =IF($I21="", "", VLOOKUP($I21,objects, '05.РКС'!N$18-'05.РКС'!$B$18+1, 0)) -> Правила по обеспечению безопасности и антитеррористической защищенности объектов топливно-энергетического комплекса п.302, утв. Правительством РФ от 05.05.2012г №458, рекомендации техаудита ПАО "РусГидро" 01.07.2016г | AQ21: =IF($I21="", "", VLOOKUP($I21,objects, '05.РКС'!P$18-'05.РКС'!$B$18+1, 0)) -> 0 | AR21: 0
C22: АО "Вилюйская ГЭС-3" | D22: Прочее | E22: 0 | G22: Прочая основная деятельность | H22: Высокий | I22: =IF(ISBLANK('05.РКС'!B23), "", '05.РКС'!B23) -> 2016-1.4.1. | J22: Здание ГЭС.Противотаранное устройство на границе охранной зоны акватории. Оборудование | K22: =IF($I22="", 0, SUMIF('7.СМР'!$E:$E, $I22, '7.СМР'!G:G)+SUMIF('8.ОСС'!$E:$E, $I22, '8.ОСС'!Y:Y)+SUMIF('9.ПИР'!$E:$E, $I22, '9.ПИР'!G:G)+SUMIF('10.БКП'!$E:$E, $I22, '10.БКП'!G:G)+SUMIF('11.ПЗС'!$E:$E, $I22, '11.ПЗС'!H:H)) -> 0 | L22: =IF($I22="", 0, SUMIF('7.СМР'!$E:$E, $I22, '7.СМР'!H:H)+SUMIF('8.ОСС'!$E:$E, $I22, '8.ОСС'!Z:Z)+SUMIF('9.ПИР'!$E:$E, $I22, '9.ПИР'!H:H)+SUMIF('10.БКП'!$E:$E, $I22, '10.БКП'!H:H)+SUMIF('11.ПЗС'!$E:$E, $I22, '11.ПЗС'!I:I)) -> 0 | M22: =IF($I22="", 0, SUMIF('7.СМР'!$E:$E, $I22, '7.СМР'!I:I)+SUMIF('8.ОСС'!$E:$E, $I22, '8.ОСС'!AA:AA)+SUMIF('9.ПИР'!$E:$E, $I22, '9.ПИР'!I:I)+SUMIF('10.БКП'!$E:$E, $I22, '10.БКП'!I:I)+SUMIF('11.ПЗС'!$E:$E, $I22, '11.ПЗС'!J:J)) -> 0 | N22: =IF($I22="", 0, SUMIF('7.СМР'!$E:$E, $I22, '7.СМР'!J:J)+SUMIF('8.ОСС'!$E:$E, $I22, '8.ОСС'!AB:AB)+SUMIF('9.ПИР'!$E:$E, $I22, '9.ПИР'!J:J)+SUMIF('10.БКП'!$E:$E, $I22, '10.БКП'!J:J)+SUMIF('11.ПЗС'!$E:$E, $I22, '11.ПЗС'!K:K)) -> 0 | O22: =IF($I22="", 0, SUMIF('7.СМР'!$E:$E, $I22, '7.СМР'!K:K)+SUMIF('8.ОСС'!$E:$E, $I22, '8.ОСС'!AC:AC)+SUMIF('9.ПИР'!$E:$E, $I22, '9.ПИР'!K:K)+SUMIF('10.БКП'!$E:$E, $I22, '10.БКП'!K:K)+SUMIF('11.ПЗС'!$E:$E, $I22, '11.ПЗС'!L:L)) -> 0 | P22: =IF($I22="", 0, SUMIF('7.СМР'!$E:$E, $I22, '7.СМР'!L:L)+SUMIF('8.ОСС'!$E:$E, $I22, '8.ОСС'!AD:AD)+SUMIF('9.ПИР'!$E:$E, $I22, '9.ПИР'!L:L)+SUMIF('10.БКП'!$E:$E, $I22, '10.БКП'!L:L)+SUMIF('11.ПЗС'!$E:$E, $I22, '11.ПЗС'!M:M)) -> 0 | Q22: =IF($I22="", 0, SUMIF('7.СМР'!$E:$E, $I22, '7.СМР'!M:M)+SUMIF('8.ОСС'!$E:$E, $I22, '8.ОСС'!AE:AE)+SUMIF('9.ПИР'!$E:$E, $I22, '9.ПИР'!M:M)+SUMIF('10.БКП'!$E:$E, $I22, '10.БКП'!M:M)+SUMIF('11.ПЗС'!$E:$E, $I22, '11.ПЗС'!N:N)) -> 0 | R22: =IF($I22="", 0, SUMIF('7.СМР'!$E:$E, $I22, '7.СМР'!N:N)+SUMIF('8.ОСС'!$E:$E, $I22, '8.ОСС'!AF:AF)+SUMIF('9.ПИР'!$E:$E, $I22, '9.ПИР'!N:N)+SUMIF('10.БКП'!$E:$E, $I22, '10.БКП'!N:N)+SUMIF('11.ПЗС'!$E:$E, $I22, '11.ПЗС'!O:O)) -> 0 | S22: =IF($I22="", 0, SUMIF('7.СМР'!$E:$E, $I22, '7.СМР'!O:O)+SUMIF('8.ОСС'!$E:$E, $I22, '8.ОСС'!AG:AG)+SUMIF('9.ПИР'!$E:$E, $I22, '9.ПИР'!O:O)+SUMIF('10.БКП'!$E:$E, $I22, '10.БКП'!O:O)+SUMIF('11.ПЗС'!$E:$E, $I22, '11.ПЗС'!P:P)) -> 0 | T22: =IF($I22="", 0, SUMIF('7.СМР'!$E:$E, $I22, '7.СМР'!P:P)+SUMIF('8.ОСС'!$E:$E, $I22, '8.ОСС'!AH:AH)+SUMIF('9.ПИР'!$E:$E, $I22, '9.ПИР'!P:P)+SUMIF('10.БКП'!$E:$E, $I22, '10.БКП'!P:P)+SUMIF('11.ПЗС'!$E:$E, $I22, '11.ПЗС'!Q:Q)) -> 0 | U22: 0 | V22: 0 | W22: 0 | X22: 0 | Z22: 0 | AA22: 0 | AB22: =IF($I22="", 0, SUMIF('7.СМР'!$E:$E, $I22, '7.СМР'!X:X)+SUMIF('8.ОСС'!$E:$E, $I22, '8.ОСС'!AP:AP)+SUMIF('9.ПИР'!$E:$E, $I22, '9.ПИР'!X:X)+SUMIF('10.БКП'!$E:$E, $I22, '10.БКП'!X:X)+SUMIF('11.ПЗС'!$E:$E, $I22, '11.ПЗС'!Y:Y)) -> 0 | AC22: =IF($I22="", 0, SUMIF('7.СМР'!$E:$E, $I22, '7.СМР'!Y:Y)+SUMIF('8.ОСС'!$E:$E, $I22, '8.ОСС'!AQ:AQ)+SUMIF('9.ПИР'!$E:$E, $I22, '9.ПИР'!Y:Y)+SUMIF('10.БКП'!$E:$E, $I22, '10.БКП'!Y:Y)+SUMIF('11.ПЗС'!$E:$E, $I22, '11.ПЗС'!Z:Z)) -> 0 | AD22: =IF($I22="", 0, SUMIF('7.СМР'!$E:$E, $I22, '7.СМР'!Z:Z)+SUMIF('8.ОСС'!$E:$E, $I22, '8.ОСС'!AR:AR)+SUMIF('9.ПИР'!$E:$E, $I22, '9.ПИР'!Z:Z)+SUMIF('10.БКП'!$E:$E, $I22, '10.БКП'!Z:Z)+SUMIF('11.ПЗС'!$E:$E, $I22, '11.ПЗС'!AA:AA)) -> 0 | AE22: =IF($I22="", 0, SUMIF('7.СМР'!$E:$E, $I22, '7.СМР'!AA:AA)+SUMIF('8.ОСС'!$E:$E, $I22, '8.ОСС'!AS:AS)+SUMIF('9.ПИР'!$E:$E, $I22, '9.ПИР'!AA:AA)+SUMIF('10.БКП'!$E:$E, $I22, '10.БКП'!AA:AA)+SUMIF('11.ПЗС'!$E:$E, $I22, '11.ПЗС'!AB:AB)) -> 0 | AF22: =IF($I22="", 0, SUMIF('7.СМР'!$E:$E, $I22, '7.СМР'!AB:AB)+SUMIF('8.ОСС'!$E:$E, $I22, '8.ОСС'!AT:AT)+SUMIF('9.ПИР'!$E:$E, $I22, '9.ПИР'!AB:AB)+SUMIF('10.БКП'!$E:$E, $I22, '10.БКП'!AB:AB)+SUMIF('11.ПЗС'!$E:$E, $I22, '11.ПЗС'!AC:AC)) -> 0 | AG22: =IF($I22="", 0, SUMIF('7.СМР'!$E:$E, $I22, '7.СМР'!AC:AC)+SUMIF('8.ОСС'!$E:$E, $I22, '8.ОСС'!AU:AU)+SUMIF('9.ПИР'!$E:$E, $I22, '9.ПИР'!AC:AC)+SUMIF('10.БКП'!$E:$E, $I22, '10.БКП'!AC:AC)+SUMIF('11.ПЗС'!$E:$E, $I22, '11.ПЗС'!AD:AD)) -> 0 | AH22: =IF($I22="", 0, SUMIF('7.СМР'!$E:$E, $I22, '7.СМР'!AD:AD)+SUMIF('8.ОСС'!$E:$E, $I22, '8.ОСС'!AV:AV)+SUMIF('9.ПИР'!$E:$E, $I22, '9.ПИР'!AD:AD)+SUMIF('10.БКП'!$E:$E, $I22, '10.БКП'!AD:AD)+SUMIF('11.ПЗС'!$E:$E, $I22, '11.ПЗС'!AE:AE)) -> 0 | AI22: =IF($I22="", 0, SUMIF('7.СМР'!$E:$E, $I22, '7.СМР'!AE:AE)+SUMIF('8.ОСС'!$E:$E, $I22, '8.ОСС'!AW:AW)+SUMIF('9.ПИР'!$E:$E, $I22, '9.ПИР'!AE:AE)+SUMIF('10.БКП'!$E:$E, $I22, '10.БКП'!AE:AE)+SUMIF('11.ПЗС'!$E:$E, $I22, '11.ПЗС'!AF:AF)) -> 0 | AK22: 12961 | AL22: 0 | AM22: 12961 | AN22: =IF($I22="", "", VLOOKUP($I22,objects, '05.РКС'!L$18-'05.РКС'!$B$18+1, 0)) -> 2017-04-01 | AO22: =IF($I22="", "", VLOOKUP($I22,objects, '05.РКС'!M$18-'05.РКС'!$B$18+1, 0)) -> 2017-12-30 | AP22: =IF($I22="", "", VLOOKUP($I22,objects, '05.РКС'!N$18-'05.РКС'!$B$18+1, 0)) -> Правила по обеспечению безопасности и антитеррористической защищенности объектов топливно-энергетического комплекса п.302, утв. Правительством РФ от 05.05.2012г №458, рекомендации техаудита ПАО "РусГидро" 01.07.2016г | AQ22: =IF($I22="", "", VLOOKUP($I22,objects, '05.РКС'!P$18-'05.РКС'!$B$18+1, 0)) -> 0 | AR22: 0
C23: АО "Вилюйская ГЭС-3" | D23: Прочее | E23: 0 | G23: Прочая основная деятельность | H23: Высокий | I23: =IF(ISBLANK('05.РКС'!B24), "", '05.РКС'!B24) -> 2016-1.4.2. | J23: Здание ГЭС.Противотаранное устройство на границе охранной зоны акватории. Оборудование | K23: =IF($I23="", 0, SUMIF('7.СМР'!$E:$E, $I23, '7.СМР'!G:G)+SUMIF('8.ОСС'!$E:$E, $I23, '8.ОСС'!Y:Y)+SUMIF('9.ПИР'!$E:$E, $I23, '9.ПИР'!G:G)+SUMIF('10.БКП'!$E:$E, $I23, '10.БКП'!G:G)+SUMIF('11.ПЗС'!$E:$E, $I23, '11.ПЗС'!H:H)) -> 0 | L23: =IF($I23="", 0, SUMIF('7.СМР'!$E:$E, $I23, '7.СМР'!H:H)+SUMIF('8.ОСС'!$E:$E, $I23, '8.ОСС'!Z:Z)+SUMIF('9.ПИР'!$E:$E, $I23, '9.ПИР'!H:H)+SUMIF('10.БКП'!$E:$E, $I23, '10.БКП'!H:H)+SUMIF('11.ПЗС'!$E:$E, $I23, '11.ПЗС'!I:I)) -> 0 | M23: =IF($I23="", 0, SUMIF('7.СМР'!$E:$E, $I23, '7.СМР'!I:I)+SUMIF('8.ОСС'!$E:$E, $I23, '8.ОСС'!AA:AA)+SUMIF('9.ПИР'!$E:$E, $I23, '9.ПИР'!I:I)+SUMIF('10.БКП'!$E:$E, $I23, '10.БКП'!I:I)+SUMIF('11.ПЗС'!$E:$E, $I23, '11.ПЗС'!J:J)) -> 0 | N23: =IF($I23="", 0, SUMIF('7.СМР'!$E:$E, $I23, '7.СМР'!J:J)+SUMIF('8.ОСС'!$E:$E, $I23, '8.ОСС'!AB:AB)+SUMIF('9.ПИР'!$E:$E, $I23, '9.ПИР'!J:J)+SUMIF('10.БКП'!$E:$E, $I23, '10.БКП'!J:J)+SUMIF('11.ПЗС'!$E:$E, $I23, '11.ПЗС'!K:K)) -> 0 | O23: =IF($I23="", 0, SUMIF('7.СМР'!$E:$E, $I23, '7.СМР'!K:K)+SUMIF('8.ОСС'!$E:$E, $I23, '8.ОСС'!AC:AC)+SUMIF('9.ПИР'!$E:$E, $I23, '9.ПИР'!K:K)+SUMIF('10.БКП'!$E:$E, $I23, '10.БКП'!K:K)+SUMIF('11.ПЗС'!$E:$E, $I23, '11.ПЗС'!L:L)) -> 0 | P23: =IF($I23="", 0, SUMIF('7.СМР'!$E:$E, $I23, '7.СМР'!L:L)+SUMIF('8.ОСС'!$E:$E, $I23, '8.ОСС'!AD:AD)+SUMIF('9.ПИР'!$E:$E, $I23, '9.ПИР'!L:L)+SUMIF('10.БКП'!$E:$E, $I23, '10.БКП'!L:L)+SUMIF('11.ПЗС'!$E:$E, $I23, '11.ПЗС'!M:M)) -> 0 | Q23: =IF($I23="", 0, SUMIF('7.СМР'!$E:$E, $I23, '7.СМР'!M:M)+SUMIF('8.ОСС'!$E:$E, $I23, '8.ОСС'!AE:AE)+SUMIF('9.ПИР'!$E:$E, $I23, '9.ПИР'!M:M)+SUMIF('10.БКП'!$E:$E, $I23, '10.БКП'!M:M)+SUMIF('11.ПЗС'!$E:$E, $I23, '11.ПЗС'!N:N)) -> 0 | R23: =IF($I23="", 0, SUMIF('7.СМР'!$E:$E, $I23, '7.СМР'!N:N)+SUMIF('8.ОСС'!$E:$E, $I23, '8.ОСС'!AF:AF)+SUMIF('9.ПИР'!$E:$E, $I23, '9.ПИР'!N:N)+SUMIF('10.БКП'!$E:$E, $I23, '10.БКП'!N:N)+SUMIF('11.ПЗС'!$E:$E, $I23, '11.ПЗС'!O:O)) -> 0 | S23: =IF($I23="", 0, SUMIF('7.СМР'!$E:$E, $I23, '7.СМР'!O:O)+SUMIF('8.ОСС'!$E:$E, $I23, '8.ОСС'!AG:AG)+SUMIF('9.ПИР'!$E:$E, $I23, '9.ПИР'!O:O)+SUMIF('10.БКП'!$E:$E, $I23, '10.БКП'!O:O)+SUMIF('11.ПЗС'!$E:$E, $I23, '11.ПЗС'!P:P)) -> 0 | T23: =IF($I23="", 0, SUMIF('7.СМР'!$E:$E, $I23, '7.СМР'!P:P)+SUMIF('8.ОСС'!$E:$E, $I23, '8.ОСС'!AH:AH)+SUMIF('9.ПИР'!$E:$E, $I23, '9.ПИР'!P:P)+SUMIF('10.БКП'!$E:$E, $I23, '10.БКП'!P:P)+SUMIF('11.ПЗС'!$E:$E, $I23, '11.ПЗС'!Q:Q)) -> 0 | U23: 0 | V23: 0 | W23: 0 | X23: 0 | Z23: 0 | AA23: 0 | AB23: =IF($I23="", 0, SUMIF('7.СМР'!$E:$E, $I23, '7.СМР'!X:X)+SUMIF('8.ОСС'!$E:$E, $I23, '8.ОСС'!AP:AP)+SUMIF('9.ПИР'!$E:$E, $I23, '9.ПИР'!X:X)+SUMIF('10.БКП'!$E:$E, $I23, '10.БКП'!X:X)+SUMIF('11.ПЗС'!$E:$E, $I23, '11.ПЗС'!Y:Y)) -> 0 | AC23: =IF($I23="", 0, SUMIF('7.СМР'!$E:$E, $I23, '7.СМР'!Y:Y)+SUMIF('8.ОСС'!$E:$E, $I23, '8.ОСС'!AQ:AQ)+SUMIF('9.ПИР'!$E:$E, $I23, '9.ПИР'!Y:Y)+SUMIF('10.БКП'!$E:$E, $I23, '10.БКП'!Y:Y)+SUMIF('11.ПЗС'!$E:$E, $I23, '11.ПЗС'!Z:Z)) -> 0 | AD23: =IF($I23="", 0, SUMIF('7.СМР'!$E:$E, $I23, '7.СМР'!Z:Z)+SUMIF('8.ОСС'!$E:$E, $I23, '8.ОСС'!AR:AR)+SUMIF('9.ПИР'!$E:$E, $I23, '9.ПИР'!Z:Z)+SUMIF('10.БКП'!$E:$E, $I23, '10.БКП'!Z:Z)+SUMIF('11.ПЗС'!$E:$E, $I23, '11.ПЗС'!AA:AA)) -> 0 | AE23: =IF($I23="", 0, SUMIF('7.СМР'!$E:$E, $I23, '7.СМР'!AA:AA)+SUMIF('8.ОСС'!$E:$E, $I23, '8.ОСС'!AS:AS)+SUMIF('9.ПИР'!$E:$E, $I23, '9.ПИР'!AA:AA)+SUMIF('10.БКП'!$E:$E, $I23, '10.БКП'!AA:AA)+SUMIF('11.ПЗС'!$E:$E, $I23, '11.ПЗС'!AB:AB)) -> 0 | AF23: =IF($I23="", 0, SUMIF('7.СМР'!$E:$E, $I23, '7.СМР'!AB:AB)+SUMIF('8.ОСС'!$E:$E, $I23, '8.ОСС'!AT:AT)+SUMIF('9.ПИР'!$E:$E, $I23, '9.ПИР'!AB:AB)+SUMIF('10.БКП'!$E:$E, $I23, '10.БКП'!AB:AB)+SUMIF('11.ПЗС'!$E:$E, $I23, '11.ПЗС'!AC:AC)) -> 0 | AG23: =IF($I23="", 0, SUMIF('7.СМР'!$E:$E, $I23, '7.СМР'!AC:AC)+SUMIF('8.ОСС'!$E:$E, $I23, '8.ОСС'!AU:AU)+SUMIF('9.ПИР'!$E:$E, $I23, '9.ПИР'!AC:AC)+SUMIF('10.БКП'!$E:$E, $I23, '10.БКП'!AC:AC)+SUMIF('11.ПЗС'!$E:$E, $I23, '11.ПЗС'!AD:AD)) -> 0 | AH23: =IF($I23="", 0, SUMIF('7.СМР'!$E:$E, $I23, '7.СМР'!AD:AD)+SUMIF('8.ОСС'!$E:$E, $I23, '8.ОСС'!AV:AV)+SUMIF('9.ПИР'!$E:$E, $I23, '9.ПИР'!AD:AD)+SUMIF('10.БКП'!$E:$E, $I23, '10.БКП'!AD:AD)+SUMIF('11.ПЗС'!$E:$E, $I23, '11.ПЗС'!AE:AE)) -> 0 | AI23: =IF($I23="", 0, SUMIF('7.СМР'!$E:$E, $I23, '7.СМР'!AE:AE)+SUMIF('8.ОСС'!$E:$E, $I23, '8.ОСС'!AW:AW)+SUMIF('9.ПИР'!$E:$E, $I23, '9.ПИР'!AE:AE)+SUMIF('10.БКП'!$E:$E, $I23, '10.БКП'!AE:AE)+SUMIF('11.ПЗС'!$E:$E, $I23, '11.ПЗС'!AF:AF)) -> 0 | AK23: 1740 | AL23: 0 | AM23: 1740 | AN23: =IF($I23="", "", VLOOKUP($I23,objects, '05.РКС'!L$18-'05.РКС'!$B$18+1, 0)) -> 2017-04-01 | AO23: =IF($I23="", "", VLOOKUP($I23,objects, '05.РКС'!M$18-'05.РКС'!$B$18+1, 0)) -> 2017-12-30 | AP23: =IF($I23="", "", VLOOKUP($I23,objects, '05.РКС'!N$18-'05.РКС'!$B$18+1, 0)) -> Правила по обеспечению безопасности и антитеррористической защищенности объектов топливно-энергетического комплекса п.302, утв. Правительством РФ от 05.05.2012г №458, рекомендации техаудита ПАО "РусГидро" 01.07.2016г | AQ23: =IF($I23="", "", VLOOKUP($I23,objects, '05.РКС'!P$18-'05.РКС'!$B$18+1, 0)) -> 0 | AR23: 0
C24: АО "Вилюйская ГЭС-3" | D24: Прочее | E24: 0 | G24: Прочая основная деятельность | H24: Высокий | I24: =IF(ISBLANK('05.РКС'!B25), "", '05.РКС'!B25) -> 2016-1.4.3. | J24: Здание ГЭС.Противотаранное устройство на границе охранной зоны акватории. Оборудование | K24: =IF($I24="", 0, SUMIF('7.СМР'!$E:$E, $I24, '7.СМР'!G:G)+SUMIF('8.ОСС'!$E:$E, $I24, '8.ОСС'!Y:Y)+SUMIF('9.ПИР'!$E:$E, $I24, '9.ПИР'!G:G)+SUMIF('10.БКП'!$E:$E, $I24, '10.БКП'!G:G)+SUMIF('11.ПЗС'!$E:$E, $I24, '11.ПЗС'!H:H)) -> 0 | L24: =IF($I24="", 0, SUMIF('7.СМР'!$E:$E, $I24, '7.СМР'!H:H)+SUMIF('8.ОСС'!$E:$E, $I24, '8.ОСС'!Z:Z)+SUMIF('9.ПИР'!$E:$E, $I24, '9.ПИР'!H:H)+SUMIF('10.БКП'!$E:$E, $I24, '10.БКП'!H:H)+SUMIF('11.ПЗС'!$E:$E, $I24, '11.ПЗС'!I:I)) -> 0 | M24: =IF($I24="", 0, SUMIF('7.СМР'!$E:$E, $I24, '7.СМР'!I:I)+SUMIF('8.ОСС'!$E:$E, $I24, '8.ОСС'!AA:AA)+SUMIF('9.ПИР'!$E:$E, $I24, '9.ПИР'!I:I)+SUMIF('10.БКП'!$E:$E, $I24, '10.БКП'!I:I)+SUMIF('11.ПЗС'!$E:$E, $I24, '11.ПЗС'!J:J)) -> 0 | N24: =IF($I24="", 0, SUMIF('7.СМР'!$E:$E, $I24, '7.СМР'!J:J)+SUMIF('8.ОСС'!$E:$E, $I24, '8.ОСС'!AB:AB)+SUMIF('9.ПИР'!$E:$E, $I24, '9.ПИР'!J:J)+SUMIF('10.БКП'!$E:$E, $I24, '10.БКП'!J:J)+SUMIF('11.ПЗС'!$E:$E, $I24, '11.ПЗС'!K:K)) -> 0 | O24: =IF($I24="", 0, SUMIF('7.СМР'!$E:$E, $I24, '7.СМР'!K:K)+SUMIF('8.ОСС'!$E:$E, $I24, '8.ОСС'!AC:AC)+SUMIF('9.ПИР'!$E:$E, $I24, '9.ПИР'!K:K)+SUMIF('10.БКП'!$E:$E, $I24, '10.БКП'!K:K)+SUMIF('11.ПЗС'!$E:$E, $I24, '11.ПЗС'!L:L)) -> 0 | P24: =IF($I24="", 0, SUMIF('7.СМР'!$E:$E, $I24, '7.СМР'!L:L)+SUMIF('8.ОСС'!$E:$E, $I24, '8.ОСС'!AD:AD)+SUMIF('9.ПИР'!$E:$E, $I24, '9.ПИР'!L:L)+SUMIF('10.БКП'!$E:$E, $I24, '10.БКП'!L:L)+SUMIF('11.ПЗС'!$E:$E, $I24, '11.ПЗС'!M:M)) -> 0 | Q24: =IF($I24="", 0, SUMIF('7.СМР'!$E:$E, $I24, '7.СМР'!M:M)+SUMIF('8.ОСС'!$E:$E, $I24, '8.ОСС'!AE:AE)+SUMIF('9.ПИР'!$E:$E, $I24, '9.ПИР'!M:M)+SUMIF('10.БКП'!$E:$E, $I24, '10.БКП'!M:M)+SUMIF('11.ПЗС'!$E:$E, $I24, '11.ПЗС'!N:N)) -> 0 | R24: =IF($I24="", 0, SUMIF('7.СМР'!$E:$E, $I24, '7.СМР'!N:N)+SUMIF('8.ОСС'!$E:$E, $I24, '8.ОСС'!AF:AF)+SUMIF('9.ПИР'!$E:$E, $I24, '9.ПИР'!N:N)+SUMIF('10.БКП'!$E:$E, $I24, '10.БКП'!N:N)+SUMIF('11.ПЗС'!$E:$E, $I24, '11.ПЗС'!O:O)) -> 0 | S24: =IF($I24="", 0, SUMIF('7.СМР'!$E:$E, $I24, '7.СМР'!O:O)+SUMIF('8.ОСС'!$E:$E, $I24, '8.ОСС'!AG:AG)+SUMIF('9.ПИР'!$E:$E, $I24, '9.ПИР'!O:O)+SUMIF('10.БКП'!$E:$E, $I24, '10.БКП'!O:O)+SUMIF('11.ПЗС'!$E:$E, $I24, '11.ПЗС'!P:P)) -> 0 | T24: =IF($I24="", 0, SUMIF('7.СМР'!$E:$E, $I24, '7.СМР'!P:P)+SUMIF('8.ОСС'!$E:$E, $I24, '8.ОСС'!AH:AH)+SUMIF('9.ПИР'!$E:$E, $I24, '9.ПИР'!P:P)+SUMIF('10.БКП'!$E:$E, $I24, '10.БКП'!P:P)+SUMIF('11.ПЗС'!$E:$E, $I24, '11.ПЗС'!Q:Q)) -> 0 | U24: 0 | V24: 0 | W24: 0 | X24: 0 | Z24: 0 | AA24: 0 | AB24: =IF($I24="", 0, SUMIF('7.СМР'!$E:$E, $I24, '7.СМР'!X:X)+SUMIF('8.ОСС'!$E:$E, $I24, '8.ОСС'!AP:AP)+SUMIF('9.ПИР'!$E:$E, $I24, '9.ПИР'!X:X)+SUMIF('10.БКП'!$E:$E, $I24, '10.БКП'!X:X)+SUMIF('11.ПЗС'!$E:$E, $I24, '11.ПЗС'!Y:Y)) -> 0 | AC24: =IF($I24="", 0, SUMIF('7.СМР'!$E:$E, $I24, '7.СМР'!Y:Y)+SUMIF('8.ОСС'!$E:$E, $I24, '8.ОСС'!AQ:AQ)+SUMIF('9.ПИР'!$E:$E, $I24, '9.ПИР'!Y:Y)+SUMIF('10.БКП'!$E:$E, $I24, '10.БКП'!Y:Y)+SUMIF('11.ПЗС'!$E:$E, $I24, '11.ПЗС'!Z:Z)) -> 0 | AD24: =IF($I24="", 0, SUMIF('7.СМР'!$E:$E, $I24, '7.СМР'!Z:Z)+SUMIF('8.ОСС'!$E:$E, $I24, '8.ОСС'!AR:AR)+SUMIF('9.ПИР'!$E:$E, $I24, '9.ПИР'!Z:Z)+SUMIF('10.БКП'!$E:$E, $I24, '10.БКП'!Z:Z)+SUMIF('11.ПЗС'!$E:$E, $I24, '11.ПЗС'!AA:AA)) -> 0 | AE24: =IF($I24="", 0, SUMIF('7.СМР'!$E:$E, $I24, '7.СМР'!AA:AA)+SUMIF('8.ОСС'!$E:$E, $I24, '8.ОСС'!AS:AS)+SUMIF('9.ПИР'!$E:$E, $I24, '9.ПИР'!AA:AA)+SUMIF('10.БКП'!$E:$E, $I24, '10.БКП'!AA:AA)+SUMIF('11.ПЗС'!$E:$E, $I24, '11.ПЗС'!AB:AB)) -> 0 | AF24: =IF($I24="", 0, SUMIF('7.СМР'!$E:$E, $I24, '7.СМР'!AB:AB)+SUMIF('8.ОСС'!$E:$E, $I24, '8.ОСС'!AT:AT)+SUMIF('9.ПИР'!$E:$E, $I24, '9.ПИР'!AB:AB)+SUMIF('10.БКП'!$E:$E, $I24, '10.БКП'!AB:AB)+SUMIF('11.ПЗС'!$E:$E, $I24, '11.ПЗС'!AC:AC)) -> 0 | AG24: =IF($I24="", 0, SUMIF('7.СМР'!$E:$E, $I24, '7.СМР'!AC:AC)+SUMIF('8.ОСС'!$E:$E, $I24, '8.ОСС'!AU:AU)+SUMIF('9.ПИР'!$E:$E, $I24, '9.ПИР'!AC:AC)+SUMIF('10.БКП'!$E:$E, $I24, '10.БКП'!AC:AC)+SUMIF('11.ПЗС'!$E:$E, $I24, '11.ПЗС'!AD:AD)) -> 0 | AH24: =IF($I24="", 0, SUMIF('7.СМР'!$E:$E, $I24, '7.СМР'!AD:AD)+SUMIF('8.ОСС'!$E:$E, $I24, '8.ОСС'!AV:AV)+SUMIF('9.ПИР'!$E:$E, $I24, '9.ПИР'!AD:AD)+SUMIF('10.БКП'!$E:$E, $I24, '10.БКП'!AD:AD)+SUMIF('11.ПЗС'!$E:$E, $I24, '11.ПЗС'!AE:AE)) -> 0 | AI24: =IF($I24="", 0, SUMIF('7.СМР'!$E:$E, $I24, '7.СМР'!AE:AE)+SUMIF('8.ОСС'!$E:$E, $I24, '8.ОСС'!AW:AW)+SUMIF('9.ПИР'!$E:$E, $I24, '9.ПИР'!AE:AE)+SUMIF('10.БКП'!$E:$E, $I24, '10.БКП'!AE:AE)+SUMIF('11.ПЗС'!$E:$E, $I24, '11.ПЗС'!AF:AF)) -> 0 | AK24: 21 | AL24: 0 | AM24: 21 | AN24: =IF($I24="", "", VLOOKUP($I24,objects, '05.РКС'!L$18-'05.РКС'!$B$18+1, 0)) -> 2017-04-01 | AO24: =IF($I24="", "", VLOOKUP($I24,objects, '05.РКС'!M$18-'05.РКС'!$B$18+1, 0)) -> 2017-12-30 | AP24: =IF($I24="", "", VLOOKUP($I24,objects, '05.РКС'!N$18-'05.РКС'!$B$18+1, 0)) -> Правила по обеспечению безопасности и антитеррористической защищенности объектов топливно-энергетического комплекса п.302, утв. Правительством РФ от 05.05.2012г №458, рекомендации техаудита ПАО "РусГидро" 01.07.2016г | AQ24: =IF($I24="", "", VLOOKUP($I24,objects, '05.РКС'!P$18-'05.РКС'!$B$18+1, 0)) -> 0 | AR24: 0
C25: АО "Вилюйская ГЭС-3" | D25: Прочее | E25: 0 | G25: Прочая основная деятельность | H25: Высокий | I25: =IF(ISBLANK('05.РКС'!B26), "", '05.РКС'!B26) -> 2016-1.5. | J25: Здание ГЭС. Электроосвещение помещения окраски затворов (отм.154 оси А-1-2) | K25: =IF($I25="", 0, SUMIF('7.СМР'!$E:$E, $I25, '7.СМР'!G:G)+SUMIF('8.ОСС'!$E:$E, $I25, '8.ОСС'!Y:Y)+SUMIF('9.ПИР'!$E:$E, $I25, '9.ПИР'!G:G)+SUMIF('10.БКП'!$E:$E, $I25, '10.БКП'!G:G)+SUMIF('11.ПЗС'!$E:$E, $I25, '11.ПЗС'!H:H)) -> 0 | L25: =IF($I25="", 0, SUMIF('7.СМР'!$E:$E, $I25, '7.СМР'!H:H)+SUMIF('8.ОСС'!$E:$E, $I25, '8.ОСС'!Z:Z)+SUMIF('9.ПИР'!$E:$E, $I25, '9.ПИР'!H:H)+SUMIF('10.БКП'!$E:$E, $I25, '10.БКП'!H:H)+SUMIF('11.ПЗС'!$E:$E, $I25, '11.ПЗС'!I:I)) -> 0 | M25: =IF($I25="", 0, SUMIF('7.СМР'!$E:$E, $I25, '7.СМР'!I:I)+SUMIF('8.ОСС'!$E:$E, $I25, '8.ОСС'!AA:AA)+SUMIF('9.ПИР'!$E:$E, $I25, '9.ПИР'!I:I)+SUMIF('10.БКП'!$E:$E, $I25, '10.БКП'!I:I)+SUMIF('11.ПЗС'!$E:$E, $I25, '11.ПЗС'!J:J)) -> 0 | N25: =IF($I25="", 0, SUMIF('7.СМР'!$E:$E, $I25, '7.СМР'!J:J)+SUMIF('8.ОСС'!$E:$E, $I25, '8.ОСС'!AB:AB)+SUMIF('9.ПИР'!$E:$E, $I25, '9.ПИР'!J:J)+SUMIF('10.БКП'!$E:$E, $I25, '10.БКП'!J:J)+SUMIF('11.ПЗС'!$E:$E, $I25, '11.ПЗС'!K:K)) -> 0 | O25: =IF($I25="", 0, SUMIF('7.СМР'!$E:$E, $I25, '7.СМР'!K:K)+SUMIF('8.ОСС'!$E:$E, $I25, '8.ОСС'!AC:AC)+SUMIF('9.ПИР'!$E:$E, $I25, '9.ПИР'!K:K)+SUMIF('10.БКП'!$E:$E, $I25, '10.БКП'!K:K)+SUMIF('11.ПЗС'!$E:$E, $I25, '11.ПЗС'!L:L)) -> 0 | P25: =IF($I25="", 0, SUMIF('7.СМР'!$E:$E, $I25, '7.СМР'!L:L)+SUMIF('8.ОСС'!$E:$E, $I25, '8.ОСС'!AD:AD)+SUMIF('9.ПИР'!$E:$E, $I25, '9.ПИР'!L:L)+SUMIF('10.БКП'!$E:$E, $I25, '10.БКП'!L:L)+SUMIF('11.ПЗС'!$E:$E, $I25, '11.ПЗС'!M:M)) -> 0 | Q25: =IF($I25="", 0, SUMIF('7.СМР'!$E:$E, $I25, '7.СМР'!M:M)+SUMIF('8.ОСС'!$E:$E, $I25, '8.ОСС'!AE:AE)+SUMIF('9.ПИР'!$E:$E, $I25, '9.ПИР'!M:M)+SUMIF('10.БКП'!$E:$E, $I25, '10.БКП'!M:M)+SUMIF('11.ПЗС'!$E:$E, $I25, '11.ПЗС'!N:N)) -> 0 | R25: =IF($I25="", 0, SUMIF('7.СМР'!$E:$E, $I25, '7.СМР'!N:N)+SUMIF('8.ОСС'!$E:$E, $I25, '8.ОСС'!AF:AF)+SUMIF('9.ПИР'!$E:$E, $I25, '9.ПИР'!N:N)+SUMIF('10.БКП'!$E:$E, $I25, '10.БКП'!N:N)+SUMIF('11.ПЗС'!$E:$E, $I25, '11.ПЗС'!O:O)) -> 0 | S25: =IF($I25="", 0, SUMIF('7.СМР'!$E:$E, $I25, '7.СМР'!O:O)+SUMIF('8.ОСС'!$E:$E, $I25, '8.ОСС'!AG:AG)+SUMIF('9.ПИР'!$E:$E, $I25, '9.ПИР'!O:O)+SUMIF('10.БКП'!$E:$E, $I25, '10.БКП'!O:O)+SUMIF('11.ПЗС'!$E:$E, $I25, '11.ПЗС'!P:P)) -> 0 | T25: =IF($I25="", 0, SUMIF('7.СМР'!$E:$E, $I25, '7.СМР'!P:P)+SUMIF('8.ОСС'!$E:$E, $I25, '8.ОСС'!AH:AH)+SUMIF('9.ПИР'!$E:$E, $I25, '9.ПИР'!P:P)+SUMIF('10.БКП'!$E:$E, $I25, '10.БКП'!P:P)+SUMIF('11.ПЗС'!$E:$E, $I25, '11.ПЗС'!Q:Q)) -> 0 | U25: 0 | V25: 0 | W25: 0 | X25: 0 | Z25: 0 | AA25: 0 | AB25: =IF($I25="", 0, SUMIF('7.СМР'!$E:$E, $I25, '7.СМР'!X:X)+SUMIF('8.ОСС'!$E:$E, $I25, '8.ОСС'!AP:AP)+SUMIF('9.ПИР'!$E:$E, $I25, '9.ПИР'!X:X)+SUMIF('10.БКП'!$E:$E, $I25, '10.БКП'!X:X)+SUMIF('11.ПЗС'!$E:$E, $I25, '11.ПЗС'!Y:Y)) -> 0 | AC25: =IF($I25="", 0, SUMIF('7.СМР'!$E:$E, $I25, '7.СМР'!Y:Y)+SUMIF('8.ОСС'!$E:$E, $I25, '8.ОСС'!AQ:AQ)+SUMIF('9.ПИР'!$E:$E, $I25, '9.ПИР'!Y:Y)+SUMIF('10.БКП'!$E:$E, $I25, '10.БКП'!Y:Y)+SUMIF('11.ПЗС'!$E:$E, $I25, '11.ПЗС'!Z:Z)) -> 0 | AD25: =IF($I25="", 0, SUMIF('7.СМР'!$E:$E, $I25, '7.СМР'!Z:Z)+SUMIF('8.ОСС'!$E:$E, $I25, '8.ОСС'!AR:AR)+SUMIF('9.ПИР'!$E:$E, $I25, '9.ПИР'!Z:Z)+SUMIF('10.БКП'!$E:$E, $I25, '10.БКП'!Z:Z)+SUMIF('11.ПЗС'!$E:$E, $I25, '11.ПЗС'!AA:AA)) -> 0 | AE25: =IF($I25="", 0, SUMIF('7.СМР'!$E:$E, $I25, '7.СМР'!AA:AA)+SUMIF('8.ОСС'!$E:$E, $I25, '8.ОСС'!AS:AS)+SUMIF('9.ПИР'!$E:$E, $I25, '9.ПИР'!AA:AA)+SUMIF('10.БКП'!$E:$E, $I25, '10.БКП'!AA:AA)+SUMIF('11.ПЗС'!$E:$E, $I25, '11.ПЗС'!AB:AB)) -> 0 | AF25: =IF($I25="", 0, SUMIF('7.СМР'!$E:$E, $I25, '7.СМР'!AB:AB)+SUMIF('8.ОСС'!$E:$E, $I25, '8.ОСС'!AT:AT)+SUMIF('9.ПИР'!$E:$E, $I25, '9.ПИР'!AB:AB)+SUMIF('10.БКП'!$E:$E, $I25, '10.БКП'!AB:AB)+SUMIF('11.ПЗС'!$E:$E, $I25, '11.ПЗС'!AC:AC)) -> 0 | AG25: =IF($I25="", 0, SUMIF('7.СМР'!$E:$E, $I25, '7.СМР'!AC:AC)+SUMIF('8.ОСС'!$E:$E, $I25, '8.ОСС'!AU:AU)+SUMIF('9.ПИР'!$E:$E, $I25, '9.ПИР'!AC:AC)+SUMIF('10.БКП'!$E:$E, $I25, '10.БКП'!AC:AC)+SUMIF('11.ПЗС'!$E:$E, $I25, '11.ПЗС'!AD:AD)) -> 0 | AH25: =IF($I25="", 0, SUMIF('7.СМР'!$E:$E, $I25, '7.СМР'!AD:AD)+SUMIF('8.ОСС'!$E:$E, $I25, '8.ОСС'!AV:AV)+SUMIF('9.ПИР'!$E:$E, $I25, '9.ПИР'!AD:AD)+SUMIF('10.БКП'!$E:$E, $I25, '10.БКП'!AD:AD)+SUMIF('11.ПЗС'!$E:$E, $I25, '11.ПЗС'!AE:AE)) -> 0 | AI25: =IF($I25="", 0, SUMIF('7.СМР'!$E:$E, $I25, '7.СМР'!AE:AE)+SUMIF('8.ОСС'!$E:$E, $I25, '8.ОСС'!AW:AW)+SUMIF('9.ПИР'!$E:$E, $I25, '9.ПИР'!AE:AE)+SUMIF('10.БКП'!$E:$E, $I25, '10.БКП'!AE:AE)+SUMIF('11.ПЗС'!$E:$E, $I25, '11.ПЗС'!AF:AF)) -> 0 | AK25: 430 | AL25: 0 | AM25: 430 | AN25: =IF($I25="", "", VLOOKUP($I25,objects, '05.РКС'!L$18-'05.РКС'!$B$18+1, 0)) -> 2017-01-01 | AO25: =IF($I25="", "", VLOOKUP($I25,objects, '05.РКС'!M$18-'05.РКС'!$B$18+1, 0)) -> 2017-07-30 | AP25: =IF($I25="", "", VLOOKUP($I25,objects, '05.РКС'!N$18-'05.РКС'!$B$18+1, 0)) -> Приказ Министерства энергетики и электрификации СССР № 51пс от 19.04.1978 г. об утверждении ТЭО строительства Вилюйской ГЭС-3 на р.Вилюй; Разрешение на строительство № 8-5 от 15.06.2005 г., выданное УиАГ МО "Мирнинский район" | AQ25: =IF($I25="", "", VLOOKUP($I25,objects, '05.РКС'!P$18-'05.РКС'!$B$18+1, 0)) -> 0 | AR25: 0
